Workbook

Sheet 注意事項
A1: =出場選手エントリー票!I1&"の申し込みについて " -> 東京都高等学校新人陸上競技大会 第５・６支部予選会の申し込みについて | AM1: kaneda
A3: ①申し込み
A4: 大会の申し込みは、メールにて行います。下記のメールアドレスに申し込みファイルを添付して送信してください。
AK5: 東京都高体連第一支部 春季競技会 | AM5: 100m
B6: 2018-08-13 | D6: ～ | F6: 2018-08-20 | I6: 13:00:00 | K6: までにお願いします。（期限厳守） | R6: ＊受信されると返信のメールが届きます。 | AK6: 東京都高体連第一支部 夏季競技会 | AM6: 800m
A7: メールの題名は | D7: =IF(学校情報!D1="","学校番号＋○○○高等学校",学校情報!D1&学校情報!F1&学校情報!H1) -> 学校番号＋○○○高等学校 | AF7: 200m | AK7: 東京都高等学校新人陸上競技大会 第一支部予選会 | AM7: 1500ｍ
A8: 添付ファイルの名前は | E8: =IF(学校情報!D1="","学校番号＋○○○高等学校",学校情報!D1&学校情報!F1&学校情報!H1&".xlsm") -> 学校番号＋○○○高等学校
A9: 5支部 | B9: tokyoriku5shibu@yahoo.co.jp | N9: 6支部 | O9: tokyoriku6shibu@yahoo.co.jp
AF10: 400m | AK10: 東京都高体連第一支部 秋季競技会 | AM10: 5000m | AP10: =CONCATENATE(AP12,"\",AP11) ->  | AQ10: 都立多摩科学技術高校１階ｻｲｴﾝｽﾎｰﾙ（最寄り駅：JR武蔵小金井）にて
A11: ②大会申込用紙・申し込み代金の支払い | AF11: kaneda | AP11: =学校情報!D1&学校情報!F1&学校情報!H1&注意事項!AP14 ->  | AQ11: 都立立川高等学校 多目的ホール（１階 正面から入って右奥）
A12: メールにて申し込みをした上で、下記の日時に大会申込用紙と申し込み代金をご持参ください。 | AF12: 3000m | AM12: 400mH | AP12: D:\陸上\2016\56支部\4_多摩選\申込
A13: 「大会申込用紙 男」と「大会申込用紙 女」は、「出場選手エントリー票」（男女同一シート）に記入すると自動的に作成されます。 | AF13: 800m | AM13: 100mH | AP13: =NOW() -> 2018-07-31T15:20:44.120 | AQ13: 中央大学附属高校（最寄り駅：JR中央線武蔵小金井駅より中大循環10分）
AP14: =TEXT(AP13,"mmdd") -> 0731
B15: 日時 | C15: 2018-08-25 | E15: (土) | F15: 17:30:00 | H15: から | I15: 18:00:00 | K15: まで | AP15: 【春季】
B16: 場所 | C16: 都立多摩科学技術高校１階ｻｲｴﾝｽﾎｰﾙ（最寄り駅：JR武蔵小金井）にて | AF16: 5000m | AM16: 3000mSC
C17: ※大会申込用紙・申し込み代金を忘れないようにお願いします。 | AF17: 100ｍH | AM17: 走高跳
C18: ※メールが届かなかった時のために、「出場選手エントリー票」も印刷してご持参下さい。 | AF18: 110ｍH | AM18: 走幅跳
A20: ③「申し込みファイル」及び「大会申込用紙」の作成について
B21: １ 「学校情報」シートに必要事項を記入してください。
B22: ２ 「出場選手エントリー票」シートに記入例を参考にして記入してください。
C23: ※大会要項をよく確認し記入してください。特に出場制限のある種目には注意してください。
C24: ※足りないときは、もう1つファイルを作成して下さい。その際、ファイルには所属名（略称）の後に1．2と番号をつけて下さい。 | AF24: 3000W | AM24: 砲丸投
D25: 例：「学校番号＋○○○○高校1.xls」 | AM25: 円盤投
D26: 「学校番号＋○○○○高校2.xls」 | AM26: ﾊﾝﾏｰ投
B27: ３ 「出場選手エントリー票」シートの入力が完了したら「大会申込用紙 男」シートと「大会申込用紙 女」シートが完成します。
C28: ※「大会申込用紙 男」シートと「大会申込用紙 女」シートを印刷し、②に従って申し込み代金支払い当日に持参してください。
B29: ４ 右の「添付ファイル作成」ボタンを押すと、「申し込みファイル」が作成されます。①に従ってメールにて申し込みをしてください。
C30: ※添付ファイルは、現在このファイルが保存されている場所に保存されます。 | AM30: やり投
A34: 記入例 | J34: 種目1 | K34: 資格記録 | N34: 種目2 | O34: 資格記録 | R34: 種目3 | S34: 資格記録 | W34: 資格記録 | AA34: 資格記録
K35: 分 | L35: 秒 | O35: 分 | P35: 秒 | S35: 分 | T35: 秒 | W35: 分 | X35: 秒 | AA35: 分 | AB35: 秒 | AF35: 5000W
A36: No. | B36: 姓 | C36: 名 | E36: ﾌﾘｶﾞﾅ（姓） | F36: ﾌﾘｶﾞﾅ（名） | G36: 学年 | H36: 性別 | I36: 所属 | L36: m | M36: cm | P36: m | Q36: cm | T36: m | U36: cm | V36: ４R | X36: m | Y36: cm | Z36: １６R | AB36: m | AC36: cm | AF36: 走高跳
A37: 58421 | B37: 東京 | C37: 太郎 | D37: =ASC(PHONETIC(B37)) -> ﾄｳｷｮｳ | F37: =ASC(PHONETIC(C37)) -> ﾀﾛｳ | G37: 3 | H37: 男 | I37: 都吉川南 | J37: 400mH | K37: 01 | L37: 02 | M37: 57 | V37: 1 | W37: 0 | X37: 48 | Y37: 50 | AF37: 棒高跳
A38: 58422 | B38: 東京 | C38: 治郎 | D38: =ASC(PHONETIC(B38)) -> ﾄｳｷｮｳ | F38: =ASC(PHONETIC(C38)) -> ｼﾞﾛｳ | G38: 2 | H38: 男 | I38: 都吉川南 | J38: 100ｍ | K38: 00 | L38: 12 | M38: 50 | V38: 1 | W38: 0 | X38: 48 | Y38: 50 | AF38: 走幅跳
A39: 58423 | B39: 東京 | C39: 三郎 | D39: =ASC(PHONETIC(B39)) -> ﾄｳｷｮｳ | F39: =ASC(PHONETIC(C39)) -> ｻﾌﾞﾛｳ | G39: 1 | H39: 男 | I39: 都吉川南 | J39: 砲丸投 | K39: 0 | L39: 11 | M39: 91 | V39: 1 | W39: 0 | X39: 48 | Y39: 50 | AF39: 三段跳
A40: 58424 | B40: 東京 | C40: 史郎 | D40: ﾄｳｷｮｳ | F40: ｼﾛｳ | G40: 1 | H40: 男 | I40: 都吉川南 | J40: 1500m | K40: 05 | L40: 08 | M40: 10 | AF40: 砲丸投
A41: 58422 | B41: 東京 | C41: 碁郎 | D41: =ASC(PHONETIC(B41)) -> ﾄｳｷｮｳ | F41: =ASC(PHONETIC(C41)) -> ｺﾞﾛｳ | G41: 2 | H41: 男 | I41: 都吉川南 | J41: 100ｍ | K41: 00 | L41: 12 | M41: 50 | V41: 1 | W41: 0 | X41: 48 | Y41: 50 | AF41: 円盤投
A42: 58423 | B42: 東京 | C42: 睦郎 | D42: =ASC(PHONETIC(B42)) -> ﾄｳｷｮｳ | F42: =ASC(PHONETIC(C42)) -> ﾑﾂｵ | G42: 1 | H42: 男 | I42: 都吉川南 | J42: 砲丸投 | K42: 0 | L42: 11 | M42: 91 | AF42: 三段跳
A43: 58424 | B43: 東京 | C43: 質郎 | D43: ﾄｳｷｮｳ | F43: ｼﾛｳ | G43: 1 | H43: 男 | I43: 都吉川南 | J43: 1500m | K43: 05 | L43: 08 | M43: 10 | AF43: 砲丸投
AF44: 円盤投
AF45: やり投

Sheet 学校情報
A1: 学校番号 | F1: =VLOOKUP(D1,テスト,2) ->  | H1: =VLOOKUP(D1,テスト,4) -> 
A2: 正式学校名 （学校番号を入力すると表示されます） | D2: =IF(ISERROR(VLOOKUP(D1,テスト,5,0)),"",VLOOKUP(D1,テスト,5,0)) ->  | I2: 学校所在地 | K2: =IF(ISERROR(VLOOKUP(D1,テスト,6,0)),"",VLOOKUP(D1,テスト,6,0)) -> 
I3: 電話 | K3: =IF(ISERROR(VLOOKUP(D1,テスト,7,0)),"",VLOOKUP(D1,テスト,7,0)) -> 
I4: FAX | K4: =IF(ISERROR(VLOOKUP(D1,テスト,8,0)),"",VLOOKUP(D1,テスト,8,0)) -> 
A5: 学校長 | I5: 顧問氏名
I6: 顧問携帯
I7: 顧問Email
D8: ※プログラムの追加購入の受付は大会当日に行います。
D11: 学校番号一覧
D12: ５支部 | G12: ６支部
D13: 501 | E13: 都武蔵 | G13: 601 | H13: 都立川国際
D14: 502 | E14: 都武蔵野北 | G14: 602 | H14: 都砂川
D15: 503 | E15: 聖徳学園 | G15: 603 | H15: 都立川
D16: 504 | E16: 成蹊 | G16: 604 | H16: 都立川ろう
D17: 505 | E17: 法政 | G17: 605 | H17: 昭和一学園
D18: 506 | E18: 藤村女 | G18: 606 | H18: 立川女
D19: 507 | E19: 吉祥女 | G19: 607 | H19: 都片倉
D20: 508 | E20: 武蔵野東高専 | G20: 608 | H20: 都翔陽
D21: 509 | E21: 都三鷹中等 | G21: 610 | H21: 都八王子北
D22: 510 | E22: 大成 | G22: 611 | H22: 都八王子桑志
D23: 511 | E23: 明星学園 | G23: 613 | H23: 都八王子東
D24: 512 | E24: 都多摩科技 | G24: 614 | H24: 都富士森
D25: 513 | E25: 都小金井北 | G25: 615 | H25: 都松が谷
D26: 514 | E26: ICU | G26: 616 | H26: 都南多摩中等
D27: 515 | E27: 中大附 | G27: 617 | H27: 穎明館
D28: 516 | E28: 東京電機大学 | G28: 618 | H28: 共立女二
D29: 517 | E29: 都小川 | G29: 619 | H29: 工学院
D30: 519 | E30: 都成瀬 | G30: 621 | H30: 帝京八王子
D31: 520 | E31: 都町田 | G31: 622 | H31: 八王子
D32: 521 | E32: 都野津田 | G32: 623 | H32: 八王子実践
D33: 522 | E33: 都山崎 | G33: 624 | H33: 明中八王子
D34: 523 | E34: 都町田工 | G34: 626 | H34: 東京工業高専
D35: 524 | E35: 桜美林 | G35: 627 | H35: 都小平
D36: 525 | E36: 玉川学園 | G36: 628 | H36: 都小平西
D37: 526 | E37: 日大三 | G37: 629 | H37: 都小平南
D38: 528 | E38: 和光 | G38: 630 | H38: 錦城
D39: 529 | E39: 都永山 | G39: 631 | H39: 白梅学園
D40: 530 | E40: サレジオ高専 | G40: 632 | H40: 創価
D41: 531 | E41: 大妻多摩 | G41: 633 | H41: 拓大一
D42: 532 | E42: 聖ヶ丘 | G42: 635 | H42: 都東大和
D43: 534 | E43: 都神代 | G43: 636 | H43: 都東大和南
D44: 535 | E44: 都調布北 | G44: 637 | H44: 都多摩工
D45: 536 | E45: 都調布南 | G45: 638 | H45: 都福生
D46: 537 | E46: 桐朋女 | G46: 640 | H46: 都多摩
D47: 538 | E47: 晃華学園 | G47: 642 | H47: 都昭和
D48: 539 | E48: 都狛江 | G48: 643 | H48: 都拝島
D49: 540 | E49: 都若葉総合 | G49: 644 | H49: 啓明学園
D50: 541 | E50: 駒沢学園女 | G50: 646 | H50: 都秋留台
D51: 542 | E51: 都田無 | G51: 647 | H51: 東海大菅生
D52: 543 | E52: 都田無工 | G52: 648 | H52: 都武蔵村山
D53: 545 | E53: 都府中 | G53: 649 | H53: 都上水
D54: 546 | E54: 都府中東 | G54: 650 | H54: 都東村山
D55: 547 | E55: 都府中西 | G55: 651 | H55: 都東村山西
D56: 548 | E56: 都府中工 | G56: 652 | H56: 日体桜華
D57: 550 | E57: 明星 | G57: 653 | H57: 明学東村山
D58: 552 | E58: 都保谷 | G58: 654 | H58: 明法
D59: 553 | E59: 武蔵野女 | G59: 655 | H59: 都羽村
D60: 554 | E60: 都清瀬 | G60: 657 | H60: 都瑞穂農芸
D61: 557 | E61: 都東久留米総 | G61: 658 | H61: 都青梅総合
D62: 558 | E62: 都久留米西 | G62: 659 | H62: 帝京大高
D63: 560 | E63: 都国立 | G63: 660 | H63: 都羽村特支
D64: 561 | E64: 都五商
D65: 562 | E65: 桐朋
D66: 563 | E66: 都日野
D67: 564 | E67: 都日野台
D68: 565 | E68: 都南平
D69: 567 | E69: 都国分寺
D70: 568 | E70: 早稲田実
J71: 男子人数 | K71: 男子合計種目数 | L71: 女子人数 | M71: 女子総種目数 | N71: Ｍ４Ｒ | O71: Ｗ４Ｒ | P71: M16R | Q71: W16R
A72: =D1 -> 0 | B72: =D2 ->  | C72: =D5 -> 0 | D72: 568 | E72: 早稲田実 | J72: =COUNT('出場選手エントリー票 男'!B2:B81) -> 0 | K72: =COUNTIF(出場選手エントリー票!R5:R124,"男*")+COUNTIF(出場選手エントリー票!V5:V124,"男*")+COUNTIF(出場選手エントリー票!Z5:Z124,"男*") -> 0 | L72: =COUNT('出場選手エントリー票 女'!B2:B81) -> 0 | M72: =COUNTIF(出場選手エントリー票!R5:R124,"女*")+COUNTIF(出場選手エントリー票!V5:V124,"女*")+COUNTIF(出場選手エントリー票!Z5:Z124,"女*") -> 0 | N72: =IF(SUMPRODUCT(1/COUNTIF('出場選手エントリー票 男'!N2:N81,'出場選手エントリー票 男'!N2:N81))-1<0.5,0,SUMPRODUCT(1/COUNTIF('出場選手エントリー票 男'!N2:N81,'出場選手エントリー票 男'!N2:N81))-1) -> 0 | O72: =IF(SUMPRODUCT(1/COUNTIF('出場選手エントリー票 女'!N2:N81,'出場選手エントリー票 女'!N2:N81))-1<0.5,0,SUMPRODUCT(1/COUNTIF('出場選手エントリー票 女'!N2:N81,'出場選手エントリー票 女'!N2:N81))-1) -> 0 | P72: =IF(SUMPRODUCT(1/COUNTIF('出場選手エントリー票 男'!O2:O81,'出場選手エントリー票 男'!O2:O81))-1<0.5,0,SUMPRODUCT(1/COUNTIF('出場選手エントリー票 男'!O2:O81,'出場選手エントリー票 男'!O2:O81))-1) -> 0 | Q72: =IF(SUMPRODUCT(1/COUNTIF('出場選手エントリー票 女'!O2:O81,'出場選手エントリー票 女'!O2:O81))-1<0.5,0,SUMPRODUCT(1/COUNTIF('出場選手エントリー票 男'!O2:O81,'出場選手エントリー票 男'!O2:O81))-1) -> 0
D73: 569 | E73: 明大明治
D74: 570 | E74: 都町田総合 | G74: =K5 -> 0 | H74: =K6 -> 0 | I74: =K7 -> 0
D76: =K2 ->  | E76: =K3 ->  | F76: =K4 -> 

Sheet 出場選手エントリー票
E1: 平成 | F1: 30 | H1: 年度 | I1: 東京都高等学校新人陸上競技大会 第５・６支部予選会 | Q1: =IF(OR(学校情報!D2="",学校情報!K2="",学校情報!K3="",学校情報!D5="",学校情報!K5="",学校情報!K7="",学校情報!K6=""),"このメッセージが消えるまで学校情報を入力してください","保存は添付ファイル作成ボタンを押してください⇒⇒⇒⇒⇒⇒") -> このメッセージが消えるまで学校情報を入力してください
F2: プログラム | H2: 男子 | I2: =学校情報!E8 -> 0 | J2: 冊追加します。 | R2: 種目1 | S2: 自己記録 | V2: 種目2 | W2: 自己記録 | Z2: 種目3 | AA2: 自己記録 | AD2: ４R | AE2: 自己記録 | AH2: １６R | AI2: 自己記録
H3: 女子 | I3: =学校情報!E9 -> 0 | J3: 冊追加します。 | L3: 生年月日 | S3: 分 | T3: 秒 | W3: 分 | X3: 秒 | AA3: 分 | AB3: 秒 | AE3: 分 | AF3: 秒 | AI3: 分 | AJ3: 秒
F4: No. | H4: 姓 | I4: 名 | J4: ﾌﾘｶﾞﾅ（姓） | K4: ﾌﾘｶﾞﾅ（名） | L4: 年 | M4: 月 | N4: 日 | O4: 学年 | P4: 性別 | Q4: 所属 | T4: m | U4: cm | X4: m | Y4: cm | AB4: m | AC4: cm | AL4: 正式学校名 | AY4: 男子 | AZ4: ２年 | BA4: ３年 | BB4: 女子 | BC4: ２年 | BD4: ３年 | BF4: 男子 | BG4: ２年 | BH4: ３年 | BI4: 女子 | BJ4: ２年 | BK4: ３年
A5: =IF(ISERROR(RANK(B5,$B$5:$B$124,1)),"",RANK(B5,$B$5:$B$124,1)) ->  | B5: =IF(P5="男",ROW(P5),"") ->  | C5: =IF(ISERROR(RANK(D5,$D$5:$D$124,1)),"",RANK(D5,$D$5:$D$124,1)) ->  | D5: =IF(P5="女",ROW(R5),"") ->  | E5: 1 | H5: =IF(ISERROR(VLOOKUP($F5,氏名データ!$2:$2800,4,0)),"",VLOOKUP($F5,氏名データ!$2:$2800,4,0)) -> 00:00:00 | I5: =IF(ISERROR(VLOOKUP($F5,氏名データ!$2:$2800,5,0)),"",VLOOKUP($F5,氏名データ!$2:$2800,5,0)) -> 0 | J5: =IF(ISERROR(VLOOKUP($F5,氏名データ!$2:$2800,6,0)),"",VLOOKUP($F5,氏名データ!$2:$2800,6,0)) -> 0 | K5: =IF(ISERROR(VLOOKUP($F5,氏名データ!$2:$2800,7,0)),"",VLOOKUP($F5,氏名データ!$2:$2800,7,0)) -> 0 | O5: =IF(ISERROR(VLOOKUP($F5,氏名データ!$2:$2800,8,0)),"",VLOOKUP($F5,氏名データ!$2:$2800,8,0)) -> 0 | P5: =IF(ISERROR(VLOOKUP($F5,氏名データ!$2:$2800,11,0)),"",VLOOKUP($F5,氏名データ!$2:$2800,11,0)) -> 0 | Q5: =IF(ISERROR(VLOOKUP($F5,氏名データ!$2:$2800,9,0)),"",VLOOKUP($F5,氏名データ!$2:$2800,9,0)) ->  | AE5: 0 | AI5: 0 | AL5: =IF(F5="","",学校情報!$D$2) ->  | AM5: 0 | AN5: 種目 | AO5: 年度 | AP5: 性別 | AR5: 学年 | BF5: 春季
A6: =IF(ISERROR(RANK(B6,$B$5:$B$124,1)),"",RANK(B6,$B$5:$B$124,1)) ->  | B6: =IF(P6="男",ROW(P6),"") ->  | C6: =IF(ISERROR(RANK(D6,$D$5:$D$124,1)),"",RANK(D6,$D$5:$D$124,1)) ->  | E6: 2 | H6: =IF(ISERROR(VLOOKUP($F6,氏名データ!$2:$2800,4,0)),"",VLOOKUP($F6,氏名データ!$2:$2800,4,0)) -> 0 | I6: =IF(ISERROR(VLOOKUP($F6,氏名データ!$2:$2800,5,0)),"",VLOOKUP($F6,氏名データ!$2:$2800,5,0)) -> 0 | J6: =IF(ISERROR(VLOOKUP($F6,氏名データ!$2:$2800,6,0)),"",VLOOKUP($F6,氏名データ!$2:$2800,6,0)) -> 0 | K6: =IF(ISERROR(VLOOKUP($F6,氏名データ!$2:$2800,7,0)),"",VLOOKUP($F6,氏名データ!$2:$2800,7,0)) -> 0 | O6: =IF(ISERROR(VLOOKUP($F6,氏名データ!$2:$2800,8,0)),"",VLOOKUP($F6,氏名データ!$2:$2800,8,0)) -> 0 | P6: =IF(ISERROR(VLOOKUP($F6,氏名データ!$2:$2800,11,0)),"",VLOOKUP($F6,氏名データ!$2:$2800,11,0)) -> 0 | Q6: =IF(ISERROR(VLOOKUP($F6,氏名データ!$2:$2800,9,0)),"",VLOOKUP($F6,氏名データ!$2:$2800,9,0)) ->  | AE6: 0 | AI6: 0 | AL6: =IF(F6="","",学校情報!$D$2) ->  | AM6: 1 | AN6: 男子100m | AO6: 30 | AP6: 男 | AR6: 1 | AU6: 1 | AV6: 0 | AW6: 1 | AX6: 東京都高体連 第５・６支部 春季競技会 | AY6: 男子6支部100m | AZ6: 男子6支部100m | BA6: 男子OP110mH | BB6: 女子6支部100m | BC6: 女子6支部100m | BD6: 女子OP100mH | BF6: 男子100m | BG6: 男子100m | BH6: 男子100m | BI6: 女子100m | BJ6: 女子100m | BK6: 女子100m
B7: =IF(P7="男",ROW(P7),"") ->  | E7: 3 | H7: =IF(ISERROR(VLOOKUP($F7,氏名データ!$2:$2800,4,0)),"",VLOOKUP($F7,氏名データ!$2:$2800,4,0)) -> 0 | I7: =IF(ISERROR(VLOOKUP($F7,氏名データ!$2:$2800,5,0)),"",VLOOKUP($F7,氏名データ!$2:$2800,5,0)) -> 0 | J7: =IF(ISERROR(VLOOKUP($F7,氏名データ!$2:$2800,6,0)),"",VLOOKUP($F7,氏名データ!$2:$2800,6,0)) -> 0 | K7: =IF(ISERROR(VLOOKUP($F7,氏名データ!$2:$2800,7,0)),"",VLOOKUP($F7,氏名データ!$2:$2800,7,0)) -> 0 | O7: =IF(ISERROR(VLOOKUP($F7,氏名データ!$2:$2800,8,0)),"",VLOOKUP($F7,氏名データ!$2:$2800,8,0)) -> 0 | P7: =IF(ISERROR(VLOOKUP($F7,氏名データ!$2:$2800,11,0)),"",VLOOKUP($F7,氏名データ!$2:$2800,11,0)) -> 0 | Q7: =IF(ISERROR(VLOOKUP($F7,氏名データ!$2:$2800,9,0)),"",VLOOKUP($F7,氏名データ!$2:$2800,9,0)) ->  | AE7: 0 | AI7: 0 | AL7: =IF(F7="","",学校情報!$D$2) ->  | AM7: 2 | AN7: 男子200m | AO7: 31 | AP7: 女 | AR7: 2 | AU7: 2 | AV7: 00 | AW7: 2 | AX7: 東京都高等学校対校選手権大会 第５・６支部予選会 | AY7: 男子6支部200m | AZ7: 男子6支部200m | BA7: 男子OP400mH | BB7: 女子6支部200m | BC7: 女子6支部200m | BD7: 女子OP400mH | BF7: 男子200m | BG7: 男子200m | BH7: 男子200m | BI7: 女子200m | BJ7: 女子200m | BK7: 女子200m
E8: 4 | H8: =IF(ISERROR(VLOOKUP($F8,氏名データ!$2:$2800,4,0)),"",VLOOKUP($F8,氏名データ!$2:$2800,4,0)) -> 0 | I8: =IF(ISERROR(VLOOKUP($F8,氏名データ!$2:$2800,5,0)),"",VLOOKUP($F8,氏名データ!$2:$2800,5,0)) -> 0 | J8: =IF(ISERROR(VLOOKUP($F8,氏名データ!$2:$2800,6,0)),"",VLOOKUP($F8,氏名データ!$2:$2800,6,0)) -> 0 | K8: =IF(ISERROR(VLOOKUP($F8,氏名データ!$2:$2800,7,0)),"",VLOOKUP($F8,氏名データ!$2:$2800,7,0)) -> 0 | O8: =IF(ISERROR(VLOOKUP($F8,氏名データ!$2:$2800,8,0)),"",VLOOKUP($F8,氏名データ!$2:$2800,8,0)) -> 0 | P8: =IF(ISERROR(VLOOKUP($F8,氏名データ!$2:$2800,11,0)),"",VLOOKUP($F8,氏名データ!$2:$2800,11,0)) -> 0 | Q8: =IF(ISERROR(VLOOKUP($F8,氏名データ!$2:$2800,9,0)),"",VLOOKUP($F8,氏名データ!$2:$2800,9,0)) ->  | AE8: 0 | AI8: 0 | AL8: =IF(F8="","",学校情報!$D$2) ->  | AM8: 3 | AN8: 男子400m | AO8: 32 | AR8: 3 | AS8: 21 | AU8: 3 | AV8: 01 | AW8: 3 | AX8: 東京都高体連 第５・６支部 学年別大会 | AY8: 男子6支部400m | AZ8: 男子6支部400m | BA8: 男子OP3000mSC | BB8: 女子6支部400m | BC8: 女子6支部400m | BD8: 女子OP棒高跳 | BF8: 男子400m | BG8: 男子400m | BH8: 男子400m | BI8: 女子400m | BJ8: 女子400m | BK8: 女子400m
E9: 5 | H9: =IF(ISERROR(VLOOKUP($F9,氏名データ!$2:$2800,4,0)),"",VLOOKUP($F9,氏名データ!$2:$2800,4,0)) -> 0 | I9: =IF(ISERROR(VLOOKUP($F9,氏名データ!$2:$2800,5,0)),"",VLOOKUP($F9,氏名データ!$2:$2800,5,0)) -> 0 | J9: =IF(ISERROR(VLOOKUP($F9,氏名データ!$2:$2800,6,0)),"",VLOOKUP($F9,氏名データ!$2:$2800,6,0)) -> 0 | K9: =IF(ISERROR(VLOOKUP($F9,氏名データ!$2:$2800,7,0)),"",VLOOKUP($F9,氏名データ!$2:$2800,7,0)) -> 0 | O9: =IF(ISERROR(VLOOKUP($F9,氏名データ!$2:$2800,8,0)),"",VLOOKUP($F9,氏名データ!$2:$2800,8,0)) -> 0 | P9: =IF(ISERROR(VLOOKUP($F9,氏名データ!$2:$2800,11,0)),"",VLOOKUP($F9,氏名データ!$2:$2800,11,0)) -> 0 | Q9: =IF(ISERROR(VLOOKUP($F9,氏名データ!$2:$2800,9,0)),"",VLOOKUP($F9,氏名データ!$2:$2800,9,0)) ->  | AE9: 0 | AI9: 0 | AL9: =IF(F9="","",学校情報!$D$2) ->  | AM9: 4 | AN9: 男子800m | AO9: 33 | AR9: 中1 | AS9: 22 | AU9: 4 | AV9: 02 | AW9: 4 | AX9: 東京都高体連 第５・６支部 多摩選手権 | AY9: 男子6支部800m | AZ9: 男子6支部800m | BA9: 男子OP棒高跳 | BB9: 女子6支部800m | BC9: 女子6支部800m | BD9: 女子OP三段跳 | BF9: 男子800m | BG9: 男子800m | BH9: 男子800m | BI9: 女子800m | BJ9: 女子800m | BK9: 女子800m
E10: 6 | H10: =IF(ISERROR(VLOOKUP($F10,氏名データ!$2:$2800,4,0)),"",VLOOKUP($F10,氏名データ!$2:$2800,4,0)) -> 0 | I10: =IF(ISERROR(VLOOKUP($F10,氏名データ!$2:$2800,5,0)),"",VLOOKUP($F10,氏名データ!$2:$2800,5,0)) -> 0 | J10: =IF(ISERROR(VLOOKUP($F10,氏名データ!$2:$2800,6,0)),"",VLOOKUP($F10,氏名データ!$2:$2800,6,0)) -> 0 | K10: =IF(ISERROR(VLOOKUP($F10,氏名データ!$2:$2800,7,0)),"",VLOOKUP($F10,氏名データ!$2:$2800,7,0)) -> 0 | O10: =IF(ISERROR(VLOOKUP($F10,氏名データ!$2:$2800,8,0)),"",VLOOKUP($F10,氏名データ!$2:$2800,8,0)) -> 0 | P10: =IF(ISERROR(VLOOKUP($F10,氏名データ!$2:$2800,11,0)),"",VLOOKUP($F10,氏名データ!$2:$2800,11,0)) -> 0 | Q10: =IF(ISERROR(VLOOKUP($F10,氏名データ!$2:$2800,9,0)),"",VLOOKUP($F10,氏名データ!$2:$2800,9,0)) ->  | AE10: 0 | AI10: 0 | AL10: =IF(F10="","",学校情報!$D$2) ->  | AM10: 5 | AN10: 男子1500m | AO10: 34 | AR10: 中2 | AS10: 24 | AU10: 5 | AV10: 03 | AW10: 5 | AX10: 東京都高等学校新人陸上競技大会 第５・６支部予選会 | AY10: 男子6支部1500m | AZ10: 男子6支部1500m | BB10: 女子6支部1500m | BC10: 女子6支部1500m | BF10: 男子1500m | BG10: 男子1500m | BH10: 男子1500m | BI10: 女子1500m | BJ10: 女子1500m | BK10: 女子1500m
E11: 7 | H11: =IF(ISERROR(VLOOKUP($F11,氏名データ!$2:$2800,4,0)),"",VLOOKUP($F11,氏名データ!$2:$2800,4,0)) -> 0 | I11: =IF(ISERROR(VLOOKUP($F11,氏名データ!$2:$2800,5,0)),"",VLOOKUP($F11,氏名データ!$2:$2800,5,0)) -> 0 | J11: =IF(ISERROR(VLOOKUP($F11,氏名データ!$2:$2800,6,0)),"",VLOOKUP($F11,氏名データ!$2:$2800,6,0)) -> 0 | K11: =IF(ISERROR(VLOOKUP($F11,氏名データ!$2:$2800,7,0)),"",VLOOKUP($F11,氏名データ!$2:$2800,7,0)) -> 0 | O11: =IF(ISERROR(VLOOKUP($F11,氏名データ!$2:$2800,8,0)),"",VLOOKUP($F11,氏名データ!$2:$2800,8,0)) -> 0 | P11: =IF(ISERROR(VLOOKUP($F11,氏名データ!$2:$2800,11,0)),"",VLOOKUP($F11,氏名データ!$2:$2800,11,0)) -> 0 | Q11: =IF(ISERROR(VLOOKUP($F11,氏名データ!$2:$2800,9,0)),"",VLOOKUP($F11,氏名データ!$2:$2800,9,0)) ->  | AE11: 0 | AI11: 0 | AL11: =IF(F11="","",学校情報!$D$2) ->  | AM11: 6 | AN11: 男子5000m | AO11: 35 | AR11: 中3 | AS11: 25 | AV11: 04 | AW11: 6 | AX11: 東京都高体連 第５・６支部 秋季競技会 | AY11: 男子6支部5000m | AZ11: 男子6支部5000m | BB11: 女子6支部3000m | BC11: 女子6支部3000m | BF11: 男子5000m | BG11: 男子5000m | BH11: 男子5000m | BI11: 女子3000m | BJ11: 女子3000m | BK11: 女子3000m
E12: 8 | H12: =IF(ISERROR(VLOOKUP($F12,氏名データ!$2:$2800,4,0)),"",VLOOKUP($F12,氏名データ!$2:$2800,4,0)) -> 0 | I12: =IF(ISERROR(VLOOKUP($F12,氏名データ!$2:$2800,5,0)),"",VLOOKUP($F12,氏名データ!$2:$2800,5,0)) -> 0 | J12: =IF(ISERROR(VLOOKUP($F12,氏名データ!$2:$2800,6,0)),"",VLOOKUP($F12,氏名データ!$2:$2800,6,0)) -> 0 | K12: =IF(ISERROR(VLOOKUP($F12,氏名データ!$2:$2800,7,0)),"",VLOOKUP($F12,氏名データ!$2:$2800,7,0)) -> 0 | O12: =IF(ISERROR(VLOOKUP($F12,氏名データ!$2:$2800,8,0)),"",VLOOKUP($F12,氏名データ!$2:$2800,8,0)) -> 0 | P12: =IF(ISERROR(VLOOKUP($F12,氏名データ!$2:$2800,11,0)),"",VLOOKUP($F12,氏名データ!$2:$2800,11,0)) -> 0 | Q12: =IF(ISERROR(VLOOKUP($F12,氏名データ!$2:$2800,9,0)),"",VLOOKUP($F12,氏名データ!$2:$2800,9,0)) ->  | AE12: 0 | AI12: 0 | AL12: =IF(F12="","",学校情報!$D$2) ->  | AM12: 7 | AN12: 男子OP110mH | AO12: 36 | AS12: 26 | AV12: 05 | AY12: 男子OP110mH | AZ12: 男子OP110mH | BB12: 女子OP100mH | BC12: 女子OP100mH | BF12: 男子110mH | BG12: 男子110mH | BH12: 男子110mH | BI12: 女子100mH | BJ12: 女子100mH | BK12: 女子100mH
E13: 9 | H13: =IF(ISERROR(VLOOKUP($F13,氏名データ!$2:$2800,4,0)),"",VLOOKUP($F13,氏名データ!$2:$2800,4,0)) -> 0 | I13: =IF(ISERROR(VLOOKUP($F13,氏名データ!$2:$2800,5,0)),"",VLOOKUP($F13,氏名データ!$2:$2800,5,0)) -> 0 | J13: =IF(ISERROR(VLOOKUP($F13,氏名データ!$2:$2800,6,0)),"",VLOOKUP($F13,氏名データ!$2:$2800,6,0)) -> 0 | K13: =IF(ISERROR(VLOOKUP($F13,氏名データ!$2:$2800,7,0)),"",VLOOKUP($F13,氏名データ!$2:$2800,7,0)) -> 0 | O13: =IF(ISERROR(VLOOKUP($F13,氏名データ!$2:$2800,8,0)),"",VLOOKUP($F13,氏名データ!$2:$2800,8,0)) -> 0 | P13: =IF(ISERROR(VLOOKUP($F13,氏名データ!$2:$2800,11,0)),"",VLOOKUP($F13,氏名データ!$2:$2800,11,0)) -> 0 | Q13: =IF(ISERROR(VLOOKUP($F13,氏名データ!$2:$2800,9,0)),"",VLOOKUP($F13,氏名データ!$2:$2800,9,0)) ->  | AE13: 0 | AI13: 0 | AL13: =IF(F13="","",学校情報!$D$2) ->  | AM13: 8 | AN13: 男子400mH | AO13: 37 | AS13: 27 | AV13: 06 | AY13: 男子OP400mH | AZ13: 男子OP400mH | BB13: 女子OP400mH | BC13: 女子OP400mH | BF13: 男子400mH | BG13: 男子400mH | BH13: 男子400mH | BI13: 女子400mH | BJ13: 女子400mH | BK13: 女子400mH
E14: 10 | H14: =IF(ISERROR(VLOOKUP($F14,氏名データ!$2:$2800,4,0)),"",VLOOKUP($F14,氏名データ!$2:$2800,4,0)) -> 0 | I14: =IF(ISERROR(VLOOKUP($F14,氏名データ!$2:$2800,5,0)),"",VLOOKUP($F14,氏名データ!$2:$2800,5,0)) -> 0 | J14: =IF(ISERROR(VLOOKUP($F14,氏名データ!$2:$2800,6,0)),"",VLOOKUP($F14,氏名データ!$2:$2800,6,0)) -> 0 | K14: =IF(ISERROR(VLOOKUP($F14,氏名データ!$2:$2800,7,0)),"",VLOOKUP($F14,氏名データ!$2:$2800,7,0)) -> 0 | O14: =IF(ISERROR(VLOOKUP($F14,氏名データ!$2:$2800,8,0)),"",VLOOKUP($F14,氏名データ!$2:$2800,8,0)) -> 0 | P14: =IF(ISERROR(VLOOKUP($F14,氏名データ!$2:$2800,11,0)),"",VLOOKUP($F14,氏名データ!$2:$2800,11,0)) -> 0 | Q14: =IF(ISERROR(VLOOKUP($F14,氏名データ!$2:$2800,9,0)),"",VLOOKUP($F14,氏名データ!$2:$2800,9,0)) ->  | AE14: 0 | AI14: 0 | AL14: =IF(F14="","",学校情報!$D$2) ->  | AM14: 9 | AN14: 男子やり投 | AS14: 28 | AV14: 07 | AY14: 男子OP3000mSC | AZ14: 男子OP3000mSC | BB14: 女子6支部走高跳 | BC14: 女子6支部走高跳 | BF14: 男子3000mSC | BG14: 男子3000mSC | BH14: 男子3000mSC | BI14: 女子走高跳 | BJ14: 女子走高跳 | BK14: 女子走高跳
E15: 11 | H15: =IF(ISERROR(VLOOKUP($F15,氏名データ!$2:$2800,4,0)),"",VLOOKUP($F15,氏名データ!$2:$2800,4,0)) -> 0 | I15: =IF(ISERROR(VLOOKUP($F15,氏名データ!$2:$2800,5,0)),"",VLOOKUP($F15,氏名データ!$2:$2800,5,0)) -> 0 | J15: =IF(ISERROR(VLOOKUP($F15,氏名データ!$2:$2800,6,0)),"",VLOOKUP($F15,氏名データ!$2:$2800,6,0)) -> 0 | K15: =IF(ISERROR(VLOOKUP($F15,氏名データ!$2:$2800,7,0)),"",VLOOKUP($F15,氏名データ!$2:$2800,7,0)) -> 0 | O15: =IF(ISERROR(VLOOKUP($F15,氏名データ!$2:$2800,8,0)),"",VLOOKUP($F15,氏名データ!$2:$2800,8,0)) -> 0 | P15: =IF(ISERROR(VLOOKUP($F15,氏名データ!$2:$2800,11,0)),"",VLOOKUP($F15,氏名データ!$2:$2800,11,0)) -> 0 | Q15: =IF(ISERROR(VLOOKUP($F15,氏名データ!$2:$2800,9,0)),"",VLOOKUP($F15,氏名データ!$2:$2800,9,0)) ->  | AE15: 0 | AI15: 0 | AL15: =IF(F15="","",学校情報!$D$2) ->  | AM15: 10 | AN15: 男子円盤投 | AS15: 29 | AV15: 08 | AY15: 男子6支部走高跳 | AZ15: 男子6支部走高跳 | BB15: 男子OP棒高跳 | BC15: 男子OP棒高跳 | BF15: 男子走高跳 | BG15: 男子走高跳 | BH15: 男子走高跳 | BI15: 女子棒高跳 | BJ15: 女子棒高跳 | BK15: 女子棒高跳
E16: 12 | H16: =IF(ISERROR(VLOOKUP($F16,氏名データ!$2:$2800,4,0)),"",VLOOKUP($F16,氏名データ!$2:$2800,4,0)) -> 0 | I16: =IF(ISERROR(VLOOKUP($F16,氏名データ!$2:$2800,5,0)),"",VLOOKUP($F16,氏名データ!$2:$2800,5,0)) -> 0 | J16: =IF(ISERROR(VLOOKUP($F16,氏名データ!$2:$2800,6,0)),"",VLOOKUP($F16,氏名データ!$2:$2800,6,0)) -> 0 | K16: =IF(ISERROR(VLOOKUP($F16,氏名データ!$2:$2800,7,0)),"",VLOOKUP($F16,氏名データ!$2:$2800,7,0)) -> 0 | O16: =IF(ISERROR(VLOOKUP($F16,氏名データ!$2:$2800,8,0)),"",VLOOKUP($F16,氏名データ!$2:$2800,8,0)) -> 0 | P16: =IF(ISERROR(VLOOKUP($F16,氏名データ!$2:$2800,11,0)),"",VLOOKUP($F16,氏名データ!$2:$2800,11,0)) -> 0 | Q16: =IF(ISERROR(VLOOKUP($F16,氏名データ!$2:$2800,9,0)),"",VLOOKUP($F16,氏名データ!$2:$2800,9,0)) ->  | AE16: 0 | AI16: 0 | AL16: =IF(F16="","",学校情報!$D$2) ->  | AM16: 11 | AN16: 男子三段跳 | AS16: 30 | AV16: 09 | AY16: 男子OP棒高跳 | AZ16: 男子OP棒高跳 | BB16: 女子6支部走幅跳 | BC16: 女子6支部走幅跳 | BF16: 男子棒高跳 | BG16: 男子棒高跳 | BH16: 男子棒高跳 | BI16: 女子走幅跳 | BJ16: 女子走幅跳 | BK16: 女子走幅跳
E17: 13 | H17: =IF(ISERROR(VLOOKUP($F17,氏名データ!$2:$2800,4,0)),"",VLOOKUP($F17,氏名データ!$2:$2800,4,0)) -> 0 | I17: =IF(ISERROR(VLOOKUP($F17,氏名データ!$2:$2800,5,0)),"",VLOOKUP($F17,氏名データ!$2:$2800,5,0)) -> 0 | J17: =IF(ISERROR(VLOOKUP($F17,氏名データ!$2:$2800,6,0)),"",VLOOKUP($F17,氏名データ!$2:$2800,6,0)) -> 0 | K17: =IF(ISERROR(VLOOKUP($F17,氏名データ!$2:$2800,7,0)),"",VLOOKUP($F17,氏名データ!$2:$2800,7,0)) -> 0 | O17: =IF(ISERROR(VLOOKUP($F17,氏名データ!$2:$2800,8,0)),"",VLOOKUP($F17,氏名データ!$2:$2800,8,0)) -> 0 | P17: =IF(ISERROR(VLOOKUP($F17,氏名データ!$2:$2800,11,0)),"",VLOOKUP($F17,氏名データ!$2:$2800,11,0)) -> 0 | Q17: =IF(ISERROR(VLOOKUP($F17,氏名データ!$2:$2800,9,0)),"",VLOOKUP($F17,氏名データ!$2:$2800,9,0)) ->  | AE17: 0 | AI17: 0 | AL17: =IF(F17="","",学校情報!$D$2) ->  | AM17: 12 | AN17: 男子走高跳 | AO17: 生年 | AP17: 月 | AQ17: 日 | AS17: 31 | AV17: 10 | AY17: 男子6支部走幅跳 | AZ17: 男子6支部走幅跳 | BB17: 女子OP三段跳 | BC17: 女子OP三段跳 | BF17: 男子走幅跳 | BG17: 男子走幅跳 | BH17: 男子走幅跳 | BI17: 女子三段跳 | BJ17: 女子三段跳 | BK17: 女子三段跳
E18: 14 | H18: =IF(ISERROR(VLOOKUP($F18,氏名データ!$2:$2800,4,0)),"",VLOOKUP($F18,氏名データ!$2:$2800,4,0)) -> 0 | I18: =IF(ISERROR(VLOOKUP($F18,氏名データ!$2:$2800,5,0)),"",VLOOKUP($F18,氏名データ!$2:$2800,5,0)) -> 0 | J18: =IF(ISERROR(VLOOKUP($F18,氏名データ!$2:$2800,6,0)),"",VLOOKUP($F18,氏名データ!$2:$2800,6,0)) -> 0 | K18: =IF(ISERROR(VLOOKUP($F18,氏名データ!$2:$2800,7,0)),"",VLOOKUP($F18,氏名データ!$2:$2800,7,0)) -> 0 | O18: =IF(ISERROR(VLOOKUP($F18,氏名データ!$2:$2800,8,0)),"",VLOOKUP($F18,氏名データ!$2:$2800,8,0)) -> 0 | P18: =IF(ISERROR(VLOOKUP($F18,氏名データ!$2:$2800,11,0)),"",VLOOKUP($F18,氏名データ!$2:$2800,11,0)) -> 0 | Q18: =IF(ISERROR(VLOOKUP($F18,氏名データ!$2:$2800,9,0)),"",VLOOKUP($F18,氏名データ!$2:$2800,9,0)) ->  | AE18: 0 | AI18: 0 | AL18: =IF(F18="","",学校情報!$D$2) ->  | AM18: 13 | AN18: 男子走幅跳 | AO18: 00 | AP18: 01 | AQ18: 01 | AS18: 32 | AV18: 11 | AY18: 男子6支部三段跳 | AZ18: 男子6支部三段跳 | BB18: 女子6支部砲丸投 | BC18: 女子6支部砲丸投 | BF18: 男子三段跳 | BG18: 男子三段跳 | BH18: 男子三段跳 | BI18: 女子砲丸投 | BJ18: 女子砲丸投 | BK18: 女子砲丸投
E19: 15 | H19: =IF(ISERROR(VLOOKUP($F19,氏名データ!$2:$2800,4,0)),"",VLOOKUP($F19,氏名データ!$2:$2800,4,0)) -> 0 | I19: =IF(ISERROR(VLOOKUP($F19,氏名データ!$2:$2800,5,0)),"",VLOOKUP($F19,氏名データ!$2:$2800,5,0)) -> 0 | J19: =IF(ISERROR(VLOOKUP($F19,氏名データ!$2:$2800,6,0)),"",VLOOKUP($F19,氏名データ!$2:$2800,6,0)) -> 0 | K19: =IF(ISERROR(VLOOKUP($F19,氏名データ!$2:$2800,7,0)),"",VLOOKUP($F19,氏名データ!$2:$2800,7,0)) -> 0 | O19: =IF(ISERROR(VLOOKUP($F19,氏名データ!$2:$2800,8,0)),"",VLOOKUP($F19,氏名データ!$2:$2800,8,0)) -> 0 | P19: =IF(ISERROR(VLOOKUP($F19,氏名データ!$2:$2800,11,0)),"",VLOOKUP($F19,氏名データ!$2:$2800,11,0)) -> 0 | Q19: =IF(ISERROR(VLOOKUP($F19,氏名データ!$2:$2800,9,0)),"",VLOOKUP($F19,氏名データ!$2:$2800,9,0)) ->  | AE19: 0 | AI19: 0 | AL19: =IF(F19="","",学校情報!$D$2) ->  | AM19: 14 | AN19: 男子砲丸投 | AO19: 01 | AP19: 02 | AQ19: 02 | AS19: 33 | AV19: 12 | AY19: 男子6支部砲丸投 | AZ19: 男子6支部砲丸投 | BB19: 女子6支部円盤投 | BC19: 女子6支部円盤投 | BF19: 男子砲丸投 | BG19: 男子砲丸投 | BH19: 男子砲丸投 | BI19: 女子円盤投 | BJ19: 女子円盤投 | BK19: 女子円盤投
E20: 16 | H20: =IF(ISERROR(VLOOKUP($F20,氏名データ!$2:$2800,4,0)),"",VLOOKUP($F20,氏名データ!$2:$2800,4,0)) -> 0 | I20: =IF(ISERROR(VLOOKUP($F20,氏名データ!$2:$2800,5,0)),"",VLOOKUP($F20,氏名データ!$2:$2800,5,0)) -> 0 | J20: =IF(ISERROR(VLOOKUP($F20,氏名データ!$2:$2800,6,0)),"",VLOOKUP($F20,氏名データ!$2:$2800,6,0)) -> 0 | K20: =IF(ISERROR(VLOOKUP($F20,氏名データ!$2:$2800,7,0)),"",VLOOKUP($F20,氏名データ!$2:$2800,7,0)) -> 0 | O20: =IF(ISERROR(VLOOKUP($F20,氏名データ!$2:$2800,8,0)),"",VLOOKUP($F20,氏名データ!$2:$2800,8,0)) -> 0 | P20: =IF(ISERROR(VLOOKUP($F20,氏名データ!$2:$2800,11,0)),"",VLOOKUP($F20,氏名データ!$2:$2800,11,0)) -> 0 | Q20: =IF(ISERROR(VLOOKUP($F20,氏名データ!$2:$2800,9,0)),"",VLOOKUP($F20,氏名データ!$2:$2800,9,0)) ->  | AE20: 0 | AI20: 0 | AL20: =IF(F20="","",学校情報!$D$2) ->  | AM20: 15 | AN20: 男子棒高跳 | AO20: 02 | AP20: 03 | AQ20: 03 | AS20: 34 | AV20: 13 | AY20: 男子6支部円盤投 | AZ20: 男子6支部円盤投 | BB20: 女子6支部やり投 | BC20: 女子6支部やり投 | BF20: 男子円盤投 | BG20: 男子円盤投 | BH20: 男子円盤投 | BI20: 女子やり投 | BJ20: 女子やり投 | BK20: 女子やり投
E21: 17 | H21: =IF(ISERROR(VLOOKUP($F21,氏名データ!$2:$2800,4,0)),"",VLOOKUP($F21,氏名データ!$2:$2800,4,0)) -> 0 | I21: =IF(ISERROR(VLOOKUP($F21,氏名データ!$2:$2800,5,0)),"",VLOOKUP($F21,氏名データ!$2:$2800,5,0)) -> 0 | J21: =IF(ISERROR(VLOOKUP($F21,氏名データ!$2:$2800,6,0)),"",VLOOKUP($F21,氏名データ!$2:$2800,6,0)) -> 0 | K21: =IF(ISERROR(VLOOKUP($F21,氏名データ!$2:$2800,7,0)),"",VLOOKUP($F21,氏名データ!$2:$2800,7,0)) -> 0 | O21: =IF(ISERROR(VLOOKUP($F21,氏名データ!$2:$2800,8,0)),"",VLOOKUP($F21,氏名データ!$2:$2800,8,0)) -> 0 | P21: =IF(ISERROR(VLOOKUP($F21,氏名データ!$2:$2800,11,0)),"",VLOOKUP($F21,氏名データ!$2:$2800,11,0)) -> 0 | Q21: =IF(ISERROR(VLOOKUP($F21,氏名データ!$2:$2800,9,0)),"",VLOOKUP($F21,氏名データ!$2:$2800,9,0)) ->  | AE21: 0 | AI21: 0 | AL21: =IF(F21="","",学校情報!$D$2) ->  | AM21: 16 | AO21: 03 | AP21: 04 | AQ21: 04 | AS21: 35 | AV21: 14 | AY21: 男子6支部やり投 | AZ21: 男子6支部やり投 | BF21: 男子やり投 | BG21: 男子やり投 | BH21: 男子やり投
E22: 18 | H22: =IF(ISERROR(VLOOKUP($F22,氏名データ!$2:$2800,4,0)),"",VLOOKUP($F22,氏名データ!$2:$2800,4,0)) -> 0 | I22: =IF(ISERROR(VLOOKUP($F22,氏名データ!$2:$2800,5,0)),"",VLOOKUP($F22,氏名データ!$2:$2800,5,0)) -> 0 | J22: =IF(ISERROR(VLOOKUP($F22,氏名データ!$2:$2800,6,0)),"",VLOOKUP($F22,氏名データ!$2:$2800,6,0)) -> 0 | K22: =IF(ISERROR(VLOOKUP($F22,氏名データ!$2:$2800,7,0)),"",VLOOKUP($F22,氏名データ!$2:$2800,7,0)) -> 0 | O22: =IF(ISERROR(VLOOKUP($F22,氏名データ!$2:$2800,8,0)),"",VLOOKUP($F22,氏名データ!$2:$2800,8,0)) -> 0 | P22: =IF(ISERROR(VLOOKUP($F22,氏名データ!$2:$2800,11,0)),"",VLOOKUP($F22,氏名データ!$2:$2800,11,0)) -> 0 | Q22: =IF(ISERROR(VLOOKUP($F22,氏名データ!$2:$2800,9,0)),"",VLOOKUP($F22,氏名データ!$2:$2800,9,0)) ->  | AE22: 0 | AI22: 0 | AL22: =IF(F22="","",学校情報!$D$2) ->  | AM22: 17 | AO22: 04 | AP22: 05 | AQ22: 05 | AV22: 15 | BF22: 支部予選
E23: 19 | H23: =IF(ISERROR(VLOOKUP($F23,氏名データ!$2:$2800,4,0)),"",VLOOKUP($F23,氏名データ!$2:$2800,4,0)) -> 0 | I23: =IF(ISERROR(VLOOKUP($F23,氏名データ!$2:$2800,5,0)),"",VLOOKUP($F23,氏名データ!$2:$2800,5,0)) -> 0 | J23: =IF(ISERROR(VLOOKUP($F23,氏名データ!$2:$2800,6,0)),"",VLOOKUP($F23,氏名データ!$2:$2800,6,0)) -> 0 | K23: =IF(ISERROR(VLOOKUP($F23,氏名データ!$2:$2800,7,0)),"",VLOOKUP($F23,氏名データ!$2:$2800,7,0)) -> 0 | O23: =IF(ISERROR(VLOOKUP($F23,氏名データ!$2:$2800,8,0)),"",VLOOKUP($F23,氏名データ!$2:$2800,8,0)) -> 0 | P23: =IF(ISERROR(VLOOKUP($F23,氏名データ!$2:$2800,11,0)),"",VLOOKUP($F23,氏名データ!$2:$2800,11,0)) -> 0 | Q23: =IF(ISERROR(VLOOKUP($F23,氏名データ!$2:$2800,9,0)),"",VLOOKUP($F23,氏名データ!$2:$2800,9,0)) ->  | AE23: 0 | AI23: 0 | AL23: =IF(F23="","",学校情報!$D$2) ->  | AM23: 18 | AO23: 05 | AP23: 06 | AQ23: 06 | AV23: 16 | BF23: 男子5支部100m | BG23: 男子5支部100m | BH23: 男子5支部100m | BI23: 女子5支部100m | BJ23: 女子5支部100m | BK23: 女子5支部100m | BL23: 男子6支部100m | BM23: 男子6支部100m | BN23: 男子6支部100m | BO23: 女子6支部100m | BP23: 女子6支部100m | BQ23: 女子6支部100m
E24: 20 | H24: =IF(ISERROR(VLOOKUP($F24,氏名データ!$2:$2800,4,0)),"",VLOOKUP($F24,氏名データ!$2:$2800,4,0)) -> 0 | I24: =IF(ISERROR(VLOOKUP($F24,氏名データ!$2:$2800,5,0)),"",VLOOKUP($F24,氏名データ!$2:$2800,5,0)) -> 0 | J24: =IF(ISERROR(VLOOKUP($F24,氏名データ!$2:$2800,6,0)),"",VLOOKUP($F24,氏名データ!$2:$2800,6,0)) -> 0 | K24: =IF(ISERROR(VLOOKUP($F24,氏名データ!$2:$2800,7,0)),"",VLOOKUP($F24,氏名データ!$2:$2800,7,0)) -> 0 | O24: =IF(ISERROR(VLOOKUP($F24,氏名データ!$2:$2800,8,0)),"",VLOOKUP($F24,氏名データ!$2:$2800,8,0)) -> 0 | P24: =IF(ISERROR(VLOOKUP($F24,氏名データ!$2:$2800,11,0)),"",VLOOKUP($F24,氏名データ!$2:$2800,11,0)) -> 0 | Q24: =IF(ISERROR(VLOOKUP($F24,氏名データ!$2:$2800,9,0)),"",VLOOKUP($F24,氏名データ!$2:$2800,9,0)) ->  | AE24: 0 | AI24: 0 | AL24: =IF(F24="","",学校情報!$D$2) ->  | AM24: 19 | AP24: 07 | AQ24: 07 | AV24: 17 | BF24: 男子5支部200m | BG24: 男子5支部200m | BH24: 男子5支部200m | BI24: 女子5支部200m | BJ24: 女子5支部200m | BK24: 女子5支部200m | BL24: 男子6支部200m | BM24: 男子6支部200m | BN24: 男子6支部200m | BO24: 女子6支部200m | BP24: 女子6支部200m | BQ24: 女子6支部200m
E25: 21 | H25: =IF(ISERROR(VLOOKUP($F25,氏名データ!$2:$2800,4,0)),"",VLOOKUP($F25,氏名データ!$2:$2800,4,0)) -> 0 | I25: =IF(ISERROR(VLOOKUP($F25,氏名データ!$2:$2800,5,0)),"",VLOOKUP($F25,氏名データ!$2:$2800,5,0)) -> 0 | J25: =IF(ISERROR(VLOOKUP($F25,氏名データ!$2:$2800,6,0)),"",VLOOKUP($F25,氏名データ!$2:$2800,6,0)) -> 0 | K25: =IF(ISERROR(VLOOKUP($F25,氏名データ!$2:$2800,7,0)),"",VLOOKUP($F25,氏名データ!$2:$2800,7,0)) -> 0 | O25: =IF(ISERROR(VLOOKUP($F25,氏名データ!$2:$2800,8,0)),"",VLOOKUP($F25,氏名データ!$2:$2800,8,0)) -> 0 | P25: =IF(ISERROR(VLOOKUP($F25,氏名データ!$2:$2800,11,0)),"",VLOOKUP($F25,氏名データ!$2:$2800,11,0)) -> 0 | Q25: =IF(ISERROR(VLOOKUP($F25,氏名データ!$2:$2800,9,0)),"",VLOOKUP($F25,氏名データ!$2:$2800,9,0)) ->  | AE25: 0 | AI25: 0 | AL25: =IF(F25="","",学校情報!$D$2) ->  | AM25: 20 | AP25: 08 | AQ25: 08 | AV25: 18 | BF25: 男子5支部400m | BG25: 男子5支部400m | BH25: 男子5支部400m | BI25: 女子5支部400m | BJ25: 女子5支部400m | BK25: 女子5支部400m | BL25: 男子6支部400m | BM25: 男子6支部400m | BN25: 男子6支部400m | BO25: 女子6支部400m | BP25: 女子6支部400m | BQ25: 女子6支部400m
E26: 22 | H26: =IF(ISERROR(VLOOKUP($F26,氏名データ!$2:$2800,4,0)),"",VLOOKUP($F26,氏名データ!$2:$2800,4,0)) -> 0 | I26: =IF(ISERROR(VLOOKUP($F26,氏名データ!$2:$2800,5,0)),"",VLOOKUP($F26,氏名データ!$2:$2800,5,0)) -> 0 | J26: =IF(ISERROR(VLOOKUP($F26,氏名データ!$2:$2800,6,0)),"",VLOOKUP($F26,氏名データ!$2:$2800,6,0)) -> 0 | K26: =IF(ISERROR(VLOOKUP($F26,氏名データ!$2:$2800,7,0)),"",VLOOKUP($F26,氏名データ!$2:$2800,7,0)) -> 0 | O26: =IF(ISERROR(VLOOKUP($F26,氏名データ!$2:$2800,8,0)),"",VLOOKUP($F26,氏名データ!$2:$2800,8,0)) -> 0 | P26: =IF(ISERROR(VLOOKUP($F26,氏名データ!$2:$2800,11,0)),"",VLOOKUP($F26,氏名データ!$2:$2800,11,0)) -> 0 | Q26: =IF(ISERROR(VLOOKUP($F26,氏名データ!$2:$2800,9,0)),"",VLOOKUP($F26,氏名データ!$2:$2800,9,0)) ->  | AE26: 0 | AI26: 0 | AL26: =IF(F26="","",学校情報!$D$2) ->  | AM26: 21 | AP26: 09 | AQ26: 09 | AV26: 19 | BF26: 男子5支部800m | BG26: 男子5支部800m | BH26: 男子5支部800m | BI26: 女子5支部800m | BJ26: 女子5支部800m | BK26: 女子5支部800m | BL26: 男子6支部800m | BM26: 男子6支部800m | BN26: 男子6支部800m | BO26: 女子6支部800m | BP26: 女子6支部800m | BQ26: 女子6支部800m
E27: 23 | H27: =IF(ISERROR(VLOOKUP($F27,氏名データ!$2:$2800,4,0)),"",VLOOKUP($F27,氏名データ!$2:$2800,4,0)) -> 0 | I27: =IF(ISERROR(VLOOKUP($F27,氏名データ!$2:$2800,5,0)),"",VLOOKUP($F27,氏名データ!$2:$2800,5,0)) -> 0 | J27: =IF(ISERROR(VLOOKUP($F27,氏名データ!$2:$2800,6,0)),"",VLOOKUP($F27,氏名データ!$2:$2800,6,0)) -> 0 | K27: =IF(ISERROR(VLOOKUP($F27,氏名データ!$2:$2800,7,0)),"",VLOOKUP($F27,氏名データ!$2:$2800,7,0)) -> 0 | O27: =IF(ISERROR(VLOOKUP($F27,氏名データ!$2:$2800,8,0)),"",VLOOKUP($F27,氏名データ!$2:$2800,8,0)) -> 0 | P27: =IF(ISERROR(VLOOKUP($F27,氏名データ!$2:$2800,11,0)),"",VLOOKUP($F27,氏名データ!$2:$2800,11,0)) -> 0 | Q27: =IF(ISERROR(VLOOKUP($F27,氏名データ!$2:$2800,9,0)),"",VLOOKUP($F27,氏名データ!$2:$2800,9,0)) ->  | AE27: 0 | AI27: 0 | AL27: =IF(F27="","",学校情報!$D$2) ->  | AM27: 22 | AP27: 10 | AQ27: 10 | AV27: 20 | BF27: 男子5支部1500m | BG27: 男子5支部1500m | BH27: 男子5支部1500m | BI27: 女子5支部1500m | BJ27: 女子5支部1500m | BK27: 女子5支部1500m | BL27: 男子6支部1500m | BM27: 男子6支部1500m | BN27: 男子6支部1500m | BO27: 女子6支部1500m | BP27: 女子6支部1500m | BQ27: 女子6支部1500m
E28: 24 | H28: =IF(ISERROR(VLOOKUP($F28,氏名データ!$2:$2800,4,0)),"",VLOOKUP($F28,氏名データ!$2:$2800,4,0)) -> 0 | I28: =IF(ISERROR(VLOOKUP($F28,氏名データ!$2:$2800,5,0)),"",VLOOKUP($F28,氏名データ!$2:$2800,5,0)) -> 0 | J28: =IF(ISERROR(VLOOKUP($F28,氏名データ!$2:$2800,6,0)),"",VLOOKUP($F28,氏名データ!$2:$2800,6,0)) -> 0 | K28: =IF(ISERROR(VLOOKUP($F28,氏名データ!$2:$2800,7,0)),"",VLOOKUP($F28,氏名データ!$2:$2800,7,0)) -> 0 | O28: =IF(ISERROR(VLOOKUP($F28,氏名データ!$2:$2800,8,0)),"",VLOOKUP($F28,氏名データ!$2:$2800,8,0)) -> 0 | P28: =IF(ISERROR(VLOOKUP($F28,氏名データ!$2:$2800,11,0)),"",VLOOKUP($F28,氏名データ!$2:$2800,11,0)) -> 0 | Q28: =IF(ISERROR(VLOOKUP($F28,氏名データ!$2:$2800,9,0)),"",VLOOKUP($F28,氏名データ!$2:$2800,9,0)) ->  | AE28: 0 | AI28: 0 | AL28: =IF(F28="","",学校情報!$D$2) ->  | AM28: 23 | AP28: 11 | AQ28: 11 | AV28: 21 | BF28: 男子5支部5000m | BG28: 男子5支部5000m | BH28: 男子5支部5000m | BI28: 女子5支部3000m | BJ28: 女子5支部3000m | BK28: 女子5支部3000m | BL28: 男子6支部5000m | BM28: 男子6支部5000m | BN28: 男子6支部5000m | BO28: 女子6支部3000m | BP28: 女子6支部3000m | BQ28: 女子6支部3000m
E29: 25 | H29: =IF(ISERROR(VLOOKUP($F29,氏名データ!$2:$2800,4,0)),"",VLOOKUP($F29,氏名データ!$2:$2800,4,0)) -> 0 | I29: =IF(ISERROR(VLOOKUP($F29,氏名データ!$2:$2800,5,0)),"",VLOOKUP($F29,氏名データ!$2:$2800,5,0)) -> 0 | J29: =IF(ISERROR(VLOOKUP($F29,氏名データ!$2:$2800,6,0)),"",VLOOKUP($F29,氏名データ!$2:$2800,6,0)) -> 0 | K29: =IF(ISERROR(VLOOKUP($F29,氏名データ!$2:$2800,7,0)),"",VLOOKUP($F29,氏名データ!$2:$2800,7,0)) -> 0 | O29: =IF(ISERROR(VLOOKUP($F29,氏名データ!$2:$2800,8,0)),"",VLOOKUP($F29,氏名データ!$2:$2800,8,0)) -> 0 | P29: =IF(ISERROR(VLOOKUP($F29,氏名データ!$2:$2800,11,0)),"",VLOOKUP($F29,氏名データ!$2:$2800,11,0)) -> 0 | Q29: =IF(ISERROR(VLOOKUP($F29,氏名データ!$2:$2800,9,0)),"",VLOOKUP($F29,氏名データ!$2:$2800,9,0)) ->  | AE29: 0 | AI29: 0 | AL29: =IF(F29="","",学校情報!$D$2) ->  | AM29: 24 | AP29: 12 | AQ29: 12 | AV29: 22 | BF29: 男子OP110mH | BG29: 男子OP110mH | BH29: 男子OP110mH | BI29: 女子OP100mH | BJ29: 女子OP100mH | BK29: 女子OP100mH | BL29: 男子OP110mH | BM29: 男子OP110mH | BN29: 男子OP110mH | BO29: 女子OP100mH | BP29: 女子OP100mH | BQ29: 女子OP100mH
E30: 26 | H30: =IF(ISERROR(VLOOKUP($F30,氏名データ!$2:$2800,4,0)),"",VLOOKUP($F30,氏名データ!$2:$2800,4,0)) -> 0 | I30: =IF(ISERROR(VLOOKUP($F30,氏名データ!$2:$2800,5,0)),"",VLOOKUP($F30,氏名データ!$2:$2800,5,0)) -> 0 | J30: =IF(ISERROR(VLOOKUP($F30,氏名データ!$2:$2800,6,0)),"",VLOOKUP($F30,氏名データ!$2:$2800,6,0)) -> 0 | K30: =IF(ISERROR(VLOOKUP($F30,氏名データ!$2:$2800,7,0)),"",VLOOKUP($F30,氏名データ!$2:$2800,7,0)) -> 0 | O30: =IF(ISERROR(VLOOKUP($F30,氏名データ!$2:$2800,8,0)),"",VLOOKUP($F30,氏名データ!$2:$2800,8,0)) -> 0 | P30: =IF(ISERROR(VLOOKUP($F30,氏名データ!$2:$2800,11,0)),"",VLOOKUP($F30,氏名データ!$2:$2800,11,0)) -> 0 | Q30: =IF(ISERROR(VLOOKUP($F30,氏名データ!$2:$2800,9,0)),"",VLOOKUP($F30,氏名データ!$2:$2800,9,0)) ->  | AE30: 0 | AI30: 0 | AL30: =IF(F30="","",学校情報!$D$2) ->  | AM30: 25 | AQ30: 13 | AV30: 23 | BF30: 男子OP400mH | BG30: 男子OP400mH | BH30: 男子OP400mH | BI30: 女子OP400mH | BJ30: 女子OP400mH | BK30: 女子OP400mH | BL30: 男子OP400mH | BM30: 男子OP400mH | BN30: 男子OP400mH | BO30: 女子OP400mH | BP30: 女子OP400mH | BQ30: 女子OP400mH
E31: 27 | H31: =IF(ISERROR(VLOOKUP($F31,氏名データ!$2:$2800,4,0)),"",VLOOKUP($F31,氏名データ!$2:$2800,4,0)) -> 0 | I31: =IF(ISERROR(VLOOKUP($F31,氏名データ!$2:$2800,5,0)),"",VLOOKUP($F31,氏名データ!$2:$2800,5,0)) -> 0 | J31: =IF(ISERROR(VLOOKUP($F31,氏名データ!$2:$2800,6,0)),"",VLOOKUP($F31,氏名データ!$2:$2800,6,0)) -> 0 | K31: =IF(ISERROR(VLOOKUP($F31,氏名データ!$2:$2800,7,0)),"",VLOOKUP($F31,氏名データ!$2:$2800,7,0)) -> 0 | O31: =IF(ISERROR(VLOOKUP($F31,氏名データ!$2:$2800,8,0)),"",VLOOKUP($F31,氏名データ!$2:$2800,8,0)) -> 0 | P31: =IF(ISERROR(VLOOKUP($F31,氏名データ!$2:$2800,11,0)),"",VLOOKUP($F31,氏名データ!$2:$2800,11,0)) -> 0 | Q31: =IF(ISERROR(VLOOKUP($F31,氏名データ!$2:$2800,9,0)),"",VLOOKUP($F31,氏名データ!$2:$2800,9,0)) ->  | AE31: 0 | AI31: 0 | AL31: =IF(F31="","",学校情報!$D$2) ->  | AM31: 26 | AQ31: 14 | AV31: 24 | BF31: 男子OP3000mSC | BG31: 男子OP3000mSC | BH31: 男子OP3000mSC | BI31: 女子5支部走高跳 | BJ31: 女子5支部走高跳 | BK31: 女子5支部走高跳 | BL31: 男子OP3000mSC | BM31: 男子OP3000mSC | BN31: 男子OP3000mSC | BO31: 女子6支部走高跳 | BP31: 女子6支部走高跳 | BQ31: 女子6支部走高跳
E32: 28 | H32: =IF(ISERROR(VLOOKUP($F32,氏名データ!$2:$2800,4,0)),"",VLOOKUP($F32,氏名データ!$2:$2800,4,0)) -> 0 | I32: =IF(ISERROR(VLOOKUP($F32,氏名データ!$2:$2800,5,0)),"",VLOOKUP($F32,氏名データ!$2:$2800,5,0)) -> 0 | J32: =IF(ISERROR(VLOOKUP($F32,氏名データ!$2:$2800,6,0)),"",VLOOKUP($F32,氏名データ!$2:$2800,6,0)) -> 0 | K32: =IF(ISERROR(VLOOKUP($F32,氏名データ!$2:$2800,7,0)),"",VLOOKUP($F32,氏名データ!$2:$2800,7,0)) -> 0 | O32: =IF(ISERROR(VLOOKUP($F32,氏名データ!$2:$2800,8,0)),"",VLOOKUP($F32,氏名データ!$2:$2800,8,0)) -> 0 | P32: =IF(ISERROR(VLOOKUP($F32,氏名データ!$2:$2800,11,0)),"",VLOOKUP($F32,氏名データ!$2:$2800,11,0)) -> 0 | Q32: =IF(ISERROR(VLOOKUP($F32,氏名データ!$2:$2800,9,0)),"",VLOOKUP($F32,氏名データ!$2:$2800,9,0)) ->  | AE32: 0 | AI32: 0 | AL32: =IF(F32="","",学校情報!$D$2) ->  | AM32: 27 | AQ32: 15 | AV32: 25 | BF32: 男子5支部走高跳 | BG32: 男子5支部走高跳 | BH32: 男子5支部走高跳 | BI32: 女子OP棒高跳 | BJ32: 女子OP棒高跳 | BK32: 女子OP棒高跳 | BL32: 男子6支部走高跳 | BM32: 男子6支部走高跳 | BN32: 男子6支部走高跳 | BO32: 女子OP棒高跳 | BP32: 女子OP棒高跳 | BQ32: 女子OP棒高跳
E33: 29 | H33: =IF(ISERROR(VLOOKUP($F33,氏名データ!$2:$2800,4,0)),"",VLOOKUP($F33,氏名データ!$2:$2800,4,0)) -> 0 | I33: =IF(ISERROR(VLOOKUP($F33,氏名データ!$2:$2800,5,0)),"",VLOOKUP($F33,氏名データ!$2:$2800,5,0)) -> 0 | J33: =IF(ISERROR(VLOOKUP($F33,氏名データ!$2:$2800,6,0)),"",VLOOKUP($F33,氏名データ!$2:$2800,6,0)) -> 0 | K33: =IF(ISERROR(VLOOKUP($F33,氏名データ!$2:$2800,7,0)),"",VLOOKUP($F33,氏名データ!$2:$2800,7,0)) -> 0 | O33: =IF(ISERROR(VLOOKUP($F33,氏名データ!$2:$2800,8,0)),"",VLOOKUP($F33,氏名データ!$2:$2800,8,0)) -> 0 | P33: =IF(ISERROR(VLOOKUP($F33,氏名データ!$2:$2800,11,0)),"",VLOOKUP($F33,氏名データ!$2:$2800,11,0)) -> 0 | Q33: =IF(ISERROR(VLOOKUP($F33,氏名データ!$2:$2800,9,0)),"",VLOOKUP($F33,氏名データ!$2:$2800,9,0)) ->  | AE33: 0 | AI33: 0 | AL33: =IF(F33="","",学校情報!$D$2) ->  | AM33: 28 | AQ33: 16 | AV33: 26 | BF33: 男子OP棒高跳 | BG33: 男子OP棒高跳 | BH33: 男子OP棒高跳 | BI33: 女子5支部走幅跳 | BJ33: 女子5支部走幅跳 | BK33: 女子5支部走幅跳 | BL33: 男子OP棒高跳 | BM33: 男子OP棒高跳 | BN33: 男子OP棒高跳 | BO33: 女子5支部走幅跳 | BP33: 女子5支部走幅跳 | BQ33: 女子5支部走幅跳
E34: 30 | H34: =IF(ISERROR(VLOOKUP($F34,氏名データ!$2:$2800,4,0)),"",VLOOKUP($F34,氏名データ!$2:$2800,4,0)) -> 0 | I34: =IF(ISERROR(VLOOKUP($F34,氏名データ!$2:$2800,5,0)),"",VLOOKUP($F34,氏名データ!$2:$2800,5,0)) -> 0 | J34: =IF(ISERROR(VLOOKUP($F34,氏名データ!$2:$2800,6,0)),"",VLOOKUP($F34,氏名データ!$2:$2800,6,0)) -> 0 | K34: =IF(ISERROR(VLOOKUP($F34,氏名データ!$2:$2800,7,0)),"",VLOOKUP($F34,氏名データ!$2:$2800,7,0)) -> 0 | O34: =IF(ISERROR(VLOOKUP($F34,氏名データ!$2:$2800,8,0)),"",VLOOKUP($F34,氏名データ!$2:$2800,8,0)) -> 0 | P34: =IF(ISERROR(VLOOKUP($F34,氏名データ!$2:$2800,11,0)),"",VLOOKUP($F34,氏名データ!$2:$2800,11,0)) -> 0 | Q34: =IF(ISERROR(VLOOKUP($F34,氏名データ!$2:$2800,9,0)),"",VLOOKUP($F34,氏名データ!$2:$2800,9,0)) ->  | AE34: 0 | AI34: 0 | AL34: =IF(F34="","",学校情報!$D$2) ->  | AM34: 29 | AQ34: 17 | AV34: 27 | BF34: 男子5支部走幅跳 | BG34: 男子5支部走幅跳 | BH34: 男子5支部走幅跳 | BI34: 女子OP三段跳 | BJ34: 女子OP三段跳 | BK34: 女子OP三段跳 | BL34: 男子6支部走幅跳 | BM34: 男子6支部走幅跳 | BN34: 男子6支部走幅跳 | BO34: 女子OP三段跳 | BP34: 女子OP三段跳 | BQ34: 女子OP三段跳
E35: 31 | H35: =IF(ISERROR(VLOOKUP($F35,氏名データ!$2:$2800,4,0)),"",VLOOKUP($F35,氏名データ!$2:$2800,4,0)) -> 0 | I35: =IF(ISERROR(VLOOKUP($F35,氏名データ!$2:$2800,5,0)),"",VLOOKUP($F35,氏名データ!$2:$2800,5,0)) -> 0 | J35: =IF(ISERROR(VLOOKUP($F35,氏名データ!$2:$2800,6,0)),"",VLOOKUP($F35,氏名データ!$2:$2800,6,0)) -> 0 | K35: =IF(ISERROR(VLOOKUP($F35,氏名データ!$2:$2800,7,0)),"",VLOOKUP($F35,氏名データ!$2:$2800,7,0)) -> 0 | O35: =IF(ISERROR(VLOOKUP($F35,氏名データ!$2:$2800,8,0)),"",VLOOKUP($F35,氏名データ!$2:$2800,8,0)) -> 0 | P35: =IF(ISERROR(VLOOKUP($F35,氏名データ!$2:$2800,11,0)),"",VLOOKUP($F35,氏名データ!$2:$2800,11,0)) -> 0 | Q35: =IF(ISERROR(VLOOKUP($F35,氏名データ!$2:$2800,9,0)),"",VLOOKUP($F35,氏名データ!$2:$2800,9,0)) ->  | AE35: 0 | AI35: 0 | AL35: =IF(F35="","",学校情報!$D$2) ->  | AM35: 30 | AQ35: 18 | AV35: 28 | BF35: 男子5支部三段跳 | BG35: 男子5支部三段跳 | BH35: 男子5支部三段跳 | BI35: 女子5支部砲丸投 | BJ35: 女子5支部砲丸投 | BK35: 女子5支部砲丸投 | BL35: 男子6支部三段跳 | BM35: 男子6支部三段跳 | BN35: 男子6支部三段跳 | BO35: 女子5支部砲丸投 | BP35: 女子5支部砲丸投 | BQ35: 女子5支部砲丸投
E36: 32 | H36: =IF(ISERROR(VLOOKUP($F36,氏名データ!$2:$2800,4,0)),"",VLOOKUP($F36,氏名データ!$2:$2800,4,0)) -> 0 | I36: =IF(ISERROR(VLOOKUP($F36,氏名データ!$2:$2800,5,0)),"",VLOOKUP($F36,氏名データ!$2:$2800,5,0)) -> 0 | J36: =IF(ISERROR(VLOOKUP($F36,氏名データ!$2:$2800,6,0)),"",VLOOKUP($F36,氏名データ!$2:$2800,6,0)) -> 0 | K36: =IF(ISERROR(VLOOKUP($F36,氏名データ!$2:$2800,7,0)),"",VLOOKUP($F36,氏名データ!$2:$2800,7,0)) -> 0 | O36: =IF(ISERROR(VLOOKUP($F36,氏名データ!$2:$2800,8,0)),"",VLOOKUP($F36,氏名データ!$2:$2800,8,0)) -> 0 | P36: =IF(ISERROR(VLOOKUP($F36,氏名データ!$2:$2800,11,0)),"",VLOOKUP($F36,氏名データ!$2:$2800,11,0)) -> 0 | Q36: =IF(ISERROR(VLOOKUP($F36,氏名データ!$2:$2800,9,0)),"",VLOOKUP($F36,氏名データ!$2:$2800,9,0)) ->  | AE36: 0 | AI36: 0 | AL36: =IF(F36="","",学校情報!$D$2) ->  | AM36: 31 | AQ36: 19 | AV36: 29 | BF36: 男子5支部砲丸投 | BG36: 男子5支部砲丸投 | BH36: 男子5支部砲丸投 | BI36: 女子5支部円盤投 | BJ36: 女子5支部円盤投 | BK36: 女子5支部円盤投 | BL36: 男子6支部砲丸投 | BM36: 男子6支部砲丸投 | BN36: 男子6支部砲丸投 | BO36: 女子5支部円盤投 | BP36: 女子5支部円盤投 | BQ36: 女子5支部円盤投
D37: =IF(P37="女",ROW(R37),"") ->  | E37: 33 | H37: =IF(ISERROR(VLOOKUP($F37,氏名データ!$2:$2800,4,0)),"",VLOOKUP($F37,氏名データ!$2:$2800,4,0)) -> 0 | I37: =IF(ISERROR(VLOOKUP($F37,氏名データ!$2:$2800,5,0)),"",VLOOKUP($F37,氏名データ!$2:$2800,5,0)) -> 0 | J37: =IF(ISERROR(VLOOKUP($F37,氏名データ!$2:$2800,6,0)),"",VLOOKUP($F37,氏名データ!$2:$2800,6,0)) -> 0 | K37: =IF(ISERROR(VLOOKUP($F37,氏名データ!$2:$2800,7,0)),"",VLOOKUP($F37,氏名データ!$2:$2800,7,0)) -> 0 | O37: =IF(ISERROR(VLOOKUP($F37,氏名データ!$2:$2800,8,0)),"",VLOOKUP($F37,氏名データ!$2:$2800,8,0)) -> 0 | P37: =IF(ISERROR(VLOOKUP($F37,氏名データ!$2:$2800,11,0)),"",VLOOKUP($F37,氏名データ!$2:$2800,11,0)) -> 0 | Q37: =IF(ISERROR(VLOOKUP($F37,氏名データ!$2:$2800,9,0)),"",VLOOKUP($F37,氏名データ!$2:$2800,9,0)) ->  | AE37: 0 | AI37: 0 | AL37: =IF(F37="","",学校情報!$D$2) ->  | AM37: 32 | AQ37: 20 | AV37: 30 | BF37: 男子5支部円盤投 | BG37: 男子5支部円盤投 | BH37: 男子5支部円盤投 | BI37: 女子5支部やり投 | BJ37: 女子5支部やり投 | BK37: 女子5支部やり投 | BL37: 男子6支部円盤投 | BM37: 男子6支部円盤投 | BN37: 男子6支部円盤投 | BO37: 女子5支部やり投 | BP37: 女子5支部やり投 | BQ37: 女子5支部やり投
E38: 34 | H38: =IF(ISERROR(VLOOKUP($F38,氏名データ!$2:$2800,4,0)),"",VLOOKUP($F38,氏名データ!$2:$2800,4,0)) -> 0 | I38: =IF(ISERROR(VLOOKUP($F38,氏名データ!$2:$2800,5,0)),"",VLOOKUP($F38,氏名データ!$2:$2800,5,0)) -> 0 | J38: =IF(ISERROR(VLOOKUP($F38,氏名データ!$2:$2800,6,0)),"",VLOOKUP($F38,氏名データ!$2:$2800,6,0)) -> 0 | K38: =IF(ISERROR(VLOOKUP($F38,氏名データ!$2:$2800,7,0)),"",VLOOKUP($F38,氏名データ!$2:$2800,7,0)) -> 0 | O38: =IF(ISERROR(VLOOKUP($F38,氏名データ!$2:$2800,8,0)),"",VLOOKUP($F38,氏名データ!$2:$2800,8,0)) -> 0 | P38: =IF(ISERROR(VLOOKUP($F38,氏名データ!$2:$2800,11,0)),"",VLOOKUP($F38,氏名データ!$2:$2800,11,0)) -> 0 | Q38: =IF(ISERROR(VLOOKUP($F38,氏名データ!$2:$2800,9,0)),"",VLOOKUP($F38,氏名データ!$2:$2800,9,0)) ->  | AE38: 0 | AI38: 0 | AL38: =IF(F38="","",学校情報!$D$2) ->  | AM38: 33 | AQ38: 21 | AV38: 31 | BF38: 男子5支部やり投 | BG38: 男子5支部やり投 | BH38: 男子5支部やり投 | BL38: 男子6支部やり投 | BM38: 男子6支部やり投 | BN38: 男子6支部やり投
E39: 35 | H39: =IF(ISERROR(VLOOKUP($F39,氏名データ!$2:$2800,4,0)),"",VLOOKUP($F39,氏名データ!$2:$2800,4,0)) -> 0 | I39: =IF(ISERROR(VLOOKUP($F39,氏名データ!$2:$2800,5,0)),"",VLOOKUP($F39,氏名データ!$2:$2800,5,0)) -> 0 | J39: =IF(ISERROR(VLOOKUP($F39,氏名データ!$2:$2800,6,0)),"",VLOOKUP($F39,氏名データ!$2:$2800,6,0)) -> 0 | K39: =IF(ISERROR(VLOOKUP($F39,氏名データ!$2:$2800,7,0)),"",VLOOKUP($F39,氏名データ!$2:$2800,7,0)) -> 0 | O39: =IF(ISERROR(VLOOKUP($F39,氏名データ!$2:$2800,8,0)),"",VLOOKUP($F39,氏名データ!$2:$2800,8,0)) -> 0 | P39: =IF(ISERROR(VLOOKUP($F39,氏名データ!$2:$2800,11,0)),"",VLOOKUP($F39,氏名データ!$2:$2800,11,0)) -> 0 | Q39: =IF(ISERROR(VLOOKUP($F39,氏名データ!$2:$2800,9,0)),"",VLOOKUP($F39,氏名データ!$2:$2800,9,0)) ->  | AE39: 0 | AI39: 0 | AL39: =IF(F39="","",学校情報!$D$2) ->  | AM39: 34 | AQ39: 22 | AV39: 32 | BF39: 学年別
E40: 36 | H40: =IF(ISERROR(VLOOKUP($F40,氏名データ!$2:$2800,4,0)),"",VLOOKUP($F40,氏名データ!$2:$2800,4,0)) -> 0 | I40: =IF(ISERROR(VLOOKUP($F40,氏名データ!$2:$2800,5,0)),"",VLOOKUP($F40,氏名データ!$2:$2800,5,0)) -> 0 | J40: =IF(ISERROR(VLOOKUP($F40,氏名データ!$2:$2800,6,0)),"",VLOOKUP($F40,氏名データ!$2:$2800,6,0)) -> 0 | K40: =IF(ISERROR(VLOOKUP($F40,氏名データ!$2:$2800,7,0)),"",VLOOKUP($F40,氏名データ!$2:$2800,7,0)) -> 0 | O40: =IF(ISERROR(VLOOKUP($F40,氏名データ!$2:$2800,8,0)),"",VLOOKUP($F40,氏名データ!$2:$2800,8,0)) -> 0 | P40: =IF(ISERROR(VLOOKUP($F40,氏名データ!$2:$2800,11,0)),"",VLOOKUP($F40,氏名データ!$2:$2800,11,0)) -> 0 | Q40: =IF(ISERROR(VLOOKUP($F40,氏名データ!$2:$2800,9,0)),"",VLOOKUP($F40,氏名データ!$2:$2800,9,0)) ->  | AE40: 0 | AI40: 0 | AL40: =IF(F40="","",学校情報!$D$2) ->  | AQ40: 23 | AV40: 33 | BF40: 男子1年100m | BG40: 男子2年100m | BH40: 男子3年100m | BI40: 女子1年100m | BJ40: 女子2年100m | BK40: 女子3年100m | BM40: 男子5支部共通5000m
E41: 37 | H41: =IF(ISERROR(VLOOKUP($F41,氏名データ!$2:$2800,4,0)),"",VLOOKUP($F41,氏名データ!$2:$2800,4,0)) -> 0 | I41: =IF(ISERROR(VLOOKUP($F41,氏名データ!$2:$2800,5,0)),"",VLOOKUP($F41,氏名データ!$2:$2800,5,0)) -> 0 | J41: =IF(ISERROR(VLOOKUP($F41,氏名データ!$2:$2800,6,0)),"",VLOOKUP($F41,氏名データ!$2:$2800,6,0)) -> 0 | K41: =IF(ISERROR(VLOOKUP($F41,氏名データ!$2:$2800,7,0)),"",VLOOKUP($F41,氏名データ!$2:$2800,7,0)) -> 0 | O41: =IF(ISERROR(VLOOKUP($F41,氏名データ!$2:$2800,8,0)),"",VLOOKUP($F41,氏名データ!$2:$2800,8,0)) -> 0 | P41: =IF(ISERROR(VLOOKUP($F41,氏名データ!$2:$2800,11,0)),"",VLOOKUP($F41,氏名データ!$2:$2800,11,0)) -> 0 | Q41: =IF(ISERROR(VLOOKUP($F41,氏名データ!$2:$2800,9,0)),"",VLOOKUP($F41,氏名データ!$2:$2800,9,0)) ->  | AE41: 0 | AI41: 0 | AL41: =IF(F41="","",学校情報!$D$2) ->  | AQ41: 24 | AV41: 34 | BF41: 男子1年200m | BG41: 男子2年400m | BH41: 男子3年400m | BI41: 女子1年200m | BJ41: 女子2年400m | BK41: 女子3年400m | BM41: 男子6支部共通5000m
E42: 38 | H42: =IF(ISERROR(VLOOKUP($F42,氏名データ!$2:$2800,4,0)),"",VLOOKUP($F42,氏名データ!$2:$2800,4,0)) -> 0 | I42: =IF(ISERROR(VLOOKUP($F42,氏名データ!$2:$2800,5,0)),"",VLOOKUP($F42,氏名データ!$2:$2800,5,0)) -> 0 | J42: =IF(ISERROR(VLOOKUP($F42,氏名データ!$2:$2800,6,0)),"",VLOOKUP($F42,氏名データ!$2:$2800,6,0)) -> 0 | K42: =IF(ISERROR(VLOOKUP($F42,氏名データ!$2:$2800,7,0)),"",VLOOKUP($F42,氏名データ!$2:$2800,7,0)) -> 0 | O42: =IF(ISERROR(VLOOKUP($F42,氏名データ!$2:$2800,8,0)),"",VLOOKUP($F42,氏名データ!$2:$2800,8,0)) -> 0 | P42: =IF(ISERROR(VLOOKUP($F42,氏名データ!$2:$2800,11,0)),"",VLOOKUP($F42,氏名データ!$2:$2800,11,0)) -> 0 | Q42: =IF(ISERROR(VLOOKUP($F42,氏名データ!$2:$2800,9,0)),"",VLOOKUP($F42,氏名データ!$2:$2800,9,0)) ->  | AE42: 0 | AI42: 0 | AL42: =IF(F42="","",学校情報!$D$2) ->  | AQ42: 25 | AV42: 35 | BF42: 男子1年800m | BG42: 男子2年1500m | BH42: 男子3年1500m | BI42: 女子1年1500m | BJ42: 女子2年800m | BK42: 女子3年800m
E43: 39 | H43: =IF(ISERROR(VLOOKUP($F43,氏名データ!$2:$2800,4,0)),"",VLOOKUP($F43,氏名データ!$2:$2800,4,0)) -> 0 | I43: =IF(ISERROR(VLOOKUP($F43,氏名データ!$2:$2800,5,0)),"",VLOOKUP($F43,氏名データ!$2:$2800,5,0)) -> 0 | J43: =IF(ISERROR(VLOOKUP($F43,氏名データ!$2:$2800,6,0)),"",VLOOKUP($F43,氏名データ!$2:$2800,6,0)) -> 0 | K43: =IF(ISERROR(VLOOKUP($F43,氏名データ!$2:$2800,7,0)),"",VLOOKUP($F43,氏名データ!$2:$2800,7,0)) -> 0 | O43: =IF(ISERROR(VLOOKUP($F43,氏名データ!$2:$2800,8,0)),"",VLOOKUP($F43,氏名データ!$2:$2800,8,0)) -> 0 | P43: =IF(ISERROR(VLOOKUP($F43,氏名データ!$2:$2800,11,0)),"",VLOOKUP($F43,氏名データ!$2:$2800,11,0)) -> 0 | Q43: =IF(ISERROR(VLOOKUP($F43,氏名データ!$2:$2800,9,0)),"",VLOOKUP($F43,氏名データ!$2:$2800,9,0)) ->  | AE43: 0 | AI43: 0 | AL43: =IF(F43="","",学校情報!$D$2) ->  | AQ43: 26 | AV43: 36 | BF43: 男子1年3000m | BG43: 男子2年走幅跳 | BH43: 男子3年走幅跳 | BI43: 女子1年100mYH | BJ43: 女子2年走幅跳 | BK43: 女子3年走幅跳
E44: 40 | H44: =IF(ISERROR(VLOOKUP($F44,氏名データ!$2:$2800,4,0)),"",VLOOKUP($F44,氏名データ!$2:$2800,4,0)) -> 0 | I44: =IF(ISERROR(VLOOKUP($F44,氏名データ!$2:$2800,5,0)),"",VLOOKUP($F44,氏名データ!$2:$2800,5,0)) -> 0 | J44: =IF(ISERROR(VLOOKUP($F44,氏名データ!$2:$2800,6,0)),"",VLOOKUP($F44,氏名データ!$2:$2800,6,0)) -> 0 | K44: =IF(ISERROR(VLOOKUP($F44,氏名データ!$2:$2800,7,0)),"",VLOOKUP($F44,氏名データ!$2:$2800,7,0)) -> 0 | O44: =IF(ISERROR(VLOOKUP($F44,氏名データ!$2:$2800,8,0)),"",VLOOKUP($F44,氏名データ!$2:$2800,8,0)) -> 0 | P44: =IF(ISERROR(VLOOKUP($F44,氏名データ!$2:$2800,11,0)),"",VLOOKUP($F44,氏名データ!$2:$2800,11,0)) -> 0 | Q44: =IF(ISERROR(VLOOKUP($F44,氏名データ!$2:$2800,9,0)),"",VLOOKUP($F44,氏名データ!$2:$2800,9,0)) ->  | AE44: 0 | AI44: 0 | AL44: =IF(F44="","",学校情報!$D$2) ->  | AQ44: 27 | AV44: 37 | BF44: 男子1年110mJH | BG44: 男子共通5000m | BH44: 男子共通5000m | BI44: 女子1年走幅跳 | BJ44: 女子共通3000m | BK44: 女子共通3000m
E45: 41 | H45: =IF(ISERROR(VLOOKUP($F45,氏名データ!$2:$2800,4,0)),"",VLOOKUP($F45,氏名データ!$2:$2800,4,0)) -> 0 | I45: =IF(ISERROR(VLOOKUP($F45,氏名データ!$2:$2800,5,0)),"",VLOOKUP($F45,氏名データ!$2:$2800,5,0)) -> 0 | J45: =IF(ISERROR(VLOOKUP($F45,氏名データ!$2:$2800,6,0)),"",VLOOKUP($F45,氏名データ!$2:$2800,6,0)) -> 0 | K45: =IF(ISERROR(VLOOKUP($F45,氏名データ!$2:$2800,7,0)),"",VLOOKUP($F45,氏名データ!$2:$2800,7,0)) -> 0 | O45: =IF(ISERROR(VLOOKUP($F45,氏名データ!$2:$2800,8,0)),"",VLOOKUP($F45,氏名データ!$2:$2800,8,0)) -> 0 | P45: =IF(ISERROR(VLOOKUP($F45,氏名データ!$2:$2800,11,0)),"",VLOOKUP($F45,氏名データ!$2:$2800,11,0)) -> 0 | Q45: =IF(ISERROR(VLOOKUP($F45,氏名データ!$2:$2800,9,0)),"",VLOOKUP($F45,氏名データ!$2:$2800,9,0)) ->  | AE45: 0 | AI45: 0 | AL45: =IF(F45="","",学校情報!$D$2) ->  | AQ45: 28 | AV45: 38 | BF45: 男子1年走幅跳 | BG45: 男子共通110mH | BH45: 男子共通110mH | BI45: 女子1年砲丸投 | BJ45: 女子共通100mH | BK45: 女子共通100mH
E46: 42 | H46: =IF(ISERROR(VLOOKUP($F46,氏名データ!$2:$2800,4,0)),"",VLOOKUP($F46,氏名データ!$2:$2800,4,0)) -> 0 | I46: =IF(ISERROR(VLOOKUP($F46,氏名データ!$2:$2800,5,0)),"",VLOOKUP($F46,氏名データ!$2:$2800,5,0)) -> 0 | J46: =IF(ISERROR(VLOOKUP($F46,氏名データ!$2:$2800,6,0)),"",VLOOKUP($F46,氏名データ!$2:$2800,6,0)) -> 0 | K46: =IF(ISERROR(VLOOKUP($F46,氏名データ!$2:$2800,7,0)),"",VLOOKUP($F46,氏名データ!$2:$2800,7,0)) -> 0 | O46: =IF(ISERROR(VLOOKUP($F46,氏名データ!$2:$2800,8,0)),"",VLOOKUP($F46,氏名データ!$2:$2800,8,0)) -> 0 | P46: =IF(ISERROR(VLOOKUP($F46,氏名データ!$2:$2800,11,0)),"",VLOOKUP($F46,氏名データ!$2:$2800,11,0)) -> 0 | Q46: =IF(ISERROR(VLOOKUP($F46,氏名データ!$2:$2800,9,0)),"",VLOOKUP($F46,氏名データ!$2:$2800,9,0)) ->  | AE46: 0 | AI46: 0 | AL46: =IF(F46="","",学校情報!$D$2) ->  | AQ46: 29 | AV46: 39 | BF46: 男子1年砲丸投(5kg) | BG46: 男子共通走高跳 | BH46: 男子共通走高跳 | BI46: 女子共通3000m | BJ46: 女子共通走高跳 | BK46: 女子共通走高跳
E47: 43 | H47: =IF(ISERROR(VLOOKUP($F47,氏名データ!$2:$2800,4,0)),"",VLOOKUP($F47,氏名データ!$2:$2800,4,0)) -> 0 | I47: =IF(ISERROR(VLOOKUP($F47,氏名データ!$2:$2800,5,0)),"",VLOOKUP($F47,氏名データ!$2:$2800,5,0)) -> 0 | J47: =IF(ISERROR(VLOOKUP($F47,氏名データ!$2:$2800,6,0)),"",VLOOKUP($F47,氏名データ!$2:$2800,6,0)) -> 0 | K47: =IF(ISERROR(VLOOKUP($F47,氏名データ!$2:$2800,7,0)),"",VLOOKUP($F47,氏名データ!$2:$2800,7,0)) -> 0 | O47: =IF(ISERROR(VLOOKUP($F47,氏名データ!$2:$2800,8,0)),"",VLOOKUP($F47,氏名データ!$2:$2800,8,0)) -> 0 | P47: =IF(ISERROR(VLOOKUP($F47,氏名データ!$2:$2800,11,0)),"",VLOOKUP($F47,氏名データ!$2:$2800,11,0)) -> 0 | Q47: =IF(ISERROR(VLOOKUP($F47,氏名データ!$2:$2800,9,0)),"",VLOOKUP($F47,氏名データ!$2:$2800,9,0)) ->  | AE47: 0 | AI47: 0 | AL47: =IF(F47="","",学校情報!$D$2) ->  | AQ47: 30 | AV47: 40 | BF47: 男子共通5000m | BG47: 男子共通棒高跳 | BH47: 男子共通棒高跳 | BI47: 女子共通100mH | BJ47: 女子共通棒高跳 | BK47: 女子共通棒高跳
E48: 44 | H48: =IF(ISERROR(VLOOKUP($F48,氏名データ!$2:$2800,4,0)),"",VLOOKUP($F48,氏名データ!$2:$2800,4,0)) -> 0 | I48: =IF(ISERROR(VLOOKUP($F48,氏名データ!$2:$2800,5,0)),"",VLOOKUP($F48,氏名データ!$2:$2800,5,0)) -> 0 | J48: =IF(ISERROR(VLOOKUP($F48,氏名データ!$2:$2800,6,0)),"",VLOOKUP($F48,氏名データ!$2:$2800,6,0)) -> 0 | K48: =IF(ISERROR(VLOOKUP($F48,氏名データ!$2:$2800,7,0)),"",VLOOKUP($F48,氏名データ!$2:$2800,7,0)) -> 0 | O48: =IF(ISERROR(VLOOKUP($F48,氏名データ!$2:$2800,8,0)),"",VLOOKUP($F48,氏名データ!$2:$2800,8,0)) -> 0 | P48: =IF(ISERROR(VLOOKUP($F48,氏名データ!$2:$2800,11,0)),"",VLOOKUP($F48,氏名データ!$2:$2800,11,0)) -> 0 | Q48: =IF(ISERROR(VLOOKUP($F48,氏名データ!$2:$2800,9,0)),"",VLOOKUP($F48,氏名データ!$2:$2800,9,0)) ->  | AE48: 0 | AI48: 0 | AL48: =IF(F48="","",学校情報!$D$2) ->  | AQ48: 31 | AV48: 41 | BF48: 男子共通110mH | BG48: 男子共通三段跳 | BH48: 男子共通三段跳 | BI48: 女子共通走高跳 | BJ48: 女子共通三段跳 | BK48: 女子共通三段跳
E49: 45 | H49: =IF(ISERROR(VLOOKUP($F49,氏名データ!$2:$2800,4,0)),"",VLOOKUP($F49,氏名データ!$2:$2800,4,0)) -> 0 | I49: =IF(ISERROR(VLOOKUP($F49,氏名データ!$2:$2800,5,0)),"",VLOOKUP($F49,氏名データ!$2:$2800,5,0)) -> 0 | J49: =IF(ISERROR(VLOOKUP($F49,氏名データ!$2:$2800,6,0)),"",VLOOKUP($F49,氏名データ!$2:$2800,6,0)) -> 0 | K49: =IF(ISERROR(VLOOKUP($F49,氏名データ!$2:$2800,7,0)),"",VLOOKUP($F49,氏名データ!$2:$2800,7,0)) -> 0 | O49: =IF(ISERROR(VLOOKUP($F49,氏名データ!$2:$2800,8,0)),"",VLOOKUP($F49,氏名データ!$2:$2800,8,0)) -> 0 | P49: =IF(ISERROR(VLOOKUP($F49,氏名データ!$2:$2800,11,0)),"",VLOOKUP($F49,氏名データ!$2:$2800,11,0)) -> 0 | Q49: =IF(ISERROR(VLOOKUP($F49,氏名データ!$2:$2800,9,0)),"",VLOOKUP($F49,氏名データ!$2:$2800,9,0)) ->  | AE49: 0 | AI49: 0 | AL49: =IF(F49="","",学校情報!$D$2) ->  | AV49: 42 | BF49: 男子共通走高跳 | BG49: 男子共通砲丸投(6kg) | BH49: 男子共通砲丸投(6kg) | BI49: 女子共通棒高跳 | BJ49: 女子共通砲丸投 | BK49: 女子共通砲丸投
E50: 46 | H50: =IF(ISERROR(VLOOKUP($F50,氏名データ!$2:$2800,4,0)),"",VLOOKUP($F50,氏名データ!$2:$2800,4,0)) -> 0 | I50: =IF(ISERROR(VLOOKUP($F50,氏名データ!$2:$2800,5,0)),"",VLOOKUP($F50,氏名データ!$2:$2800,5,0)) -> 0 | J50: =IF(ISERROR(VLOOKUP($F50,氏名データ!$2:$2800,6,0)),"",VLOOKUP($F50,氏名データ!$2:$2800,6,0)) -> 0 | K50: =IF(ISERROR(VLOOKUP($F50,氏名データ!$2:$2800,7,0)),"",VLOOKUP($F50,氏名データ!$2:$2800,7,0)) -> 0 | O50: =IF(ISERROR(VLOOKUP($F50,氏名データ!$2:$2800,8,0)),"",VLOOKUP($F50,氏名データ!$2:$2800,8,0)) -> 0 | P50: =IF(ISERROR(VLOOKUP($F50,氏名データ!$2:$2800,11,0)),"",VLOOKUP($F50,氏名データ!$2:$2800,11,0)) -> 0 | Q50: =IF(ISERROR(VLOOKUP($F50,氏名データ!$2:$2800,9,0)),"",VLOOKUP($F50,氏名データ!$2:$2800,9,0)) ->  | AE50: 0 | AI50: 0 | AL50: =IF(F50="","",学校情報!$D$2) ->  | AV50: 43 | BF50: 男子共通棒高跳 | BG50: 男子共通円盤投(1.75kg) | BH50: 男子共通円盤投(1.75kg) | BI50: 女子共通三段跳 | BJ50: 女子共通円盤投 | BK50: 女子共通円盤投
E51: 47 | H51: =IF(ISERROR(VLOOKUP($F51,氏名データ!$2:$2800,4,0)),"",VLOOKUP($F51,氏名データ!$2:$2800,4,0)) -> 0 | I51: =IF(ISERROR(VLOOKUP($F51,氏名データ!$2:$2800,5,0)),"",VLOOKUP($F51,氏名データ!$2:$2800,5,0)) -> 0 | J51: =IF(ISERROR(VLOOKUP($F51,氏名データ!$2:$2800,6,0)),"",VLOOKUP($F51,氏名データ!$2:$2800,6,0)) -> 0 | K51: =IF(ISERROR(VLOOKUP($F51,氏名データ!$2:$2800,7,0)),"",VLOOKUP($F51,氏名データ!$2:$2800,7,0)) -> 0 | O51: =IF(ISERROR(VLOOKUP($F51,氏名データ!$2:$2800,8,0)),"",VLOOKUP($F51,氏名データ!$2:$2800,8,0)) -> 0 | P51: =IF(ISERROR(VLOOKUP($F51,氏名データ!$2:$2800,11,0)),"",VLOOKUP($F51,氏名データ!$2:$2800,11,0)) -> 0 | Q51: =IF(ISERROR(VLOOKUP($F51,氏名データ!$2:$2800,9,0)),"",VLOOKUP($F51,氏名データ!$2:$2800,9,0)) ->  | AE51: 0 | AI51: 0 | AL51: =IF(F51="","",学校情報!$D$2) ->  | AV51: 44 | BF51: 男子共通三段跳 | BG51: 男子共通やり投 | BH51: 男子共通やり投 | BI51: 女子共通円盤投 | BJ51: 女子共通やり投 | BK51: 女子共通やり投
E52: 48 | H52: =IF(ISERROR(VLOOKUP($F52,氏名データ!$2:$2800,4,0)),"",VLOOKUP($F52,氏名データ!$2:$2800,4,0)) -> 0 | I52: =IF(ISERROR(VLOOKUP($F52,氏名データ!$2:$2800,5,0)),"",VLOOKUP($F52,氏名データ!$2:$2800,5,0)) -> 0 | J52: =IF(ISERROR(VLOOKUP($F52,氏名データ!$2:$2800,6,0)),"",VLOOKUP($F52,氏名データ!$2:$2800,6,0)) -> 0 | K52: =IF(ISERROR(VLOOKUP($F52,氏名データ!$2:$2800,7,0)),"",VLOOKUP($F52,氏名データ!$2:$2800,7,0)) -> 0 | O52: =IF(ISERROR(VLOOKUP($F52,氏名データ!$2:$2800,8,0)),"",VLOOKUP($F52,氏名データ!$2:$2800,8,0)) -> 0 | P52: =IF(ISERROR(VLOOKUP($F52,氏名データ!$2:$2800,11,0)),"",VLOOKUP($F52,氏名データ!$2:$2800,11,0)) -> 0 | Q52: =IF(ISERROR(VLOOKUP($F52,氏名データ!$2:$2800,9,0)),"",VLOOKUP($F52,氏名データ!$2:$2800,9,0)) ->  | AE52: 0 | AI52: 0 | AL52: =IF(F52="","",学校情報!$D$2) ->  | AV52: 45 | BF52: 男子共通砲丸投(6kg) | BI52: 女子共通やり投
E53: 49 | H53: =IF(ISERROR(VLOOKUP($F53,氏名データ!$2:$2800,4,0)),"",VLOOKUP($F53,氏名データ!$2:$2800,4,0)) -> 0 | I53: =IF(ISERROR(VLOOKUP($F53,氏名データ!$2:$2800,5,0)),"",VLOOKUP($F53,氏名データ!$2:$2800,5,0)) -> 0 | J53: =IF(ISERROR(VLOOKUP($F53,氏名データ!$2:$2800,6,0)),"",VLOOKUP($F53,氏名データ!$2:$2800,6,0)) -> 0 | K53: =IF(ISERROR(VLOOKUP($F53,氏名データ!$2:$2800,7,0)),"",VLOOKUP($F53,氏名データ!$2:$2800,7,0)) -> 0 | O53: =IF(ISERROR(VLOOKUP($F53,氏名データ!$2:$2800,8,0)),"",VLOOKUP($F53,氏名データ!$2:$2800,8,0)) -> 0 | P53: =IF(ISERROR(VLOOKUP($F53,氏名データ!$2:$2800,11,0)),"",VLOOKUP($F53,氏名データ!$2:$2800,11,0)) -> 0 | Q53: =IF(ISERROR(VLOOKUP($F53,氏名データ!$2:$2800,9,0)),"",VLOOKUP($F53,氏名データ!$2:$2800,9,0)) ->  | AE53: 0 | AI53: 0 | AL53: =IF(F53="","",学校情報!$D$2) ->  | AV53: 46 | BF53: 男子共通円盤投(1.75kg)
E54: 50 | H54: =IF(ISERROR(VLOOKUP($F54,氏名データ!$2:$2800,4,0)),"",VLOOKUP($F54,氏名データ!$2:$2800,4,0)) -> 0 | I54: =IF(ISERROR(VLOOKUP($F54,氏名データ!$2:$2800,5,0)),"",VLOOKUP($F54,氏名データ!$2:$2800,5,0)) -> 0 | J54: =IF(ISERROR(VLOOKUP($F54,氏名データ!$2:$2800,6,0)),"",VLOOKUP($F54,氏名データ!$2:$2800,6,0)) -> 0 | K54: =IF(ISERROR(VLOOKUP($F54,氏名データ!$2:$2800,7,0)),"",VLOOKUP($F54,氏名データ!$2:$2800,7,0)) -> 0 | O54: =IF(ISERROR(VLOOKUP($F54,氏名データ!$2:$2800,8,0)),"",VLOOKUP($F54,氏名データ!$2:$2800,8,0)) -> 0 | P54: =IF(ISERROR(VLOOKUP($F54,氏名データ!$2:$2800,11,0)),"",VLOOKUP($F54,氏名データ!$2:$2800,11,0)) -> 0 | Q54: =IF(ISERROR(VLOOKUP($F54,氏名データ!$2:$2800,9,0)),"",VLOOKUP($F54,氏名データ!$2:$2800,9,0)) ->  | AE54: 0 | AI54: 0 | AL54: =IF(F54="","",学校情報!$D$2) ->  | AV54: 47 | BF54: 男子共通やり投
E55: 51 | H55: =IF(ISERROR(VLOOKUP($F55,氏名データ!$2:$2800,4,0)),"",VLOOKUP($F55,氏名データ!$2:$2800,4,0)) -> 0 | I55: =IF(ISERROR(VLOOKUP($F55,氏名データ!$2:$2800,5,0)),"",VLOOKUP($F55,氏名データ!$2:$2800,5,0)) -> 0 | J55: =IF(ISERROR(VLOOKUP($F55,氏名データ!$2:$2800,6,0)),"",VLOOKUP($F55,氏名データ!$2:$2800,6,0)) -> 0 | K55: =IF(ISERROR(VLOOKUP($F55,氏名データ!$2:$2800,7,0)),"",VLOOKUP($F55,氏名データ!$2:$2800,7,0)) -> 0 | O55: =IF(ISERROR(VLOOKUP($F55,氏名データ!$2:$2800,8,0)),"",VLOOKUP($F55,氏名データ!$2:$2800,8,0)) -> 0 | P55: =IF(ISERROR(VLOOKUP($F55,氏名データ!$2:$2800,11,0)),"",VLOOKUP($F55,氏名データ!$2:$2800,11,0)) -> 0 | Q55: =IF(ISERROR(VLOOKUP($F55,氏名データ!$2:$2800,9,0)),"",VLOOKUP($F55,氏名データ!$2:$2800,9,0)) ->  | AE55: 0 | AI55: 0 | AL55: =IF(F55="","",学校情報!$D$2) ->  | AN55: 女子100m | AV55: 48
E56: 52 | H56: =IF(ISERROR(VLOOKUP($F56,氏名データ!$2:$2800,4,0)),"",VLOOKUP($F56,氏名データ!$2:$2800,4,0)) -> 0 | I56: =IF(ISERROR(VLOOKUP($F56,氏名データ!$2:$2800,5,0)),"",VLOOKUP($F56,氏名データ!$2:$2800,5,0)) -> 0 | J56: =IF(ISERROR(VLOOKUP($F56,氏名データ!$2:$2800,6,0)),"",VLOOKUP($F56,氏名データ!$2:$2800,6,0)) -> 0 | K56: =IF(ISERROR(VLOOKUP($F56,氏名データ!$2:$2800,7,0)),"",VLOOKUP($F56,氏名データ!$2:$2800,7,0)) -> 0 | O56: =IF(ISERROR(VLOOKUP($F56,氏名データ!$2:$2800,8,0)),"",VLOOKUP($F56,氏名データ!$2:$2800,8,0)) -> 0 | P56: =IF(ISERROR(VLOOKUP($F56,氏名データ!$2:$2800,11,0)),"",VLOOKUP($F56,氏名データ!$2:$2800,11,0)) -> 0 | Q56: =IF(ISERROR(VLOOKUP($F56,氏名データ!$2:$2800,9,0)),"",VLOOKUP($F56,氏名データ!$2:$2800,9,0)) ->  | AE56: 0 | AI56: 0 | AL56: =IF(F56="","",学校情報!$D$2) ->  | AN56: 女子200m | AV56: 49 | BF56: 多摩選
E57: 53 | H57: =IF(ISERROR(VLOOKUP($F57,氏名データ!$2:$2800,4,0)),"",VLOOKUP($F57,氏名データ!$2:$2800,4,0)) -> 0 | I57: =IF(ISERROR(VLOOKUP($F57,氏名データ!$2:$2800,5,0)),"",VLOOKUP($F57,氏名データ!$2:$2800,5,0)) -> 0 | J57: =IF(ISERROR(VLOOKUP($F57,氏名データ!$2:$2800,6,0)),"",VLOOKUP($F57,氏名データ!$2:$2800,6,0)) -> 0 | K57: =IF(ISERROR(VLOOKUP($F57,氏名データ!$2:$2800,7,0)),"",VLOOKUP($F57,氏名データ!$2:$2800,7,0)) -> 0 | O57: =IF(ISERROR(VLOOKUP($F57,氏名データ!$2:$2800,8,0)),"",VLOOKUP($F57,氏名データ!$2:$2800,8,0)) -> 0 | P57: =IF(ISERROR(VLOOKUP($F57,氏名データ!$2:$2800,11,0)),"",VLOOKUP($F57,氏名データ!$2:$2800,11,0)) -> 0 | Q57: =IF(ISERROR(VLOOKUP($F57,氏名データ!$2:$2800,9,0)),"",VLOOKUP($F57,氏名データ!$2:$2800,9,0)) ->  | AE57: 0 | AI57: 0 | AL57: =IF(F57="","",学校情報!$D$2) ->  | AN57: 女子400m | AV57: 50 | BF57: 男子100m | BG57: 男子100m | BH57: 男子100m | BI57: 女子100m | BJ57: 女子100m | BK57: 女子100m
E58: 54 | H58: =IF(ISERROR(VLOOKUP($F58,氏名データ!$2:$2800,4,0)),"",VLOOKUP($F58,氏名データ!$2:$2800,4,0)) -> 0 | I58: =IF(ISERROR(VLOOKUP($F58,氏名データ!$2:$2800,5,0)),"",VLOOKUP($F58,氏名データ!$2:$2800,5,0)) -> 0 | J58: =IF(ISERROR(VLOOKUP($F58,氏名データ!$2:$2800,6,0)),"",VLOOKUP($F58,氏名データ!$2:$2800,6,0)) -> 0 | K58: =IF(ISERROR(VLOOKUP($F58,氏名データ!$2:$2800,7,0)),"",VLOOKUP($F58,氏名データ!$2:$2800,7,0)) -> 0 | O58: =IF(ISERROR(VLOOKUP($F58,氏名データ!$2:$2800,8,0)),"",VLOOKUP($F58,氏名データ!$2:$2800,8,0)) -> 0 | P58: =IF(ISERROR(VLOOKUP($F58,氏名データ!$2:$2800,11,0)),"",VLOOKUP($F58,氏名データ!$2:$2800,11,0)) -> 0 | Q58: =IF(ISERROR(VLOOKUP($F58,氏名データ!$2:$2800,9,0)),"",VLOOKUP($F58,氏名データ!$2:$2800,9,0)) ->  | AE58: 0 | AI58: 0 | AL58: =IF(F58="","",学校情報!$D$2) ->  | AN58: 女子800m | AV58: 51 | BF58: 男子200m | BG58: 男子200m | BH58: 男子200m | BI58: 女子200m | BJ58: 女子200m | BK58: 女子200m
E59: 55 | H59: =IF(ISERROR(VLOOKUP($F59,氏名データ!$2:$2800,4,0)),"",VLOOKUP($F59,氏名データ!$2:$2800,4,0)) -> 0 | I59: =IF(ISERROR(VLOOKUP($F59,氏名データ!$2:$2800,5,0)),"",VLOOKUP($F59,氏名データ!$2:$2800,5,0)) -> 0 | J59: =IF(ISERROR(VLOOKUP($F59,氏名データ!$2:$2800,6,0)),"",VLOOKUP($F59,氏名データ!$2:$2800,6,0)) -> 0 | K59: =IF(ISERROR(VLOOKUP($F59,氏名データ!$2:$2800,7,0)),"",VLOOKUP($F59,氏名データ!$2:$2800,7,0)) -> 0 | O59: =IF(ISERROR(VLOOKUP($F59,氏名データ!$2:$2800,8,0)),"",VLOOKUP($F59,氏名データ!$2:$2800,8,0)) -> 0 | P59: =IF(ISERROR(VLOOKUP($F59,氏名データ!$2:$2800,11,0)),"",VLOOKUP($F59,氏名データ!$2:$2800,11,0)) -> 0 | Q59: =IF(ISERROR(VLOOKUP($F59,氏名データ!$2:$2800,9,0)),"",VLOOKUP($F59,氏名データ!$2:$2800,9,0)) ->  | AE59: 0 | AI59: 0 | AL59: =IF(F59="","",学校情報!$D$2) ->  | AN59: 女子1500m | AV59: 52 | BF59: 男子400m | BG59: 男子400m | BH59: 男子400m | BI59: 女子400m | BJ59: 女子400m | BK59: 女子400m
E60: 56 | H60: =IF(ISERROR(VLOOKUP($F60,氏名データ!$2:$2800,4,0)),"",VLOOKUP($F60,氏名データ!$2:$2800,4,0)) -> 0 | I60: =IF(ISERROR(VLOOKUP($F60,氏名データ!$2:$2800,5,0)),"",VLOOKUP($F60,氏名データ!$2:$2800,5,0)) -> 0 | J60: =IF(ISERROR(VLOOKUP($F60,氏名データ!$2:$2800,6,0)),"",VLOOKUP($F60,氏名データ!$2:$2800,6,0)) -> 0 | K60: =IF(ISERROR(VLOOKUP($F60,氏名データ!$2:$2800,7,0)),"",VLOOKUP($F60,氏名データ!$2:$2800,7,0)) -> 0 | O60: =IF(ISERROR(VLOOKUP($F60,氏名データ!$2:$2800,8,0)),"",VLOOKUP($F60,氏名データ!$2:$2800,8,0)) -> 0 | P60: =IF(ISERROR(VLOOKUP($F60,氏名データ!$2:$2800,11,0)),"",VLOOKUP($F60,氏名データ!$2:$2800,11,0)) -> 0 | Q60: =IF(ISERROR(VLOOKUP($F60,氏名データ!$2:$2800,9,0)),"",VLOOKUP($F60,氏名データ!$2:$2800,9,0)) ->  | AE60: 0 | AI60: 0 | AL60: =IF(F60="","",学校情報!$D$2) ->  | AN60: 女子3000m | AV60: 53 | BF60: 男子800m | BG60: 男子800m | BH60: 男子800m | BI60: 女子800m | BJ60: 女子800m | BK60: 女子800m
E61: 57 | H61: =IF(ISERROR(VLOOKUP($F61,氏名データ!$2:$2800,4,0)),"",VLOOKUP($F61,氏名データ!$2:$2800,4,0)) -> 0 | I61: =IF(ISERROR(VLOOKUP($F61,氏名データ!$2:$2800,5,0)),"",VLOOKUP($F61,氏名データ!$2:$2800,5,0)) -> 0 | J61: =IF(ISERROR(VLOOKUP($F61,氏名データ!$2:$2800,6,0)),"",VLOOKUP($F61,氏名データ!$2:$2800,6,0)) -> 0 | K61: =IF(ISERROR(VLOOKUP($F61,氏名データ!$2:$2800,7,0)),"",VLOOKUP($F61,氏名データ!$2:$2800,7,0)) -> 0 | O61: =IF(ISERROR(VLOOKUP($F61,氏名データ!$2:$2800,8,0)),"",VLOOKUP($F61,氏名データ!$2:$2800,8,0)) -> 0 | P61: =IF(ISERROR(VLOOKUP($F61,氏名データ!$2:$2800,11,0)),"",VLOOKUP($F61,氏名データ!$2:$2800,11,0)) -> 0 | Q61: =IF(ISERROR(VLOOKUP($F61,氏名データ!$2:$2800,9,0)),"",VLOOKUP($F61,氏名データ!$2:$2800,9,0)) ->  | AE61: 0 | AI61: 0 | AL61: =IF(F61="","",学校情報!$D$2) ->  | AN61: 女子100mH | AV61: 54 | BF61: 男子1500m | BG61: 男子1500m | BH61: 男子1500m | BI61: 女子1500m | BJ61: 女子1500m | BK61: 女子1500m
E62: 58 | H62: =IF(ISERROR(VLOOKUP($F62,氏名データ!$2:$2800,4,0)),"",VLOOKUP($F62,氏名データ!$2:$2800,4,0)) -> 0 | I62: =IF(ISERROR(VLOOKUP($F62,氏名データ!$2:$2800,5,0)),"",VLOOKUP($F62,氏名データ!$2:$2800,5,0)) -> 0 | J62: =IF(ISERROR(VLOOKUP($F62,氏名データ!$2:$2800,6,0)),"",VLOOKUP($F62,氏名データ!$2:$2800,6,0)) -> 0 | K62: =IF(ISERROR(VLOOKUP($F62,氏名データ!$2:$2800,7,0)),"",VLOOKUP($F62,氏名データ!$2:$2800,7,0)) -> 0 | O62: =IF(ISERROR(VLOOKUP($F62,氏名データ!$2:$2800,8,0)),"",VLOOKUP($F62,氏名データ!$2:$2800,8,0)) -> 0 | P62: =IF(ISERROR(VLOOKUP($F62,氏名データ!$2:$2800,11,0)),"",VLOOKUP($F62,氏名データ!$2:$2800,11,0)) -> 0 | Q62: =IF(ISERROR(VLOOKUP($F62,氏名データ!$2:$2800,9,0)),"",VLOOKUP($F62,氏名データ!$2:$2800,9,0)) ->  | AE62: 0 | AI62: 0 | AL62: =IF(F62="","",学校情報!$D$2) ->  | AN62: 女子400mH | AV62: 55 | BF62: 男子3000m | BG62: 男子3000m | BH62: 男子3000m | BI62: 女子100mH | BJ62: 女子100mH | BK62: 女子100mH
E63: 59 | H63: =IF(ISERROR(VLOOKUP($F63,氏名データ!$2:$2800,4,0)),"",VLOOKUP($F63,氏名データ!$2:$2800,4,0)) -> 0 | I63: =IF(ISERROR(VLOOKUP($F63,氏名データ!$2:$2800,5,0)),"",VLOOKUP($F63,氏名データ!$2:$2800,5,0)) -> 0 | J63: =IF(ISERROR(VLOOKUP($F63,氏名データ!$2:$2800,6,0)),"",VLOOKUP($F63,氏名データ!$2:$2800,6,0)) -> 0 | K63: =IF(ISERROR(VLOOKUP($F63,氏名データ!$2:$2800,7,0)),"",VLOOKUP($F63,氏名データ!$2:$2800,7,0)) -> 0 | O63: =IF(ISERROR(VLOOKUP($F63,氏名データ!$2:$2800,8,0)),"",VLOOKUP($F63,氏名データ!$2:$2800,8,0)) -> 0 | P63: =IF(ISERROR(VLOOKUP($F63,氏名データ!$2:$2800,11,0)),"",VLOOKUP($F63,氏名データ!$2:$2800,11,0)) -> 0 | Q63: =IF(ISERROR(VLOOKUP($F63,氏名データ!$2:$2800,9,0)),"",VLOOKUP($F63,氏名データ!$2:$2800,9,0)) ->  | AE63: 0 | AI63: 0 | AL63: =IF(F63="","",学校情報!$D$2) ->  | AN63: 女子やり投 | AV63: 56 | BF63: 男子110mH | BG63: 男子110mH | BH63: 男子110mH | BI63: 女子400mH | BJ63: 女子400mH | BK63: 女子400mH
E64: 60 | H64: =IF(ISERROR(VLOOKUP($F64,氏名データ!$2:$2800,4,0)),"",VLOOKUP($F64,氏名データ!$2:$2800,4,0)) -> 0 | I64: =IF(ISERROR(VLOOKUP($F64,氏名データ!$2:$2800,5,0)),"",VLOOKUP($F64,氏名データ!$2:$2800,5,0)) -> 0 | J64: =IF(ISERROR(VLOOKUP($F64,氏名データ!$2:$2800,6,0)),"",VLOOKUP($F64,氏名データ!$2:$2800,6,0)) -> 0 | K64: =IF(ISERROR(VLOOKUP($F64,氏名データ!$2:$2800,7,0)),"",VLOOKUP($F64,氏名データ!$2:$2800,7,0)) -> 0 | O64: =IF(ISERROR(VLOOKUP($F64,氏名データ!$2:$2800,8,0)),"",VLOOKUP($F64,氏名データ!$2:$2800,8,0)) -> 0 | P64: =IF(ISERROR(VLOOKUP($F64,氏名データ!$2:$2800,11,0)),"",VLOOKUP($F64,氏名データ!$2:$2800,11,0)) -> 0 | Q64: =IF(ISERROR(VLOOKUP($F64,氏名データ!$2:$2800,9,0)),"",VLOOKUP($F64,氏名データ!$2:$2800,9,0)) ->  | AE64: 0 | AI64: 0 | AL64: =IF(F64="","",学校情報!$D$2) ->  | AN64: 女子円盤投 | AV64: 57 | BF64: 男子400mH | BG64: 男子400mH | BH64: 男子400mH | BI64: 女子走高跳 | BJ64: 女子走高跳 | BK64: 女子走高跳
E65: 61 | H65: =IF(ISERROR(VLOOKUP($F65,氏名データ!$2:$2800,4,0)),"",VLOOKUP($F65,氏名データ!$2:$2800,4,0)) -> 0 | I65: =IF(ISERROR(VLOOKUP($F65,氏名データ!$2:$2800,5,0)),"",VLOOKUP($F65,氏名データ!$2:$2800,5,0)) -> 0 | J65: =IF(ISERROR(VLOOKUP($F65,氏名データ!$2:$2800,6,0)),"",VLOOKUP($F65,氏名データ!$2:$2800,6,0)) -> 0 | K65: =IF(ISERROR(VLOOKUP($F65,氏名データ!$2:$2800,7,0)),"",VLOOKUP($F65,氏名データ!$2:$2800,7,0)) -> 0 | O65: =IF(ISERROR(VLOOKUP($F65,氏名データ!$2:$2800,8,0)),"",VLOOKUP($F65,氏名データ!$2:$2800,8,0)) -> 0 | P65: =IF(ISERROR(VLOOKUP($F65,氏名データ!$2:$2800,11,0)),"",VLOOKUP($F65,氏名データ!$2:$2800,11,0)) -> 0 | Q65: =IF(ISERROR(VLOOKUP($F65,氏名データ!$2:$2800,9,0)),"",VLOOKUP($F65,氏名データ!$2:$2800,9,0)) ->  | AE65: 0 | AI65: 0 | AL65: =IF(F65="","",学校情報!$D$2) ->  | AN65: 女子走高跳 | AV65: 58 | BF65: 男子3000mSC | BG65: 男子3000mSC | BH65: 男子3000mSC | BI65: 女子走幅跳 | BJ65: 女子走幅跳 | BK65: 女子走幅跳
E66: 62 | H66: =IF(ISERROR(VLOOKUP($F66,氏名データ!$2:$2800,4,0)),"",VLOOKUP($F66,氏名データ!$2:$2800,4,0)) -> 0 | I66: =IF(ISERROR(VLOOKUP($F66,氏名データ!$2:$2800,5,0)),"",VLOOKUP($F66,氏名データ!$2:$2800,5,0)) -> 0 | J66: =IF(ISERROR(VLOOKUP($F66,氏名データ!$2:$2800,6,0)),"",VLOOKUP($F66,氏名データ!$2:$2800,6,0)) -> 0 | K66: =IF(ISERROR(VLOOKUP($F66,氏名データ!$2:$2800,7,0)),"",VLOOKUP($F66,氏名データ!$2:$2800,7,0)) -> 0 | O66: =IF(ISERROR(VLOOKUP($F66,氏名データ!$2:$2800,8,0)),"",VLOOKUP($F66,氏名データ!$2:$2800,8,0)) -> 0 | P66: =IF(ISERROR(VLOOKUP($F66,氏名データ!$2:$2800,11,0)),"",VLOOKUP($F66,氏名データ!$2:$2800,11,0)) -> 0 | Q66: =IF(ISERROR(VLOOKUP($F66,氏名データ!$2:$2800,9,0)),"",VLOOKUP($F66,氏名データ!$2:$2800,9,0)) ->  | AE66: 0 | AI66: 0 | AL66: =IF(F66="","",学校情報!$D$2) ->  | AN66: 女子走幅跳 | AV66: 59 | BF66: 男子走高跳 | BG66: 男子走高跳 | BH66: 男子走高跳 | BI66: 女子三段跳 | BJ66: 女子三段跳 | BK66: 女子三段跳
E67: 63 | H67: =IF(ISERROR(VLOOKUP($F67,氏名データ!$2:$2800,4,0)),"",VLOOKUP($F67,氏名データ!$2:$2800,4,0)) -> 0 | I67: =IF(ISERROR(VLOOKUP($F67,氏名データ!$2:$2800,5,0)),"",VLOOKUP($F67,氏名データ!$2:$2800,5,0)) -> 0 | J67: =IF(ISERROR(VLOOKUP($F67,氏名データ!$2:$2800,6,0)),"",VLOOKUP($F67,氏名データ!$2:$2800,6,0)) -> 0 | K67: =IF(ISERROR(VLOOKUP($F67,氏名データ!$2:$2800,7,0)),"",VLOOKUP($F67,氏名データ!$2:$2800,7,0)) -> 0 | O67: =IF(ISERROR(VLOOKUP($F67,氏名データ!$2:$2800,8,0)),"",VLOOKUP($F67,氏名データ!$2:$2800,8,0)) -> 0 | P67: =IF(ISERROR(VLOOKUP($F67,氏名データ!$2:$2800,11,0)),"",VLOOKUP($F67,氏名データ!$2:$2800,11,0)) -> 0 | Q67: =IF(ISERROR(VLOOKUP($F67,氏名データ!$2:$2800,9,0)),"",VLOOKUP($F67,氏名データ!$2:$2800,9,0)) ->  | AE67: 0 | AI67: 0 | AL67: =IF(F67="","",学校情報!$D$2) ->  | AN67: 女子三段跳 | AV67: 60 | BF67: 男子走幅跳 | BG67: 男子走幅跳 | BH67: 男子走幅跳 | BI67: 女子棒高跳 | BJ67: 女子棒高跳 | BK67: 女子棒高跳
E68: 64 | H68: =IF(ISERROR(VLOOKUP($F68,氏名データ!$2:$2800,4,0)),"",VLOOKUP($F68,氏名データ!$2:$2800,4,0)) -> 0 | I68: =IF(ISERROR(VLOOKUP($F68,氏名データ!$2:$2800,5,0)),"",VLOOKUP($F68,氏名データ!$2:$2800,5,0)) -> 0 | J68: =IF(ISERROR(VLOOKUP($F68,氏名データ!$2:$2800,6,0)),"",VLOOKUP($F68,氏名データ!$2:$2800,6,0)) -> 0 | K68: =IF(ISERROR(VLOOKUP($F68,氏名データ!$2:$2800,7,0)),"",VLOOKUP($F68,氏名データ!$2:$2800,7,0)) -> 0 | O68: =IF(ISERROR(VLOOKUP($F68,氏名データ!$2:$2800,8,0)),"",VLOOKUP($F68,氏名データ!$2:$2800,8,0)) -> 0 | P68: =IF(ISERROR(VLOOKUP($F68,氏名データ!$2:$2800,11,0)),"",VLOOKUP($F68,氏名データ!$2:$2800,11,0)) -> 0 | Q68: =IF(ISERROR(VLOOKUP($F68,氏名データ!$2:$2800,9,0)),"",VLOOKUP($F68,氏名データ!$2:$2800,9,0)) ->  | AE68: 0 | AI68: 0 | AL68: =IF(F68="","",学校情報!$D$2) ->  | AN68: 女子砲丸投 | AV68: 61 | BF68: 男子三段跳 | BG68: 男子三段跳 | BH68: 男子三段跳 | BI68: 女子砲丸投 | BJ68: 女子砲丸投 | BK68: 女子砲丸投
C69: =IF(ISERROR(RANK(D69,$D$5:$D$124,1)),"",RANK(D69,$D$5:$D$124,1)) ->  | D69: =IF(P69="女",ROW(R69),"") ->  | E69: 65 | H69: =IF(ISERROR(VLOOKUP($F69,氏名データ!$2:$2800,4,0)),"",VLOOKUP($F69,氏名データ!$2:$2800,4,0)) -> 0 | I69: =IF(ISERROR(VLOOKUP($F69,氏名データ!$2:$2800,5,0)),"",VLOOKUP($F69,氏名データ!$2:$2800,5,0)) -> 0 | J69: =IF(ISERROR(VLOOKUP($F69,氏名データ!$2:$2800,6,0)),"",VLOOKUP($F69,氏名データ!$2:$2800,6,0)) -> 0 | K69: =IF(ISERROR(VLOOKUP($F69,氏名データ!$2:$2800,7,0)),"",VLOOKUP($F69,氏名データ!$2:$2800,7,0)) -> 0 | O69: =IF(ISERROR(VLOOKUP($F69,氏名データ!$2:$2800,8,0)),"",VLOOKUP($F69,氏名データ!$2:$2800,8,0)) -> 0 | P69: =IF(ISERROR(VLOOKUP($F69,氏名データ!$2:$2800,11,0)),"",VLOOKUP($F69,氏名データ!$2:$2800,11,0)) -> 0 | Q69: =IF(ISERROR(VLOOKUP($F69,氏名データ!$2:$2800,9,0)),"",VLOOKUP($F69,氏名データ!$2:$2800,9,0)) ->  | AE69: 0 | AI69: 0 | AL69: =IF(F69="","",学校情報!$D$2) ->  | AV69: 62 | BF69: 男子棒高跳 | BG69: 男子棒高跳 | BH69: 男子棒高跳 | BI69: 女子円盤投 | BJ69: 女子円盤投 | BK69: 女子円盤投
A70: =IF(ISERROR(RANK(B70,$B$5:$B$124,1)),"",RANK(B70,$B$5:$B$124,1)) ->  | E70: 66 | H70: =IF(ISERROR(VLOOKUP($F70,氏名データ!$2:$2800,4,0)),"",VLOOKUP($F70,氏名データ!$2:$2800,4,0)) -> 0 | I70: =IF(ISERROR(VLOOKUP($F70,氏名データ!$2:$2800,5,0)),"",VLOOKUP($F70,氏名データ!$2:$2800,5,0)) -> 0 | J70: =IF(ISERROR(VLOOKUP($F70,氏名データ!$2:$2800,6,0)),"",VLOOKUP($F70,氏名データ!$2:$2800,6,0)) -> 0 | K70: =IF(ISERROR(VLOOKUP($F70,氏名データ!$2:$2800,7,0)),"",VLOOKUP($F70,氏名データ!$2:$2800,7,0)) -> 0 | O70: =IF(ISERROR(VLOOKUP($F70,氏名データ!$2:$2800,8,0)),"",VLOOKUP($F70,氏名データ!$2:$2800,8,0)) -> 0 | P70: =IF(ISERROR(VLOOKUP($F70,氏名データ!$2:$2800,11,0)),"",VLOOKUP($F70,氏名データ!$2:$2800,11,0)) -> 0 | Q70: =IF(ISERROR(VLOOKUP($F70,氏名データ!$2:$2800,9,0)),"",VLOOKUP($F70,氏名データ!$2:$2800,9,0)) ->  | AE70: 0 | AI70: 0 | AL70: =IF(F70="","",学校情報!$D$2) ->  | AV70: 63 | BF70: 男子砲丸投 | BG70: 男子砲丸投 | BH70: 男子砲丸投 | BI70: 女子やり投 | BJ70: 女子やり投 | BK70: 女子やり投
B71: =IF(P71="男",ROW(P71),"") ->  | E71: 67 | H71: =IF(ISERROR(VLOOKUP($F71,氏名データ!$2:$2800,4,0)),"",VLOOKUP($F71,氏名データ!$2:$2800,4,0)) -> 0 | I71: =IF(ISERROR(VLOOKUP($F71,氏名データ!$2:$2800,5,0)),"",VLOOKUP($F71,氏名データ!$2:$2800,5,0)) -> 0 | J71: =IF(ISERROR(VLOOKUP($F71,氏名データ!$2:$2800,6,0)),"",VLOOKUP($F71,氏名データ!$2:$2800,6,0)) -> 0 | K71: =IF(ISERROR(VLOOKUP($F71,氏名データ!$2:$2800,7,0)),"",VLOOKUP($F71,氏名データ!$2:$2800,7,0)) -> 0 | O71: =IF(ISERROR(VLOOKUP($F71,氏名データ!$2:$2800,8,0)),"",VLOOKUP($F71,氏名データ!$2:$2800,8,0)) -> 0 | P71: =IF(ISERROR(VLOOKUP($F71,氏名データ!$2:$2800,11,0)),"",VLOOKUP($F71,氏名データ!$2:$2800,11,0)) -> 0 | Q71: =IF(ISERROR(VLOOKUP($F71,氏名データ!$2:$2800,9,0)),"",VLOOKUP($F71,氏名データ!$2:$2800,9,0)) ->  | AE71: 0 | AI71: 0 | AL71: =IF(F71="","",学校情報!$D$2) ->  | AV71: 64 | BF71: 男子円盤投 | BG71: 男子円盤投 | BH71: 男子円盤投
E72: 68 | H72: =IF(ISERROR(VLOOKUP($F72,氏名データ!$2:$2800,4,0)),"",VLOOKUP($F72,氏名データ!$2:$2800,4,0)) -> 0 | I72: =IF(ISERROR(VLOOKUP($F72,氏名データ!$2:$2800,5,0)),"",VLOOKUP($F72,氏名データ!$2:$2800,5,0)) -> 0 | J72: =IF(ISERROR(VLOOKUP($F72,氏名データ!$2:$2800,6,0)),"",VLOOKUP($F72,氏名データ!$2:$2800,6,0)) -> 0 | K72: =IF(ISERROR(VLOOKUP($F72,氏名データ!$2:$2800,7,0)),"",VLOOKUP($F72,氏名データ!$2:$2800,7,0)) -> 0 | O72: =IF(ISERROR(VLOOKUP($F72,氏名データ!$2:$2800,8,0)),"",VLOOKUP($F72,氏名データ!$2:$2800,8,0)) -> 0 | P72: =IF(ISERROR(VLOOKUP($F72,氏名データ!$2:$2800,11,0)),"",VLOOKUP($F72,氏名データ!$2:$2800,11,0)) -> 0 | Q72: =IF(ISERROR(VLOOKUP($F72,氏名データ!$2:$2800,9,0)),"",VLOOKUP($F72,氏名データ!$2:$2800,9,0)) ->  | AE72: 0 | AI72: 0 | AL72: =IF(F72="","",学校情報!$D$2) ->  | AV72: 65 | BF72: 男子やり投 | BG72: 男子やり投 | BH72: 男子やり投
E73: 69 | H73: =IF(ISERROR(VLOOKUP($F73,氏名データ!$2:$2800,4,0)),"",VLOOKUP($F73,氏名データ!$2:$2800,4,0)) -> 0 | I73: =IF(ISERROR(VLOOKUP($F73,氏名データ!$2:$2800,5,0)),"",VLOOKUP($F73,氏名データ!$2:$2800,5,0)) -> 0 | J73: =IF(ISERROR(VLOOKUP($F73,氏名データ!$2:$2800,6,0)),"",VLOOKUP($F73,氏名データ!$2:$2800,6,0)) -> 0 | K73: =IF(ISERROR(VLOOKUP($F73,氏名データ!$2:$2800,7,0)),"",VLOOKUP($F73,氏名データ!$2:$2800,7,0)) -> 0 | O73: =IF(ISERROR(VLOOKUP($F73,氏名データ!$2:$2800,8,0)),"",VLOOKUP($F73,氏名データ!$2:$2800,8,0)) -> 0 | P73: =IF(ISERROR(VLOOKUP($F73,氏名データ!$2:$2800,11,0)),"",VLOOKUP($F73,氏名データ!$2:$2800,11,0)) -> 0 | Q73: =IF(ISERROR(VLOOKUP($F73,氏名データ!$2:$2800,9,0)),"",VLOOKUP($F73,氏名データ!$2:$2800,9,0)) ->  | AE73: 0 | AI73: 0 | AL73: =IF(F73="","",学校情報!$D$2) ->  | AV73: 66 | BF73: 支部新人
E74: 70 | H74: =IF(ISERROR(VLOOKUP($F74,氏名データ!$2:$2800,4,0)),"",VLOOKUP($F74,氏名データ!$2:$2800,4,0)) -> 0 | I74: =IF(ISERROR(VLOOKUP($F74,氏名データ!$2:$2800,5,0)),"",VLOOKUP($F74,氏名データ!$2:$2800,5,0)) -> 0 | J74: =IF(ISERROR(VLOOKUP($F74,氏名データ!$2:$2800,6,0)),"",VLOOKUP($F74,氏名データ!$2:$2800,6,0)) -> 0 | K74: =IF(ISERROR(VLOOKUP($F74,氏名データ!$2:$2800,7,0)),"",VLOOKUP($F74,氏名データ!$2:$2800,7,0)) -> 0 | O74: =IF(ISERROR(VLOOKUP($F74,氏名データ!$2:$2800,8,0)),"",VLOOKUP($F74,氏名データ!$2:$2800,8,0)) -> 0 | P74: =IF(ISERROR(VLOOKUP($F74,氏名データ!$2:$2800,11,0)),"",VLOOKUP($F74,氏名データ!$2:$2800,11,0)) -> 0 | Q74: =IF(ISERROR(VLOOKUP($F74,氏名データ!$2:$2800,9,0)),"",VLOOKUP($F74,氏名データ!$2:$2800,9,0)) ->  | AE74: 0 | AI74: 0 | AL74: =IF(F74="","",学校情報!$D$2) ->  | AV74: 67 | BF74: 男子5支部100m | BG74: 男子5支部100m | BH74: 男子OP110mH | BI74: 女子5支部100m | BJ74: 女子5支部100m | BK74: 女子OP100mH | BL74: 男子6支部100m | BM74: 男子6支部100m | BN74: 男子OP110mH | BO74: 女子6支部100m | BP74: 女子6支部100m | BQ74: 女子OP100mH
E75: 71 | H75: =IF(ISERROR(VLOOKUP($F75,氏名データ!$2:$2800,4,0)),"",VLOOKUP($F75,氏名データ!$2:$2800,4,0)) -> 0 | I75: =IF(ISERROR(VLOOKUP($F75,氏名データ!$2:$2800,5,0)),"",VLOOKUP($F75,氏名データ!$2:$2800,5,0)) -> 0 | J75: =IF(ISERROR(VLOOKUP($F75,氏名データ!$2:$2800,6,0)),"",VLOOKUP($F75,氏名データ!$2:$2800,6,0)) -> 0 | K75: =IF(ISERROR(VLOOKUP($F75,氏名データ!$2:$2800,7,0)),"",VLOOKUP($F75,氏名データ!$2:$2800,7,0)) -> 0 | O75: =IF(ISERROR(VLOOKUP($F75,氏名データ!$2:$2800,8,0)),"",VLOOKUP($F75,氏名データ!$2:$2800,8,0)) -> 0 | P75: =IF(ISERROR(VLOOKUP($F75,氏名データ!$2:$2800,11,0)),"",VLOOKUP($F75,氏名データ!$2:$2800,11,0)) -> 0 | Q75: =IF(ISERROR(VLOOKUP($F75,氏名データ!$2:$2800,9,0)),"",VLOOKUP($F75,氏名データ!$2:$2800,9,0)) ->  | AE75: 0 | AI75: 0 | AL75: =IF(F75="","",学校情報!$D$2) ->  | AV75: 68 | BF75: 男子5支部200m | BG75: 男子5支部200m | BH75: 男子OP400mH | BI75: 女子5支部200m | BJ75: 女子5支部200m | BK75: 女子OP400mH | BL75: 男子6支部200m | BM75: 男子6支部200m | BN75: 男子OP400mH | BO75: 女子6支部200m | BP75: 女子6支部200m | BQ75: 女子OP400mH
E76: 72 | H76: =IF(ISERROR(VLOOKUP($F76,氏名データ!$2:$2800,4,0)),"",VLOOKUP($F76,氏名データ!$2:$2800,4,0)) -> 0 | I76: =IF(ISERROR(VLOOKUP($F76,氏名データ!$2:$2800,5,0)),"",VLOOKUP($F76,氏名データ!$2:$2800,5,0)) -> 0 | J76: =IF(ISERROR(VLOOKUP($F76,氏名データ!$2:$2800,6,0)),"",VLOOKUP($F76,氏名データ!$2:$2800,6,0)) -> 0 | K76: =IF(ISERROR(VLOOKUP($F76,氏名データ!$2:$2800,7,0)),"",VLOOKUP($F76,氏名データ!$2:$2800,7,0)) -> 0 | O76: =IF(ISERROR(VLOOKUP($F76,氏名データ!$2:$2800,8,0)),"",VLOOKUP($F76,氏名データ!$2:$2800,8,0)) -> 0 | P76: =IF(ISERROR(VLOOKUP($F76,氏名データ!$2:$2800,11,0)),"",VLOOKUP($F76,氏名データ!$2:$2800,11,0)) -> 0 | Q76: =IF(ISERROR(VLOOKUP($F76,氏名データ!$2:$2800,9,0)),"",VLOOKUP($F76,氏名データ!$2:$2800,9,0)) ->  | AE76: 0 | AI76: 0 | AL76: =IF(F76="","",学校情報!$D$2) ->  | AV76: 69 | BF76: 男子5支部400m | BG76: 男子5支部400m | BH76: 男子OP3000mSC | BI76: 女子5支部400m | BJ76: 女子5支部400m | BK76: 女子OP棒高跳 | BL76: 男子6支部400m | BM76: 男子6支部400m | BN76: 男子OP3000mSC | BO76: 女子6支部400m | BP76: 女子6支部400m | BQ76: 女子OP棒高跳
E77: 73 | H77: =IF(ISERROR(VLOOKUP($F77,氏名データ!$2:$2800,4,0)),"",VLOOKUP($F77,氏名データ!$2:$2800,4,0)) -> 0 | I77: =IF(ISERROR(VLOOKUP($F77,氏名データ!$2:$2800,5,0)),"",VLOOKUP($F77,氏名データ!$2:$2800,5,0)) -> 0 | J77: =IF(ISERROR(VLOOKUP($F77,氏名データ!$2:$2800,6,0)),"",VLOOKUP($F77,氏名データ!$2:$2800,6,0)) -> 0 | K77: =IF(ISERROR(VLOOKUP($F77,氏名データ!$2:$2800,7,0)),"",VLOOKUP($F77,氏名データ!$2:$2800,7,0)) -> 0 | O77: =IF(ISERROR(VLOOKUP($F77,氏名データ!$2:$2800,8,0)),"",VLOOKUP($F77,氏名データ!$2:$2800,8,0)) -> 0 | P77: =IF(ISERROR(VLOOKUP($F77,氏名データ!$2:$2800,11,0)),"",VLOOKUP($F77,氏名データ!$2:$2800,11,0)) -> 0 | Q77: =IF(ISERROR(VLOOKUP($F77,氏名データ!$2:$2800,9,0)),"",VLOOKUP($F77,氏名データ!$2:$2800,9,0)) ->  | AE77: 0 | AI77: 0 | AL77: =IF(F77="","",学校情報!$D$2) ->  | AV77: 70 | BF77: 男子5支部800m | BG77: 男子5支部800m | BH77: 男子OP棒高跳 | BI77: 女子5支部800m | BJ77: 女子5支部800m | BK77: 女子OP三段跳 | BL77: 男子6支部800m | BM77: 男子6支部800m | BN77: 男子OP棒高跳 | BO77: 女子6支部800m | BP77: 女子6支部800m | BQ77: 女子OP三段跳
E78: 74 | H78: =IF(ISERROR(VLOOKUP($F78,氏名データ!$2:$2800,4,0)),"",VLOOKUP($F78,氏名データ!$2:$2800,4,0)) -> 0 | I78: =IF(ISERROR(VLOOKUP($F78,氏名データ!$2:$2800,5,0)),"",VLOOKUP($F78,氏名データ!$2:$2800,5,0)) -> 0 | J78: =IF(ISERROR(VLOOKUP($F78,氏名データ!$2:$2800,6,0)),"",VLOOKUP($F78,氏名データ!$2:$2800,6,0)) -> 0 | K78: =IF(ISERROR(VLOOKUP($F78,氏名データ!$2:$2800,7,0)),"",VLOOKUP($F78,氏名データ!$2:$2800,7,0)) -> 0 | O78: =IF(ISERROR(VLOOKUP($F78,氏名データ!$2:$2800,8,0)),"",VLOOKUP($F78,氏名データ!$2:$2800,8,0)) -> 0 | P78: =IF(ISERROR(VLOOKUP($F78,氏名データ!$2:$2800,11,0)),"",VLOOKUP($F78,氏名データ!$2:$2800,11,0)) -> 0 | Q78: =IF(ISERROR(VLOOKUP($F78,氏名データ!$2:$2800,9,0)),"",VLOOKUP($F78,氏名データ!$2:$2800,9,0)) ->  | AE78: 0 | AI78: 0 | AL78: =IF(F78="","",学校情報!$D$2) ->  | AV78: 71 | BF78: 男子5支部1500m | BG78: 男子5支部1500m | BI78: 女子5支部1500m | BJ78: 女子5支部1500m | BL78: 男子6支部1500m | BM78: 男子6支部1500m | BO78: 女子6支部1500m | BP78: 女子6支部1500m
E79: 75 | H79: =IF(ISERROR(VLOOKUP($F79,氏名データ!$2:$2800,4,0)),"",VLOOKUP($F79,氏名データ!$2:$2800,4,0)) -> 0 | I79: =IF(ISERROR(VLOOKUP($F79,氏名データ!$2:$2800,5,0)),"",VLOOKUP($F79,氏名データ!$2:$2800,5,0)) -> 0 | J79: =IF(ISERROR(VLOOKUP($F79,氏名データ!$2:$2800,6,0)),"",VLOOKUP($F79,氏名データ!$2:$2800,6,0)) -> 0 | K79: =IF(ISERROR(VLOOKUP($F79,氏名データ!$2:$2800,7,0)),"",VLOOKUP($F79,氏名データ!$2:$2800,7,0)) -> 0 | O79: =IF(ISERROR(VLOOKUP($F79,氏名データ!$2:$2800,8,0)),"",VLOOKUP($F79,氏名データ!$2:$2800,8,0)) -> 0 | P79: =IF(ISERROR(VLOOKUP($F79,氏名データ!$2:$2800,11,0)),"",VLOOKUP($F79,氏名データ!$2:$2800,11,0)) -> 0 | Q79: =IF(ISERROR(VLOOKUP($F79,氏名データ!$2:$2800,9,0)),"",VLOOKUP($F79,氏名データ!$2:$2800,9,0)) ->  | AE79: 0 | AI79: 0 | AL79: =IF(F79="","",学校情報!$D$2) ->  | AV79: 72 | BF79: 男子5支部5000m | BG79: 男子5支部5000m | BI79: 女子5支部3000m | BJ79: 女子5支部3000m | BL79: 男子6支部5000m | BM79: 男子6支部5000m | BO79: 女子6支部3000m | BP79: 女子6支部3000m
E80: 76 | H80: =IF(ISERROR(VLOOKUP($F80,氏名データ!$2:$2800,4,0)),"",VLOOKUP($F80,氏名データ!$2:$2800,4,0)) -> 0 | I80: =IF(ISERROR(VLOOKUP($F80,氏名データ!$2:$2800,5,0)),"",VLOOKUP($F80,氏名データ!$2:$2800,5,0)) -> 0 | J80: =IF(ISERROR(VLOOKUP($F80,氏名データ!$2:$2800,6,0)),"",VLOOKUP($F80,氏名データ!$2:$2800,6,0)) -> 0 | K80: =IF(ISERROR(VLOOKUP($F80,氏名データ!$2:$2800,7,0)),"",VLOOKUP($F80,氏名データ!$2:$2800,7,0)) -> 0 | O80: =IF(ISERROR(VLOOKUP($F80,氏名データ!$2:$2800,8,0)),"",VLOOKUP($F80,氏名データ!$2:$2800,8,0)) -> 0 | P80: =IF(ISERROR(VLOOKUP($F80,氏名データ!$2:$2800,11,0)),"",VLOOKUP($F80,氏名データ!$2:$2800,11,0)) -> 0 | Q80: =IF(ISERROR(VLOOKUP($F80,氏名データ!$2:$2800,9,0)),"",VLOOKUP($F80,氏名データ!$2:$2800,9,0)) ->  | AE80: 0 | AI80: 0 | AL80: =IF(F80="","",学校情報!$D$2) ->  | AV80: 73 | BF80: 男子OP110mH | BG80: 男子OP110mH | BI80: 女子OP100mH | BJ80: 女子OP100mH | BL80: 男子OP110mH | BM80: 男子OP110mH | BO80: 女子OP100mH | BP80: 女子OP100mH
E81: 77 | H81: =IF(ISERROR(VLOOKUP($F81,氏名データ!$2:$2800,4,0)),"",VLOOKUP($F81,氏名データ!$2:$2800,4,0)) -> 0 | I81: =IF(ISERROR(VLOOKUP($F81,氏名データ!$2:$2800,5,0)),"",VLOOKUP($F81,氏名データ!$2:$2800,5,0)) -> 0 | J81: =IF(ISERROR(VLOOKUP($F81,氏名データ!$2:$2800,6,0)),"",VLOOKUP($F81,氏名データ!$2:$2800,6,0)) -> 0 | K81: =IF(ISERROR(VLOOKUP($F81,氏名データ!$2:$2800,7,0)),"",VLOOKUP($F81,氏名データ!$2:$2800,7,0)) -> 0 | O81: =IF(ISERROR(VLOOKUP($F81,氏名データ!$2:$2800,8,0)),"",VLOOKUP($F81,氏名データ!$2:$2800,8,0)) -> 0 | P81: =IF(ISERROR(VLOOKUP($F81,氏名データ!$2:$2800,11,0)),"",VLOOKUP($F81,氏名データ!$2:$2800,11,0)) -> 0 | Q81: =IF(ISERROR(VLOOKUP($F81,氏名データ!$2:$2800,9,0)),"",VLOOKUP($F81,氏名データ!$2:$2800,9,0)) ->  | AE81: 0 | AI81: 0 | AL81: =IF(F81="","",学校情報!$D$2) ->  | AV81: 74 | BF81: 男子OP400mH | BG81: 男子OP400mH | BI81: 女子OP400mH | BJ81: 女子OP400mH | BL81: 男子OP400mH | BM81: 男子OP400mH | BO81: 女子OP400mH | BP81: 女子OP400mH
E82: 78 | H82: =IF(ISERROR(VLOOKUP($F82,氏名データ!$2:$2800,4,0)),"",VLOOKUP($F82,氏名データ!$2:$2800,4,0)) -> 0 | I82: =IF(ISERROR(VLOOKUP($F82,氏名データ!$2:$2800,5,0)),"",VLOOKUP($F82,氏名データ!$2:$2800,5,0)) -> 0 | J82: =IF(ISERROR(VLOOKUP($F82,氏名データ!$2:$2800,6,0)),"",VLOOKUP($F82,氏名データ!$2:$2800,6,0)) -> 0 | K82: =IF(ISERROR(VLOOKUP($F82,氏名データ!$2:$2800,7,0)),"",VLOOKUP($F82,氏名データ!$2:$2800,7,0)) -> 0 | O82: =IF(ISERROR(VLOOKUP($F82,氏名データ!$2:$2800,8,0)),"",VLOOKUP($F82,氏名データ!$2:$2800,8,0)) -> 0 | P82: =IF(ISERROR(VLOOKUP($F82,氏名データ!$2:$2800,11,0)),"",VLOOKUP($F82,氏名データ!$2:$2800,11,0)) -> 0 | Q82: =IF(ISERROR(VLOOKUP($F82,氏名データ!$2:$2800,9,0)),"",VLOOKUP($F82,氏名データ!$2:$2800,9,0)) ->  | AE82: 0 | AI82: 0 | AL82: =IF(F82="","",学校情報!$D$2) ->  | AS82: 36 | AV82: 75 | BF82: 男子OP3000mSC | BG82: 男子OP3000mSC | BI82: 女子5支部走高跳 | BJ82: 女子5支部走高跳 | BL82: 男子OP3000mSC | BM82: 男子OP3000mSC | BO82: 女子6支部走高跳 | BP82: 女子6支部走高跳
E83: 79 | H83: =IF(ISERROR(VLOOKUP($F83,氏名データ!$2:$2800,4,0)),"",VLOOKUP($F83,氏名データ!$2:$2800,4,0)) -> 0 | I83: =IF(ISERROR(VLOOKUP($F83,氏名データ!$2:$2800,5,0)),"",VLOOKUP($F83,氏名データ!$2:$2800,5,0)) -> 0 | J83: =IF(ISERROR(VLOOKUP($F83,氏名データ!$2:$2800,6,0)),"",VLOOKUP($F83,氏名データ!$2:$2800,6,0)) -> 0 | K83: =IF(ISERROR(VLOOKUP($F83,氏名データ!$2:$2800,7,0)),"",VLOOKUP($F83,氏名データ!$2:$2800,7,0)) -> 0 | O83: =IF(ISERROR(VLOOKUP($F83,氏名データ!$2:$2800,8,0)),"",VLOOKUP($F83,氏名データ!$2:$2800,8,0)) -> 0 | P83: =IF(ISERROR(VLOOKUP($F83,氏名データ!$2:$2800,11,0)),"",VLOOKUP($F83,氏名データ!$2:$2800,11,0)) -> 0 | Q83: =IF(ISERROR(VLOOKUP($F83,氏名データ!$2:$2800,9,0)),"",VLOOKUP($F83,氏名データ!$2:$2800,9,0)) ->  | AE83: 0 | AI83: 0 | AL83: =IF(F83="","",学校情報!$D$2) ->  | AS83: 37 | AV83: 76 | BF83: 男子5支部走高跳 | BG83: 男子5支部走高跳 | BI83: 男子OP棒高跳 | BJ83: 男子OP棒高跳 | BL83: 男子6支部走高跳 | BM83: 男子6支部走高跳 | BO83: 男子OP棒高跳 | BP83: 男子OP棒高跳
E84: 80 | H84: =IF(ISERROR(VLOOKUP($F84,氏名データ!$2:$2800,4,0)),"",VLOOKUP($F84,氏名データ!$2:$2800,4,0)) -> 0 | I84: =IF(ISERROR(VLOOKUP($F84,氏名データ!$2:$2800,5,0)),"",VLOOKUP($F84,氏名データ!$2:$2800,5,0)) -> 0 | J84: =IF(ISERROR(VLOOKUP($F84,氏名データ!$2:$2800,6,0)),"",VLOOKUP($F84,氏名データ!$2:$2800,6,0)) -> 0 | K84: =IF(ISERROR(VLOOKUP($F84,氏名データ!$2:$2800,7,0)),"",VLOOKUP($F84,氏名データ!$2:$2800,7,0)) -> 0 | O84: =IF(ISERROR(VLOOKUP($F84,氏名データ!$2:$2800,8,0)),"",VLOOKUP($F84,氏名データ!$2:$2800,8,0)) -> 0 | P84: =IF(ISERROR(VLOOKUP($F84,氏名データ!$2:$2800,11,0)),"",VLOOKUP($F84,氏名データ!$2:$2800,11,0)) -> 0 | Q84: =IF(ISERROR(VLOOKUP($F84,氏名データ!$2:$2800,9,0)),"",VLOOKUP($F84,氏名データ!$2:$2800,9,0)) ->  | AE84: 0 | AI84: 0 | AL84: =IF(F84="","",学校情報!$D$2) ->  | AV84: 77 | BF84: 男子OP棒高跳 | BG84: 男子OP棒高跳 | BI84: 女子5支部走幅跳 | BJ84: 女子5支部走幅跳 | BL84: 男子OP棒高跳 | BM84: 男子OP棒高跳 | BO84: 女子6支部走幅跳 | BP84: 女子6支部走幅跳
E85: 81 | H85: =IF(ISERROR(VLOOKUP($F85,氏名データ!$2:$2800,4,0)),"",VLOOKUP($F85,氏名データ!$2:$2800,4,0)) -> 0 | I85: =IF(ISERROR(VLOOKUP($F85,氏名データ!$2:$2800,5,0)),"",VLOOKUP($F85,氏名データ!$2:$2800,5,0)) -> 0 | J85: =IF(ISERROR(VLOOKUP($F85,氏名データ!$2:$2800,6,0)),"",VLOOKUP($F85,氏名データ!$2:$2800,6,0)) -> 0 | K85: =IF(ISERROR(VLOOKUP($F85,氏名データ!$2:$2800,7,0)),"",VLOOKUP($F85,氏名データ!$2:$2800,7,0)) -> 0 | O85: =IF(ISERROR(VLOOKUP($F85,氏名データ!$2:$2800,8,0)),"",VLOOKUP($F85,氏名データ!$2:$2800,8,0)) -> 0 | P85: =IF(ISERROR(VLOOKUP($F85,氏名データ!$2:$2800,11,0)),"",VLOOKUP($F85,氏名データ!$2:$2800,11,0)) -> 0 | Q85: =IF(ISERROR(VLOOKUP($F85,氏名データ!$2:$2800,9,0)),"",VLOOKUP($F85,氏名データ!$2:$2800,9,0)) ->  | AE85: 0 | AI85: 0 | AL85: =IF(F85="","",学校情報!$D$2) ->  | AV85: 78 | BF85: 男子5支部走幅跳 | BG85: 男子5支部走幅跳 | BI85: 女子OP三段跳 | BJ85: 女子OP三段跳 | BL85: 男子6支部走幅跳 | BM85: 男子6支部走幅跳 | BO85: 女子OP三段跳 | BP85: 女子OP三段跳
E86: 82 | H86: =IF(ISERROR(VLOOKUP($F86,氏名データ!$2:$2800,4,0)),"",VLOOKUP($F86,氏名データ!$2:$2800,4,0)) -> 0 | I86: =IF(ISERROR(VLOOKUP($F86,氏名データ!$2:$2800,5,0)),"",VLOOKUP($F86,氏名データ!$2:$2800,5,0)) -> 0 | J86: =IF(ISERROR(VLOOKUP($F86,氏名データ!$2:$2800,6,0)),"",VLOOKUP($F86,氏名データ!$2:$2800,6,0)) -> 0 | K86: =IF(ISERROR(VLOOKUP($F86,氏名データ!$2:$2800,7,0)),"",VLOOKUP($F86,氏名データ!$2:$2800,7,0)) -> 0 | O86: =IF(ISERROR(VLOOKUP($F86,氏名データ!$2:$2800,8,0)),"",VLOOKUP($F86,氏名データ!$2:$2800,8,0)) -> 0 | P86: =IF(ISERROR(VLOOKUP($F86,氏名データ!$2:$2800,11,0)),"",VLOOKUP($F86,氏名データ!$2:$2800,11,0)) -> 0 | Q86: =IF(ISERROR(VLOOKUP($F86,氏名データ!$2:$2800,9,0)),"",VLOOKUP($F86,氏名データ!$2:$2800,9,0)) ->  | AE86: 0 | AI86: 0 | AL86: =IF(F86="","",学校情報!$D$2) ->  | AV86: 79 | BF86: 男子5支部三段跳 | BG86: 男子5支部三段跳 | BI86: 女子5支部砲丸投 | BJ86: 女子5支部砲丸投 | BL86: 男子6支部三段跳 | BM86: 男子6支部三段跳 | BO86: 女子6支部砲丸投 | BP86: 女子6支部砲丸投
E87: 83 | H87: =IF(ISERROR(VLOOKUP($F87,氏名データ!$2:$2800,4,0)),"",VLOOKUP($F87,氏名データ!$2:$2800,4,0)) -> 0 | I87: =IF(ISERROR(VLOOKUP($F87,氏名データ!$2:$2800,5,0)),"",VLOOKUP($F87,氏名データ!$2:$2800,5,0)) -> 0 | J87: =IF(ISERROR(VLOOKUP($F87,氏名データ!$2:$2800,6,0)),"",VLOOKUP($F87,氏名データ!$2:$2800,6,0)) -> 0 | K87: =IF(ISERROR(VLOOKUP($F87,氏名データ!$2:$2800,7,0)),"",VLOOKUP($F87,氏名データ!$2:$2800,7,0)) -> 0 | O87: =IF(ISERROR(VLOOKUP($F87,氏名データ!$2:$2800,8,0)),"",VLOOKUP($F87,氏名データ!$2:$2800,8,0)) -> 0 | P87: =IF(ISERROR(VLOOKUP($F87,氏名データ!$2:$2800,11,0)),"",VLOOKUP($F87,氏名データ!$2:$2800,11,0)) -> 0 | Q87: =IF(ISERROR(VLOOKUP($F87,氏名データ!$2:$2800,9,0)),"",VLOOKUP($F87,氏名データ!$2:$2800,9,0)) ->  | AE87: 0 | AI87: 0 | AL87: =IF(F87="","",学校情報!$D$2) ->  | AV87: 80 | BF87: 男子5支部砲丸投 | BG87: 男子5支部砲丸投 | BI87: 女子5支部円盤投 | BJ87: 女子5支部円盤投 | BL87: 男子6支部砲丸投 | BM87: 男子6支部砲丸投 | BO87: 女子6支部円盤投 | BP87: 女子6支部円盤投
E88: 84 | H88: =IF(ISERROR(VLOOKUP($F88,氏名データ!$2:$2800,4,0)),"",VLOOKUP($F88,氏名データ!$2:$2800,4,0)) -> 0 | I88: =IF(ISERROR(VLOOKUP($F88,氏名データ!$2:$2800,5,0)),"",VLOOKUP($F88,氏名データ!$2:$2800,5,0)) -> 0 | J88: =IF(ISERROR(VLOOKUP($F88,氏名データ!$2:$2800,6,0)),"",VLOOKUP($F88,氏名データ!$2:$2800,6,0)) -> 0 | K88: =IF(ISERROR(VLOOKUP($F88,氏名データ!$2:$2800,7,0)),"",VLOOKUP($F88,氏名データ!$2:$2800,7,0)) -> 0 | O88: =IF(ISERROR(VLOOKUP($F88,氏名データ!$2:$2800,8,0)),"",VLOOKUP($F88,氏名データ!$2:$2800,8,0)) -> 0 | P88: =IF(ISERROR(VLOOKUP($F88,氏名データ!$2:$2800,11,0)),"",VLOOKUP($F88,氏名データ!$2:$2800,11,0)) -> 0 | Q88: =IF(ISERROR(VLOOKUP($F88,氏名データ!$2:$2800,9,0)),"",VLOOKUP($F88,氏名データ!$2:$2800,9,0)) ->  | AE88: 0 | AI88: 0 | AL88: =IF(F88="","",学校情報!$D$2) ->  | AV88: 81 | BF88: 男子5支部円盤投 | BG88: 男子5支部円盤投 | BI88: 女子5支部やり投 | BJ88: 女子5支部やり投 | BL88: 男子6支部円盤投 | BM88: 男子6支部円盤投 | BO88: 女子6支部やり投 | BP88: 女子6支部やり投
E89: 85 | H89: =IF(ISERROR(VLOOKUP($F89,氏名データ!$2:$2800,4,0)),"",VLOOKUP($F89,氏名データ!$2:$2800,4,0)) -> 0 | I89: =IF(ISERROR(VLOOKUP($F89,氏名データ!$2:$2800,5,0)),"",VLOOKUP($F89,氏名データ!$2:$2800,5,0)) -> 0 | J89: =IF(ISERROR(VLOOKUP($F89,氏名データ!$2:$2800,6,0)),"",VLOOKUP($F89,氏名データ!$2:$2800,6,0)) -> 0 | K89: =IF(ISERROR(VLOOKUP($F89,氏名データ!$2:$2800,7,0)),"",VLOOKUP($F89,氏名データ!$2:$2800,7,0)) -> 0 | O89: =IF(ISERROR(VLOOKUP($F89,氏名データ!$2:$2800,8,0)),"",VLOOKUP($F89,氏名データ!$2:$2800,8,0)) -> 0 | P89: =IF(ISERROR(VLOOKUP($F89,氏名データ!$2:$2800,11,0)),"",VLOOKUP($F89,氏名データ!$2:$2800,11,0)) -> 0 | Q89: =IF(ISERROR(VLOOKUP($F89,氏名データ!$2:$2800,9,0)),"",VLOOKUP($F89,氏名データ!$2:$2800,9,0)) ->  | AE89: 0 | AI89: 0 | AL89: =IF(F89="","",学校情報!$D$2) ->  | AV89: 82 | BF89: 男子5支部やり投 | BG89: 男子5支部やり投 | BL89: 男子6支部やり投 | BM89: 男子6支部やり投
E90: 86 | H90: =IF(ISERROR(VLOOKUP($F90,氏名データ!$2:$2800,4,0)),"",VLOOKUP($F90,氏名データ!$2:$2800,4,0)) -> 0 | I90: =IF(ISERROR(VLOOKUP($F90,氏名データ!$2:$2800,5,0)),"",VLOOKUP($F90,氏名データ!$2:$2800,5,0)) -> 0 | J90: =IF(ISERROR(VLOOKUP($F90,氏名データ!$2:$2800,6,0)),"",VLOOKUP($F90,氏名データ!$2:$2800,6,0)) -> 0 | K90: =IF(ISERROR(VLOOKUP($F90,氏名データ!$2:$2800,7,0)),"",VLOOKUP($F90,氏名データ!$2:$2800,7,0)) -> 0 | O90: =IF(ISERROR(VLOOKUP($F90,氏名データ!$2:$2800,8,0)),"",VLOOKUP($F90,氏名データ!$2:$2800,8,0)) -> 0 | P90: =IF(ISERROR(VLOOKUP($F90,氏名データ!$2:$2800,11,0)),"",VLOOKUP($F90,氏名データ!$2:$2800,11,0)) -> 0 | Q90: =IF(ISERROR(VLOOKUP($F90,氏名データ!$2:$2800,9,0)),"",VLOOKUP($F90,氏名データ!$2:$2800,9,0)) ->  | AE90: 0 | AI90: 0 | AL90: =IF(F90="","",学校情報!$D$2) ->  | AV90: 83 | BF90: 秋季
E91: 87 | H91: =IF(ISERROR(VLOOKUP($F91,氏名データ!$2:$2800,4,0)),"",VLOOKUP($F91,氏名データ!$2:$2800,4,0)) -> 0 | I91: =IF(ISERROR(VLOOKUP($F91,氏名データ!$2:$2800,5,0)),"",VLOOKUP($F91,氏名データ!$2:$2800,5,0)) -> 0 | J91: =IF(ISERROR(VLOOKUP($F91,氏名データ!$2:$2800,6,0)),"",VLOOKUP($F91,氏名データ!$2:$2800,6,0)) -> 0 | K91: =IF(ISERROR(VLOOKUP($F91,氏名データ!$2:$2800,7,0)),"",VLOOKUP($F91,氏名データ!$2:$2800,7,0)) -> 0 | O91: =IF(ISERROR(VLOOKUP($F91,氏名データ!$2:$2800,8,0)),"",VLOOKUP($F91,氏名データ!$2:$2800,8,0)) -> 0 | P91: =IF(ISERROR(VLOOKUP($F91,氏名データ!$2:$2800,11,0)),"",VLOOKUP($F91,氏名データ!$2:$2800,11,0)) -> 0 | Q91: =IF(ISERROR(VLOOKUP($F91,氏名データ!$2:$2800,9,0)),"",VLOOKUP($F91,氏名データ!$2:$2800,9,0)) ->  | AE91: 0 | AI91: 0 | AL91: =IF(F91="","",学校情報!$D$2) ->  | AV91: 84 | BF91: 男子100m | BG91: 男子100m | BH91: 男子100m | BI91: 女子100m | BJ91: 女子100m | BK91: 女子100m
E92: 88 | H92: =IF(ISERROR(VLOOKUP($F92,氏名データ!$2:$2800,4,0)),"",VLOOKUP($F92,氏名データ!$2:$2800,4,0)) -> 0 | I92: =IF(ISERROR(VLOOKUP($F92,氏名データ!$2:$2800,5,0)),"",VLOOKUP($F92,氏名データ!$2:$2800,5,0)) -> 0 | J92: =IF(ISERROR(VLOOKUP($F92,氏名データ!$2:$2800,6,0)),"",VLOOKUP($F92,氏名データ!$2:$2800,6,0)) -> 0 | K92: =IF(ISERROR(VLOOKUP($F92,氏名データ!$2:$2800,7,0)),"",VLOOKUP($F92,氏名データ!$2:$2800,7,0)) -> 0 | O92: =IF(ISERROR(VLOOKUP($F92,氏名データ!$2:$2800,8,0)),"",VLOOKUP($F92,氏名データ!$2:$2800,8,0)) -> 0 | P92: =IF(ISERROR(VLOOKUP($F92,氏名データ!$2:$2800,11,0)),"",VLOOKUP($F92,氏名データ!$2:$2800,11,0)) -> 0 | Q92: =IF(ISERROR(VLOOKUP($F92,氏名データ!$2:$2800,9,0)),"",VLOOKUP($F92,氏名データ!$2:$2800,9,0)) ->  | AE92: 0 | AI92: 0 | AL92: =IF(F92="","",学校情報!$D$2) ->  | AV92: 85 | BF92: 男子200m | BG92: 男子200m | BH92: 男子200m | BI92: 女子200m | BJ92: 女子200m | BK92: 女子200m
E93: 89 | H93: =IF(ISERROR(VLOOKUP($F93,氏名データ!$2:$2800,4,0)),"",VLOOKUP($F93,氏名データ!$2:$2800,4,0)) -> 0 | I93: =IF(ISERROR(VLOOKUP($F93,氏名データ!$2:$2800,5,0)),"",VLOOKUP($F93,氏名データ!$2:$2800,5,0)) -> 0 | J93: =IF(ISERROR(VLOOKUP($F93,氏名データ!$2:$2800,6,0)),"",VLOOKUP($F93,氏名データ!$2:$2800,6,0)) -> 0 | K93: =IF(ISERROR(VLOOKUP($F93,氏名データ!$2:$2800,7,0)),"",VLOOKUP($F93,氏名データ!$2:$2800,7,0)) -> 0 | O93: =IF(ISERROR(VLOOKUP($F93,氏名データ!$2:$2800,8,0)),"",VLOOKUP($F93,氏名データ!$2:$2800,8,0)) -> 0 | P93: =IF(ISERROR(VLOOKUP($F93,氏名データ!$2:$2800,11,0)),"",VLOOKUP($F93,氏名データ!$2:$2800,11,0)) -> 0 | Q93: =IF(ISERROR(VLOOKUP($F93,氏名データ!$2:$2800,9,0)),"",VLOOKUP($F93,氏名データ!$2:$2800,9,0)) ->  | AE93: 0 | AI93: 0 | AL93: =IF(F93="","",学校情報!$D$2) ->  | AV93: 86 | BF93: 男子400m | BG93: 男子400m | BH93: 男子400m | BI93: 女子400m | BJ93: 女子400m | BK93: 女子400m
E94: 90 | H94: =IF(ISERROR(VLOOKUP($F94,氏名データ!$2:$2800,4,0)),"",VLOOKUP($F94,氏名データ!$2:$2800,4,0)) -> 0 | I94: =IF(ISERROR(VLOOKUP($F94,氏名データ!$2:$2800,5,0)),"",VLOOKUP($F94,氏名データ!$2:$2800,5,0)) -> 0 | J94: =IF(ISERROR(VLOOKUP($F94,氏名データ!$2:$2800,6,0)),"",VLOOKUP($F94,氏名データ!$2:$2800,6,0)) -> 0 | K94: =IF(ISERROR(VLOOKUP($F94,氏名データ!$2:$2800,7,0)),"",VLOOKUP($F94,氏名データ!$2:$2800,7,0)) -> 0 | O94: =IF(ISERROR(VLOOKUP($F94,氏名データ!$2:$2800,8,0)),"",VLOOKUP($F94,氏名データ!$2:$2800,8,0)) -> 0 | P94: =IF(ISERROR(VLOOKUP($F94,氏名データ!$2:$2800,11,0)),"",VLOOKUP($F94,氏名データ!$2:$2800,11,0)) -> 0 | Q94: =IF(ISERROR(VLOOKUP($F94,氏名データ!$2:$2800,9,0)),"",VLOOKUP($F94,氏名データ!$2:$2800,9,0)) ->  | AE94: 0 | AI94: 0 | AL94: =IF(F94="","",学校情報!$D$2) ->  | AV94: 87 | BF94: 男子800m | BG94: 男子800m | BH94: 男子800m | BI94: 女子800m | BJ94: 女子800m | BK94: 女子800m
E95: 91 | H95: =IF(ISERROR(VLOOKUP($F95,氏名データ!$2:$2800,4,0)),"",VLOOKUP($F95,氏名データ!$2:$2800,4,0)) -> 0 | I95: =IF(ISERROR(VLOOKUP($F95,氏名データ!$2:$2800,5,0)),"",VLOOKUP($F95,氏名データ!$2:$2800,5,0)) -> 0 | J95: =IF(ISERROR(VLOOKUP($F95,氏名データ!$2:$2800,6,0)),"",VLOOKUP($F95,氏名データ!$2:$2800,6,0)) -> 0 | K95: =IF(ISERROR(VLOOKUP($F95,氏名データ!$2:$2800,7,0)),"",VLOOKUP($F95,氏名データ!$2:$2800,7,0)) -> 0 | O95: =IF(ISERROR(VLOOKUP($F95,氏名データ!$2:$2800,8,0)),"",VLOOKUP($F95,氏名データ!$2:$2800,8,0)) -> 0 | P95: =IF(ISERROR(VLOOKUP($F95,氏名データ!$2:$2800,11,0)),"",VLOOKUP($F95,氏名データ!$2:$2800,11,0)) -> 0 | Q95: =IF(ISERROR(VLOOKUP($F95,氏名データ!$2:$2800,9,0)),"",VLOOKUP($F95,氏名データ!$2:$2800,9,0)) ->  | AE95: 0 | AI95: 0 | AL95: =IF(F95="","",学校情報!$D$2) ->  | AV95: 88 | BF95: 男子1500m | BG95: 男子1500m | BH95: 男子1500m | BI95: 女子1500m | BJ95: 女子1500m | BK95: 女子1500m
E96: 92 | H96: =IF(ISERROR(VLOOKUP($F96,氏名データ!$2:$2800,4,0)),"",VLOOKUP($F96,氏名データ!$2:$2800,4,0)) -> 0 | I96: =IF(ISERROR(VLOOKUP($F96,氏名データ!$2:$2800,5,0)),"",VLOOKUP($F96,氏名データ!$2:$2800,5,0)) -> 0 | J96: =IF(ISERROR(VLOOKUP($F96,氏名データ!$2:$2800,6,0)),"",VLOOKUP($F96,氏名データ!$2:$2800,6,0)) -> 0 | K96: =IF(ISERROR(VLOOKUP($F96,氏名データ!$2:$2800,7,0)),"",VLOOKUP($F96,氏名データ!$2:$2800,7,0)) -> 0 | O96: =IF(ISERROR(VLOOKUP($F96,氏名データ!$2:$2800,8,0)),"",VLOOKUP($F96,氏名データ!$2:$2800,8,0)) -> 0 | P96: =IF(ISERROR(VLOOKUP($F96,氏名データ!$2:$2800,11,0)),"",VLOOKUP($F96,氏名データ!$2:$2800,11,0)) -> 0 | Q96: =IF(ISERROR(VLOOKUP($F96,氏名データ!$2:$2800,9,0)),"",VLOOKUP($F96,氏名データ!$2:$2800,9,0)) ->  | AE96: 0 | AI96: 0 | AL96: =IF(F96="","",学校情報!$D$2) ->  | AV96: 89 | BF96: 男子5000m | BG96: 男子5000m | BH96: 男子5000m | BI96: 女子3000m | BJ96: 女子3000m | BK96: 女子3000m
E97: 93 | H97: =IF(ISERROR(VLOOKUP($F97,氏名データ!$2:$2800,4,0)),"",VLOOKUP($F97,氏名データ!$2:$2800,4,0)) -> 0 | I97: =IF(ISERROR(VLOOKUP($F97,氏名データ!$2:$2800,5,0)),"",VLOOKUP($F97,氏名データ!$2:$2800,5,0)) -> 0 | J97: =IF(ISERROR(VLOOKUP($F97,氏名データ!$2:$2800,6,0)),"",VLOOKUP($F97,氏名データ!$2:$2800,6,0)) -> 0 | K97: =IF(ISERROR(VLOOKUP($F97,氏名データ!$2:$2800,7,0)),"",VLOOKUP($F97,氏名データ!$2:$2800,7,0)) -> 0 | O97: =IF(ISERROR(VLOOKUP($F97,氏名データ!$2:$2800,8,0)),"",VLOOKUP($F97,氏名データ!$2:$2800,8,0)) -> 0 | P97: =IF(ISERROR(VLOOKUP($F97,氏名データ!$2:$2800,11,0)),"",VLOOKUP($F97,氏名データ!$2:$2800,11,0)) -> 0 | Q97: =IF(ISERROR(VLOOKUP($F97,氏名データ!$2:$2800,9,0)),"",VLOOKUP($F97,氏名データ!$2:$2800,9,0)) ->  | AE97: 0 | AI97: 0 | AL97: =IF(F97="","",学校情報!$D$2) ->  | AV97: 90 | BF97: 男子110mH | BG97: 男子110mH | BH97: 男子110mH | BI97: 女子100mH | BJ97: 女子100mH | BK97: 女子100mH
E98: 94 | H98: =IF(ISERROR(VLOOKUP($F98,氏名データ!$2:$2800,4,0)),"",VLOOKUP($F98,氏名データ!$2:$2800,4,0)) -> 0 | I98: =IF(ISERROR(VLOOKUP($F98,氏名データ!$2:$2800,5,0)),"",VLOOKUP($F98,氏名データ!$2:$2800,5,0)) -> 0 | J98: =IF(ISERROR(VLOOKUP($F98,氏名データ!$2:$2800,6,0)),"",VLOOKUP($F98,氏名データ!$2:$2800,6,0)) -> 0 | K98: =IF(ISERROR(VLOOKUP($F98,氏名データ!$2:$2800,7,0)),"",VLOOKUP($F98,氏名データ!$2:$2800,7,0)) -> 0 | O98: =IF(ISERROR(VLOOKUP($F98,氏名データ!$2:$2800,8,0)),"",VLOOKUP($F98,氏名データ!$2:$2800,8,0)) -> 0 | P98: =IF(ISERROR(VLOOKUP($F98,氏名データ!$2:$2800,11,0)),"",VLOOKUP($F98,氏名データ!$2:$2800,11,0)) -> 0 | Q98: =IF(ISERROR(VLOOKUP($F98,氏名データ!$2:$2800,9,0)),"",VLOOKUP($F98,氏名データ!$2:$2800,9,0)) ->  | AE98: 0 | AI98: 0 | AL98: =IF(F98="","",学校情報!$D$2) ->  | AV98: 91 | BF98: 男子400mH | BG98: 男子400mH | BH98: 男子400mH | BI98: 女子400mH | BJ98: 女子400mH | BK98: 女子400mH
E99: 95 | H99: =IF(ISERROR(VLOOKUP($F99,氏名データ!$2:$2800,4,0)),"",VLOOKUP($F99,氏名データ!$2:$2800,4,0)) -> 0 | I99: =IF(ISERROR(VLOOKUP($F99,氏名データ!$2:$2800,5,0)),"",VLOOKUP($F99,氏名データ!$2:$2800,5,0)) -> 0 | J99: =IF(ISERROR(VLOOKUP($F99,氏名データ!$2:$2800,6,0)),"",VLOOKUP($F99,氏名データ!$2:$2800,6,0)) -> 0 | K99: =IF(ISERROR(VLOOKUP($F99,氏名データ!$2:$2800,7,0)),"",VLOOKUP($F99,氏名データ!$2:$2800,7,0)) -> 0 | O99: =IF(ISERROR(VLOOKUP($F99,氏名データ!$2:$2800,8,0)),"",VLOOKUP($F99,氏名データ!$2:$2800,8,0)) -> 0 | P99: =IF(ISERROR(VLOOKUP($F99,氏名データ!$2:$2800,11,0)),"",VLOOKUP($F99,氏名データ!$2:$2800,11,0)) -> 0 | Q99: =IF(ISERROR(VLOOKUP($F99,氏名データ!$2:$2800,9,0)),"",VLOOKUP($F99,氏名データ!$2:$2800,9,0)) ->  | AE99: 0 | AI99: 0 | AL99: =IF(F99="","",学校情報!$D$2) ->  | AV99: 92 | BF99: 男子3000mSC | BG99: 男子3000mSC | BH99: 男子3000mSC | BI99: 女子走高跳 | BJ99: 女子走高跳 | BK99: 女子走高跳
E100: 96 | H100: =IF(ISERROR(VLOOKUP($F100,氏名データ!$2:$2800,4,0)),"",VLOOKUP($F100,氏名データ!$2:$2800,4,0)) -> 0 | I100: =IF(ISERROR(VLOOKUP($F100,氏名データ!$2:$2800,5,0)),"",VLOOKUP($F100,氏名データ!$2:$2800,5,0)) -> 0 | J100: =IF(ISERROR(VLOOKUP($F100,氏名データ!$2:$2800,6,0)),"",VLOOKUP($F100,氏名データ!$2:$2800,6,0)) -> 0 | K100: =IF(ISERROR(VLOOKUP($F100,氏名データ!$2:$2800,7,0)),"",VLOOKUP($F100,氏名データ!$2:$2800,7,0)) -> 0 | O100: =IF(ISERROR(VLOOKUP($F100,氏名データ!$2:$2800,8,0)),"",VLOOKUP($F100,氏名データ!$2:$2800,8,0)) -> 0 | P100: =IF(ISERROR(VLOOKUP($F100,氏名データ!$2:$2800,11,0)),"",VLOOKUP($F100,氏名データ!$2:$2800,11,0)) -> 0 | Q100: =IF(ISERROR(VLOOKUP($F100,氏名データ!$2:$2800,9,0)),"",VLOOKUP($F100,氏名データ!$2:$2800,9,0)) ->  | AE100: 0 | AI100: 0 | AL100: =IF(F100="","",学校情報!$D$2) ->  | AV100: 93 | BF100: 男子走高跳 | BG100: 男子走高跳 | BH100: 男子走高跳 | BI100: 女子棒高跳 | BJ100: 女子棒高跳 | BK100: 女子棒高跳
D101: =IF(P101="女",ROW(R101),"") ->  | E101: 97 | H101: =IF(ISERROR(VLOOKUP($F101,氏名データ!$2:$2800,4,0)),"",VLOOKUP($F101,氏名データ!$2:$2800,4,0)) -> 0 | I101: =IF(ISERROR(VLOOKUP($F101,氏名データ!$2:$2800,5,0)),"",VLOOKUP($F101,氏名データ!$2:$2800,5,0)) -> 0 | J101: =IF(ISERROR(VLOOKUP($F101,氏名データ!$2:$2800,6,0)),"",VLOOKUP($F101,氏名データ!$2:$2800,6,0)) -> 0 | K101: =IF(ISERROR(VLOOKUP($F101,氏名データ!$2:$2800,7,0)),"",VLOOKUP($F101,氏名データ!$2:$2800,7,0)) -> 0 | O101: =IF(ISERROR(VLOOKUP($F101,氏名データ!$2:$2800,8,0)),"",VLOOKUP($F101,氏名データ!$2:$2800,8,0)) -> 0 | P101: =IF(ISERROR(VLOOKUP($F101,氏名データ!$2:$2800,11,0)),"",VLOOKUP($F101,氏名データ!$2:$2800,11,0)) -> 0 | Q101: =IF(ISERROR(VLOOKUP($F101,氏名データ!$2:$2800,9,0)),"",VLOOKUP($F101,氏名データ!$2:$2800,9,0)) ->  | AE101: 0 | AI101: 0 | AL101: =IF(F101="","",学校情報!$D$2) ->  | AV101: 94 | BF101: 男子棒高跳 | BG101: 男子棒高跳 | BH101: 男子棒高跳 | BI101: 女子走幅跳 | BJ101: 女子走幅跳 | BK101: 女子走幅跳
E102: 98 | H102: =IF(ISERROR(VLOOKUP($F102,氏名データ!$2:$2800,4,0)),"",VLOOKUP($F102,氏名データ!$2:$2800,4,0)) -> 0 | I102: =IF(ISERROR(VLOOKUP($F102,氏名データ!$2:$2800,5,0)),"",VLOOKUP($F102,氏名データ!$2:$2800,5,0)) -> 0 | J102: =IF(ISERROR(VLOOKUP($F102,氏名データ!$2:$2800,6,0)),"",VLOOKUP($F102,氏名データ!$2:$2800,6,0)) -> 0 | K102: =IF(ISERROR(VLOOKUP($F102,氏名データ!$2:$2800,7,0)),"",VLOOKUP($F102,氏名データ!$2:$2800,7,0)) -> 0 | O102: =IF(ISERROR(VLOOKUP($F102,氏名データ!$2:$2800,8,0)),"",VLOOKUP($F102,氏名データ!$2:$2800,8,0)) -> 0 | P102: =IF(ISERROR(VLOOKUP($F102,氏名データ!$2:$2800,11,0)),"",VLOOKUP($F102,氏名データ!$2:$2800,11,0)) -> 0 | Q102: =IF(ISERROR(VLOOKUP($F102,氏名データ!$2:$2800,9,0)),"",VLOOKUP($F102,氏名データ!$2:$2800,9,0)) ->  | AE102: 0 | AI102: 0 | AL102: =IF(F102="","",学校情報!$D$2) ->  | AV102: 95 | BF102: 男子走幅跳 | BG102: 男子走幅跳 | BH102: 男子走幅跳 | BI102: 女子三段跳 | BJ102: 女子三段跳 | BK102: 女子三段跳
E103: 99 | H103: =IF(ISERROR(VLOOKUP($F103,氏名データ!$2:$2800,4,0)),"",VLOOKUP($F103,氏名データ!$2:$2800,4,0)) -> 0 | I103: =IF(ISERROR(VLOOKUP($F103,氏名データ!$2:$2800,5,0)),"",VLOOKUP($F103,氏名データ!$2:$2800,5,0)) -> 0 | J103: =IF(ISERROR(VLOOKUP($F103,氏名データ!$2:$2800,6,0)),"",VLOOKUP($F103,氏名データ!$2:$2800,6,0)) -> 0 | K103: =IF(ISERROR(VLOOKUP($F103,氏名データ!$2:$2800,7,0)),"",VLOOKUP($F103,氏名データ!$2:$2800,7,0)) -> 0 | O103: =IF(ISERROR(VLOOKUP($F103,氏名データ!$2:$2800,8,0)),"",VLOOKUP($F103,氏名データ!$2:$2800,8,0)) -> 0 | P103: =IF(ISERROR(VLOOKUP($F103,氏名データ!$2:$2800,11,0)),"",VLOOKUP($F103,氏名データ!$2:$2800,11,0)) -> 0 | Q103: =IF(ISERROR(VLOOKUP($F103,氏名データ!$2:$2800,9,0)),"",VLOOKUP($F103,氏名データ!$2:$2800,9,0)) ->  | AE103: 0 | AI103: 0 | AL103: =IF(F103="","",学校情報!$D$2) ->  | AV103: 96 | BF103: 男子三段跳 | BG103: 男子三段跳 | BH103: 男子三段跳 | BI103: 女子砲丸投 | BJ103: 女子砲丸投 | BK103: 女子砲丸投
E104: 100 | H104: =IF(ISERROR(VLOOKUP($F104,氏名データ!$2:$2800,4,0)),"",VLOOKUP($F104,氏名データ!$2:$2800,4,0)) -> 0 | I104: =IF(ISERROR(VLOOKUP($F104,氏名データ!$2:$2800,5,0)),"",VLOOKUP($F104,氏名データ!$2:$2800,5,0)) -> 0 | J104: =IF(ISERROR(VLOOKUP($F104,氏名データ!$2:$2800,6,0)),"",VLOOKUP($F104,氏名データ!$2:$2800,6,0)) -> 0 | K104: =IF(ISERROR(VLOOKUP($F104,氏名データ!$2:$2800,7,0)),"",VLOOKUP($F104,氏名データ!$2:$2800,7,0)) -> 0 | O104: =IF(ISERROR(VLOOKUP($F104,氏名データ!$2:$2800,8,0)),"",VLOOKUP($F104,氏名データ!$2:$2800,8,0)) -> 0 | P104: =IF(ISERROR(VLOOKUP($F104,氏名データ!$2:$2800,11,0)),"",VLOOKUP($F104,氏名データ!$2:$2800,11,0)) -> 0 | Q104: =IF(ISERROR(VLOOKUP($F104,氏名データ!$2:$2800,9,0)),"",VLOOKUP($F104,氏名データ!$2:$2800,9,0)) ->  | AE104: 0 | AI104: 0 | AL104: =IF(F104="","",学校情報!$D$2) ->  | AV104: 97 | BF104: 男子砲丸投 | BG104: 男子砲丸投 | BH104: 男子砲丸投 | BI104: 女子円盤投 | BJ104: 女子円盤投 | BK104: 女子円盤投
E105: 101 | H105: =IF(ISERROR(VLOOKUP($F105,氏名データ!$2:$2800,4,0)),"",VLOOKUP($F105,氏名データ!$2:$2800,4,0)) -> 0 | I105: =IF(ISERROR(VLOOKUP($F105,氏名データ!$2:$2800,5,0)),"",VLOOKUP($F105,氏名データ!$2:$2800,5,0)) -> 0 | J105: =IF(ISERROR(VLOOKUP($F105,氏名データ!$2:$2800,6,0)),"",VLOOKUP($F105,氏名データ!$2:$2800,6,0)) -> 0 | K105: =IF(ISERROR(VLOOKUP($F105,氏名データ!$2:$2800,7,0)),"",VLOOKUP($F105,氏名データ!$2:$2800,7,0)) -> 0 | O105: =IF(ISERROR(VLOOKUP($F105,氏名データ!$2:$2800,8,0)),"",VLOOKUP($F105,氏名データ!$2:$2800,8,0)) -> 0 | P105: =IF(ISERROR(VLOOKUP($F105,氏名データ!$2:$2800,11,0)),"",VLOOKUP($F105,氏名データ!$2:$2800,11,0)) -> 0 | Q105: =IF(ISERROR(VLOOKUP($F105,氏名データ!$2:$2800,9,0)),"",VLOOKUP($F105,氏名データ!$2:$2800,9,0)) ->  | AE105: 0 | AI105: 0 | AL105: =IF(F105="","",学校情報!$D$2) ->  | AV105: 98 | BF105: 男子円盤投 | BG105: 男子円盤投 | BH105: 男子円盤投 | BI105: 女子やり投 | BJ105: 女子やり投 | BK105: 女子やり投
E106: 102 | H106: =IF(ISERROR(VLOOKUP($F106,氏名データ!$2:$2800,4,0)),"",VLOOKUP($F106,氏名データ!$2:$2800,4,0)) -> 0 | I106: =IF(ISERROR(VLOOKUP($F106,氏名データ!$2:$2800,5,0)),"",VLOOKUP($F106,氏名データ!$2:$2800,5,0)) -> 0 | J106: =IF(ISERROR(VLOOKUP($F106,氏名データ!$2:$2800,6,0)),"",VLOOKUP($F106,氏名データ!$2:$2800,6,0)) -> 0 | K106: =IF(ISERROR(VLOOKUP($F106,氏名データ!$2:$2800,7,0)),"",VLOOKUP($F106,氏名データ!$2:$2800,7,0)) -> 0 | O106: =IF(ISERROR(VLOOKUP($F106,氏名データ!$2:$2800,8,0)),"",VLOOKUP($F106,氏名データ!$2:$2800,8,0)) -> 0 | P106: =IF(ISERROR(VLOOKUP($F106,氏名データ!$2:$2800,11,0)),"",VLOOKUP($F106,氏名データ!$2:$2800,11,0)) -> 0 | Q106: =IF(ISERROR(VLOOKUP($F106,氏名データ!$2:$2800,9,0)),"",VLOOKUP($F106,氏名データ!$2:$2800,9,0)) ->  | AE106: 0 | AI106: 0 | AL106: =IF(F106="","",学校情報!$D$2) ->  | AV106: 99 | BF106: 男子やり投 | BG106: 男子やり投 | BH106: 男子やり投
E107: 103 | H107: =IF(ISERROR(VLOOKUP($F107,氏名データ!$2:$2800,4,0)),"",VLOOKUP($F107,氏名データ!$2:$2800,4,0)) -> 0 | I107: =IF(ISERROR(VLOOKUP($F107,氏名データ!$2:$2800,5,0)),"",VLOOKUP($F107,氏名データ!$2:$2800,5,0)) -> 0 | J107: =IF(ISERROR(VLOOKUP($F107,氏名データ!$2:$2800,6,0)),"",VLOOKUP($F107,氏名データ!$2:$2800,6,0)) -> 0 | K107: =IF(ISERROR(VLOOKUP($F107,氏名データ!$2:$2800,7,0)),"",VLOOKUP($F107,氏名データ!$2:$2800,7,0)) -> 0 | O107: =IF(ISERROR(VLOOKUP($F107,氏名データ!$2:$2800,8,0)),"",VLOOKUP($F107,氏名データ!$2:$2800,8,0)) -> 0 | P107: =IF(ISERROR(VLOOKUP($F107,氏名データ!$2:$2800,11,0)),"",VLOOKUP($F107,氏名データ!$2:$2800,11,0)) -> 0 | Q107: =IF(ISERROR(VLOOKUP($F107,氏名データ!$2:$2800,9,0)),"",VLOOKUP($F107,氏名データ!$2:$2800,9,0)) ->  | AE107: 0 | AI107: 0 | AL107: =IF(F107="","",学校情報!$D$2) -> 
E108: 104 | H108: =IF(ISERROR(VLOOKUP($F108,氏名データ!$2:$2800,4,0)),"",VLOOKUP($F108,氏名データ!$2:$2800,4,0)) -> 0 | I108: =IF(ISERROR(VLOOKUP($F108,氏名データ!$2:$2800,5,0)),"",VLOOKUP($F108,氏名データ!$2:$2800,5,0)) -> 0 | J108: =IF(ISERROR(VLOOKUP($F108,氏名データ!$2:$2800,6,0)),"",VLOOKUP($F108,氏名データ!$2:$2800,6,0)) -> 0 | K108: =IF(ISERROR(VLOOKUP($F108,氏名データ!$2:$2800,7,0)),"",VLOOKUP($F108,氏名データ!$2:$2800,7,0)) -> 0 | O108: =IF(ISERROR(VLOOKUP($F108,氏名データ!$2:$2800,8,0)),"",VLOOKUP($F108,氏名データ!$2:$2800,8,0)) -> 0 | P108: =IF(ISERROR(VLOOKUP($F108,氏名データ!$2:$2800,11,0)),"",VLOOKUP($F108,氏名データ!$2:$2800,11,0)) -> 0 | Q108: =IF(ISERROR(VLOOKUP($F108,氏名データ!$2:$2800,9,0)),"",VLOOKUP($F108,氏名データ!$2:$2800,9,0)) ->  | AE108: 0 | AI108: 0 | AL108: =IF(F108="","",学校情報!$D$2) -> 
E109: 105 | H109: =IF(ISERROR(VLOOKUP($F109,氏名データ!$2:$2800,4,0)),"",VLOOKUP($F109,氏名データ!$2:$2800,4,0)) -> 0 | I109: =IF(ISERROR(VLOOKUP($F109,氏名データ!$2:$2800,5,0)),"",VLOOKUP($F109,氏名データ!$2:$2800,5,0)) -> 0 | J109: =IF(ISERROR(VLOOKUP($F109,氏名データ!$2:$2800,6,0)),"",VLOOKUP($F109,氏名データ!$2:$2800,6,0)) -> 0 | K109: =IF(ISERROR(VLOOKUP($F109,氏名データ!$2:$2800,7,0)),"",VLOOKUP($F109,氏名データ!$2:$2800,7,0)) -> 0 | O109: =IF(ISERROR(VLOOKUP($F109,氏名データ!$2:$2800,8,0)),"",VLOOKUP($F109,氏名データ!$2:$2800,8,0)) -> 0 | P109: =IF(ISERROR(VLOOKUP($F109,氏名データ!$2:$2800,11,0)),"",VLOOKUP($F109,氏名データ!$2:$2800,11,0)) -> 0 | Q109: =IF(ISERROR(VLOOKUP($F109,氏名データ!$2:$2800,9,0)),"",VLOOKUP($F109,氏名データ!$2:$2800,9,0)) ->  | AE109: 0 | AI109: 0 | AL109: =IF(F109="","",学校情報!$D$2) -> 
E110: 106 | H110: =IF(ISERROR(VLOOKUP($F110,氏名データ!$2:$2800,4,0)),"",VLOOKUP($F110,氏名データ!$2:$2800,4,0)) -> 0 | I110: =IF(ISERROR(VLOOKUP($F110,氏名データ!$2:$2800,5,0)),"",VLOOKUP($F110,氏名データ!$2:$2800,5,0)) -> 0 | J110: =IF(ISERROR(VLOOKUP($F110,氏名データ!$2:$2800,6,0)),"",VLOOKUP($F110,氏名データ!$2:$2800,6,0)) -> 0 | K110: =IF(ISERROR(VLOOKUP($F110,氏名データ!$2:$2800,7,0)),"",VLOOKUP($F110,氏名データ!$2:$2800,7,0)) -> 0 | O110: =IF(ISERROR(VLOOKUP($F110,氏名データ!$2:$2800,8,0)),"",VLOOKUP($F110,氏名データ!$2:$2800,8,0)) -> 0 | P110: =IF(ISERROR(VLOOKUP($F110,氏名データ!$2:$2800,11,0)),"",VLOOKUP($F110,氏名データ!$2:$2800,11,0)) -> 0 | Q110: =IF(ISERROR(VLOOKUP($F110,氏名データ!$2:$2800,9,0)),"",VLOOKUP($F110,氏名データ!$2:$2800,9,0)) ->  | AE110: 0 | AI110: 0 | AL110: =IF(F110="","",学校情報!$D$2) -> 
E111: 107 | H111: =IF(ISERROR(VLOOKUP($F111,氏名データ!$2:$2800,4,0)),"",VLOOKUP($F111,氏名データ!$2:$2800,4,0)) -> 0 | I111: =IF(ISERROR(VLOOKUP($F111,氏名データ!$2:$2800,5,0)),"",VLOOKUP($F111,氏名データ!$2:$2800,5,0)) -> 0 | J111: =IF(ISERROR(VLOOKUP($F111,氏名データ!$2:$2800,6,0)),"",VLOOKUP($F111,氏名データ!$2:$2800,6,0)) -> 0 | K111: =IF(ISERROR(VLOOKUP($F111,氏名データ!$2:$2800,7,0)),"",VLOOKUP($F111,氏名データ!$2:$2800,7,0)) -> 0 | O111: =IF(ISERROR(VLOOKUP($F111,氏名データ!$2:$2800,8,0)),"",VLOOKUP($F111,氏名データ!$2:$2800,8,0)) -> 0 | P111: =IF(ISERROR(VLOOKUP($F111,氏名データ!$2:$2800,11,0)),"",VLOOKUP($F111,氏名データ!$2:$2800,11,0)) -> 0 | Q111: =IF(ISERROR(VLOOKUP($F111,氏名データ!$2:$2800,9,0)),"",VLOOKUP($F111,氏名データ!$2:$2800,9,0)) ->  | AE111: 0 | AI111: 0 | AL111: =IF(F111="","",学校情報!$D$2) -> 
E112: 108 | H112: =IF(ISERROR(VLOOKUP($F112,氏名データ!$2:$2800,4,0)),"",VLOOKUP($F112,氏名データ!$2:$2800,4,0)) -> 0 | I112: =IF(ISERROR(VLOOKUP($F112,氏名データ!$2:$2800,5,0)),"",VLOOKUP($F112,氏名データ!$2:$2800,5,0)) -> 0 | J112: =IF(ISERROR(VLOOKUP($F112,氏名データ!$2:$2800,6,0)),"",VLOOKUP($F112,氏名データ!$2:$2800,6,0)) -> 0 | K112: =IF(ISERROR(VLOOKUP($F112,氏名データ!$2:$2800,7,0)),"",VLOOKUP($F112,氏名データ!$2:$2800,7,0)) -> 0 | O112: =IF(ISERROR(VLOOKUP($F112,氏名データ!$2:$2800,8,0)),"",VLOOKUP($F112,氏名データ!$2:$2800,8,0)) -> 0 | P112: =IF(ISERROR(VLOOKUP($F112,氏名データ!$2:$2800,11,0)),"",VLOOKUP($F112,氏名データ!$2:$2800,11,0)) -> 0 | Q112: =IF(ISERROR(VLOOKUP($F112,氏名データ!$2:$2800,9,0)),"",VLOOKUP($F112,氏名データ!$2:$2800,9,0)) ->  | AE112: 0 | AI112: 0 | AL112: =IF(F112="","",学校情報!$D$2) -> 
E113: 109 | H113: =IF(ISERROR(VLOOKUP($F113,氏名データ!$2:$2800,4,0)),"",VLOOKUP($F113,氏名データ!$2:$2800,4,0)) -> 0 | I113: =IF(ISERROR(VLOOKUP($F113,氏名データ!$2:$2800,5,0)),"",VLOOKUP($F113,氏名データ!$2:$2800,5,0)) -> 0 | J113: =IF(ISERROR(VLOOKUP($F113,氏名データ!$2:$2800,6,0)),"",VLOOKUP($F113,氏名データ!$2:$2800,6,0)) -> 0 | K113: =IF(ISERROR(VLOOKUP($F113,氏名データ!$2:$2800,7,0)),"",VLOOKUP($F113,氏名データ!$2:$2800,7,0)) -> 0 | O113: =IF(ISERROR(VLOOKUP($F113,氏名データ!$2:$2800,8,0)),"",VLOOKUP($F113,氏名データ!$2:$2800,8,0)) -> 0 | P113: =IF(ISERROR(VLOOKUP($F113,氏名データ!$2:$2800,11,0)),"",VLOOKUP($F113,氏名データ!$2:$2800,11,0)) -> 0 | Q113: =IF(ISERROR(VLOOKUP($F113,氏名データ!$2:$2800,9,0)),"",VLOOKUP($F113,氏名データ!$2:$2800,9,0)) ->  | AE113: 0 | AI113: 0 | AL113: =IF(F113="","",学校情報!$D$2) -> 
E114: 110 | H114: =IF(ISERROR(VLOOKUP($F114,氏名データ!$2:$2800,4,0)),"",VLOOKUP($F114,氏名データ!$2:$2800,4,0)) -> 0 | I114: =IF(ISERROR(VLOOKUP($F114,氏名データ!$2:$2800,5,0)),"",VLOOKUP($F114,氏名データ!$2:$2800,5,0)) -> 0 | J114: =IF(ISERROR(VLOOKUP($F114,氏名データ!$2:$2800,6,0)),"",VLOOKUP($F114,氏名データ!$2:$2800,6,0)) -> 0 | K114: =IF(ISERROR(VLOOKUP($F114,氏名データ!$2:$2800,7,0)),"",VLOOKUP($F114,氏名データ!$2:$2800,7,0)) -> 0 | O114: =IF(ISERROR(VLOOKUP($F114,氏名データ!$2:$2800,8,0)),"",VLOOKUP($F114,氏名データ!$2:$2800,8,0)) -> 0 | P114: =IF(ISERROR(VLOOKUP($F114,氏名データ!$2:$2800,11,0)),"",VLOOKUP($F114,氏名データ!$2:$2800,11,0)) -> 0 | Q114: =IF(ISERROR(VLOOKUP($F114,氏名データ!$2:$2800,9,0)),"",VLOOKUP($F114,氏名データ!$2:$2800,9,0)) ->  | AE114: 0 | AI114: 0 | AL114: =IF(F114="","",学校情報!$D$2) -> 
E115: 111 | H115: =IF(ISERROR(VLOOKUP($F115,氏名データ!$2:$2800,4,0)),"",VLOOKUP($F115,氏名データ!$2:$2800,4,0)) -> 0 | I115: =IF(ISERROR(VLOOKUP($F115,氏名データ!$2:$2800,5,0)),"",VLOOKUP($F115,氏名データ!$2:$2800,5,0)) -> 0 | J115: =IF(ISERROR(VLOOKUP($F115,氏名データ!$2:$2800,6,0)),"",VLOOKUP($F115,氏名データ!$2:$2800,6,0)) -> 0 | K115: =IF(ISERROR(VLOOKUP($F115,氏名データ!$2:$2800,7,0)),"",VLOOKUP($F115,氏名データ!$2:$2800,7,0)) -> 0 | O115: =IF(ISERROR(VLOOKUP($F115,氏名データ!$2:$2800,8,0)),"",VLOOKUP($F115,氏名データ!$2:$2800,8,0)) -> 0 | P115: =IF(ISERROR(VLOOKUP($F115,氏名データ!$2:$2800,11,0)),"",VLOOKUP($F115,氏名データ!$2:$2800,11,0)) -> 0 | Q115: =IF(ISERROR(VLOOKUP($F115,氏名データ!$2:$2800,9,0)),"",VLOOKUP($F115,氏名データ!$2:$2800,9,0)) ->  | AE115: 0 | AI115: 0 | AL115: =IF(F115="","",学校情報!$D$2) -> 
E116: 112 | H116: =IF(ISERROR(VLOOKUP($F116,氏名データ!$2:$2800,4,0)),"",VLOOKUP($F116,氏名データ!$2:$2800,4,0)) -> 0 | I116: =IF(ISERROR(VLOOKUP($F116,氏名データ!$2:$2800,5,0)),"",VLOOKUP($F116,氏名データ!$2:$2800,5,0)) -> 0 | J116: =IF(ISERROR(VLOOKUP($F116,氏名データ!$2:$2800,6,0)),"",VLOOKUP($F116,氏名データ!$2:$2800,6,0)) -> 0 | K116: =IF(ISERROR(VLOOKUP($F116,氏名データ!$2:$2800,7,0)),"",VLOOKUP($F116,氏名データ!$2:$2800,7,0)) -> 0 | O116: =IF(ISERROR(VLOOKUP($F116,氏名データ!$2:$2800,8,0)),"",VLOOKUP($F116,氏名データ!$2:$2800,8,0)) -> 0 | P116: =IF(ISERROR(VLOOKUP($F116,氏名データ!$2:$2800,11,0)),"",VLOOKUP($F116,氏名データ!$2:$2800,11,0)) -> 0 | Q116: =IF(ISERROR(VLOOKUP($F116,氏名データ!$2:$2800,9,0)),"",VLOOKUP($F116,氏名データ!$2:$2800,9,0)) ->  | AE116: 0 | AI116: 0 | AL116: =IF(F116="","",学校情報!$D$2) -> 
E117: 113 | H117: =IF(ISERROR(VLOOKUP($F117,氏名データ!$2:$2800,4,0)),"",VLOOKUP($F117,氏名データ!$2:$2800,4,0)) -> 0 | I117: =IF(ISERROR(VLOOKUP($F117,氏名データ!$2:$2800,5,0)),"",VLOOKUP($F117,氏名データ!$2:$2800,5,0)) -> 0 | J117: =IF(ISERROR(VLOOKUP($F117,氏名データ!$2:$2800,6,0)),"",VLOOKUP($F117,氏名データ!$2:$2800,6,0)) -> 0 | K117: =IF(ISERROR(VLOOKUP($F117,氏名データ!$2:$2800,7,0)),"",VLOOKUP($F117,氏名データ!$2:$2800,7,0)) -> 0 | O117: =IF(ISERROR(VLOOKUP($F117,氏名データ!$2:$2800,8,0)),"",VLOOKUP($F117,氏名データ!$2:$2800,8,0)) -> 0 | P117: =IF(ISERROR(VLOOKUP($F117,氏名データ!$2:$2800,11,0)),"",VLOOKUP($F117,氏名データ!$2:$2800,11,0)) -> 0 | Q117: =IF(ISERROR(VLOOKUP($F117,氏名データ!$2:$2800,9,0)),"",VLOOKUP($F117,氏名データ!$2:$2800,9,0)) ->  | AE117: 0 | AI117: 0 | AL117: =IF(F117="","",学校情報!$D$2) -> 
E118: 114 | H118: =IF(ISERROR(VLOOKUP($F118,氏名データ!$2:$2800,4,0)),"",VLOOKUP($F118,氏名データ!$2:$2800,4,0)) -> 0 | I118: =IF(ISERROR(VLOOKUP($F118,氏名データ!$2:$2800,5,0)),"",VLOOKUP($F118,氏名データ!$2:$2800,5,0)) -> 0 | J118: =IF(ISERROR(VLOOKUP($F118,氏名データ!$2:$2800,6,0)),"",VLOOKUP($F118,氏名データ!$2:$2800,6,0)) -> 0 | K118: =IF(ISERROR(VLOOKUP($F118,氏名データ!$2:$2800,7,0)),"",VLOOKUP($F118,氏名データ!$2:$2800,7,0)) -> 0 | O118: =IF(ISERROR(VLOOKUP($F118,氏名データ!$2:$2800,8,0)),"",VLOOKUP($F118,氏名データ!$2:$2800,8,0)) -> 0 | P118: =IF(ISERROR(VLOOKUP($F118,氏名データ!$2:$2800,11,0)),"",VLOOKUP($F118,氏名データ!$2:$2800,11,0)) -> 0 | Q118: =IF(ISERROR(VLOOKUP($F118,氏名データ!$2:$2800,9,0)),"",VLOOKUP($F118,氏名データ!$2:$2800,9,0)) ->  | AE118: 0 | AI118: 0 | AL118: =IF(F118="","",学校情報!$D$2) -> 
E119: 115 | H119: =IF(ISERROR(VLOOKUP($F119,氏名データ!$2:$2800,4,0)),"",VLOOKUP($F119,氏名データ!$2:$2800,4,0)) -> 0 | I119: =IF(ISERROR(VLOOKUP($F119,氏名データ!$2:$2800,5,0)),"",VLOOKUP($F119,氏名データ!$2:$2800,5,0)) -> 0 | J119: =IF(ISERROR(VLOOKUP($F119,氏名データ!$2:$2800,6,0)),"",VLOOKUP($F119,氏名データ!$2:$2800,6,0)) -> 0 | K119: =IF(ISERROR(VLOOKUP($F119,氏名データ!$2:$2800,7,0)),"",VLOOKUP($F119,氏名データ!$2:$2800,7,0)) -> 0 | O119: =IF(ISERROR(VLOOKUP($F119,氏名データ!$2:$2800,8,0)),"",VLOOKUP($F119,氏名データ!$2:$2800,8,0)) -> 0 | P119: =IF(ISERROR(VLOOKUP($F119,氏名データ!$2:$2800,11,0)),"",VLOOKUP($F119,氏名データ!$2:$2800,11,0)) -> 0 | Q119: =IF(ISERROR(VLOOKUP($F119,氏名データ!$2:$2800,9,0)),"",VLOOKUP($F119,氏名データ!$2:$2800,9,0)) ->  | AE119: 0 | AI119: 0 | AL119: =IF(F119="","",学校情報!$D$2) -> 
E120: 116 | H120: =IF(ISERROR(VLOOKUP($F120,氏名データ!$2:$2800,4,0)),"",VLOOKUP($F120,氏名データ!$2:$2800,4,0)) -> 0 | I120: =IF(ISERROR(VLOOKUP($F120,氏名データ!$2:$2800,5,0)),"",VLOOKUP($F120,氏名データ!$2:$2800,5,0)) -> 0 | J120: =IF(ISERROR(VLOOKUP($F120,氏名データ!$2:$2800,6,0)),"",VLOOKUP($F120,氏名データ!$2:$2800,6,0)) -> 0 | K120: =IF(ISERROR(VLOOKUP($F120,氏名データ!$2:$2800,7,0)),"",VLOOKUP($F120,氏名データ!$2:$2800,7,0)) -> 0 | O120: =IF(ISERROR(VLOOKUP($F120,氏名データ!$2:$2800,8,0)),"",VLOOKUP($F120,氏名データ!$2:$2800,8,0)) -> 0 | P120: =IF(ISERROR(VLOOKUP($F120,氏名データ!$2:$2800,11,0)),"",VLOOKUP($F120,氏名データ!$2:$2800,11,0)) -> 0 | Q120: =IF(ISERROR(VLOOKUP($F120,氏名データ!$2:$2800,9,0)),"",VLOOKUP($F120,氏名データ!$2:$2800,9,0)) ->  | AE120: 0 | AI120: 0 | AL120: =IF(F120="","",学校情報!$D$2) -> 
E121: 117 | H121: =IF(ISERROR(VLOOKUP($F121,氏名データ!$2:$2800,4,0)),"",VLOOKUP($F121,氏名データ!$2:$2800,4,0)) -> 0 | I121: =IF(ISERROR(VLOOKUP($F121,氏名データ!$2:$2800,5,0)),"",VLOOKUP($F121,氏名データ!$2:$2800,5,0)) -> 0 | J121: =IF(ISERROR(VLOOKUP($F121,氏名データ!$2:$2800,6,0)),"",VLOOKUP($F121,氏名データ!$2:$2800,6,0)) -> 0 | K121: =IF(ISERROR(VLOOKUP($F121,氏名データ!$2:$2800,7,0)),"",VLOOKUP($F121,氏名データ!$2:$2800,7,0)) -> 0 | O121: =IF(ISERROR(VLOOKUP($F121,氏名データ!$2:$2800,8,0)),"",VLOOKUP($F121,氏名データ!$2:$2800,8,0)) -> 0 | P121: =IF(ISERROR(VLOOKUP($F121,氏名データ!$2:$2800,11,0)),"",VLOOKUP($F121,氏名データ!$2:$2800,11,0)) -> 0 | Q121: =IF(ISERROR(VLOOKUP($F121,氏名データ!$2:$2800,9,0)),"",VLOOKUP($F121,氏名データ!$2:$2800,9,0)) ->  | AE121: 0 | AI121: 0 | AL121: =IF(F121="","",学校情報!$D$2) -> 
E122: 118 | H122: =IF(ISERROR(VLOOKUP($F122,氏名データ!$2:$2800,4,0)),"",VLOOKUP($F122,氏名データ!$2:$2800,4,0)) -> 0 | I122: =IF(ISERROR(VLOOKUP($F122,氏名データ!$2:$2800,5,0)),"",VLOOKUP($F122,氏名データ!$2:$2800,5,0)) -> 0 | J122: =IF(ISERROR(VLOOKUP($F122,氏名データ!$2:$2800,6,0)),"",VLOOKUP($F122,氏名データ!$2:$2800,6,0)) -> 0 | K122: =IF(ISERROR(VLOOKUP($F122,氏名データ!$2:$2800,7,0)),"",VLOOKUP($F122,氏名データ!$2:$2800,7,0)) -> 0 | O122: =IF(ISERROR(VLOOKUP($F122,氏名データ!$2:$2800,8,0)),"",VLOOKUP($F122,氏名データ!$2:$2800,8,0)) -> 0 | P122: =IF(ISERROR(VLOOKUP($F122,氏名データ!$2:$2800,11,0)),"",VLOOKUP($F122,氏名データ!$2:$2800,11,0)) -> 0 | Q122: =IF(ISERROR(VLOOKUP($F122,氏名データ!$2:$2800,9,0)),"",VLOOKUP($F122,氏名データ!$2:$2800,9,0)) ->  | AE122: 0 | AI122: 0 | AL122: =IF(F122="","",学校情報!$D$2) -> 
E123: 119 | H123: =IF(ISERROR(VLOOKUP($F123,氏名データ!$2:$2800,4,0)),"",VLOOKUP($F123,氏名データ!$2:$2800,4,0)) -> 0 | I123: =IF(ISERROR(VLOOKUP($F123,氏名データ!$2:$2800,5,0)),"",VLOOKUP($F123,氏名データ!$2:$2800,5,0)) -> 0 | J123: =IF(ISERROR(VLOOKUP($F123,氏名データ!$2:$2800,6,0)),"",VLOOKUP($F123,氏名データ!$2:$2800,6,0)) -> 0 | K123: =IF(ISERROR(VLOOKUP($F123,氏名データ!$2:$2800,7,0)),"",VLOOKUP($F123,氏名データ!$2:$2800,7,0)) -> 0 | O123: =IF(ISERROR(VLOOKUP($F123,氏名データ!$2:$2800,8,0)),"",VLOOKUP($F123,氏名データ!$2:$2800,8,0)) -> 0 | P123: =IF(ISERROR(VLOOKUP($F123,氏名データ!$2:$2800,11,0)),"",VLOOKUP($F123,氏名データ!$2:$2800,11,0)) -> 0 | Q123: =IF(ISERROR(VLOOKUP($F123,氏名データ!$2:$2800,9,0)),"",VLOOKUP($F123,氏名データ!$2:$2800,9,0)) ->  | AE123: 0 | AI123: 0 | AL123: =IF(F123="","",学校情報!$D$2) -> 
C124: =IF(ISERROR(RANK(D124,$D$5:$D$124,1)),"",RANK(D124,$D$5:$D$124,1)) ->  | E124: 120 | H124: =IF(ISERROR(VLOOKUP($F124,氏名データ!$2:$2800,4,0)),"",VLOOKUP($F124,氏名データ!$2:$2800,4,0)) -> 0 | I124: =IF(ISERROR(VLOOKUP($F124,氏名データ!$2:$2800,5,0)),"",VLOOKUP($F124,氏名データ!$2:$2800,5,0)) -> 0 | J124: =IF(ISERROR(VLOOKUP($F124,氏名データ!$2:$2800,6,0)),"",VLOOKUP($F124,氏名データ!$2:$2800,6,0)) -> 0 | K124: =IF(ISERROR(VLOOKUP($F124,氏名データ!$2:$2800,7,0)),"",VLOOKUP($F124,氏名データ!$2:$2800,7,0)) -> 0 | O124: =IF(ISERROR(VLOOKUP($F124,氏名データ!$2:$2800,8,0)),"",VLOOKUP($F124,氏名データ!$2:$2800,8,0)) -> 0 | P124: =IF(ISERROR(VLOOKUP($F124,氏名データ!$2:$2800,11,0)),"",VLOOKUP($F124,氏名データ!$2:$2800,11,0)) -> 0 | Q124: =IF(ISERROR(VLOOKUP($F124,氏名データ!$2:$2800,9,0)),"",VLOOKUP($F124,氏名データ!$2:$2800,9,0)) ->  | AE124: 0 | AI124: 0 | AL124: =IF(F124="","",学校情報!$D$2) -> 
Q126: 出 場 人 数 確 認 表
E127: 男子４×１００ｍ | H127: =MAX('大会申込用紙 男'!$L$11:$L$30,'大会申込用紙 男'!$L$36:$L$75) -> 0 | I127: ﾁｰﾑ | Q127: 種目 | R127: 人数制限 | S127: 人数 | U127: コメント | Z127: 種目 | AA127: 人数制限 | AC127: 人数 | AE127: コメント
E128: 男子４×４００ｍ | H128: =MAX('大会申込用紙 男'!$M$36:$M$75,'大会申込用紙 男'!$M$11:$M$30) -> 0 | I128: ﾁｰﾑ | P128: =IF(R128="あり",IF(S128>3,1,""),"") ->  | Q128: =AY5 -> 0 | S128: =COUNTIF($V$5:$V$124,Q128)+COUNTIF($Z$5:$Z$124,Q128)+COUNTIF($R$5:$R$124,Q128) -> 0 | U128: =IF(R128="あり",IF(S128>3,"人数を３人以下にしてください",""),"") ->  | Z128: =BB5 -> 0 | AC128: =COUNTIF($V$5:$V$124,Z128)+COUNTIF($Z$5:$Z$124,Z128)+COUNTIF($R$5:$R$124,Z128) -> 0 | AE128: =IF(AA128="あり",IF(AC128>3,"人数を３人以下にしてください",""),"") ->  | AL128: =IF(AA128="あり",IF(AC128>3,1,"")) -> FALSE
E129: 女子４×１００ｍ | H129: =MAX('大会申込用紙 女'!$L$11:$L$30,'大会申込用紙 女'!$L$36:$L$75) -> 0 | I129: ﾁｰﾑ | P129: =IF(R129="あり",IF(S129>3,1,""),"") ->  | Q129: 男子6支部100m | R129: あり | S129: =COUNTIF($V$5:$V$124,Q129)+COUNTIF($Z$5:$Z$124,Q129)+COUNTIF($R$5:$R$124,Q129) -> 0 | Z129: =BB6 -> 女子6支部100m | AA129: あり | AC129: =COUNTIF($V$5:$V$124,Z129)+COUNTIF($Z$5:$Z$124,Z129)+COUNTIF($R$5:$R$124,Z129) -> 0 | AE129: =IF(AA129="あり",IF(AC129>3,"人数を３人以下にしてください",""),"") ->  | AL129: =IF(AA129="あり",IF(AC129>3,1,"")) -> 
E130: 女子４×４００ｍ | H130: =MAX('大会申込用紙 女'!$M$36:$M$75,'大会申込用紙 女'!$M$11:$M$30) -> 0 | I130: ﾁｰﾑ | Q130: 男子6支部200m | R130: あり | S130: 0 | Z130: 女子6支部200m | AA130: あり | AC130: 0
Q131: 男子6支部400m | R131: あり | S131: 0 | Z131: 女子6支部400m | AA131: あり | AC131: 0
Q132: 男子6支部800m | R132: あり | S132: 0 | Z132: 女子6支部800m | AA132: あり | AC132: 0
Q133: 男子6支部1500m | R133: あり | S133: 0 | Z133: 女子6支部1500m | AA133: あり | AC133: 0
Q134: 男子6支部5000m | R134: あり | S134: 0 | Z134: 女子6支部3000m | AA134: あり | AC134: 0
Q135: 男子OP110mH | S135: 0 | Z135: 女子OP100mH | AC135: 0 | AL135: FALSE
Q136: 男子OP400mH | S136: 0 | Z136: 女子OP400mH | AC136: 0 | AL136: FALSE
Q137: 男子OP3000mSC | S137: 0 | Z137: 女子6支部走高跳 | AA137: あり | AC137: 0
Q138: 男子6支部走高跳 | R138: あり | S138: 0 | Z138: 男子OP棒高跳 | AC138: 0 | AL138: FALSE
Q139: 男子OP棒高跳 | S139: 0 | Z139: 女子6支部走幅跳 | AA139: あり | AC139: 0
Q140: 男子6支部走幅跳 | R140: あり | S140: 0 | Z140: 女子OP三段跳 | AC140: 0 | AL140: FALSE
Q141: 男子6支部三段跳 | R141: あり | S141: 0 | Z141: 女子6支部砲丸投 | AA141: あり | AC141: 0
Q142: 男子6支部砲丸投 | R142: あり | S142: 0 | Z142: 女子6支部円盤投 | AA142: あり | AC142: 0 | AL142: =IF(AA142="あり",IF(AC142>3,Z142,"")) -> 
Q143: 男子6支部円盤投 | R143: あり | S143: 0 | U143: =IF(R143="あり",IF(S143>3,"人数を３人以下にしてください",""),"") ->  | Z143: 女子6支部やり投 | AA143: あり | AC143: 0
Q144: 男子6支部やり投 | R144: あり | S144: 0 | Z144: 0 | AC144: 0 | AL144: FALSE
Q145: 0 | S145: 0 | Z145: 0 | AC145: 0 | AL145: FALSE
Q146: 0 | S146: 0 | Z146: 0 | AC146: 0 | AL146: FALSE
Q147: 0 | S147: 0 | Z147: 0 | AC147: 0 | AL147: FALSE
Q148: 0 | S148: 0 | Z148: 0 | AL148: FALSE
Q149: 0 | S149: 0 | U149: =IF(R149="あり",IF(S149>3,"人数を３人以下にしてください",""),"") ->  | Z149: 0 | AE149: =IF(AA149="あり",IF(AC149>3,"人数を３人以下にしてください",""),"") ->  | AL149: FALSE
Q150: 0 | S150: 0 | U150: =IF(R150="あり",IF(S150>3,"人数を３人以下にしてください",""),"") ->  | Z150: 0 | AE150: =IF(AA150="あり",IF(AC150>3,"人数を３人以下にしてください",""),"") ->  | AL150: FALSE
P151: =COUNTIF(P128:P150,1) -> 0 | AL151: =COUNTIF(AL128:AL150,1) -> 0

Sheet 大会申込用紙 男
B1: =出場選手エントリー票!I1 -> 東京都高等学校新人陸上競技大会 第５・６支部予選会 | K1: 大会申込用紙 | O1: 男子・女子
A2: =IF(出場選手エントリー票!F2="","",出場選手エントリー票!E1&出場選手エントリー票!F1&出場選手エントリー票!H1) -> 平成30年度 | P2: №
A3: 学校名 | D3: =IF(出場選手エントリー票!P151=0,学校情報!D2,"人数制限を超える申し込みがあります") ->  | J3: 学校所在地 | L3: =学校情報!K2 -> 
J5: 電 話 | L5: =学校情報!K3 ->  | O5: FAX | P5: =学校情報!K4 -> 
A6: 学校長 氏名印 | D6: =IF(OR(L2>6,M2>6),"リレーは６人以内です ",学校情報!D5) -> 0 | J6: 顧 問 氏名印 | L6: =学校情報!K5&" ㊞" -> ㊞
J8: 連絡先 | L8: =学校情報!K6 -> 0
A9: 番号 | B9: ナンバー | F9: 出場者氏名 | H9: 学年 | I9: 予選種目 | N9: 都大会種目
I10: 個人 | J10: 個人 | K10: 個人 | L10: 4x100 | M10: 4x400 | N10: 個人 | O10: 個人 | P10: 個人 | Q10: 4x100 | R10: 4x400
A11: 1 | B11: =IF('出場選手エントリー票 男'!B2="","",IF(MID('出場選手エントリー票 男'!B2,2,1)="0",RIGHTB('出場選手エントリー票 男'!B2,3),RIGHTB('出場選手エントリー票 男'!B2,4))) ->  | F11: =IF(B11="","",('出場選手エントリー票 男'!C2&" "&'出場選手エントリー票 男'!D2)) ->  | H11: =IF(B11="","",'出場選手エントリー票 男'!H2) ->  | I11: =IF('出場選手エントリー票 男'!K2="","",'出場選手エントリー票 男'!K2) ->  | J11: =IF('出場選手エントリー票 男'!L2="","",'出場選手エントリー票 男'!L2) ->  | K11: =IF('出場選手エントリー票 男'!M2="","",'出場選手エントリー票 男'!M2) ->  | L11: =IF('出場選手エントリー票 男'!N2="","",VALUE('出場選手エントリー票 男'!N2)) ->  | M11: =IF('出場選手エントリー票 男'!O2="","",VALUE('出場選手エントリー票 男'!O2)) ->  | T11: =IF(I11="",0,1) -> 0 | U11: =IF(J11="",0,1) -> 0 | V11: =IF(K11="",0,1) -> 0 | W11: =IF(ISERROR(VALUE(L11)),0,VALUE(L11)) -> 0 | X11: =IF(ISERROR(VALUE(M11)),0,VALUE(M11)) -> 0
A12: 2 | B12: =IF('出場選手エントリー票 男'!B3="","",IF(MID('出場選手エントリー票 男'!B3,2,1)="0",RIGHTB('出場選手エントリー票 男'!B3,3),RIGHTB('出場選手エントリー票 男'!B3,4))) ->  | F12: =IF(B12="","",('出場選手エントリー票 男'!C3&" "&'出場選手エントリー票 男'!D3)) ->  | H12: =IF(B12="","",'出場選手エントリー票 男'!H3) ->  | I12: =IF('出場選手エントリー票 男'!K3="","",'出場選手エントリー票 男'!K3) ->  | J12: =IF('出場選手エントリー票 男'!L3="","",'出場選手エントリー票 男'!L3) ->  | K12: =IF('出場選手エントリー票 男'!M3="","",'出場選手エントリー票 男'!M3) ->  | L12: =IF('出場選手エントリー票 男'!N3="","",VALUE('出場選手エントリー票 男'!N3)) ->  | M12: =IF('出場選手エントリー票 男'!O3="","",VALUE('出場選手エントリー票 男'!O3)) ->  | T12: =IF(I12="",0,1) -> 0 | U12: 0 | V12: 0 | W12: =IF(ISERROR(VALUE(L12)),0,VALUE(L12)) -> 0 | X12: =IF(ISERROR(VALUE(M12)),0,VALUE(M12)) -> 0
A13: 3 | B13: =IF('出場選手エントリー票 男'!B4="","",IF(MID('出場選手エントリー票 男'!B4,2,1)="0",RIGHTB('出場選手エントリー票 男'!B4,3),RIGHTB('出場選手エントリー票 男'!B4,4))) ->  | F13: =IF(B13="","",('出場選手エントリー票 男'!C4&" "&'出場選手エントリー票 男'!D4)) ->  | H13: =IF(B13="","",'出場選手エントリー票 男'!H4) ->  | I13: =IF('出場選手エントリー票 男'!K4="","",'出場選手エントリー票 男'!K4) ->  | J13: =IF('出場選手エントリー票 男'!L4="","",'出場選手エントリー票 男'!L4) ->  | K13: =IF('出場選手エントリー票 男'!M4="","",'出場選手エントリー票 男'!M4) ->  | L13: =IF('出場選手エントリー票 男'!N4="","",VALUE('出場選手エントリー票 男'!N4)) ->  | M13: =IF('出場選手エントリー票 男'!O4="","",VALUE('出場選手エントリー票 男'!O4)) ->  | T13: 0 | U13: 0 | V13: 0 | W13: 0 | X13: 0
A14: 4 | B14: =IF('出場選手エントリー票 男'!B5="","",IF(MID('出場選手エントリー票 男'!B5,2,1)="0",RIGHTB('出場選手エントリー票 男'!B5,3),RIGHTB('出場選手エントリー票 男'!B5,4))) ->  | F14: =IF(B14="","",('出場選手エントリー票 男'!C5&" "&'出場選手エントリー票 男'!D5)) ->  | H14: =IF(B14="","",'出場選手エントリー票 男'!H5) ->  | I14: =IF('出場選手エントリー票 男'!K5="","",'出場選手エントリー票 男'!K5) ->  | J14: =IF('出場選手エントリー票 男'!L5="","",'出場選手エントリー票 男'!L5) ->  | K14: =IF('出場選手エントリー票 男'!M5="","",'出場選手エントリー票 男'!M5) ->  | L14: =IF('出場選手エントリー票 男'!N5="","",VALUE('出場選手エントリー票 男'!N5)) ->  | M14: =IF('出場選手エントリー票 男'!O5="","",VALUE('出場選手エントリー票 男'!O5)) ->  | T14: 0 | U14: 0 | V14: 0 | W14: 0 | X14: 0
A15: 5 | B15: =IF('出場選手エントリー票 男'!B6="","",IF(MID('出場選手エントリー票 男'!B6,2,1)="0",RIGHTB('出場選手エントリー票 男'!B6,3),RIGHTB('出場選手エントリー票 男'!B6,4))) ->  | F15: =IF(B15="","",('出場選手エントリー票 男'!C6&" "&'出場選手エントリー票 男'!D6)) ->  | H15: =IF(B15="","",'出場選手エントリー票 男'!H6) ->  | I15: =IF('出場選手エントリー票 男'!K6="","",'出場選手エントリー票 男'!K6) ->  | J15: =IF('出場選手エントリー票 男'!L6="","",'出場選手エントリー票 男'!L6) ->  | K15: =IF('出場選手エントリー票 男'!M6="","",'出場選手エントリー票 男'!M6) ->  | L15: =IF('出場選手エントリー票 男'!N6="","",VALUE('出場選手エントリー票 男'!N6)) ->  | M15: =IF('出場選手エントリー票 男'!O6="","",VALUE('出場選手エントリー票 男'!O6)) ->  | T15: 0 | U15: 0 | V15: 0 | W15: 0 | X15: 0
A16: 6 | B16: =IF('出場選手エントリー票 男'!B7="","",IF(MID('出場選手エントリー票 男'!B7,2,1)="0",RIGHTB('出場選手エントリー票 男'!B7,3),RIGHTB('出場選手エントリー票 男'!B7,4))) ->  | F16: =IF(B16="","",('出場選手エントリー票 男'!C7&" "&'出場選手エントリー票 男'!D7)) ->  | H16: =IF(B16="","",'出場選手エントリー票 男'!H7) ->  | I16: =IF('出場選手エントリー票 男'!K7="","",'出場選手エントリー票 男'!K7) ->  | J16: =IF('出場選手エントリー票 男'!L7="","",'出場選手エントリー票 男'!L7) ->  | K16: =IF('出場選手エントリー票 男'!M7="","",'出場選手エントリー票 男'!M7) ->  | L16: =IF('出場選手エントリー票 男'!N7="","",VALUE('出場選手エントリー票 男'!N7)) ->  | M16: =IF('出場選手エントリー票 男'!O7="","",VALUE('出場選手エントリー票 男'!O7)) ->  | T16: 0 | U16: 0 | V16: 0 | W16: 0 | X16: 0
A17: 7 | B17: =IF('出場選手エントリー票 男'!B8="","",IF(MID('出場選手エントリー票 男'!B8,2,1)="0",RIGHTB('出場選手エントリー票 男'!B8,3),RIGHTB('出場選手エントリー票 男'!B8,4))) ->  | F17: =IF(B17="","",('出場選手エントリー票 男'!C8&" "&'出場選手エントリー票 男'!D8)) ->  | H17: =IF(B17="","",'出場選手エントリー票 男'!H8) ->  | I17: =IF('出場選手エントリー票 男'!K8="","",'出場選手エントリー票 男'!K8) ->  | J17: =IF('出場選手エントリー票 男'!L8="","",'出場選手エントリー票 男'!L8) ->  | K17: =IF('出場選手エントリー票 男'!M8="","",'出場選手エントリー票 男'!M8) ->  | L17: =IF('出場選手エントリー票 男'!N8="","",VALUE('出場選手エントリー票 男'!N8)) ->  | M17: =IF('出場選手エントリー票 男'!O8="","",VALUE('出場選手エントリー票 男'!O8)) ->  | T17: 0 | U17: 0 | V17: 0 | W17: 0 | X17: 0
A18: 8 | B18: =IF('出場選手エントリー票 男'!B9="","",IF(MID('出場選手エントリー票 男'!B9,2,1)="0",RIGHTB('出場選手エントリー票 男'!B9,3),RIGHTB('出場選手エントリー票 男'!B9,4))) ->  | F18: =IF(B18="","",('出場選手エントリー票 男'!C9&" "&'出場選手エントリー票 男'!D9)) ->  | H18: =IF(B18="","",'出場選手エントリー票 男'!H9) ->  | I18: =IF('出場選手エントリー票 男'!K9="","",'出場選手エントリー票 男'!K9) ->  | J18: =IF('出場選手エントリー票 男'!L9="","",'出場選手エントリー票 男'!L9) ->  | K18: =IF('出場選手エントリー票 男'!M9="","",'出場選手エントリー票 男'!M9) ->  | L18: =IF('出場選手エントリー票 男'!N9="","",VALUE('出場選手エントリー票 男'!N9)) ->  | M18: =IF('出場選手エントリー票 男'!O9="","",VALUE('出場選手エントリー票 男'!O9)) ->  | T18: 0 | U18: 0 | V18: 0 | W18: 0 | X18: 0
A19: 9 | B19: =IF('出場選手エントリー票 男'!B10="","",IF(MID('出場選手エントリー票 男'!B10,2,1)="0",RIGHTB('出場選手エントリー票 男'!B10,3),RIGHTB('出場選手エントリー票 男'!B10,4))) ->  | F19: =IF(B19="","",('出場選手エントリー票 男'!C10&" "&'出場選手エントリー票 男'!D10)) ->  | H19: =IF(B19="","",'出場選手エントリー票 男'!H10) ->  | I19: =IF('出場選手エントリー票 男'!K10="","",'出場選手エントリー票 男'!K10) ->  | J19: =IF('出場選手エントリー票 男'!L10="","",'出場選手エントリー票 男'!L10) ->  | K19: =IF('出場選手エントリー票 男'!M10="","",'出場選手エントリー票 男'!M10) ->  | L19: =IF('出場選手エントリー票 男'!N10="","",VALUE('出場選手エントリー票 男'!N10)) ->  | M19: =IF('出場選手エントリー票 男'!O10="","",VALUE('出場選手エントリー票 男'!O10)) ->  | T19: 0 | U19: 0 | V19: 0 | W19: 0 | X19: 0
A20: 10 | B20: =IF('出場選手エントリー票 男'!B11="","",IF(MID('出場選手エントリー票 男'!B11,2,1)="0",RIGHTB('出場選手エントリー票 男'!B11,3),RIGHTB('出場選手エントリー票 男'!B11,4))) ->  | F20: =IF(B20="","",('出場選手エントリー票 男'!C11&" "&'出場選手エントリー票 男'!D11)) ->  | H20: =IF(B20="","",'出場選手エントリー票 男'!H11) ->  | I20: =IF('出場選手エントリー票 男'!K11="","",'出場選手エントリー票 男'!K11) ->  | J20: =IF('出場選手エントリー票 男'!L11="","",'出場選手エントリー票 男'!L11) ->  | K20: =IF('出場選手エントリー票 男'!M11="","",'出場選手エントリー票 男'!M11) ->  | L20: =IF('出場選手エントリー票 男'!N11="","",VALUE('出場選手エントリー票 男'!N11)) ->  | M20: =IF('出場選手エントリー票 男'!O11="","",VALUE('出場選手エントリー票 男'!O11)) ->  | T20: 0 | U20: 0 | V20: 0 | W20: 0 | X20: 0
A21: 11 | B21: =IF('出場選手エントリー票 男'!B12="","",IF(MID('出場選手エントリー票 男'!B12,2,1)="0",RIGHTB('出場選手エントリー票 男'!B12,3),RIGHTB('出場選手エントリー票 男'!B12,4))) ->  | F21: =IF(B21="","",('出場選手エントリー票 男'!C12&" "&'出場選手エントリー票 男'!D12)) ->  | H21: =IF(B21="","",'出場選手エントリー票 男'!H12) ->  | I21: =IF('出場選手エントリー票 男'!K12="","",'出場選手エントリー票 男'!K12) ->  | J21: =IF('出場選手エントリー票 男'!L12="","",'出場選手エントリー票 男'!L12) ->  | K21: =IF('出場選手エントリー票 男'!M12="","",'出場選手エントリー票 男'!M12) ->  | L21: =IF('出場選手エントリー票 男'!N12="","",VALUE('出場選手エントリー票 男'!N12)) ->  | M21: =IF('出場選手エントリー票 男'!O12="","",VALUE('出場選手エントリー票 男'!O12)) ->  | T21: 0 | U21: 0 | V21: 0 | W21: 0 | X21: 0
A22: 12 | B22: =IF('出場選手エントリー票 男'!B13="","",IF(MID('出場選手エントリー票 男'!B13,2,1)="0",RIGHTB('出場選手エントリー票 男'!B13,3),RIGHTB('出場選手エントリー票 男'!B13,4))) ->  | F22: =IF(B22="","",('出場選手エントリー票 男'!C13&" "&'出場選手エントリー票 男'!D13)) ->  | H22: =IF(B22="","",'出場選手エントリー票 男'!H13) ->  | I22: =IF('出場選手エントリー票 男'!K13="","",'出場選手エントリー票 男'!K13) ->  | J22: =IF('出場選手エントリー票 男'!L13="","",'出場選手エントリー票 男'!L13) ->  | K22: =IF('出場選手エントリー票 男'!M13="","",'出場選手エントリー票 男'!M13) ->  | L22: =IF('出場選手エントリー票 男'!N13="","",VALUE('出場選手エントリー票 男'!N13)) ->  | M22: =IF('出場選手エントリー票 男'!O13="","",VALUE('出場選手エントリー票 男'!O13)) ->  | T22: 0 | U22: 0 | V22: 0 | W22: 0 | X22: 0
A23: 13 | B23: =IF('出場選手エントリー票 男'!B14="","",IF(MID('出場選手エントリー票 男'!B14,2,1)="0",RIGHTB('出場選手エントリー票 男'!B14,3),RIGHTB('出場選手エントリー票 男'!B14,4))) ->  | F23: =IF(B23="","",('出場選手エントリー票 男'!C14&" "&'出場選手エントリー票 男'!D14)) ->  | H23: =IF(B23="","",'出場選手エントリー票 男'!H14) ->  | I23: =IF('出場選手エントリー票 男'!K14="","",'出場選手エントリー票 男'!K14) ->  | J23: =IF('出場選手エントリー票 男'!L14="","",'出場選手エントリー票 男'!L14) ->  | K23: =IF('出場選手エントリー票 男'!M14="","",'出場選手エントリー票 男'!M14) ->  | L23: =IF('出場選手エントリー票 男'!N14="","",VALUE('出場選手エントリー票 男'!N14)) ->  | M23: =IF('出場選手エントリー票 男'!O14="","",VALUE('出場選手エントリー票 男'!O14)) ->  | T23: 0 | U23: 0 | V23: 0 | W23: 0 | X23: 0
A24: 14 | B24: =IF('出場選手エントリー票 男'!B15="","",IF(MID('出場選手エントリー票 男'!B15,2,1)="0",RIGHTB('出場選手エントリー票 男'!B15,3),RIGHTB('出場選手エントリー票 男'!B15,4))) ->  | F24: =IF(B24="","",('出場選手エントリー票 男'!C15&" "&'出場選手エントリー票 男'!D15)) ->  | H24: =IF(B24="","",'出場選手エントリー票 男'!H15) ->  | I24: =IF('出場選手エントリー票 男'!K15="","",'出場選手エントリー票 男'!K15) ->  | J24: =IF('出場選手エントリー票 男'!L15="","",'出場選手エントリー票 男'!L15) ->  | K24: =IF('出場選手エントリー票 男'!M15="","",'出場選手エントリー票 男'!M15) ->  | L24: =IF('出場選手エントリー票 男'!N15="","",VALUE('出場選手エントリー票 男'!N15)) ->  | M24: =IF('出場選手エントリー票 男'!O15="","",VALUE('出場選手エントリー票 男'!O15)) ->  | T24: 0 | U24: 0 | V24: 0 | W24: 0 | X24: 0
A25: 15 | B25: =IF('出場選手エントリー票 男'!B16="","",IF(MID('出場選手エントリー票 男'!B16,2,1)="0",RIGHTB('出場選手エントリー票 男'!B16,3),RIGHTB('出場選手エントリー票 男'!B16,4))) ->  | F25: =IF(B25="","",('出場選手エントリー票 男'!C16&" "&'出場選手エントリー票 男'!D16)) ->  | H25: =IF(B25="","",'出場選手エントリー票 男'!H16) ->  | I25: =IF('出場選手エントリー票 男'!K16="","",'出場選手エントリー票 男'!K16) ->  | J25: =IF('出場選手エントリー票 男'!L16="","",'出場選手エントリー票 男'!L16) ->  | K25: =IF('出場選手エントリー票 男'!M16="","",'出場選手エントリー票 男'!M16) ->  | L25: =IF('出場選手エントリー票 男'!N16="","",VALUE('出場選手エントリー票 男'!N16)) ->  | M25: =IF('出場選手エントリー票 男'!O16="","",VALUE('出場選手エントリー票 男'!O16)) ->  | T25: 0 | U25: 0 | V25: 0 | W25: 0 | X25: 0
A26: 16 | B26: =IF('出場選手エントリー票 男'!B17="","",IF(MID('出場選手エントリー票 男'!B17,2,1)="0",RIGHTB('出場選手エントリー票 男'!B17,3),RIGHTB('出場選手エントリー票 男'!B17,4))) ->  | F26: =IF(B26="","",('出場選手エントリー票 男'!C17&" "&'出場選手エントリー票 男'!D17)) ->  | H26: =IF(B26="","",'出場選手エントリー票 男'!H17) ->  | I26: =IF('出場選手エントリー票 男'!K17="","",'出場選手エントリー票 男'!K17) ->  | J26: =IF('出場選手エントリー票 男'!L17="","",'出場選手エントリー票 男'!L17) ->  | K26: =IF('出場選手エントリー票 男'!M17="","",'出場選手エントリー票 男'!M17) ->  | L26: =IF('出場選手エントリー票 男'!N17="","",VALUE('出場選手エントリー票 男'!N17)) ->  | M26: =IF('出場選手エントリー票 男'!O17="","",VALUE('出場選手エントリー票 男'!O17)) ->  | T26: 0 | U26: 0 | V26: 0 | W26: 0 | X26: 0
A27: 17 | B27: =IF('出場選手エントリー票 男'!B18="","",IF(MID('出場選手エントリー票 男'!B18,2,1)="0",RIGHTB('出場選手エントリー票 男'!B18,3),RIGHTB('出場選手エントリー票 男'!B18,4))) ->  | F27: =IF(B27="","",('出場選手エントリー票 男'!C18&" "&'出場選手エントリー票 男'!D18)) ->  | H27: =IF(B27="","",'出場選手エントリー票 男'!H18) ->  | I27: =IF('出場選手エントリー票 男'!K18="","",'出場選手エントリー票 男'!K18) ->  | J27: =IF('出場選手エントリー票 男'!L18="","",'出場選手エントリー票 男'!L18) ->  | K27: =IF('出場選手エントリー票 男'!M18="","",'出場選手エントリー票 男'!M18) ->  | L27: =IF('出場選手エントリー票 男'!N18="","",VALUE('出場選手エントリー票 男'!N18)) ->  | M27: =IF('出場選手エントリー票 男'!O18="","",VALUE('出場選手エントリー票 男'!O18)) ->  | T27: 0 | U27: 0 | V27: 0 | W27: 0 | X27: 0
A28: 18 | B28: =IF('出場選手エントリー票 男'!B19="","",IF(MID('出場選手エントリー票 男'!B19,2,1)="0",RIGHTB('出場選手エントリー票 男'!B19,3),RIGHTB('出場選手エントリー票 男'!B19,4))) ->  | F28: =IF(B28="","",('出場選手エントリー票 男'!C19&" "&'出場選手エントリー票 男'!D19)) ->  | H28: =IF(B28="","",'出場選手エントリー票 男'!H19) ->  | I28: =IF('出場選手エントリー票 男'!K19="","",'出場選手エントリー票 男'!K19) ->  | J28: =IF('出場選手エントリー票 男'!L19="","",'出場選手エントリー票 男'!L19) ->  | K28: =IF('出場選手エントリー票 男'!M19="","",'出場選手エントリー票 男'!M19) ->  | L28: =IF('出場選手エントリー票 男'!N19="","",VALUE('出場選手エントリー票 男'!N19)) ->  | M28: =IF('出場選手エントリー票 男'!O19="","",VALUE('出場選手エントリー票 男'!O19)) ->  | T28: 0 | U28: 0 | V28: 0 | W28: 0 | X28: 0
A29: 19 | B29: =IF('出場選手エントリー票 男'!B20="","",IF(MID('出場選手エントリー票 男'!B20,2,1)="0",RIGHTB('出場選手エントリー票 男'!B20,3),RIGHTB('出場選手エントリー票 男'!B20,4))) ->  | F29: =IF(B29="","",('出場選手エントリー票 男'!C20&" "&'出場選手エントリー票 男'!D20)) ->  | H29: =IF(B29="","",'出場選手エントリー票 男'!H20) ->  | I29: =IF('出場選手エントリー票 男'!K20="","",'出場選手エントリー票 男'!K20) ->  | J29: =IF('出場選手エントリー票 男'!L20="","",'出場選手エントリー票 男'!L20) ->  | K29: =IF('出場選手エントリー票 男'!M20="","",'出場選手エントリー票 男'!M20) ->  | L29: =IF('出場選手エントリー票 男'!N20="","",VALUE('出場選手エントリー票 男'!N20)) ->  | M29: =IF('出場選手エントリー票 男'!O20="","",VALUE('出場選手エントリー票 男'!O20)) ->  | T29: 0 | U29: 0 | V29: 0 | W29: 0 | X29: 0
A30: 20 | B30: =IF('出場選手エントリー票 男'!B21="","",IF(MID('出場選手エントリー票 男'!B21,2,1)="0",RIGHTB('出場選手エントリー票 男'!B21,3),RIGHTB('出場選手エントリー票 男'!B21,4))) ->  | F30: =IF(B30="","",('出場選手エントリー票 男'!C21&" "&'出場選手エントリー票 男'!D21)) ->  | H30: =IF(B30="","",'出場選手エントリー票 男'!H21) ->  | I30: =IF('出場選手エントリー票 男'!K21="","",'出場選手エントリー票 男'!K21) ->  | J30: =IF('出場選手エントリー票 男'!L21="","",'出場選手エントリー票 男'!L21) ->  | K30: =IF('出場選手エントリー票 男'!M21="","",'出場選手エントリー票 男'!M21) ->  | L30: =IF('出場選手エントリー票 男'!N21="","",VALUE('出場選手エントリー票 男'!N21)) ->  | M30: =IF('出場選手エントリー票 男'!O21="","",VALUE('出場選手エントリー票 男'!O21)) ->  | T30: 0 | U30: 0 | V30: 0 | W30: 0 | X30: 0
A31: 〈支部大会種目等〉 | N31: 〈都大会種目等〉
A32: 個人 | F32: 混成 | G32: リレー | I32: ﾌﾟﾛｸﾞﾗﾑ(追加) | N32: 個人 | O32: リレー | P32: 混成 | Q32: ﾌﾟﾛｸﾞﾗﾑ
A33: ＠６００円 | F33: ＠１５００円 | G33: ＠１２００円 | I33: ＠６００円 | N33: @1000円 | O33: @1600円 | P33: @2000円 | Q33: @800円
A34: =COUNTIF($T$11:$V$75,1) -> 0 | F34: =COUNTIF('出場選手エントリー票 男'!$K$1:$K$65,"八種")+COUNTIF('出場選手エントリー票 男'!$L$1:$L$65,"八種")+COUNTIF('出場選手エントリー票 男'!$M$1:$M$65,"八種")+COUNTIF('出場選手エントリー票 男'!$K$1:$K$65,"七種")+COUNTIF('出場選手エントリー票 男'!$L$1:$L$65,"七種")+COUNTIF('出場選手エントリー票 男'!$M$1:$M$65,"七種") -> 0 | G34: =SUM(MAX($W$11:$W$75),MAX($X$11:$X$75)) -> 0 | I34: =出場選手エントリー票!I2 -> 0 | K34: 合計 | N34: 種目 | O34: ﾁｰﾑ | P34: 名 | Q34: 冊 | R34: 合計
A35: =A34*600 -> 0 | F35: =F34*1500 -> 0 | G35: =G34*1200 -> 0 | I35: =I34*600 -> 0 | K35: =A35+F35+G35+I35 -> 0 | N35: 円 | O35: 円 | P35: 円 | Q35: 円 | R35: 円
A36: 21 | B36: =IF('出場選手エントリー票 男'!B22="","",IF(MID('出場選手エントリー票 男'!B22,2,1)="0",RIGHTB('出場選手エントリー票 男'!B22,3),RIGHTB('出場選手エントリー票 男'!B22,4))) ->  | F36: =IF(B36="","",('出場選手エントリー票 男'!C22&" "&'出場選手エントリー票 男'!D22)) ->  | H36: =IF(B36="","",'出場選手エントリー票 男'!H22) ->  | I36: =IF('出場選手エントリー票 男'!K22="","",'出場選手エントリー票 男'!K22) ->  | J36: =IF('出場選手エントリー票 男'!L22="","",'出場選手エントリー票 男'!L22) ->  | K36: =IF('出場選手エントリー票 男'!M22="","",'出場選手エントリー票 男'!M22) ->  | L36: =IF('出場選手エントリー票 男'!N22="","",VALUE('出場選手エントリー票 男'!N22)) ->  | M36: =IF('出場選手エントリー票 男'!O22="","",VALUE('出場選手エントリー票 男'!O22)) ->  | T36: =IF(I36="",0,1) -> 0 | U36: =IF(J36="",0,1) -> 0 | V36: =IF(K36="",0,1) -> 0 | W36: =IF(ISERROR(VALUE(L36)),0,VALUE(L36)) -> 0 | X36: =IF(ISERROR(VALUE(M36)),0,VALUE(M36)) -> 0
A37: 22 | B37: =IF('出場選手エントリー票 男'!B23="","",IF(MID('出場選手エントリー票 男'!B23,2,1)="0",RIGHTB('出場選手エントリー票 男'!B23,3),RIGHTB('出場選手エントリー票 男'!B23,4))) ->  | F37: =IF(B37="","",('出場選手エントリー票 男'!C23&" "&'出場選手エントリー票 男'!D23)) ->  | H37: =IF(B37="","",'出場選手エントリー票 男'!H23) ->  | I37: =IF('出場選手エントリー票 男'!K23="","",'出場選手エントリー票 男'!K23) ->  | J37: =IF('出場選手エントリー票 男'!L23="","",'出場選手エントリー票 男'!L23) ->  | K37: =IF('出場選手エントリー票 男'!M23="","",'出場選手エントリー票 男'!M23) ->  | L37: =IF('出場選手エントリー票 男'!N23="","",VALUE('出場選手エントリー票 男'!N23)) ->  | M37: =IF('出場選手エントリー票 男'!O23="","",VALUE('出場選手エントリー票 男'!O23)) ->  | T37: 0 | U37: 0 | V37: 0 | W37: 0 | X37: 0
A38: 23 | B38: =IF('出場選手エントリー票 男'!B24="","",IF(MID('出場選手エントリー票 男'!B24,2,1)="0",RIGHTB('出場選手エントリー票 男'!B24,3),RIGHTB('出場選手エントリー票 男'!B24,4))) ->  | F38: =IF(B38="","",('出場選手エントリー票 男'!C24&" "&'出場選手エントリー票 男'!D24)) ->  | H38: =IF(B38="","",'出場選手エントリー票 男'!H24) ->  | I38: =IF('出場選手エントリー票 男'!K24="","",'出場選手エントリー票 男'!K24) ->  | J38: =IF('出場選手エントリー票 男'!L24="","",'出場選手エントリー票 男'!L24) ->  | K38: =IF('出場選手エントリー票 男'!M24="","",'出場選手エントリー票 男'!M24) ->  | L38: =IF('出場選手エントリー票 男'!N24="","",VALUE('出場選手エントリー票 男'!N24)) ->  | M38: =IF('出場選手エントリー票 男'!O24="","",VALUE('出場選手エントリー票 男'!O24)) ->  | T38: 0 | U38: 0 | V38: 0 | W38: 0 | X38: 0
A39: 24 | B39: =IF('出場選手エントリー票 男'!B25="","",IF(MID('出場選手エントリー票 男'!B25,2,1)="0",RIGHTB('出場選手エントリー票 男'!B25,3),RIGHTB('出場選手エントリー票 男'!B25,4))) ->  | F39: =IF(B39="","",('出場選手エントリー票 男'!C25&" "&'出場選手エントリー票 男'!D25)) ->  | H39: =IF(B39="","",'出場選手エントリー票 男'!H25) ->  | I39: =IF('出場選手エントリー票 男'!K25="","",'出場選手エントリー票 男'!K25) ->  | J39: =IF('出場選手エントリー票 男'!L25="","",'出場選手エントリー票 男'!L25) ->  | K39: =IF('出場選手エントリー票 男'!M25="","",'出場選手エントリー票 男'!M25) ->  | L39: =IF('出場選手エントリー票 男'!N25="","",VALUE('出場選手エントリー票 男'!N25)) ->  | M39: =IF('出場選手エントリー票 男'!O25="","",VALUE('出場選手エントリー票 男'!O25)) ->  | T39: 0 | U39: 0 | V39: 0 | W39: 0 | X39: 0
A40: 25 | B40: =IF('出場選手エントリー票 男'!B26="","",IF(MID('出場選手エントリー票 男'!B26,2,1)="0",RIGHTB('出場選手エントリー票 男'!B26,3),RIGHTB('出場選手エントリー票 男'!B26,4))) ->  | F40: =IF(B40="","",('出場選手エントリー票 男'!C26&" "&'出場選手エントリー票 男'!D26)) ->  | H40: =IF(B40="","",'出場選手エントリー票 男'!H26) ->  | I40: =IF('出場選手エントリー票 男'!K26="","",'出場選手エントリー票 男'!K26) ->  | J40: =IF('出場選手エントリー票 男'!L26="","",'出場選手エントリー票 男'!L26) ->  | K40: =IF('出場選手エントリー票 男'!M26="","",'出場選手エントリー票 男'!M26) ->  | L40: =IF('出場選手エントリー票 男'!N26="","",VALUE('出場選手エントリー票 男'!N26)) ->  | M40: =IF('出場選手エントリー票 男'!O26="","",VALUE('出場選手エントリー票 男'!O26)) ->  | T40: 0 | U40: 0 | V40: 0 | W40: 0 | X40: 0
A41: 26 | B41: =IF('出場選手エントリー票 男'!B27="","",IF(MID('出場選手エントリー票 男'!B27,2,1)="0",RIGHTB('出場選手エントリー票 男'!B27,3),RIGHTB('出場選手エントリー票 男'!B27,4))) ->  | F41: =IF(B41="","",('出場選手エントリー票 男'!C27&" "&'出場選手エントリー票 男'!D27)) ->  | H41: =IF(B41="","",'出場選手エントリー票 男'!H27) ->  | I41: =IF('出場選手エントリー票 男'!K27="","",'出場選手エントリー票 男'!K27) ->  | J41: =IF('出場選手エントリー票 男'!L27="","",'出場選手エントリー票 男'!L27) ->  | K41: =IF('出場選手エントリー票 男'!M27="","",'出場選手エントリー票 男'!M27) ->  | L41: =IF('出場選手エントリー票 男'!N27="","",VALUE('出場選手エントリー票 男'!N27)) ->  | M41: =IF('出場選手エントリー票 男'!O27="","",VALUE('出場選手エントリー票 男'!O27)) ->  | T41: 0 | U41: 0 | V41: 0 | W41: 0 | X41: 0
A42: 27 | B42: =IF('出場選手エントリー票 男'!B28="","",IF(MID('出場選手エントリー票 男'!B28,2,1)="0",RIGHTB('出場選手エントリー票 男'!B28,3),RIGHTB('出場選手エントリー票 男'!B28,4))) ->  | F42: =IF(B42="","",('出場選手エントリー票 男'!C28&" "&'出場選手エントリー票 男'!D28)) ->  | H42: =IF(B42="","",'出場選手エントリー票 男'!H28) ->  | I42: =IF('出場選手エントリー票 男'!K28="","",'出場選手エントリー票 男'!K28) ->  | J42: =IF('出場選手エントリー票 男'!L28="","",'出場選手エントリー票 男'!L28) ->  | K42: =IF('出場選手エントリー票 男'!M28="","",'出場選手エントリー票 男'!M28) ->  | L42: =IF('出場選手エントリー票 男'!N28="","",VALUE('出場選手エントリー票 男'!N28)) ->  | M42: =IF('出場選手エントリー票 男'!O28="","",VALUE('出場選手エントリー票 男'!O28)) ->  | T42: 0 | U42: 0 | V42: 0 | W42: 0 | X42: 0
A43: 28 | B43: =IF('出場選手エントリー票 男'!B29="","",IF(MID('出場選手エントリー票 男'!B29,2,1)="0",RIGHTB('出場選手エントリー票 男'!B29,3),RIGHTB('出場選手エントリー票 男'!B29,4))) ->  | F43: =IF(B43="","",('出場選手エントリー票 男'!C29&" "&'出場選手エントリー票 男'!D29)) ->  | H43: =IF(B43="","",'出場選手エントリー票 男'!H29) ->  | I43: =IF('出場選手エントリー票 男'!K29="","",'出場選手エントリー票 男'!K29) ->  | J43: =IF('出場選手エントリー票 男'!L29="","",'出場選手エントリー票 男'!L29) ->  | K43: =IF('出場選手エントリー票 男'!M29="","",'出場選手エントリー票 男'!M29) ->  | L43: =IF('出場選手エントリー票 男'!N29="","",VALUE('出場選手エントリー票 男'!N29)) ->  | M43: =IF('出場選手エントリー票 男'!O29="","",VALUE('出場選手エントリー票 男'!O29)) ->  | T43: 0 | U43: 0 | V43: 0 | W43: 0 | X43: 0
A44: 29 | B44: =IF('出場選手エントリー票 男'!B30="","",IF(MID('出場選手エントリー票 男'!B30,2,1)="0",RIGHTB('出場選手エントリー票 男'!B30,3),RIGHTB('出場選手エントリー票 男'!B30,4))) ->  | F44: =IF(B44="","",('出場選手エントリー票 男'!C30&" "&'出場選手エントリー票 男'!D30)) ->  | H44: =IF(B44="","",'出場選手エントリー票 男'!H30) ->  | I44: =IF('出場選手エントリー票 男'!K30="","",'出場選手エントリー票 男'!K30) ->  | J44: =IF('出場選手エントリー票 男'!L30="","",'出場選手エントリー票 男'!L30) ->  | K44: =IF('出場選手エントリー票 男'!M30="","",'出場選手エントリー票 男'!M30) ->  | L44: =IF('出場選手エントリー票 男'!N30="","",VALUE('出場選手エントリー票 男'!N30)) ->  | M44: =IF('出場選手エントリー票 男'!O30="","",VALUE('出場選手エントリー票 男'!O30)) ->  | T44: 0 | U44: 0 | V44: 0 | W44: 0 | X44: 0
A45: 30 | B45: =IF('出場選手エントリー票 男'!B31="","",IF(MID('出場選手エントリー票 男'!B31,2,1)="0",RIGHTB('出場選手エントリー票 男'!B31,3),RIGHTB('出場選手エントリー票 男'!B31,4))) ->  | F45: =IF(B45="","",('出場選手エントリー票 男'!C31&" "&'出場選手エントリー票 男'!D31)) ->  | H45: =IF(B45="","",'出場選手エントリー票 男'!H31) ->  | I45: =IF('出場選手エントリー票 男'!K31="","",'出場選手エントリー票 男'!K31) ->  | J45: =IF('出場選手エントリー票 男'!L31="","",'出場選手エントリー票 男'!L31) ->  | K45: =IF('出場選手エントリー票 男'!M31="","",'出場選手エントリー票 男'!M31) ->  | L45: =IF('出場選手エントリー票 男'!N31="","",VALUE('出場選手エントリー票 男'!N31)) ->  | M45: =IF('出場選手エントリー票 男'!O31="","",VALUE('出場選手エントリー票 男'!O31)) ->  | T45: 0 | U45: 0 | V45: 0 | W45: 0 | X45: 0
A46: 31 | B46: =IF('出場選手エントリー票 男'!B32="","",IF(MID('出場選手エントリー票 男'!B32,2,1)="0",RIGHTB('出場選手エントリー票 男'!B32,3),RIGHTB('出場選手エントリー票 男'!B32,4))) ->  | F46: =IF(B46="","",('出場選手エントリー票 男'!C32&" "&'出場選手エントリー票 男'!D32)) ->  | H46: =IF(B46="","",'出場選手エントリー票 男'!H32) ->  | I46: =IF('出場選手エントリー票 男'!K32="","",'出場選手エントリー票 男'!K32) ->  | J46: =IF('出場選手エントリー票 男'!L32="","",'出場選手エントリー票 男'!L32) ->  | K46: =IF('出場選手エントリー票 男'!M32="","",'出場選手エントリー票 男'!M32) ->  | L46: =IF('出場選手エントリー票 男'!N32="","",VALUE('出場選手エントリー票 男'!N32)) ->  | M46: =IF('出場選手エントリー票 男'!O32="","",VALUE('出場選手エントリー票 男'!O32)) ->  | T46: 0 | U46: 0 | V46: 0 | W46: 0 | X46: 0
A47: 32 | B47: =IF('出場選手エントリー票 男'!B33="","",IF(MID('出場選手エントリー票 男'!B33,2,1)="0",RIGHTB('出場選手エントリー票 男'!B33,3),RIGHTB('出場選手エントリー票 男'!B33,4))) ->  | F47: =IF(B47="","",('出場選手エントリー票 男'!C33&" "&'出場選手エントリー票 男'!D33)) ->  | H47: =IF(B47="","",'出場選手エントリー票 男'!H33) ->  | I47: =IF('出場選手エントリー票 男'!K33="","",'出場選手エントリー票 男'!K33) ->  | J47: =IF('出場選手エントリー票 男'!L33="","",'出場選手エントリー票 男'!L33) ->  | K47: =IF('出場選手エントリー票 男'!M33="","",'出場選手エントリー票 男'!M33) ->  | L47: =IF('出場選手エントリー票 男'!N33="","",VALUE('出場選手エントリー票 男'!N33)) ->  | M47: =IF('出場選手エントリー票 男'!O33="","",VALUE('出場選手エントリー票 男'!O33)) ->  | T47: 0 | U47: 0 | V47: 0 | W47: 0 | X47: 0
A48: 33 | B48: =IF('出場選手エントリー票 男'!B34="","",IF(MID('出場選手エントリー票 男'!B34,2,1)="0",RIGHTB('出場選手エントリー票 男'!B34,3),RIGHTB('出場選手エントリー票 男'!B34,4))) ->  | F48: =IF(B48="","",('出場選手エントリー票 男'!C34&" "&'出場選手エントリー票 男'!D34)) ->  | H48: =IF(B48="","",'出場選手エントリー票 男'!H34) ->  | I48: =IF('出場選手エントリー票 男'!K34="","",'出場選手エントリー票 男'!K34) ->  | J48: =IF('出場選手エントリー票 男'!L34="","",'出場選手エントリー票 男'!L34) ->  | K48: =IF('出場選手エントリー票 男'!M34="","",'出場選手エントリー票 男'!M34) ->  | L48: =IF('出場選手エントリー票 男'!N34="","",VALUE('出場選手エントリー票 男'!N34)) ->  | M48: =IF('出場選手エントリー票 男'!O34="","",VALUE('出場選手エントリー票 男'!O34)) ->  | T48: 0 | U48: 0 | V48: 0 | W48: 0 | X48: 0
A49: 34 | B49: =IF('出場選手エントリー票 男'!B35="","",IF(MID('出場選手エントリー票 男'!B35,2,1)="0",RIGHTB('出場選手エントリー票 男'!B35,3),RIGHTB('出場選手エントリー票 男'!B35,4))) ->  | F49: =IF(B49="","",('出場選手エントリー票 男'!C35&" "&'出場選手エントリー票 男'!D35)) ->  | H49: =IF(B49="","",'出場選手エントリー票 男'!H35) ->  | I49: =IF('出場選手エントリー票 男'!K35="","",'出場選手エントリー票 男'!K35) ->  | J49: =IF('出場選手エントリー票 男'!L35="","",'出場選手エントリー票 男'!L35) ->  | K49: =IF('出場選手エントリー票 男'!M35="","",'出場選手エントリー票 男'!M35) ->  | L49: =IF('出場選手エントリー票 男'!N35="","",VALUE('出場選手エントリー票 男'!N35)) ->  | M49: =IF('出場選手エントリー票 男'!O35="","",VALUE('出場選手エントリー票 男'!O35)) ->  | T49: 0 | U49: 0 | V49: 0 | W49: 0 | X49: 0
A50: 35 | B50: =IF('出場選手エントリー票 男'!B36="","",IF(MID('出場選手エントリー票 男'!B36,2,1)="0",RIGHTB('出場選手エントリー票 男'!B36,3),RIGHTB('出場選手エントリー票 男'!B36,4))) ->  | F50: =IF(B50="","",('出場選手エントリー票 男'!C36&" "&'出場選手エントリー票 男'!D36)) ->  | H50: =IF(B50="","",'出場選手エントリー票 男'!H36) ->  | I50: =IF('出場選手エントリー票 男'!K36="","",'出場選手エントリー票 男'!K36) ->  | J50: =IF('出場選手エントリー票 男'!L36="","",'出場選手エントリー票 男'!L36) ->  | K50: =IF('出場選手エントリー票 男'!M36="","",'出場選手エントリー票 男'!M36) ->  | L50: =IF('出場選手エントリー票 男'!N36="","",VALUE('出場選手エントリー票 男'!N36)) ->  | M50: =IF('出場選手エントリー票 男'!O36="","",VALUE('出場選手エントリー票 男'!O36)) ->  | T50: 0 | U50: 0 | V50: 0 | W50: 0 | X50: 0
A51: 36 | B51: =IF('出場選手エントリー票 男'!B37="","",IF(MID('出場選手エントリー票 男'!B37,2,1)="0",RIGHTB('出場選手エントリー票 男'!B37,3),RIGHTB('出場選手エントリー票 男'!B37,4))) ->  | F51: =IF(B51="","",('出場選手エントリー票 男'!C37&" "&'出場選手エントリー票 男'!D37)) ->  | H51: =IF(B51="","",'出場選手エントリー票 男'!H37) ->  | I51: =IF('出場選手エントリー票 男'!K37="","",'出場選手エントリー票 男'!K37) ->  | J51: =IF('出場選手エントリー票 男'!L37="","",'出場選手エントリー票 男'!L37) ->  | K51: =IF('出場選手エントリー票 男'!M37="","",'出場選手エントリー票 男'!M37) ->  | L51: =IF('出場選手エントリー票 男'!N37="","",VALUE('出場選手エントリー票 男'!N37)) ->  | M51: =IF('出場選手エントリー票 男'!O37="","",VALUE('出場選手エントリー票 男'!O37)) ->  | T51: 0 | U51: 0 | V51: 0 | W51: 0 | X51: 0
A52: 37 | B52: =IF('出場選手エントリー票 男'!B38="","",IF(MID('出場選手エントリー票 男'!B38,2,1)="0",RIGHTB('出場選手エントリー票 男'!B38,3),RIGHTB('出場選手エントリー票 男'!B38,4))) ->  | F52: =IF(B52="","",('出場選手エントリー票 男'!C38&" "&'出場選手エントリー票 男'!D38)) ->  | H52: =IF(B52="","",'出場選手エントリー票 男'!H38) ->  | I52: =IF('出場選手エントリー票 男'!K38="","",'出場選手エントリー票 男'!K38) ->  | J52: =IF('出場選手エントリー票 男'!L38="","",'出場選手エントリー票 男'!L38) ->  | K52: =IF('出場選手エントリー票 男'!M38="","",'出場選手エントリー票 男'!M38) ->  | L52: =IF('出場選手エントリー票 男'!N38="","",VALUE('出場選手エントリー票 男'!N38)) ->  | M52: =IF('出場選手エントリー票 男'!O38="","",VALUE('出場選手エントリー票 男'!O38)) ->  | T52: 0 | U52: 0 | V52: 0 | W52: 0 | X52: 0
A53: 38 | B53: =IF('出場選手エントリー票 男'!B39="","",IF(MID('出場選手エントリー票 男'!B39,2,1)="0",RIGHTB('出場選手エントリー票 男'!B39,3),RIGHTB('出場選手エントリー票 男'!B39,4))) ->  | F53: =IF(B53="","",('出場選手エントリー票 男'!C39&" "&'出場選手エントリー票 男'!D39)) ->  | H53: =IF(B53="","",'出場選手エントリー票 男'!H39) ->  | I53: =IF('出場選手エントリー票 男'!K39="","",'出場選手エントリー票 男'!K39) ->  | J53: =IF('出場選手エントリー票 男'!L39="","",'出場選手エントリー票 男'!L39) ->  | K53: =IF('出場選手エントリー票 男'!M39="","",'出場選手エントリー票 男'!M39) ->  | L53: =IF('出場選手エントリー票 男'!N39="","",VALUE('出場選手エントリー票 男'!N39)) ->  | M53: =IF('出場選手エントリー票 男'!O39="","",VALUE('出場選手エントリー票 男'!O39)) ->  | T53: 0 | U53: 0 | V53: 0 | W53: 0 | X53: 0
A54: 39 | B54: =IF('出場選手エントリー票 男'!B40="","",IF(MID('出場選手エントリー票 男'!B40,2,1)="0",RIGHTB('出場選手エントリー票 男'!B40,3),RIGHTB('出場選手エントリー票 男'!B40,4))) ->  | F54: =IF(B54="","",('出場選手エントリー票 男'!C40&" "&'出場選手エントリー票 男'!D40)) ->  | H54: =IF(B54="","",'出場選手エントリー票 男'!H40) ->  | I54: =IF('出場選手エントリー票 男'!K40="","",'出場選手エントリー票 男'!K40) ->  | J54: =IF('出場選手エントリー票 男'!L40="","",'出場選手エントリー票 男'!L40) ->  | K54: =IF('出場選手エントリー票 男'!M40="","",'出場選手エントリー票 男'!M40) ->  | L54: =IF('出場選手エントリー票 男'!N40="","",VALUE('出場選手エントリー票 男'!N40)) ->  | M54: =IF('出場選手エントリー票 男'!O40="","",VALUE('出場選手エントリー票 男'!O40)) ->  | T54: 0 | U54: 0 | V54: 0 | W54: 0 | X54: 0
A55: 40 | B55: =IF('出場選手エントリー票 男'!B41="","",IF(MID('出場選手エントリー票 男'!B41,2,1)="0",RIGHTB('出場選手エントリー票 男'!B41,3),RIGHTB('出場選手エントリー票 男'!B41,4))) ->  | F55: =IF(B55="","",('出場選手エントリー票 男'!C41&" "&'出場選手エントリー票 男'!D41)) ->  | H55: =IF(B55="","",'出場選手エントリー票 男'!H41) ->  | I55: =IF('出場選手エントリー票 男'!K41="","",'出場選手エントリー票 男'!K41) ->  | J55: =IF('出場選手エントリー票 男'!L41="","",'出場選手エントリー票 男'!L41) ->  | K55: =IF('出場選手エントリー票 男'!M41="","",'出場選手エントリー票 男'!M41) ->  | L55: =IF('出場選手エントリー票 男'!N41="","",VALUE('出場選手エントリー票 男'!N41)) ->  | M55: =IF('出場選手エントリー票 男'!O41="","",VALUE('出場選手エントリー票 男'!O41)) ->  | T55: 0 | U55: 0 | V55: 0 | W55: 0 | X55: 0
A56: 41 | B56: =IF('出場選手エントリー票 男'!B42="","",IF(MID('出場選手エントリー票 男'!B42,2,1)="0",RIGHTB('出場選手エントリー票 男'!B42,3),RIGHTB('出場選手エントリー票 男'!B42,4))) ->  | F56: =IF(B56="","",('出場選手エントリー票 男'!C42&" "&'出場選手エントリー票 男'!D42)) ->  | H56: =IF(B56="","",'出場選手エントリー票 男'!H42) ->  | I56: =IF('出場選手エントリー票 男'!K42="","",'出場選手エントリー票 男'!K42) ->  | J56: =IF('出場選手エントリー票 男'!L42="","",'出場選手エントリー票 男'!L42) ->  | K56: =IF('出場選手エントリー票 男'!M42="","",'出場選手エントリー票 男'!M42) ->  | L56: =IF('出場選手エントリー票 男'!N42="","",VALUE('出場選手エントリー票 男'!N42)) ->  | M56: =IF('出場選手エントリー票 男'!O42="","",VALUE('出場選手エントリー票 男'!O42)) ->  | T56: 0 | U56: 0 | V56: 0 | W56: 0 | X56: 0
A57: 42 | B57: =IF('出場選手エントリー票 男'!B43="","",IF(MID('出場選手エントリー票 男'!B43,2,1)="0",RIGHTB('出場選手エントリー票 男'!B43,3),RIGHTB('出場選手エントリー票 男'!B43,4))) ->  | F57: =IF(B57="","",('出場選手エントリー票 男'!C43&" "&'出場選手エントリー票 男'!D43)) ->  | H57: =IF(B57="","",'出場選手エントリー票 男'!H43) ->  | I57: =IF('出場選手エントリー票 男'!K43="","",'出場選手エントリー票 男'!K43) ->  | J57: =IF('出場選手エントリー票 男'!L43="","",'出場選手エントリー票 男'!L43) ->  | K57: =IF('出場選手エントリー票 男'!M43="","",'出場選手エントリー票 男'!M43) ->  | L57: =IF('出場選手エントリー票 男'!N43="","",VALUE('出場選手エントリー票 男'!N43)) ->  | M57: =IF('出場選手エントリー票 男'!O43="","",VALUE('出場選手エントリー票 男'!O43)) ->  | T57: 0 | U57: 0 | V57: 0 | W57: 0 | X57: 0
A58: 43 | B58: =IF('出場選手エントリー票 男'!B44="","",IF(MID('出場選手エントリー票 男'!B44,2,1)="0",RIGHTB('出場選手エントリー票 男'!B44,3),RIGHTB('出場選手エントリー票 男'!B44,4))) ->  | F58: =IF(B58="","",('出場選手エントリー票 男'!C44&" "&'出場選手エントリー票 男'!D44)) ->  | H58: =IF(B58="","",'出場選手エントリー票 男'!H44) ->  | I58: =IF('出場選手エントリー票 男'!K44="","",'出場選手エントリー票 男'!K44) ->  | J58: =IF('出場選手エントリー票 男'!L44="","",'出場選手エントリー票 男'!L44) ->  | K58: =IF('出場選手エントリー票 男'!M44="","",'出場選手エントリー票 男'!M44) ->  | L58: =IF('出場選手エントリー票 男'!N44="","",VALUE('出場選手エントリー票 男'!N44)) ->  | M58: =IF('出場選手エントリー票 男'!O44="","",VALUE('出場選手エントリー票 男'!O44)) ->  | T58: 0 | U58: 0 | V58: 0 | W58: 0 | X58: 0
A59: 44 | B59: =IF('出場選手エントリー票 男'!B45="","",IF(MID('出場選手エントリー票 男'!B45,2,1)="0",RIGHTB('出場選手エントリー票 男'!B45,3),RIGHTB('出場選手エントリー票 男'!B45,4))) ->  | F59: =IF(B59="","",('出場選手エントリー票 男'!C45&" "&'出場選手エントリー票 男'!D45)) ->  | H59: =IF(B59="","",'出場選手エントリー票 男'!H45) ->  | I59: =IF('出場選手エントリー票 男'!K45="","",'出場選手エントリー票 男'!K45) ->  | J59: =IF('出場選手エントリー票 男'!L45="","",'出場選手エントリー票 男'!L45) ->  | K59: =IF('出場選手エントリー票 男'!M45="","",'出場選手エントリー票 男'!M45) ->  | L59: =IF('出場選手エントリー票 男'!N45="","",VALUE('出場選手エントリー票 男'!N45)) ->  | M59: =IF('出場選手エントリー票 男'!O45="","",VALUE('出場選手エントリー票 男'!O45)) ->  | T59: 0 | U59: 0 | V59: 0 | W59: 0 | X59: 0
A60: 45 | B60: =IF('出場選手エントリー票 男'!B46="","",IF(MID('出場選手エントリー票 男'!B46,2,1)="0",RIGHTB('出場選手エントリー票 男'!B46,3),RIGHTB('出場選手エントリー票 男'!B46,4))) ->  | F60: =IF(B60="","",('出場選手エントリー票 男'!C46&" "&'出場選手エントリー票 男'!D46)) ->  | H60: =IF(B60="","",'出場選手エントリー票 男'!H46) ->  | I60: =IF('出場選手エントリー票 男'!K46="","",'出場選手エントリー票 男'!K46) ->  | J60: =IF('出場選手エントリー票 男'!L46="","",'出場選手エントリー票 男'!L46) ->  | K60: =IF('出場選手エントリー票 男'!M46="","",'出場選手エントリー票 男'!M46) ->  | L60: =IF('出場選手エントリー票 男'!N46="","",VALUE('出場選手エントリー票 男'!N46)) ->  | M60: =IF('出場選手エントリー票 男'!O46="","",VALUE('出場選手エントリー票 男'!O46)) ->  | T60: 0 | U60: 0 | V60: 0 | W60: 0 | X60: 0
A61: 46 | B61: =IF('出場選手エントリー票 男'!B47="","",IF(MID('出場選手エントリー票 男'!B47,2,1)="0",RIGHTB('出場選手エントリー票 男'!B47,3),RIGHTB('出場選手エントリー票 男'!B47,4))) ->  | F61: =IF(B61="","",('出場選手エントリー票 男'!C47&" "&'出場選手エントリー票 男'!D47)) ->  | H61: =IF(B61="","",'出場選手エントリー票 男'!H47) ->  | I61: =IF('出場選手エントリー票 男'!K47="","",'出場選手エントリー票 男'!K47) ->  | J61: =IF('出場選手エントリー票 男'!L47="","",'出場選手エントリー票 男'!L47) ->  | K61: =IF('出場選手エントリー票 男'!M47="","",'出場選手エントリー票 男'!M47) ->  | L61: =IF('出場選手エントリー票 男'!N47="","",VALUE('出場選手エントリー票 男'!N47)) ->  | M61: =IF('出場選手エントリー票 男'!O47="","",VALUE('出場選手エントリー票 男'!O47)) ->  | T61: 0 | U61: 0 | V61: 0 | W61: 0 | X61: 0
A62: 47 | B62: =IF('出場選手エントリー票 男'!B48="","",IF(MID('出場選手エントリー票 男'!B48,2,1)="0",RIGHTB('出場選手エントリー票 男'!B48,3),RIGHTB('出場選手エントリー票 男'!B48,4))) ->  | F62: =IF(B62="","",('出場選手エントリー票 男'!C48&" "&'出場選手エントリー票 男'!D48)) ->  | H62: =IF(B62="","",'出場選手エントリー票 男'!H48) ->  | I62: =IF('出場選手エントリー票 男'!K48="","",'出場選手エントリー票 男'!K48) ->  | J62: =IF('出場選手エントリー票 男'!L48="","",'出場選手エントリー票 男'!L48) ->  | K62: =IF('出場選手エントリー票 男'!M48="","",'出場選手エントリー票 男'!M48) ->  | L62: =IF('出場選手エントリー票 男'!N48="","",VALUE('出場選手エントリー票 男'!N48)) ->  | M62: =IF('出場選手エントリー票 男'!O48="","",VALUE('出場選手エントリー票 男'!O48)) ->  | T62: 0 | U62: 0 | V62: 0 | W62: 0 | X62: 0
A63: 48 | B63: =IF('出場選手エントリー票 男'!B49="","",IF(MID('出場選手エントリー票 男'!B49,2,1)="0",RIGHTB('出場選手エントリー票 男'!B49,3),RIGHTB('出場選手エントリー票 男'!B49,4))) ->  | F63: =IF(B63="","",('出場選手エントリー票 男'!C49&" "&'出場選手エントリー票 男'!D49)) ->  | H63: =IF(B63="","",'出場選手エントリー票 男'!H49) ->  | I63: =IF('出場選手エントリー票 男'!K49="","",'出場選手エントリー票 男'!K49) ->  | J63: =IF('出場選手エントリー票 男'!L49="","",'出場選手エントリー票 男'!L49) ->  | K63: =IF('出場選手エントリー票 男'!M49="","",'出場選手エントリー票 男'!M49) ->  | L63: =IF('出場選手エントリー票 男'!N49="","",VALUE('出場選手エントリー票 男'!N49)) ->  | M63: =IF('出場選手エントリー票 男'!O49="","",VALUE('出場選手エントリー票 男'!O49)) ->  | T63: 0 | U63: 0 | V63: 0 | W63: 0 | X63: 0
A64: 49 | B64: =IF('出場選手エントリー票 男'!B50="","",IF(MID('出場選手エントリー票 男'!B50,2,1)="0",RIGHTB('出場選手エントリー票 男'!B50,3),RIGHTB('出場選手エントリー票 男'!B50,4))) ->  | F64: =IF(B64="","",('出場選手エントリー票 男'!C50&" "&'出場選手エントリー票 男'!D50)) ->  | H64: =IF(B64="","",'出場選手エントリー票 男'!H50) ->  | I64: =IF('出場選手エントリー票 男'!K50="","",'出場選手エントリー票 男'!K50) ->  | J64: =IF('出場選手エントリー票 男'!L50="","",'出場選手エントリー票 男'!L50) ->  | K64: =IF('出場選手エントリー票 男'!M50="","",'出場選手エントリー票 男'!M50) ->  | L64: =IF('出場選手エントリー票 男'!N50="","",VALUE('出場選手エントリー票 男'!N50)) ->  | M64: =IF('出場選手エントリー票 男'!O50="","",VALUE('出場選手エントリー票 男'!O50)) ->  | T64: 0 | U64: 0 | V64: 0 | W64: 0 | X64: 0
A65: 50 | B65: =IF('出場選手エントリー票 男'!B51="","",IF(MID('出場選手エントリー票 男'!B51,2,1)="0",RIGHTB('出場選手エントリー票 男'!B51,3),RIGHTB('出場選手エントリー票 男'!B51,4))) ->  | F65: =IF(B65="","",('出場選手エントリー票 男'!C51&" "&'出場選手エントリー票 男'!D51)) ->  | H65: =IF(B65="","",'出場選手エントリー票 男'!H51) ->  | I65: =IF('出場選手エントリー票 男'!K51="","",'出場選手エントリー票 男'!K51) ->  | J65: =IF('出場選手エントリー票 男'!L51="","",'出場選手エントリー票 男'!L51) ->  | K65: =IF('出場選手エントリー票 男'!M51="","",'出場選手エントリー票 男'!M51) ->  | L65: =IF('出場選手エントリー票 男'!N51="","",VALUE('出場選手エントリー票 男'!N51)) ->  | M65: =IF('出場選手エントリー票 男'!O51="","",VALUE('出場選手エントリー票 男'!O51)) ->  | T65: 0 | U65: 0 | V65: 0 | W65: 0 | X65: 0
A66: 51 | B66: =IF('出場選手エントリー票 男'!B52="","",IF(MID('出場選手エントリー票 男'!B52,2,1)="0",RIGHTB('出場選手エントリー票 男'!B52,3),RIGHTB('出場選手エントリー票 男'!B52,4))) ->  | F66: =IF(B66="","",('出場選手エントリー票 男'!C52&" "&'出場選手エントリー票 男'!D52)) ->  | H66: =IF(B66="","",'出場選手エントリー票 男'!H52) ->  | I66: =IF('出場選手エントリー票 男'!K52="","",'出場選手エントリー票 男'!K52) ->  | J66: =IF('出場選手エントリー票 男'!L52="","",'出場選手エントリー票 男'!L52) ->  | K66: =IF('出場選手エントリー票 男'!M52="","",'出場選手エントリー票 男'!M52) ->  | L66: =IF('出場選手エントリー票 男'!N52="","",VALUE('出場選手エントリー票 男'!N52)) ->  | M66: =IF('出場選手エントリー票 男'!O52="","",VALUE('出場選手エントリー票 男'!O52)) ->  | T66: 0 | U66: 0 | V66: 0 | W66: 0 | X66: 0
A67: 52 | B67: =IF('出場選手エントリー票 男'!B53="","",IF(MID('出場選手エントリー票 男'!B53,2,1)="0",RIGHTB('出場選手エントリー票 男'!B53,3),RIGHTB('出場選手エントリー票 男'!B53,4))) ->  | F67: =IF(B67="","",('出場選手エントリー票 男'!C53&" "&'出場選手エントリー票 男'!D53)) ->  | H67: =IF(B67="","",'出場選手エントリー票 男'!H53) ->  | I67: =IF('出場選手エントリー票 男'!K53="","",'出場選手エントリー票 男'!K53) ->  | J67: =IF('出場選手エントリー票 男'!L53="","",'出場選手エントリー票 男'!L53) ->  | K67: =IF('出場選手エントリー票 男'!M53="","",'出場選手エントリー票 男'!M53) ->  | L67: =IF('出場選手エントリー票 男'!N53="","",VALUE('出場選手エントリー票 男'!N53)) ->  | M67: =IF('出場選手エントリー票 男'!O53="","",VALUE('出場選手エントリー票 男'!O53)) ->  | T67: 0 | U67: 0 | V67: 0 | W67: 0 | X67: 0
A68: 53 | B68: =IF('出場選手エントリー票 男'!B54="","",IF(MID('出場選手エントリー票 男'!B54,2,1)="0",RIGHTB('出場選手エントリー票 男'!B54,3),RIGHTB('出場選手エントリー票 男'!B54,4))) ->  | F68: =IF(B68="","",('出場選手エントリー票 男'!C54&" "&'出場選手エントリー票 男'!D54)) ->  | H68: =IF(B68="","",'出場選手エントリー票 男'!H54) ->  | I68: =IF('出場選手エントリー票 男'!K54="","",'出場選手エントリー票 男'!K54) ->  | J68: =IF('出場選手エントリー票 男'!L54="","",'出場選手エントリー票 男'!L54) ->  | K68: =IF('出場選手エントリー票 男'!M54="","",'出場選手エントリー票 男'!M54) ->  | L68: =IF('出場選手エントリー票 男'!N54="","",VALUE('出場選手エントリー票 男'!N54)) ->  | M68: =IF('出場選手エントリー票 男'!O54="","",VALUE('出場選手エントリー票 男'!O54)) ->  | T68: 0 | U68: 0 | V68: 0 | W68: 0 | X68: 0
A69: 54 | B69: =IF('出場選手エントリー票 男'!B55="","",IF(MID('出場選手エントリー票 男'!B55,2,1)="0",RIGHTB('出場選手エントリー票 男'!B55,3),RIGHTB('出場選手エントリー票 男'!B55,4))) ->  | F69: =IF(B69="","",('出場選手エントリー票 男'!C55&" "&'出場選手エントリー票 男'!D55)) ->  | H69: =IF(B69="","",'出場選手エントリー票 男'!H55) ->  | I69: =IF('出場選手エントリー票 男'!K55="","",'出場選手エントリー票 男'!K55) ->  | J69: =IF('出場選手エントリー票 男'!L55="","",'出場選手エントリー票 男'!L55) ->  | K69: =IF('出場選手エントリー票 男'!M55="","",'出場選手エントリー票 男'!M55) ->  | L69: =IF('出場選手エントリー票 男'!N55="","",VALUE('出場選手エントリー票 男'!N55)) ->  | M69: =IF('出場選手エントリー票 男'!O55="","",VALUE('出場選手エントリー票 男'!O55)) ->  | T69: 0 | U69: 0 | V69: 0 | W69: 0 | X69: 0
A70: 55 | B70: =IF('出場選手エントリー票 男'!B56="","",IF(MID('出場選手エントリー票 男'!B56,2,1)="0",RIGHTB('出場選手エントリー票 男'!B56,3),RIGHTB('出場選手エントリー票 男'!B56,4))) ->  | F70: =IF(B70="","",('出場選手エントリー票 男'!C56&" "&'出場選手エントリー票 男'!D56)) ->  | H70: =IF(B70="","",'出場選手エントリー票 男'!H56) ->  | I70: =IF('出場選手エントリー票 男'!K56="","",'出場選手エントリー票 男'!K56) ->  | J70: =IF('出場選手エントリー票 男'!L56="","",'出場選手エントリー票 男'!L56) ->  | K70: =IF('出場選手エントリー票 男'!M56="","",'出場選手エントリー票 男'!M56) ->  | L70: =IF('出場選手エントリー票 男'!N56="","",VALUE('出場選手エントリー票 男'!N56)) ->  | M70: =IF('出場選手エントリー票 男'!O56="","",VALUE('出場選手エントリー票 男'!O56)) ->  | T70: 0 | U70: 0 | V70: 0 | W70: 0 | X70: 0
A71: 56 | B71: =IF('出場選手エントリー票 男'!B57="","",IF(MID('出場選手エントリー票 男'!B57,2,1)="0",RIGHTB('出場選手エントリー票 男'!B57,3),RIGHTB('出場選手エントリー票 男'!B57,4))) ->  | F71: =IF(B71="","",('出場選手エントリー票 男'!C57&" "&'出場選手エントリー票 男'!D57)) ->  | H71: =IF(B71="","",'出場選手エントリー票 男'!H57) ->  | I71: =IF('出場選手エントリー票 男'!K57="","",'出場選手エントリー票 男'!K57) ->  | J71: =IF('出場選手エントリー票 男'!L57="","",'出場選手エントリー票 男'!L57) ->  | K71: =IF('出場選手エントリー票 男'!M57="","",'出場選手エントリー票 男'!M57) ->  | L71: =IF('出場選手エントリー票 男'!N57="","",VALUE('出場選手エントリー票 男'!N57)) ->  | M71: =IF('出場選手エントリー票 男'!O57="","",VALUE('出場選手エントリー票 男'!O57)) ->  | T71: 0 | U71: 0 | V71: 0 | W71: 0 | X71: 0
A72: 57 | B72: =IF('出場選手エントリー票 男'!B58="","",IF(MID('出場選手エントリー票 男'!B58,2,1)="0",RIGHTB('出場選手エントリー票 男'!B58,3),RIGHTB('出場選手エントリー票 男'!B58,4))) ->  | F72: =IF(B72="","",('出場選手エントリー票 男'!C58&" "&'出場選手エントリー票 男'!D58)) ->  | H72: =IF(B72="","",'出場選手エントリー票 男'!H58) ->  | I72: =IF('出場選手エントリー票 男'!K58="","",'出場選手エントリー票 男'!K58) ->  | J72: =IF('出場選手エントリー票 男'!L58="","",'出場選手エントリー票 男'!L58) ->  | K72: =IF('出場選手エントリー票 男'!M58="","",'出場選手エントリー票 男'!M58) ->  | L72: =IF('出場選手エントリー票 男'!N58="","",VALUE('出場選手エントリー票 男'!N58)) ->  | M72: =IF('出場選手エントリー票 男'!O58="","",VALUE('出場選手エントリー票 男'!O58)) ->  | T72: 0 | U72: 0 | V72: 0 | W72: 0 | X72: 0
A73: 58 | B73: =IF('出場選手エントリー票 男'!B59="","",IF(MID('出場選手エントリー票 男'!B59,2,1)="0",RIGHTB('出場選手エントリー票 男'!B59,3),RIGHTB('出場選手エントリー票 男'!B59,4))) ->  | F73: =IF(B73="","",('出場選手エントリー票 男'!C59&" "&'出場選手エントリー票 男'!D59)) ->  | H73: =IF(B73="","",'出場選手エントリー票 男'!H59) ->  | I73: =IF('出場選手エントリー票 男'!K59="","",'出場選手エントリー票 男'!K59) ->  | J73: =IF('出場選手エントリー票 男'!L59="","",'出場選手エントリー票 男'!L59) ->  | K73: =IF('出場選手エントリー票 男'!M59="","",'出場選手エントリー票 男'!M59) ->  | L73: =IF('出場選手エントリー票 男'!N59="","",VALUE('出場選手エントリー票 男'!N59)) ->  | M73: =IF('出場選手エントリー票 男'!O59="","",VALUE('出場選手エントリー票 男'!O59)) ->  | T73: 0 | U73: 0 | V73: 0 | W73: 0 | X73: 0
A74: 59 | B74: =IF('出場選手エントリー票 男'!B60="","",IF(MID('出場選手エントリー票 男'!B60,2,1)="0",RIGHTB('出場選手エントリー票 男'!B60,3),RIGHTB('出場選手エントリー票 男'!B60,4))) ->  | F74: =IF(B74="","",('出場選手エントリー票 男'!C60&" "&'出場選手エントリー票 男'!D60)) ->  | H74: =IF(B74="","",'出場選手エントリー票 男'!H60) ->  | I74: =IF('出場選手エントリー票 男'!K60="","",'出場選手エントリー票 男'!K60) ->  | J74: =IF('出場選手エントリー票 男'!L60="","",'出場選手エントリー票 男'!L60) ->  | K74: =IF('出場選手エントリー票 男'!M60="","",'出場選手エントリー票 男'!M60) ->  | L74: =IF('出場選手エントリー票 男'!N60="","",VALUE('出場選手エントリー票 男'!N60)) ->  | M74: =IF('出場選手エントリー票 男'!O60="","",VALUE('出場選手エントリー票 男'!O60)) ->  | T74: 0 | U74: 0 | V74: 0 | W74: 0 | X74: 0
A75: 60 | B75: =IF('出場選手エントリー票 男'!B61="","",IF(MID('出場選手エントリー票 男'!B61,2,1)="0",RIGHTB('出場選手エントリー票 男'!B61,3),RIGHTB('出場選手エントリー票 男'!B61,4))) ->  | F75: =IF(B75="","",('出場選手エントリー票 男'!C61&" "&'出場選手エントリー票 男'!D61)) ->  | H75: =IF(B75="","",'出場選手エントリー票 男'!H61) ->  | I75: =IF('出場選手エントリー票 男'!K61="","",'出場選手エントリー票 男'!K61) ->  | J75: =IF('出場選手エントリー票 男'!L61="","",'出場選手エントリー票 男'!L61) ->  | K75: =IF('出場選手エントリー票 男'!M61="","",'出場選手エントリー票 男'!M61) ->  | L75: =IF('出場選手エントリー票 男'!N61="","",VALUE('出場選手エントリー票 男'!N61)) ->  | M75: =IF('出場選手エントリー票 男'!O61="","",VALUE('出場選手エントリー票 男'!O61)) ->  | T75: 0 | U75: 0 | V75: 0 | W75: 0 | X75: 0

Sheet 大会申込用紙 女
B1: =出場選手エントリー票!I1 -> 東京都高等学校新人陸上競技大会 第５・６支部予選会 | K1: 大会申込用紙 | O1: 男子・女子
A2: =IF(出場選手エントリー票!F2="","",出場選手エントリー票!E1&出場選手エントリー票!F1&出場選手エントリー票!H1) -> 平成30年度 | P2: №
A3: 学校名 | D3: =IF(出場選手エントリー票!AL151=0,学校情報!D2,"人数制限を超える申し込みがあります") ->  | J3: 学校所在地 | L3: ='大会申込用紙 男'!K3:R4 -> 
J5: 電 話 | L5: =学校情報!K3 ->  | O5: FAX | P5: =学校情報!K4 -> 
A6: 学校長 氏名印 | D6: =IF(OR(L2>6,M2>6),"リレーは６人以内です ",学校情報!D5) -> 0 | J6: 顧 問 氏名印 | L6: =学校情報!K5&" ㊞" -> ㊞
J8: 連絡先 | L8: =学校情報!K6 -> 0
A9: 番号 | B9: ナンバー | F9: 出場者氏名 | H9: 学年 | I9: 予選種目 | N9: 都大会種目
I10: 個人 | J10: 個人 | K10: 個人 | L10: 4x100 | M10: 4x400 | N10: 個人 | O10: 個人 | P10: 個人 | Q10: 4x100 | R10: 4x400
A11: 1 | B11: =IF('出場選手エントリー票 女'!B2="","",IF(MID('出場選手エントリー票 女'!B2,2,1)="0",RIGHTB('出場選手エントリー票 女'!B2,3),RIGHTB('出場選手エントリー票 女'!B2,4))) ->  | F11: =IF(B11="","",('出場選手エントリー票 女'!C2&" "&'出場選手エントリー票 女'!D2)) ->  | H11: =IF(B11="","",'出場選手エントリー票 女'!H2) ->  | I11: =IF('出場選手エントリー票 女'!K2="","",'出場選手エントリー票 女'!K2) ->  | J11: =IF('出場選手エントリー票 女'!L2="","",'出場選手エントリー票 女'!L2) ->  | K11: =IF('出場選手エントリー票 女'!M2="","",'出場選手エントリー票 女'!M2) ->  | L11: =IF('出場選手エントリー票 女'!N2="","",VALUE('出場選手エントリー票 女'!N2)) ->  | M11: =IF('出場選手エントリー票 女'!O2="","",VALUE('出場選手エントリー票 女'!O2)) ->  | T11: =IF(I11="",0,1) -> 0 | U11: =IF(J11="",0,1) -> 0 | V11: =IF(K11="",0,1) -> 0 | W11: =IF(ISERROR(VALUE(L11)),0,VALUE(L11)) -> 0 | X11: =IF(ISERROR(VALUE(M11)),0,VALUE(M11)) -> 0
A12: 2 | B12: =IF('出場選手エントリー票 女'!B3="","",IF(MID('出場選手エントリー票 女'!B3,2,1)="0",RIGHTB('出場選手エントリー票 女'!B3,3),RIGHTB('出場選手エントリー票 女'!B3,4))) ->  | F12: =IF(B12="","",('出場選手エントリー票 女'!C3&" "&'出場選手エントリー票 女'!D3)) ->  | H12: =IF(B12="","",'出場選手エントリー票 女'!H3) ->  | I12: =IF('出場選手エントリー票 女'!K3="","",'出場選手エントリー票 女'!K3) ->  | J12: =IF('出場選手エントリー票 女'!L3="","",'出場選手エントリー票 女'!L3) ->  | K12: =IF('出場選手エントリー票 女'!M3="","",'出場選手エントリー票 女'!M3) ->  | L12: =IF('出場選手エントリー票 女'!N3="","",VALUE('出場選手エントリー票 女'!N3)) ->  | M12: =IF('出場選手エントリー票 女'!O3="","",VALUE('出場選手エントリー票 女'!O3)) ->  | T12: 0 | U12: 0 | V12: 0 | W12: 0 | X12: 0
A13: 3 | B13: =IF('出場選手エントリー票 女'!B4="","",IF(MID('出場選手エントリー票 女'!B4,2,1)="0",RIGHTB('出場選手エントリー票 女'!B4,3),RIGHTB('出場選手エントリー票 女'!B4,4))) ->  | F13: =IF(B13="","",('出場選手エントリー票 女'!C4&" "&'出場選手エントリー票 女'!D4)) ->  | H13: =IF(B13="","",'出場選手エントリー票 女'!H4) ->  | I13: =IF('出場選手エントリー票 女'!K4="","",'出場選手エントリー票 女'!K4) ->  | J13: =IF('出場選手エントリー票 女'!L4="","",'出場選手エントリー票 女'!L4) ->  | K13: =IF('出場選手エントリー票 女'!M4="","",'出場選手エントリー票 女'!M4) ->  | L13: =IF('出場選手エントリー票 女'!N4="","",VALUE('出場選手エントリー票 女'!N4)) ->  | M13: =IF('出場選手エントリー票 女'!O4="","",VALUE('出場選手エントリー票 女'!O4)) ->  | T13: 0 | U13: 0 | V13: 0 | W13: 0 | X13: 0
A14: 4 | B14: =IF('出場選手エントリー票 女'!B5="","",IF(MID('出場選手エントリー票 女'!B5,2,1)="0",RIGHTB('出場選手エントリー票 女'!B5,3),RIGHTB('出場選手エントリー票 女'!B5,4))) ->  | F14: =IF(B14="","",('出場選手エントリー票 女'!C5&" "&'出場選手エントリー票 女'!D5)) ->  | H14: =IF(B14="","",'出場選手エントリー票 女'!H5) ->  | I14: =IF('出場選手エントリー票 女'!K5="","",'出場選手エントリー票 女'!K5) ->  | J14: =IF('出場選手エントリー票 女'!L5="","",'出場選手エントリー票 女'!L5) ->  | K14: =IF('出場選手エントリー票 女'!M5="","",'出場選手エントリー票 女'!M5) ->  | L14: =IF('出場選手エントリー票 女'!N5="","",VALUE('出場選手エントリー票 女'!N5)) ->  | M14: =IF('出場選手エントリー票 女'!O5="","",VALUE('出場選手エントリー票 女'!O5)) ->  | T14: 0 | U14: 0 | V14: 0 | W14: 0 | X14: 0
A15: 5 | B15: =IF('出場選手エントリー票 女'!B6="","",IF(MID('出場選手エントリー票 女'!B6,2,1)="0",RIGHTB('出場選手エントリー票 女'!B6,3),RIGHTB('出場選手エントリー票 女'!B6,4))) ->  | F15: =IF(B15="","",('出場選手エントリー票 女'!C6&" "&'出場選手エントリー票 女'!D6)) ->  | H15: =IF(B15="","",'出場選手エントリー票 女'!H6) ->  | I15: =IF('出場選手エントリー票 女'!K6="","",'出場選手エントリー票 女'!K6) ->  | J15: =IF('出場選手エントリー票 女'!L6="","",'出場選手エントリー票 女'!L6) ->  | K15: =IF('出場選手エントリー票 女'!M6="","",'出場選手エントリー票 女'!M6) ->  | L15: =IF('出場選手エントリー票 女'!N6="","",VALUE('出場選手エントリー票 女'!N6)) ->  | M15: =IF('出場選手エントリー票 女'!O6="","",VALUE('出場選手エントリー票 女'!O6)) ->  | T15: 0 | U15: 0 | V15: 0 | W15: 0 | X15: 0
A16: 6 | B16: =IF('出場選手エントリー票 女'!B7="","",IF(MID('出場選手エントリー票 女'!B7,2,1)="0",RIGHTB('出場選手エントリー票 女'!B7,3),RIGHTB('出場選手エントリー票 女'!B7,4))) ->  | F16: =IF(B16="","",('出場選手エントリー票 女'!C7&" "&'出場選手エントリー票 女'!D7)) ->  | H16: =IF(B16="","",'出場選手エントリー票 女'!H7) ->  | I16: =IF('出場選手エントリー票 女'!K7="","",'出場選手エントリー票 女'!K7) ->  | J16: =IF('出場選手エントリー票 女'!L7="","",'出場選手エントリー票 女'!L7) ->  | K16: =IF('出場選手エントリー票 女'!M7="","",'出場選手エントリー票 女'!M7) ->  | L16: =IF('出場選手エントリー票 女'!N7="","",VALUE('出場選手エントリー票 女'!N7)) ->  | M16: =IF('出場選手エントリー票 女'!O7="","",VALUE('出場選手エントリー票 女'!O7)) ->  | T16: 0 | U16: 0 | V16: 0 | W16: 0 | X16: 0
A17: 7 | B17: =IF('出場選手エントリー票 女'!B8="","",IF(MID('出場選手エントリー票 女'!B8,2,1)="0",RIGHTB('出場選手エントリー票 女'!B8,3),RIGHTB('出場選手エントリー票 女'!B8,4))) ->  | F17: =IF(B17="","",('出場選手エントリー票 女'!C8&" "&'出場選手エントリー票 女'!D8)) ->  | H17: =IF(B17="","",'出場選手エントリー票 女'!H8) ->  | I17: =IF('出場選手エントリー票 女'!K8="","",'出場選手エントリー票 女'!K8) ->  | J17: =IF('出場選手エントリー票 女'!L8="","",'出場選手エントリー票 女'!L8) ->  | K17: =IF('出場選手エントリー票 女'!M8="","",'出場選手エントリー票 女'!M8) ->  | L17: =IF('出場選手エントリー票 女'!N8="","",VALUE('出場選手エントリー票 女'!N8)) ->  | M17: =IF('出場選手エントリー票 女'!O8="","",VALUE('出場選手エントリー票 女'!O8)) ->  | T17: 0 | U17: 0 | V17: 0 | W17: 0 | X17: 0
A18: 8 | B18: =IF('出場選手エントリー票 女'!B9="","",IF(MID('出場選手エントリー票 女'!B9,2,1)="0",RIGHTB('出場選手エントリー票 女'!B9,3),RIGHTB('出場選手エントリー票 女'!B9,4))) ->  | F18: =IF(B18="","",('出場選手エントリー票 女'!C9&" "&'出場選手エントリー票 女'!D9)) ->  | H18: =IF(B18="","",'出場選手エントリー票 女'!H9) ->  | I18: =IF('出場選手エントリー票 女'!K9="","",'出場選手エントリー票 女'!K9) ->  | J18: =IF('出場選手エントリー票 女'!L9="","",'出場選手エントリー票 女'!L9) ->  | K18: =IF('出場選手エントリー票 女'!M9="","",'出場選手エントリー票 女'!M9) ->  | L18: =IF('出場選手エントリー票 女'!N9="","",VALUE('出場選手エントリー票 女'!N9)) ->  | M18: =IF('出場選手エントリー票 女'!O9="","",VALUE('出場選手エントリー票 女'!O9)) ->  | T18: 0 | U18: 0 | V18: 0 | W18: 0 | X18: 0
A19: 9 | B19: =IF('出場選手エントリー票 女'!B10="","",IF(MID('出場選手エントリー票 女'!B10,2,1)="0",RIGHTB('出場選手エントリー票 女'!B10,3),RIGHTB('出場選手エントリー票 女'!B10,4))) ->  | F19: =IF(B19="","",('出場選手エントリー票 女'!C10&" "&'出場選手エントリー票 女'!D10)) ->  | H19: =IF(B19="","",'出場選手エントリー票 女'!H10) ->  | I19: =IF('出場選手エントリー票 女'!K10="","",'出場選手エントリー票 女'!K10) ->  | J19: =IF('出場選手エントリー票 女'!L10="","",'出場選手エントリー票 女'!L10) ->  | K19: =IF('出場選手エントリー票 女'!M10="","",'出場選手エントリー票 女'!M10) ->  | L19: =IF('出場選手エントリー票 女'!N10="","",VALUE('出場選手エントリー票 女'!N10)) ->  | M19: =IF('出場選手エントリー票 女'!O10="","",VALUE('出場選手エントリー票 女'!O10)) ->  | T19: 0 | U19: 0 | V19: 0 | W19: 0 | X19: 0
A20: 10 | B20: =IF('出場選手エントリー票 女'!B11="","",IF(MID('出場選手エントリー票 女'!B11,2,1)="0",RIGHTB('出場選手エントリー票 女'!B11,3),RIGHTB('出場選手エントリー票 女'!B11,4))) ->  | F20: =IF(B20="","",('出場選手エントリー票 女'!C11&" "&'出場選手エントリー票 女'!D11)) ->  | H20: =IF(B20="","",'出場選手エントリー票 女'!H11) ->  | I20: =IF('出場選手エントリー票 女'!K11="","",'出場選手エントリー票 女'!K11) ->  | J20: =IF('出場選手エントリー票 女'!L11="","",'出場選手エントリー票 女'!L11) ->  | K20: =IF('出場選手エントリー票 女'!M11="","",'出場選手エントリー票 女'!M11) ->  | L20: =IF('出場選手エントリー票 女'!N11="","",VALUE('出場選手エントリー票 女'!N11)) ->  | M20: =IF('出場選手エントリー票 女'!O11="","",VALUE('出場選手エントリー票 女'!O11)) ->  | T20: 0 | U20: 0 | V20: 0 | W20: 0 | X20: 0
A21: 11 | B21: =IF('出場選手エントリー票 女'!B12="","",IF(MID('出場選手エントリー票 女'!B12,2,1)="0",RIGHTB('出場選手エントリー票 女'!B12,3),RIGHTB('出場選手エントリー票 女'!B12,4))) ->  | F21: =IF(B21="","",('出場選手エントリー票 女'!C12&" "&'出場選手エントリー票 女'!D12)) ->  | H21: =IF(B21="","",'出場選手エントリー票 女'!H12) ->  | I21: =IF('出場選手エントリー票 女'!K12="","",'出場選手エントリー票 女'!K12) ->  | J21: =IF('出場選手エントリー票 女'!L12="","",'出場選手エントリー票 女'!L12) ->  | K21: =IF('出場選手エントリー票 女'!M12="","",'出場選手エントリー票 女'!M12) ->  | L21: =IF('出場選手エントリー票 女'!N12="","",VALUE('出場選手エントリー票 女'!N12)) ->  | M21: =IF('出場選手エントリー票 女'!O12="","",VALUE('出場選手エントリー票 女'!O12)) ->  | T21: 0 | U21: 0 | V21: 0 | W21: 0 | X21: 0
A22: 12 | B22: =IF('出場選手エントリー票 女'!B13="","",IF(MID('出場選手エントリー票 女'!B13,2,1)="0",RIGHTB('出場選手エントリー票 女'!B13,3),RIGHTB('出場選手エントリー票 女'!B13,4))) ->  | F22: =IF(B22="","",('出場選手エントリー票 女'!C13&" "&'出場選手エントリー票 女'!D13)) ->  | H22: =IF(B22="","",'出場選手エントリー票 女'!H13) ->  | I22: =IF('出場選手エントリー票 女'!K13="","",'出場選手エントリー票 女'!K13) ->  | J22: =IF('出場選手エントリー票 女'!L13="","",'出場選手エントリー票 女'!L13) ->  | K22: =IF('出場選手エントリー票 女'!M13="","",'出場選手エントリー票 女'!M13) ->  | L22: =IF('出場選手エントリー票 女'!N13="","",VALUE('出場選手エントリー票 女'!N13)) ->  | M22: =IF('出場選手エントリー票 女'!O13="","",VALUE('出場選手エントリー票 女'!O13)) ->  | T22: 0 | U22: 0 | V22: 0 | W22: 0 | X22: 0
A23: 13 | B23: =IF('出場選手エントリー票 女'!B14="","",IF(MID('出場選手エントリー票 女'!B14,2,1)="0",RIGHTB('出場選手エントリー票 女'!B14,3),RIGHTB('出場選手エントリー票 女'!B14,4))) ->  | F23: =IF(B23="","",('出場選手エントリー票 女'!C14&" "&'出場選手エントリー票 女'!D14)) ->  | H23: =IF(B23="","",'出場選手エントリー票 女'!H14) ->  | I23: =IF('出場選手エントリー票 女'!K14="","",'出場選手エントリー票 女'!K14) ->  | J23: =IF('出場選手エントリー票 女'!L14="","",'出場選手エントリー票 女'!L14) ->  | K23: =IF('出場選手エントリー票 女'!M14="","",'出場選手エントリー票 女'!M14) ->  | L23: =IF('出場選手エントリー票 女'!N14="","",VALUE('出場選手エントリー票 女'!N14)) ->  | M23: =IF('出場選手エントリー票 女'!O14="","",VALUE('出場選手エントリー票 女'!O14)) ->  | T23: 0 | U23: 0 | V23: 0 | W23: 0 | X23: 0
A24: 14 | B24: =IF('出場選手エントリー票 女'!B15="","",IF(MID('出場選手エントリー票 女'!B15,2,1)="0",RIGHTB('出場選手エントリー票 女'!B15,3),RIGHTB('出場選手エントリー票 女'!B15,4))) ->  | F24: =IF(B24="","",('出場選手エントリー票 女'!C15&" "&'出場選手エントリー票 女'!D15)) ->  | H24: =IF(B24="","",'出場選手エントリー票 女'!H15) ->  | I24: =IF('出場選手エントリー票 女'!K15="","",'出場選手エントリー票 女'!K15) ->  | J24: =IF('出場選手エントリー票 女'!L15="","",'出場選手エントリー票 女'!L15) ->  | K24: =IF('出場選手エントリー票 女'!M15="","",'出場選手エントリー票 女'!M15) ->  | L24: =IF('出場選手エントリー票 女'!N15="","",VALUE('出場選手エントリー票 女'!N15)) ->  | M24: =IF('出場選手エントリー票 女'!O15="","",VALUE('出場選手エントリー票 女'!O15)) ->  | T24: 0 | U24: 0 | V24: 0 | W24: 0 | X24: 0
A25: 15 | B25: =IF('出場選手エントリー票 女'!B16="","",IF(MID('出場選手エントリー票 女'!B16,2,1)="0",RIGHTB('出場選手エントリー票 女'!B16,3),RIGHTB('出場選手エントリー票 女'!B16,4))) ->  | F25: =IF(B25="","",('出場選手エントリー票 女'!C16&" "&'出場選手エントリー票 女'!D16)) ->  | H25: =IF(B25="","",'出場選手エントリー票 女'!H16) ->  | I25: =IF('出場選手エントリー票 女'!K16="","",'出場選手エントリー票 女'!K16) ->  | J25: =IF('出場選手エントリー票 女'!L16="","",'出場選手エントリー票 女'!L16) ->  | K25: =IF('出場選手エントリー票 女'!M16="","",'出場選手エントリー票 女'!M16) ->  | L25: =IF('出場選手エントリー票 女'!N16="","",VALUE('出場選手エントリー票 女'!N16)) ->  | M25: =IF('出場選手エントリー票 女'!O16="","",VALUE('出場選手エントリー票 女'!O16)) ->  | T25: 0 | U25: 0 | V25: 0 | W25: 0 | X25: 0
A26: 16 | B26: =IF('出場選手エントリー票 女'!B17="","",IF(MID('出場選手エントリー票 女'!B17,2,1)="0",RIGHTB('出場選手エントリー票 女'!B17,3),RIGHTB('出場選手エントリー票 女'!B17,4))) ->  | F26: =IF(B26="","",('出場選手エントリー票 女'!C17&" "&'出場選手エントリー票 女'!D17)) ->  | H26: =IF(B26="","",'出場選手エントリー票 女'!H17) ->  | I26: =IF('出場選手エントリー票 女'!K17="","",'出場選手エントリー票 女'!K17) ->  | J26: =IF('出場選手エントリー票 女'!L17="","",'出場選手エントリー票 女'!L17) ->  | K26: =IF('出場選手エントリー票 女'!M17="","",'出場選手エントリー票 女'!M17) ->  | L26: =IF('出場選手エントリー票 女'!N17="","",VALUE('出場選手エントリー票 女'!N17)) ->  | M26: =IF('出場選手エントリー票 女'!O17="","",VALUE('出場選手エントリー票 女'!O17)) ->  | T26: 0 | U26: 0 | V26: 0 | W26: 0 | X26: 0
A27: 17 | B27: =IF('出場選手エントリー票 女'!B18="","",IF(MID('出場選手エントリー票 女'!B18,2,1)="0",RIGHTB('出場選手エントリー票 女'!B18,3),RIGHTB('出場選手エントリー票 女'!B18,4))) ->  | F27: =IF(B27="","",('出場選手エントリー票 女'!C18&" "&'出場選手エントリー票 女'!D18)) ->  | H27: =IF(B27="","",'出場選手エントリー票 女'!H18) ->  | I27: =IF('出場選手エントリー票 女'!K18="","",'出場選手エントリー票 女'!K18) ->  | J27: =IF('出場選手エントリー票 女'!L18="","",'出場選手エントリー票 女'!L18) ->  | K27: =IF('出場選手エントリー票 女'!M18="","",'出場選手エントリー票 女'!M18) ->  | L27: =IF('出場選手エントリー票 女'!N18="","",VALUE('出場選手エントリー票 女'!N18)) ->  | M27: =IF('出場選手エントリー票 女'!O18="","",VALUE('出場選手エントリー票 女'!O18)) ->  | T27: 0 | U27: 0 | V27: 0 | W27: 0 | X27: 0
A28: 18 | B28: =IF('出場選手エントリー票 女'!B19="","",IF(MID('出場選手エントリー票 女'!B19,2,1)="0",RIGHTB('出場選手エントリー票 女'!B19,3),RIGHTB('出場選手エントリー票 女'!B19,4))) ->  | F28: =IF(B28="","",('出場選手エントリー票 女'!C19&" "&'出場選手エントリー票 女'!D19)) ->  | H28: =IF(B28="","",'出場選手エントリー票 女'!H19) ->  | I28: =IF('出場選手エントリー票 女'!K19="","",'出場選手エントリー票 女'!K19) ->  | J28: =IF('出場選手エントリー票 女'!L19="","",'出場選手エントリー票 女'!L19) ->  | K28: =IF('出場選手エントリー票 女'!M19="","",'出場選手エントリー票 女'!M19) ->  | L28: =IF('出場選手エントリー票 女'!N19="","",VALUE('出場選手エントリー票 女'!N19)) ->  | M28: =IF('出場選手エントリー票 女'!O19="","",VALUE('出場選手エントリー票 女'!O19)) ->  | T28: 0 | U28: 0 | V28: 0 | W28: 0 | X28: 0
A29: 19 | B29: =IF('出場選手エントリー票 女'!B20="","",IF(MID('出場選手エントリー票 女'!B20,2,1)="0",RIGHTB('出場選手エントリー票 女'!B20,3),RIGHTB('出場選手エントリー票 女'!B20,4))) ->  | F29: =IF(B29="","",('出場選手エントリー票 女'!C20&" "&'出場選手エントリー票 女'!D20)) ->  | H29: =IF(B29="","",'出場選手エントリー票 女'!H20) ->  | I29: =IF('出場選手エントリー票 女'!K20="","",'出場選手エントリー票 女'!K20) ->  | J29: =IF('出場選手エントリー票 女'!L20="","",'出場選手エントリー票 女'!L20) ->  | K29: =IF('出場選手エントリー票 女'!M20="","",'出場選手エントリー票 女'!M20) ->  | L29: =IF('出場選手エントリー票 女'!N20="","",VALUE('出場選手エントリー票 女'!N20)) ->  | M29: =IF('出場選手エントリー票 女'!O20="","",VALUE('出場選手エントリー票 女'!O20)) ->  | T29: 0 | U29: 0 | V29: 0 | W29: 0 | X29: 0
A30: 20 | B30: =IF('出場選手エントリー票 女'!B21="","",IF(MID('出場選手エントリー票 女'!B21,2,1)="0",RIGHTB('出場選手エントリー票 女'!B21,3),RIGHTB('出場選手エントリー票 女'!B21,4))) ->  | F30: =IF(B30="","",('出場選手エントリー票 女'!C21&" "&'出場選手エントリー票 女'!D21)) ->  | H30: =IF(B30="","",'出場選手エントリー票 女'!H21) ->  | I30: =IF('出場選手エントリー票 女'!K21="","",'出場選手エントリー票 女'!K21) ->  | J30: =IF('出場選手エントリー票 女'!L21="","",'出場選手エントリー票 女'!L21) ->  | K30: =IF('出場選手エントリー票 女'!M21="","",'出場選手エントリー票 女'!M21) ->  | L30: =IF('出場選手エントリー票 女'!N21="","",VALUE('出場選手エントリー票 女'!N21)) ->  | M30: =IF('出場選手エントリー票 女'!O21="","",VALUE('出場選手エントリー票 女'!O21)) ->  | T30: 0 | U30: 0 | V30: 0 | W30: 0 | X30: 0
A31: 〈支部大会種目等〉 | N31: 〈都大会種目等〉
A32: 個人 | F32: 混成 | G32: リレー | I32: ﾌﾟﾛｸﾞﾗﾑ(追加) | N32: 個人 | O32: リレー | P32: 混成 | Q32: ﾌﾟﾛｸﾞﾗﾑ
A33: ＠６００円 | F33: ＠１５００円 | G33: ＠１２００円 | I33: ＠６００円 | N33: @1000円 | O33: @1600円 | P33: @2000円 | Q33: @800円
A34: =COUNTIF($T$11:$V$75,1) -> 0 | F34: =COUNTIF('出場選手エントリー票 女'!$K$1:$K$65,"八種")+COUNTIF('出場選手エントリー票 女'!$L$1:$L$65,"八種")+COUNTIF('出場選手エントリー票 女'!$M$1:$M$65,"八種")+COUNTIF('出場選手エントリー票 女'!$K$1:$K$65,"七種")+COUNTIF('出場選手エントリー票 女'!$L$1:$L$65,"七種")+COUNTIF('出場選手エントリー票 女'!$M$1:$M$65,"七種") -> 0 | G34: =SUM(MAX($W$11:$W$75),MAX($X$11:$X$75)) -> 0 | I34: =出場選手エントリー票!I3 -> 0 | K34: 合計 | N34: 種目 | O34: ﾁｰﾑ | P34: 名 | Q34: 冊 | R34: 合計
A35: =A34*600 -> 0 | F35: =F34*1500 -> 0 | G35: =G34*1200 -> 0 | I35: =I34*600 -> 0 | K35: =A35+F35+G35+I35 -> 0 | N35: 円 | O35: 円 | P35: 円 | Q35: 円 | R35: 円
A36: 21 | B36: =IF('出場選手エントリー票 女'!B22="","",IF(MID('出場選手エントリー票 女'!B22,2,1)="0",RIGHTB('出場選手エントリー票 女'!B22,3),RIGHTB('出場選手エントリー票 女'!B22,4))) ->  | F36: =IF(B36="","",('出場選手エントリー票 女'!C22&" "&'出場選手エントリー票 女'!D22)) ->  | H36: =IF(B36="","",'出場選手エントリー票 女'!H22) ->  | I36: =IF('出場選手エントリー票 女'!K22="","",'出場選手エントリー票 女'!K22) ->  | J36: =IF('出場選手エントリー票 女'!L22="","",'出場選手エントリー票 女'!L22) ->  | K36: =IF('出場選手エントリー票 女'!M22="","",'出場選手エントリー票 女'!M22) ->  | L36: =IF('出場選手エントリー票 女'!N22="","",VALUE('出場選手エントリー票 女'!N22)) ->  | M36: =IF('出場選手エントリー票 女'!O22="","",VALUE('出場選手エントリー票 女'!O22)) ->  | T36: =IF(I36="",0,1) -> 0 | U36: =IF(J36="",0,1) -> 0 | V36: =IF(K36="",0,1) -> 0 | W36: =IF(ISERROR(VALUE(L36)),0,VALUE(L36)) -> 0 | X36: =IF(ISERROR(VALUE(M36)),0,VALUE(M36)) -> 0
A37: 22 | B37: =IF('出場選手エントリー票 女'!B23="","",IF(MID('出場選手エントリー票 女'!B23,2,1)="0",RIGHTB('出場選手エントリー票 女'!B23,3),RIGHTB('出場選手エントリー票 女'!B23,4))) ->  | F37: =IF(B37="","",('出場選手エントリー票 女'!C23&" "&'出場選手エントリー票 女'!D23)) ->  | H37: =IF(B37="","",'出場選手エントリー票 女'!H23) ->  | I37: =IF('出場選手エントリー票 女'!K23="","",'出場選手エントリー票 女'!K23) ->  | J37: =IF('出場選手エントリー票 女'!L23="","",'出場選手エントリー票 女'!L23) ->  | K37: =IF('出場選手エントリー票 女'!M23="","",'出場選手エントリー票 女'!M23) ->  | L37: =IF('出場選手エントリー票 女'!N23="","",VALUE('出場選手エントリー票 女'!N23)) ->  | M37: =IF('出場選手エントリー票 女'!O23="","",VALUE('出場選手エントリー票 女'!O23)) ->  | T37: 0 | U37: 0 | V37: 0 | W37: 0 | X37: 0
A38: 23 | B38: =IF('出場選手エントリー票 女'!B24="","",IF(MID('出場選手エントリー票 女'!B24,2,1)="0",RIGHTB('出場選手エントリー票 女'!B24,3),RIGHTB('出場選手エントリー票 女'!B24,4))) ->  | F38: =IF(B38="","",('出場選手エントリー票 女'!C24&" "&'出場選手エントリー票 女'!D24)) ->  | H38: =IF(B38="","",'出場選手エントリー票 女'!H24) ->  | I38: =IF('出場選手エントリー票 女'!K24="","",'出場選手エントリー票 女'!K24) ->  | J38: =IF('出場選手エントリー票 女'!L24="","",'出場選手エントリー票 女'!L24) ->  | K38: =IF('出場選手エントリー票 女'!M24="","",'出場選手エントリー票 女'!M24) ->  | L38: =IF('出場選手エントリー票 女'!N24="","",VALUE('出場選手エントリー票 女'!N24)) ->  | M38: =IF('出場選手エントリー票 女'!O24="","",VALUE('出場選手エントリー票 女'!O24)) ->  | T38: 0 | U38: 0 | V38: 0 | W38: 0 | X38: 0
A39: 24 | B39: =IF('出場選手エントリー票 女'!B25="","",IF(MID('出場選手エントリー票 女'!B25,2,1)="0",RIGHTB('出場選手エントリー票 女'!B25,3),RIGHTB('出場選手エントリー票 女'!B25,4))) ->  | F39: =IF(B39="","",('出場選手エントリー票 女'!C25&" "&'出場選手エントリー票 女'!D25)) ->  | H39: =IF(B39="","",'出場選手エントリー票 女'!H25) ->  | I39: =IF('出場選手エントリー票 女'!K25="","",'出場選手エントリー票 女'!K25) ->  | J39: =IF('出場選手エントリー票 女'!L25="","",'出場選手エントリー票 女'!L25) ->  | K39: =IF('出場選手エントリー票 女'!M25="","",'出場選手エントリー票 女'!M25) ->  | L39: =IF('出場選手エントリー票 女'!N25="","",VALUE('出場選手エントリー票 女'!N25)) ->  | M39: =IF('出場選手エントリー票 女'!O25="","",VALUE('出場選手エントリー票 女'!O25)) ->  | T39: 0 | U39: 0 | V39: 0 | W39: 0 | X39: 0
A40: 25 | B40: =IF('出場選手エントリー票 女'!B26="","",IF(MID('出場選手エントリー票 女'!B26,2,1)="0",RIGHTB('出場選手エントリー票 女'!B26,3),RIGHTB('出場選手エントリー票 女'!B26,4))) ->  | F40: =IF(B40="","",('出場選手エントリー票 女'!C26&" "&'出場選手エントリー票 女'!D26)) ->  | H40: =IF(B40="","",'出場選手エントリー票 女'!H26) ->  | I40: =IF('出場選手エントリー票 女'!K26="","",'出場選手エントリー票 女'!K26) ->  | J40: =IF('出場選手エントリー票 女'!L26="","",'出場選手エントリー票 女'!L26) ->  | K40: =IF('出場選手エントリー票 女'!M26="","",'出場選手エントリー票 女'!M26) ->  | L40: =IF('出場選手エントリー票 女'!N26="","",VALUE('出場選手エントリー票 女'!N26)) ->  | M40: =IF('出場選手エントリー票 女'!O26="","",VALUE('出場選手エントリー票 女'!O26)) ->  | T40: 0 | U40: 0 | V40: 0 | W40: 0 | X40: 0
A41: 26 | B41: =IF('出場選手エントリー票 女'!B27="","",IF(MID('出場選手エントリー票 女'!B27,2,1)="0",RIGHTB('出場選手エントリー票 女'!B27,3),RIGHTB('出場選手エントリー票 女'!B27,4))) ->  | F41: =IF(B41="","",('出場選手エントリー票 女'!C27&" "&'出場選手エントリー票 女'!D27)) ->  | H41: =IF(B41="","",'出場選手エントリー票 女'!H27) ->  | I41: =IF('出場選手エントリー票 女'!K27="","",'出場選手エントリー票 女'!K27) ->  | J41: =IF('出場選手エントリー票 女'!L27="","",'出場選手エントリー票 女'!L27) ->  | K41: =IF('出場選手エントリー票 女'!M27="","",'出場選手エントリー票 女'!M27) ->  | L41: =IF('出場選手エントリー票 女'!N27="","",VALUE('出場選手エントリー票 女'!N27)) ->  | M41: =IF('出場選手エントリー票 女'!O27="","",VALUE('出場選手エントリー票 女'!O27)) ->  | T41: 0 | U41: 0 | V41: 0 | W41: 0 | X41: 0
A42: 27 | B42: =IF('出場選手エントリー票 女'!B28="","",IF(MID('出場選手エントリー票 女'!B28,2,1)="0",RIGHTB('出場選手エントリー票 女'!B28,3),RIGHTB('出場選手エントリー票 女'!B28,4))) ->  | F42: =IF(B42="","",('出場選手エントリー票 女'!C28&" "&'出場選手エントリー票 女'!D28)) ->  | H42: =IF(B42="","",'出場選手エントリー票 女'!H28) ->  | I42: =IF('出場選手エントリー票 女'!K28="","",'出場選手エントリー票 女'!K28) ->  | J42: =IF('出場選手エントリー票 女'!L28="","",'出場選手エントリー票 女'!L28) ->  | K42: =IF('出場選手エントリー票 女'!M28="","",'出場選手エントリー票 女'!M28) ->  | L42: =IF('出場選手エントリー票 女'!N28="","",VALUE('出場選手エントリー票 女'!N28)) ->  | M42: =IF('出場選手エントリー票 女'!O28="","",VALUE('出場選手エントリー票 女'!O28)) ->  | T42: 0 | U42: 0 | V42: 0 | W42: 0 | X42: 0
A43: 28 | B43: =IF('出場選手エントリー票 女'!B29="","",IF(MID('出場選手エントリー票 女'!B29,2,1)="0",RIGHTB('出場選手エントリー票 女'!B29,3),RIGHTB('出場選手エントリー票 女'!B29,4))) ->  | F43: =IF(B43="","",('出場選手エントリー票 女'!C29&" "&'出場選手エントリー票 女'!D29)) ->  | H43: =IF(B43="","",'出場選手エントリー票 女'!H29) ->  | I43: =IF('出場選手エントリー票 女'!K29="","",'出場選手エントリー票 女'!K29) ->  | J43: =IF('出場選手エントリー票 女'!L29="","",'出場選手エントリー票 女'!L29) ->  | K43: =IF('出場選手エントリー票 女'!M29="","",'出場選手エントリー票 女'!M29) ->  | L43: =IF('出場選手エントリー票 女'!N29="","",VALUE('出場選手エントリー票 女'!N29)) ->  | M43: =IF('出場選手エントリー票 女'!O29="","",VALUE('出場選手エントリー票 女'!O29)) ->  | T43: 0 | U43: 0 | V43: 0 | W43: 0 | X43: 0
A44: 29 | B44: =IF('出場選手エントリー票 女'!B30="","",IF(MID('出場選手エントリー票 女'!B30,2,1)="0",RIGHTB('出場選手エントリー票 女'!B30,3),RIGHTB('出場選手エントリー票 女'!B30,4))) ->  | F44: =IF(B44="","",('出場選手エントリー票 女'!C30&" "&'出場選手エントリー票 女'!D30)) ->  | H44: =IF(B44="","",'出場選手エントリー票 女'!H30) ->  | I44: =IF('出場選手エントリー票 女'!K30="","",'出場選手エントリー票 女'!K30) ->  | J44: =IF('出場選手エントリー票 女'!L30="","",'出場選手エントリー票 女'!L30) ->  | K44: =IF('出場選手エントリー票 女'!M30="","",'出場選手エントリー票 女'!M30) ->  | L44: =IF('出場選手エントリー票 女'!N30="","",VALUE('出場選手エントリー票 女'!N30)) ->  | M44: =IF('出場選手エントリー票 女'!O30="","",VALUE('出場選手エントリー票 女'!O30)) ->  | T44: 0 | U44: 0 | V44: 0 | W44: 0 | X44: 0
A45: 30 | B45: =IF('出場選手エントリー票 女'!B31="","",IF(MID('出場選手エントリー票 女'!B31,2,1)="0",RIGHTB('出場選手エントリー票 女'!B31,3),RIGHTB('出場選手エントリー票 女'!B31,4))) ->  | F45: =IF(B45="","",('出場選手エントリー票 女'!C31&" "&'出場選手エントリー票 女'!D31)) ->  | H45: =IF(B45="","",'出場選手エントリー票 女'!H31) ->  | I45: =IF('出場選手エントリー票 女'!K31="","",'出場選手エントリー票 女'!K31) ->  | J45: =IF('出場選手エントリー票 女'!L31="","",'出場選手エントリー票 女'!L31) ->  | K45: =IF('出場選手エントリー票 女'!M31="","",'出場選手エントリー票 女'!M31) ->  | L45: =IF('出場選手エントリー票 女'!N31="","",VALUE('出場選手エントリー票 女'!N31)) ->  | M45: =IF('出場選手エントリー票 女'!O31="","",VALUE('出場選手エントリー票 女'!O31)) ->  | T45: 0 | U45: 0 | V45: 0 | W45: 0 | X45: 0
A46: 31 | B46: =IF('出場選手エントリー票 女'!B32="","",IF(MID('出場選手エントリー票 女'!B32,2,1)="0",RIGHTB('出場選手エントリー票 女'!B32,3),RIGHTB('出場選手エントリー票 女'!B32,4))) ->  | F46: =IF(B46="","",('出場選手エントリー票 女'!C32&" "&'出場選手エントリー票 女'!D32)) ->  | H46: =IF(B46="","",'出場選手エントリー票 女'!H32) ->  | I46: =IF('出場選手エントリー票 女'!K32="","",'出場選手エントリー票 女'!K32) ->  | J46: =IF('出場選手エントリー票 女'!L32="","",'出場選手エントリー票 女'!L32) ->  | K46: =IF('出場選手エントリー票 女'!M32="","",'出場選手エントリー票 女'!M32) ->  | L46: =IF('出場選手エントリー票 女'!N32="","",VALUE('出場選手エントリー票 女'!N32)) ->  | M46: =IF('出場選手エントリー票 女'!O32="","",VALUE('出場選手エントリー票 女'!O32)) ->  | T46: 0 | U46: 0 | V46: 0 | W46: 0 | X46: 0
A47: 32 | B47: =IF('出場選手エントリー票 女'!B33="","",IF(MID('出場選手エントリー票 女'!B33,2,1)="0",RIGHTB('出場選手エントリー票 女'!B33,3),RIGHTB('出場選手エントリー票 女'!B33,4))) ->  | F47: =IF(B47="","",('出場選手エントリー票 女'!C33&" "&'出場選手エントリー票 女'!D33)) ->  | H47: =IF(B47="","",'出場選手エントリー票 女'!H33) ->  | I47: =IF('出場選手エントリー票 女'!K33="","",'出場選手エントリー票 女'!K33) ->  | J47: =IF('出場選手エントリー票 女'!L33="","",'出場選手エントリー票 女'!L33) ->  | K47: =IF('出場選手エントリー票 女'!M33="","",'出場選手エントリー票 女'!M33) ->  | L47: =IF('出場選手エントリー票 女'!N33="","",VALUE('出場選手エントリー票 女'!N33)) ->  | M47: =IF('出場選手エントリー票 女'!O33="","",VALUE('出場選手エントリー票 女'!O33)) ->  | T47: 0 | U47: 0 | V47: 0 | W47: 0 | X47: 0
A48: 33 | B48: =IF('出場選手エントリー票 女'!B34="","",IF(MID('出場選手エントリー票 女'!B34,2,1)="0",RIGHTB('出場選手エントリー票 女'!B34,3),RIGHTB('出場選手エントリー票 女'!B34,4))) ->  | F48: =IF(B48="","",('出場選手エントリー票 女'!C34&" "&'出場選手エントリー票 女'!D34)) ->  | H48: =IF(B48="","",'出場選手エントリー票 女'!H34) ->  | I48: =IF('出場選手エントリー票 女'!K34="","",'出場選手エントリー票 女'!K34) ->  | J48: =IF('出場選手エントリー票 女'!L34="","",'出場選手エントリー票 女'!L34) ->  | K48: =IF('出場選手エントリー票 女'!M34="","",'出場選手エントリー票 女'!M34) ->  | L48: =IF('出場選手エントリー票 女'!N34="","",VALUE('出場選手エントリー票 女'!N34)) ->  | M48: =IF('出場選手エントリー票 女'!O34="","",VALUE('出場選手エントリー票 女'!O34)) ->  | T48: 0 | U48: 0 | V48: 0 | W48: 0 | X48: 0
A49: 34 | B49: =IF('出場選手エントリー票 女'!B35="","",IF(MID('出場選手エントリー票 女'!B35,2,1)="0",RIGHTB('出場選手エントリー票 女'!B35,3),RIGHTB('出場選手エントリー票 女'!B35,4))) ->  | F49: =IF(B49="","",('出場選手エントリー票 女'!C35&" "&'出場選手エントリー票 女'!D35)) ->  | H49: =IF(B49="","",'出場選手エントリー票 女'!H35) ->  | I49: =IF('出場選手エントリー票 女'!K35="","",'出場選手エントリー票 女'!K35) ->  | J49: =IF('出場選手エントリー票 女'!L35="","",'出場選手エントリー票 女'!L35) ->  | K49: =IF('出場選手エントリー票 女'!M35="","",'出場選手エントリー票 女'!M35) ->  | L49: =IF('出場選手エントリー票 女'!N35="","",VALUE('出場選手エントリー票 女'!N35)) ->  | M49: =IF('出場選手エントリー票 女'!O35="","",VALUE('出場選手エントリー票 女'!O35)) ->  | T49: 0 | U49: 0 | V49: 0 | W49: 0 | X49: 0
A50: 35 | B50: =IF('出場選手エントリー票 女'!B36="","",IF(MID('出場選手エントリー票 女'!B36,2,1)="0",RIGHTB('出場選手エントリー票 女'!B36,3),RIGHTB('出場選手エントリー票 女'!B36,4))) ->  | F50: =IF(B50="","",('出場選手エントリー票 女'!C36&" "&'出場選手エントリー票 女'!D36)) ->  | H50: =IF(B50="","",'出場選手エントリー票 女'!H36) ->  | I50: =IF('出場選手エントリー票 女'!K36="","",'出場選手エントリー票 女'!K36) ->  | J50: =IF('出場選手エントリー票 女'!L36="","",'出場選手エントリー票 女'!L36) ->  | K50: =IF('出場選手エントリー票 女'!M36="","",'出場選手エントリー票 女'!M36) ->  | L50: =IF('出場選手エントリー票 女'!N36="","",VALUE('出場選手エントリー票 女'!N36)) ->  | M50: =IF('出場選手エントリー票 女'!O36="","",VALUE('出場選手エントリー票 女'!O36)) ->  | T50: 0 | U50: 0 | V50: 0 | W50: 0 | X50: 0
A51: 36 | B51: =IF('出場選手エントリー票 女'!B37="","",IF(MID('出場選手エントリー票 女'!B37,2,1)="0",RIGHTB('出場選手エントリー票 女'!B37,3),RIGHTB('出場選手エントリー票 女'!B37,4))) ->  | F51: =IF(B51="","",('出場選手エントリー票 女'!C37&" "&'出場選手エントリー票 女'!D37)) ->  | H51: =IF(B51="","",'出場選手エントリー票 女'!H37) ->  | I51: =IF('出場選手エントリー票 女'!K37="","",'出場選手エントリー票 女'!K37) ->  | J51: =IF('出場選手エントリー票 女'!L37="","",'出場選手エントリー票 女'!L37) ->  | K51: =IF('出場選手エントリー票 女'!M37="","",'出場選手エントリー票 女'!M37) ->  | L51: =IF('出場選手エントリー票 女'!N37="","",VALUE('出場選手エントリー票 女'!N37)) ->  | M51: =IF('出場選手エントリー票 女'!O37="","",VALUE('出場選手エントリー票 女'!O37)) ->  | T51: 0 | U51: 0 | V51: 0 | W51: 0 | X51: 0
A52: 37 | B52: =IF('出場選手エントリー票 女'!B38="","",IF(MID('出場選手エントリー票 女'!B38,2,1)="0",RIGHTB('出場選手エントリー票 女'!B38,3),RIGHTB('出場選手エントリー票 女'!B38,4))) ->  | F52: =IF(B52="","",('出場選手エントリー票 女'!C38&" "&'出場選手エントリー票 女'!D38)) ->  | H52: =IF(B52="","",'出場選手エントリー票 女'!H38) ->  | I52: =IF('出場選手エントリー票 女'!K38="","",'出場選手エントリー票 女'!K38) ->  | J52: =IF('出場選手エントリー票 女'!L38="","",'出場選手エントリー票 女'!L38) ->  | K52: =IF('出場選手エントリー票 女'!M38="","",'出場選手エントリー票 女'!M38) ->  | L52: =IF('出場選手エントリー票 女'!N38="","",VALUE('出場選手エントリー票 女'!N38)) ->  | M52: =IF('出場選手エントリー票 女'!O38="","",VALUE('出場選手エントリー票 女'!O38)) ->  | T52: 0 | U52: 0 | V52: 0 | W52: 0 | X52: 0
A53: 38 | B53: =IF('出場選手エントリー票 女'!B39="","",IF(MID('出場選手エントリー票 女'!B39,2,1)="0",RIGHTB('出場選手エントリー票 女'!B39,3),RIGHTB('出場選手エントリー票 女'!B39,4))) ->  | F53: =IF(B53="","",('出場選手エントリー票 女'!C39&" "&'出場選手エントリー票 女'!D39)) ->  | H53: =IF(B53="","",'出場選手エントリー票 女'!H39) ->  | I53: =IF('出場選手エントリー票 女'!K39="","",'出場選手エントリー票 女'!K39) ->  | J53: =IF('出場選手エントリー票 女'!L39="","",'出場選手エントリー票 女'!L39) ->  | K53: =IF('出場選手エントリー票 女'!M39="","",'出場選手エントリー票 女'!M39) ->  | L53: =IF('出場選手エントリー票 女'!N39="","",VALUE('出場選手エントリー票 女'!N39)) ->  | M53: =IF('出場選手エントリー票 女'!O39="","",VALUE('出場選手エントリー票 女'!O39)) ->  | T53: 0 | U53: 0 | V53: 0 | W53: 0 | X53: 0
A54: 39 | B54: =IF('出場選手エントリー票 女'!B40="","",IF(MID('出場選手エントリー票 女'!B40,2,1)="0",RIGHTB('出場選手エントリー票 女'!B40,3),RIGHTB('出場選手エントリー票 女'!B40,4))) ->  | F54: =IF(B54="","",('出場選手エントリー票 女'!C40&" "&'出場選手エントリー票 女'!D40)) ->  | H54: =IF(B54="","",'出場選手エントリー票 女'!H40) ->  | I54: =IF('出場選手エントリー票 女'!K40="","",'出場選手エントリー票 女'!K40) ->  | J54: =IF('出場選手エントリー票 女'!L40="","",'出場選手エントリー票 女'!L40) ->  | K54: =IF('出場選手エントリー票 女'!M40="","",'出場選手エントリー票 女'!M40) ->  | L54: =IF('出場選手エントリー票 女'!N40="","",VALUE('出場選手エントリー票 女'!N40)) ->  | M54: =IF('出場選手エントリー票 女'!O40="","",VALUE('出場選手エントリー票 女'!O40)) ->  | T54: 0 | U54: 0 | V54: 0 | W54: 0 | X54: 0
A55: 40 | B55: =IF('出場選手エントリー票 女'!B41="","",IF(MID('出場選手エントリー票 女'!B41,2,1)="0",RIGHTB('出場選手エントリー票 女'!B41,3),RIGHTB('出場選手エントリー票 女'!B41,4))) ->  | F55: =IF(B55="","",('出場選手エントリー票 女'!C41&" "&'出場選手エントリー票 女'!D41)) ->  | H55: =IF(B55="","",'出場選手エントリー票 女'!H41) ->  | I55: =IF('出場選手エントリー票 女'!K41="","",'出場選手エントリー票 女'!K41) ->  | J55: =IF('出場選手エントリー票 女'!L41="","",'出場選手エントリー票 女'!L41) ->  | K55: =IF('出場選手エントリー票 女'!M41="","",'出場選手エントリー票 女'!M41) ->  | L55: =IF('出場選手エントリー票 女'!N41="","",VALUE('出場選手エントリー票 女'!N41)) ->  | M55: =IF('出場選手エントリー票 女'!O41="","",VALUE('出場選手エントリー票 女'!O41)) ->  | T55: 0 | U55: 0 | V55: 0 | W55: 0 | X55: 0
A56: 41 | B56: =IF('出場選手エントリー票 女'!B42="","",IF(MID('出場選手エントリー票 女'!B42,2,1)="0",RIGHTB('出場選手エントリー票 女'!B42,3),RIGHTB('出場選手エントリー票 女'!B42,4))) ->  | F56: =IF(B56="","",('出場選手エントリー票 女'!C42&" "&'出場選手エントリー票 女'!D42)) ->  | H56: =IF(B56="","",'出場選手エントリー票 女'!H42) ->  | I56: =IF('出場選手エントリー票 女'!K42="","",'出場選手エントリー票 女'!K42) ->  | J56: =IF('出場選手エントリー票 女'!L42="","",'出場選手エントリー票 女'!L42) ->  | K56: =IF('出場選手エントリー票 女'!M42="","",'出場選手エントリー票 女'!M42) ->  | L56: =IF('出場選手エントリー票 女'!N42="","",VALUE('出場選手エントリー票 女'!N42)) ->  | M56: =IF('出場選手エントリー票 女'!O42="","",VALUE('出場選手エントリー票 女'!O42)) ->  | T56: 0 | U56: 0 | V56: 0 | W56: 0 | X56: 0
A57: 42 | B57: =IF('出場選手エントリー票 女'!B43="","",IF(MID('出場選手エントリー票 女'!B43,2,1)="0",RIGHTB('出場選手エントリー票 女'!B43,3),RIGHTB('出場選手エントリー票 女'!B43,4))) ->  | F57: =IF(B57="","",('出場選手エントリー票 女'!C43&" "&'出場選手エントリー票 女'!D43)) ->  | H57: =IF(B57="","",'出場選手エントリー票 女'!H43) ->  | I57: =IF('出場選手エントリー票 女'!K43="","",'出場選手エントリー票 女'!K43) ->  | J57: =IF('出場選手エントリー票 女'!L43="","",'出場選手エントリー票 女'!L43) ->  | K57: =IF('出場選手エントリー票 女'!M43="","",'出場選手エントリー票 女'!M43) ->  | L57: =IF('出場選手エントリー票 女'!N43="","",VALUE('出場選手エントリー票 女'!N43)) ->  | M57: =IF('出場選手エントリー票 女'!O43="","",VALUE('出場選手エントリー票 女'!O43)) ->  | T57: 0 | U57: 0 | V57: 0 | W57: 0 | X57: 0
A58: 43 | B58: =IF('出場選手エントリー票 女'!B44="","",IF(MID('出場選手エントリー票 女'!B44,2,1)="0",RIGHTB('出場選手エントリー票 女'!B44,3),RIGHTB('出場選手エントリー票 女'!B44,4))) ->  | F58: =IF(B58="","",('出場選手エントリー票 女'!C44&" "&'出場選手エントリー票 女'!D44)) ->  | H58: =IF(B58="","",'出場選手エントリー票 女'!H44) ->  | I58: =IF('出場選手エントリー票 女'!K44="","",'出場選手エントリー票 女'!K44) ->  | J58: =IF('出場選手エントリー票 女'!L44="","",'出場選手エントリー票 女'!L44) ->  | K58: =IF('出場選手エントリー票 女'!M44="","",'出場選手エントリー票 女'!M44) ->  | L58: =IF('出場選手エントリー票 女'!N44="","",VALUE('出場選手エントリー票 女'!N44)) ->  | M58: =IF('出場選手エントリー票 女'!O44="","",VALUE('出場選手エントリー票 女'!O44)) ->  | T58: 0 | U58: 0 | V58: 0 | W58: 0 | X58: 0
A59: 44 | B59: =IF('出場選手エントリー票 女'!B45="","",IF(MID('出場選手エントリー票 女'!B45,2,1)="0",RIGHTB('出場選手エントリー票 女'!B45,3),RIGHTB('出場選手エントリー票 女'!B45,4))) ->  | F59: =IF(B59="","",('出場選手エントリー票 女'!C45&" "&'出場選手エントリー票 女'!D45)) ->  | H59: =IF(B59="","",'出場選手エントリー票 女'!H45) ->  | I59: =IF('出場選手エントリー票 女'!K45="","",'出場選手エントリー票 女'!K45) ->  | J59: =IF('出場選手エントリー票 女'!L45="","",'出場選手エントリー票 女'!L45) ->  | K59: =IF('出場選手エントリー票 女'!M45="","",'出場選手エントリー票 女'!M45) ->  | L59: =IF('出場選手エントリー票 女'!N45="","",VALUE('出場選手エントリー票 女'!N45)) ->  | M59: =IF('出場選手エントリー票 女'!O45="","",VALUE('出場選手エントリー票 女'!O45)) ->  | T59: 0 | U59: 0 | V59: 0 | W59: 0 | X59: 0
A60: 45 | B60: =IF('出場選手エントリー票 女'!B46="","",IF(MID('出場選手エントリー票 女'!B46,2,1)="0",RIGHTB('出場選手エントリー票 女'!B46,3),RIGHTB('出場選手エントリー票 女'!B46,4))) ->  | F60: =IF(B60="","",('出場選手エントリー票 女'!C46&" "&'出場選手エントリー票 女'!D46)) ->  | H60: =IF(B60="","",'出場選手エントリー票 女'!H46) ->  | I60: =IF('出場選手エントリー票 女'!K46="","",'出場選手エントリー票 女'!K46) ->  | J60: =IF('出場選手エントリー票 女'!L46="","",'出場選手エントリー票 女'!L46) ->  | K60: =IF('出場選手エントリー票 女'!M46="","",'出場選手エントリー票 女'!M46) ->  | L60: =IF('出場選手エントリー票 女'!N46="","",VALUE('出場選手エントリー票 女'!N46)) ->  | M60: =IF('出場選手エントリー票 女'!O46="","",VALUE('出場選手エントリー票 女'!O46)) ->  | T60: 0 | U60: 0 | V60: 0 | W60: 0 | X60: 0
A61: 46 | B61: =IF('出場選手エントリー票 女'!B47="","",IF(MID('出場選手エントリー票 女'!B47,2,1)="0",RIGHTB('出場選手エントリー票 女'!B47,3),RIGHTB('出場選手エントリー票 女'!B47,4))) ->  | F61: =IF(B61="","",('出場選手エントリー票 女'!C47&" "&'出場選手エントリー票 女'!D47)) ->  | H61: =IF(B61="","",'出場選手エントリー票 女'!H47) ->  | I61: =IF('出場選手エントリー票 女'!K47="","",'出場選手エントリー票 女'!K47) ->  | J61: =IF('出場選手エントリー票 女'!L47="","",'出場選手エントリー票 女'!L47) ->  | K61: =IF('出場選手エントリー票 女'!M47="","",'出場選手エントリー票 女'!M47) ->  | L61: =IF('出場選手エントリー票 女'!N47="","",VALUE('出場選手エントリー票 女'!N47)) ->  | M61: =IF('出場選手エントリー票 女'!O47="","",VALUE('出場選手エントリー票 女'!O47)) ->  | T61: 0 | U61: 0 | V61: 0 | W61: 0 | X61: 0
A62: 47 | B62: =IF('出場選手エントリー票 女'!B48="","",IF(MID('出場選手エントリー票 女'!B48,2,1)="0",RIGHTB('出場選手エントリー票 女'!B48,3),RIGHTB('出場選手エントリー票 女'!B48,4))) ->  | F62: =IF(B62="","",('出場選手エントリー票 女'!C48&" "&'出場選手エントリー票 女'!D48)) ->  | H62: =IF(B62="","",'出場選手エントリー票 女'!H48) ->  | I62: =IF('出場選手エントリー票 女'!K48="","",'出場選手エントリー票 女'!K48) ->  | J62: =IF('出場選手エントリー票 女'!L48="","",'出場選手エントリー票 女'!L48) ->  | K62: =IF('出場選手エントリー票 女'!M48="","",'出場選手エントリー票 女'!M48) ->  | L62: =IF('出場選手エントリー票 女'!N48="","",VALUE('出場選手エントリー票 女'!N48)) ->  | M62: =IF('出場選手エントリー票 女'!O48="","",VALUE('出場選手エントリー票 女'!O48)) ->  | T62: 0 | U62: 0 | V62: 0 | W62: 0 | X62: 0
A63: 48 | B63: =IF('出場選手エントリー票 女'!B49="","",IF(MID('出場選手エントリー票 女'!B49,2,1)="0",RIGHTB('出場選手エントリー票 女'!B49,3),RIGHTB('出場選手エントリー票 女'!B49,4))) ->  | F63: =IF(B63="","",('出場選手エントリー票 女'!C49&" "&'出場選手エントリー票 女'!D49)) ->  | H63: =IF(B63="","",'出場選手エントリー票 女'!H49) ->  | I63: =IF('出場選手エントリー票 女'!K49="","",'出場選手エントリー票 女'!K49) ->  | J63: =IF('出場選手エントリー票 女'!L49="","",'出場選手エントリー票 女'!L49) ->  | K63: =IF('出場選手エントリー票 女'!M49="","",'出場選手エントリー票 女'!M49) ->  | L63: =IF('出場選手エントリー票 女'!N49="","",VALUE('出場選手エントリー票 女'!N49)) ->  | M63: =IF('出場選手エントリー票 女'!O49="","",VALUE('出場選手エントリー票 女'!O49)) ->  | T63: 0 | U63: 0 | V63: 0 | W63: 0 | X63: 0
A64: 49 | B64: =IF('出場選手エントリー票 女'!B50="","",IF(MID('出場選手エントリー票 女'!B50,2,1)="0",RIGHTB('出場選手エントリー票 女'!B50,3),RIGHTB('出場選手エントリー票 女'!B50,4))) ->  | F64: =IF(B64="","",('出場選手エントリー票 女'!C50&" "&'出場選手エントリー票 女'!D50)) ->  | H64: =IF(B64="","",'出場選手エントリー票 女'!H50) ->  | I64: =IF('出場選手エントリー票 女'!K50="","",'出場選手エントリー票 女'!K50) ->  | J64: =IF('出場選手エントリー票 女'!L50="","",'出場選手エントリー票 女'!L50) ->  | K64: =IF('出場選手エントリー票 女'!M50="","",'出場選手エントリー票 女'!M50) ->  | L64: =IF('出場選手エントリー票 女'!N50="","",VALUE('出場選手エントリー票 女'!N50)) ->  | M64: =IF('出場選手エントリー票 女'!O50="","",VALUE('出場選手エントリー票 女'!O50)) ->  | T64: 0 | U64: 0 | V64: 0 | W64: 0 | X64: 0
A65: 50 | B65: =IF('出場選手エントリー票 女'!B51="","",IF(MID('出場選手エントリー票 女'!B51,2,1)="0",RIGHTB('出場選手エントリー票 女'!B51,3),RIGHTB('出場選手エントリー票 女'!B51,4))) ->  | F65: =IF(B65="","",('出場選手エントリー票 女'!C51&" "&'出場選手エントリー票 女'!D51)) ->  | H65: =IF(B65="","",'出場選手エントリー票 女'!H51) ->  | I65: =IF('出場選手エントリー票 女'!K51="","",'出場選手エントリー票 女'!K51) ->  | J65: =IF('出場選手エントリー票 女'!L51="","",'出場選手エントリー票 女'!L51) ->  | K65: =IF('出場選手エントリー票 女'!M51="","",'出場選手エントリー票 女'!M51) ->  | L65: =IF('出場選手エントリー票 女'!N51="","",VALUE('出場選手エントリー票 女'!N51)) ->  | M65: =IF('出場選手エントリー票 女'!O51="","",VALUE('出場選手エントリー票 女'!O51)) ->  | T65: 0 | U65: 0 | V65: 0 | W65: 0 | X65: 0
A66: 51 | B66: =IF('出場選手エントリー票 女'!B52="","",IF(MID('出場選手エントリー票 女'!B52,2,1)="0",RIGHTB('出場選手エントリー票 女'!B52,3),RIGHTB('出場選手エントリー票 女'!B52,4))) ->  | F66: =IF(B66="","",('出場選手エントリー票 女'!C52&" "&'出場選手エントリー票 女'!D52)) ->  | H66: =IF(B66="","",'出場選手エントリー票 女'!H52) ->  | I66: =IF('出場選手エントリー票 女'!K52="","",'出場選手エントリー票 女'!K52) ->  | J66: =IF('出場選手エントリー票 女'!L52="","",'出場選手エントリー票 女'!L52) ->  | K66: =IF('出場選手エントリー票 女'!M52="","",'出場選手エントリー票 女'!M52) ->  | L66: =IF('出場選手エントリー票 女'!N52="","",VALUE('出場選手エントリー票 女'!N52)) ->  | M66: =IF('出場選手エントリー票 女'!O52="","",VALUE('出場選手エントリー票 女'!O52)) ->  | T66: 0 | U66: 0 | V66: 0 | W66: 0 | X66: 0
A67: 52 | B67: =IF('出場選手エントリー票 女'!B53="","",IF(MID('出場選手エントリー票 女'!B53,2,1)="0",RIGHTB('出場選手エントリー票 女'!B53,3),RIGHTB('出場選手エントリー票 女'!B53,4))) ->  | F67: =IF(B67="","",('出場選手エントリー票 女'!C53&" "&'出場選手エントリー票 女'!D53)) ->  | H67: =IF(B67="","",'出場選手エントリー票 女'!H53) ->  | I67: =IF('出場選手エントリー票 女'!K53="","",'出場選手エントリー票 女'!K53) ->  | J67: =IF('出場選手エントリー票 女'!L53="","",'出場選手エントリー票 女'!L53) ->  | K67: =IF('出場選手エントリー票 女'!M53="","",'出場選手エントリー票 女'!M53) ->  | L67: =IF('出場選手エントリー票 女'!N53="","",VALUE('出場選手エントリー票 女'!N53)) ->  | M67: =IF('出場選手エントリー票 女'!O53="","",VALUE('出場選手エントリー票 女'!O53)) ->  | T67: 0 | U67: 0 | V67: 0 | W67: 0 | X67: 0
A68: 53 | B68: =IF('出場選手エントリー票 女'!B54="","",IF(MID('出場選手エントリー票 女'!B54,2,1)="0",RIGHTB('出場選手エントリー票 女'!B54,3),RIGHTB('出場選手エントリー票 女'!B54,4))) ->  | F68: =IF(B68="","",('出場選手エントリー票 女'!C54&" "&'出場選手エントリー票 女'!D54)) ->  | H68: =IF(B68="","",'出場選手エントリー票 女'!H54) ->  | I68: =IF('出場選手エントリー票 女'!K54="","",'出場選手エントリー票 女'!K54) ->  | J68: =IF('出場選手エントリー票 女'!L54="","",'出場選手エントリー票 女'!L54) ->  | K68: =IF('出場選手エントリー票 女'!M54="","",'出場選手エントリー票 女'!M54) ->  | L68: =IF('出場選手エントリー票 女'!N54="","",VALUE('出場選手エントリー票 女'!N54)) ->  | M68: =IF('出場選手エントリー票 女'!O54="","",VALUE('出場選手エントリー票 女'!O54)) ->  | T68: 0 | U68: 0 | V68: 0 | W68: 0 | X68: 0
A69: 54 | B69: =IF('出場選手エントリー票 女'!B55="","",IF(MID('出場選手エントリー票 女'!B55,2,1)="0",RIGHTB('出場選手エントリー票 女'!B55,3),RIGHTB('出場選手エントリー票 女'!B55,4))) ->  | F69: =IF(B69="","",('出場選手エントリー票 女'!C55&" "&'出場選手エントリー票 女'!D55)) ->  | H69: =IF(B69="","",'出場選手エントリー票 女'!H55) ->  | I69: =IF('出場選手エントリー票 女'!K55="","",'出場選手エントリー票 女'!K55) ->  | J69: =IF('出場選手エントリー票 女'!L55="","",'出場選手エントリー票 女'!L55) ->  | K69: =IF('出場選手エントリー票 女'!M55="","",'出場選手エントリー票 女'!M55) ->  | L69: =IF('出場選手エントリー票 女'!N55="","",VALUE('出場選手エントリー票 女'!N55)) ->  | M69: =IF('出場選手エントリー票 女'!O55="","",VALUE('出場選手エントリー票 女'!O55)) ->  | T69: 0 | U69: 0 | V69: 0 | W69: 0 | X69: 0
A70: 55 | B70: =IF('出場選手エントリー票 女'!B56="","",IF(MID('出場選手エントリー票 女'!B56,2,1)="0",RIGHTB('出場選手エントリー票 女'!B56,3),RIGHTB('出場選手エントリー票 女'!B56,4))) ->  | F70: =IF(B70="","",('出場選手エントリー票 女'!C56&" "&'出場選手エントリー票 女'!D56)) ->  | H70: =IF(B70="","",'出場選手エントリー票 女'!H56) ->  | I70: =IF('出場選手エントリー票 女'!K56="","",'出場選手エントリー票 女'!K56) ->  | J70: =IF('出場選手エントリー票 女'!L56="","",'出場選手エントリー票 女'!L56) ->  | K70: =IF('出場選手エントリー票 女'!M56="","",'出場選手エントリー票 女'!M56) ->  | L70: =IF('出場選手エントリー票 女'!N56="","",VALUE('出場選手エントリー票 女'!N56)) ->  | M70: =IF('出場選手エントリー票 女'!O56="","",VALUE('出場選手エントリー票 女'!O56)) ->  | T70: 0 | U70: 0 | V70: 0 | W70: 0 | X70: 0
A71: 56 | B71: =IF('出場選手エントリー票 女'!B57="","",IF(MID('出場選手エントリー票 女'!B57,2,1)="0",RIGHTB('出場選手エントリー票 女'!B57,3),RIGHTB('出場選手エントリー票 女'!B57,4))) ->  | F71: =IF(B71="","",('出場選手エントリー票 女'!C57&" "&'出場選手エントリー票 女'!D57)) ->  | H71: =IF(B71="","",'出場選手エントリー票 女'!H57) ->  | I71: =IF('出場選手エントリー票 女'!K57="","",'出場選手エントリー票 女'!K57) ->  | J71: =IF('出場選手エントリー票 女'!L57="","",'出場選手エントリー票 女'!L57) ->  | K71: =IF('出場選手エントリー票 女'!M57="","",'出場選手エントリー票 女'!M57) ->  | L71: =IF('出場選手エントリー票 女'!N57="","",VALUE('出場選手エントリー票 女'!N57)) ->  | M71: =IF('出場選手エントリー票 女'!O57="","",VALUE('出場選手エントリー票 女'!O57)) ->  | T71: 0 | U71: 0 | V71: 0 | W71: 0 | X71: 0
A72: 57 | B72: =IF('出場選手エントリー票 女'!B58="","",IF(MID('出場選手エントリー票 女'!B58,2,1)="0",RIGHTB('出場選手エントリー票 女'!B58,3),RIGHTB('出場選手エントリー票 女'!B58,4))) ->  | F72: =IF(B72="","",('出場選手エントリー票 女'!C58&" "&'出場選手エントリー票 女'!D58)) ->  | H72: =IF(B72="","",'出場選手エントリー票 女'!H58) ->  | I72: =IF('出場選手エントリー票 女'!K58="","",'出場選手エントリー票 女'!K58) ->  | J72: =IF('出場選手エントリー票 女'!L58="","",'出場選手エントリー票 女'!L58) ->  | K72: =IF('出場選手エントリー票 女'!M58="","",'出場選手エントリー票 女'!M58) ->  | L72: =IF('出場選手エントリー票 女'!N58="","",VALUE('出場選手エントリー票 女'!N58)) ->  | M72: =IF('出場選手エントリー票 女'!O58="","",VALUE('出場選手エントリー票 女'!O58)) ->  | T72: 0 | U72: 0 | V72: 0 | W72: 0 | X72: 0
A73: 58 | B73: =IF('出場選手エントリー票 女'!B59="","",IF(MID('出場選手エントリー票 女'!B59,2,1)="0",RIGHTB('出場選手エントリー票 女'!B59,3),RIGHTB('出場選手エントリー票 女'!B59,4))) ->  | F73: =IF(B73="","",('出場選手エントリー票 女'!C59&" "&'出場選手エントリー票 女'!D59)) ->  | H73: =IF(B73="","",'出場選手エントリー票 女'!H59) ->  | I73: =IF('出場選手エントリー票 女'!K59="","",'出場選手エントリー票 女'!K59) ->  | J73: =IF('出場選手エントリー票 女'!L59="","",'出場選手エントリー票 女'!L59) ->  | K73: =IF('出場選手エントリー票 女'!M59="","",'出場選手エントリー票 女'!M59) ->  | L73: =IF('出場選手エントリー票 女'!N59="","",VALUE('出場選手エントリー票 女'!N59)) ->  | M73: =IF('出場選手エントリー票 女'!O59="","",VALUE('出場選手エントリー票 女'!O59)) ->  | T73: 0 | U73: 0 | V73: 0 | W73: 0 | X73: 0
A74: 59 | B74: =IF('出場選手エントリー票 女'!B60="","",IF(MID('出場選手エントリー票 女'!B60,2,1)="0",RIGHTB('出場選手エントリー票 女'!B60,3),RIGHTB('出場選手エントリー票 女'!B60,4))) ->  | F74: =IF(B74="","",('出場選手エントリー票 女'!C60&" "&'出場選手エントリー票 女'!D60)) ->  | H74: =IF(B74="","",'出場選手エントリー票 女'!H60) ->  | I74: =IF('出場選手エントリー票 女'!K60="","",'出場選手エントリー票 女'!K60) ->  | J74: =IF('出場選手エントリー票 女'!L60="","",'出場選手エントリー票 女'!L60) ->  | K74: =IF('出場選手エントリー票 女'!M60="","",'出場選手エントリー票 女'!M60) ->  | L74: =IF('出場選手エントリー票 女'!N60="","",VALUE('出場選手エントリー票 女'!N60)) ->  | M74: =IF('出場選手エントリー票 女'!O60="","",VALUE('出場選手エントリー票 女'!O60)) ->  | T74: 0 | U74: 0 | V74: 0 | W74: 0 | X74: 0
A75: 60 | B75: =IF('出場選手エントリー票 女'!B61="","",IF(MID('出場選手エントリー票 女'!B61,2,1)="0",RIGHTB('出場選手エントリー票 女'!B61,3),RIGHTB('出場選手エントリー票 女'!B61,4))) ->  | F75: =IF(B75="","",('出場選手エントリー票 女'!C61&" "&'出場選手エントリー票 女'!D61)) ->  | H75: =IF(B75="","",'出場選手エントリー票 女'!H61) ->  | I75: =IF('出場選手エントリー票 女'!K61="","",'出場選手エントリー票 女'!K61) ->  | J75: =IF('出場選手エントリー票 女'!L61="","",'出場選手エントリー票 女'!L61) ->  | K75: =IF('出場選手エントリー票 女'!M61="","",'出場選手エントリー票 女'!M61) ->  | L75: =IF('出場選手エントリー票 女'!N61="","",VALUE('出場選手エントリー票 女'!N61)) ->  | M75: =IF('出場選手エントリー票 女'!O61="","",VALUE('出場選手エントリー票 女'!O61)) ->  | T75: 0 | U75: 0 | V75: 0 | W75: 0 | X75: 0

Sheet 氏名データ (hidden)
B1: 支部 | C1: 学校番号 | D1: 氏名 | F1: ﾌﾘｶﾞﾅ | H1: 学年 | I1: 学校名 | K1: 性別 | L1: CSV貼付→ | M1: 登録番号 | N1: 生徒名 | P1: ﾌﾘｶﾞﾅ | R1: 性別 | T1: 学年 | W1: 支部 | X1: 学校番号 | Y1: 支部学校 | Z1: 所属（略称） | AA1: 所属（正式） | AD1: 住所 | AE1: 電話 | AF1: FAX
A2: =M2 -> 50122 | B2: =ROUNDDOWN(A2/10000,0) -> 5 | C2: =ROUNDDOWN((A2-B2*10000)/100,0) -> 1 | D2: =N2 -> 内 | E2: =O2 -> 凛太郎 | F2: =P2 -> ｳﾁ | G2: =Q2 -> ﾘﾝﾀﾛｳ | H2: =T2 -> 3 | I2: =VLOOKUP(B2*100+C2,テスト,2,0) -> 都武蔵 | K2: =R2 -> 男 | M2: 50122 | N2: 内 | O2: 凛太郎 | P2: ｳﾁ | Q2: ﾘﾝﾀﾛｳ | R2: 男 | T2: 3 | V2: =130000+W2*100+X2 -> 130501 | W2: 5 | X2: 1 | Y2: =W2*100+X2 -> 501 | Z2: 都武蔵 | AA2: 東京都立武蔵 | AB2: 高等学校 | AC2: =AA2&AB2 -> 東京都立武蔵高等学校 | AD2: 東京都武蔵野市境4-13-28 | AE2: 0422-51-4554 | AF2: 0422-51-3966
A3: =M3 -> 50124 | B3: =ROUNDDOWN(A3/10000,0) -> 5 | C3: =ROUNDDOWN((A3-B3*10000)/100,0) -> 1 | D3: =N3 -> 河原 | E3: =O3 -> 寛人 | F3: =P3 -> ｶﾜﾊﾗ | G3: =Q3 -> ﾋﾛﾄ | H3: =T3 -> 3 | I3: 都武蔵 | K3: =R3 -> 男 | M3: 50124 | N3: 河原 | O3: 寛人 | P3: ｶﾜﾊﾗ | Q3: ﾋﾛﾄ | R3: 男 | T3: 3 | V3: =130000+W3*100+X3 -> 130502 | W3: 5 | X3: 2 | Y3: =W3*100+X3 -> 502 | Z3: 都武蔵野北 | AA3: 東京都立武蔵野北 | AB3: 高等学校 | AC3: 東京都立武蔵野北高等学校 | AD3: 東京都武蔵野市八幡町2-3-10 | AE3: 0422-55-2071 | AF3: 0422-51-4164
A4: 50126 | B4: 5 | C4: 1 | D4: 袖山 | E4: 瑛志 | F4: ｿﾃﾞﾔﾏ | G4: ｴｲｼ | H4: 3 | I4: 都武蔵 | K4: 男 | M4: 50126 | N4: 袖山 | O4: 瑛志 | P4: ｿﾃﾞﾔﾏ | Q4: ｴｲｼ | R4: 男 | T4: 3 | V4: 130503 | W4: 5 | X4: 3 | Y4: 503 | Z4: 聖徳学園 | AA4: 聖徳学園 | AB4: 高等学校 | AC4: 聖徳学園高等学校 | AD4: 東京都武蔵野市境南町2-11-8 | AE4: 0422-31-5121 | AF4: 0422-33-9386
A5: 50127 | B5: 5 | C5: 1 | D5: 長谷川 | E5: 晴 | F5: ﾊｾｶﾞﾜ | G5: ﾊﾙ | H5: 3 | I5: 都武蔵 | K5: 男 | M5: 50127 | N5: 長谷川 | O5: 晴 | P5: ﾊｾｶﾞﾜ | Q5: ﾊﾙ | R5: 男 | T5: 3 | V5: 130504 | W5: 5 | X5: 4 | Y5: 504 | Z5: 成蹊 | AA5: 成蹊 | AB5: 高等学校 | AC5: 成蹊高等学校 | AD5: 東京都武蔵野市吉祥寺北町3-10-13 | AE5: 0422-37-3818 | AF5: 0422-37-3863
A6: 50128 | B6: 5 | C6: 1 | D6: 村田 | E6: 雄人 | F6: ﾑﾗﾀ | G6: ﾕｳﾄ | H6: 3 | I6: 都武蔵 | K6: 男 | M6: 50128 | N6: 村田 | O6: 雄人 | P6: ﾑﾗﾀ | Q6: ﾕｳﾄ | R6: 男 | T6: 3 | V6: 130505 | W6: 5 | X6: 5 | Y6: 505 | Z6: 法政 | AA6: 法政大学 | AB6: 高等学校 | AC6: 法政大学高等学校 | AD6: 東京都三鷹市牟礼4-3-1 | AE6: 0422-79-6245 | AF6: 0422-79-6261
A7: 50129 | B7: 5 | C7: 1 | D7: 山﨑 | E7: 彪吾 | F7: ﾔﾏｻﾞｷ | G7: ﾋｭｳｺﾞ | H7: 3 | I7: 都武蔵 | K7: 男 | M7: 50129 | N7: 山﨑 | O7: 彪吾 | P7: ﾔﾏｻﾞｷ | Q7: ﾋｭｳｺﾞ | R7: 男 | T7: 3 | V7: 130506 | W7: 5 | X7: 6 | Y7: 506 | Z7: 藤村女 | AA7: 藤村女子 | AB7: 高等学校 | AC7: 藤村女子高等学校 | AD7: 東京都武蔵野市吉祥寺本町 2-16-3 | AE7: 0422-22-1266 | AF7: 0422-22-7680
A8: 50131 | B8: 5 | C8: 1 | D8: 椙目 | E8: 翔太 | F8: ｽｷﾞﾉﾒ | G8: ｼｮｳﾀ | H8: 3 | I8: 都武蔵 | K8: 男 | M8: 50131 | N8: 椙目 | O8: 翔太 | P8: ｽｷﾞﾉﾒ | Q8: ｼｮｳﾀ | R8: 男 | T8: 3 | V8: 130507 | W8: 5 | X8: 7 | Y8: 507 | Z8: 吉祥女 | AA8: 吉祥女子 | AB8: 高等学校 | AC8: 吉祥女子高等学校 | AD8: 東京都武蔵野市吉祥寺東町4-12-20 | AE8: 0422-22-8117 | AF8: 0422-22-9752
A9: 50132 | B9: 5 | C9: 1 | D9: 猪俣 | E9: 和樹 | F9: ｲﾉﾏﾀ | G9: ｶｽﾞｷ | H9: 2 | I9: 都武蔵 | K9: 男 | M9: 50132 | N9: 猪俣 | O9: 和樹 | P9: ｲﾉﾏﾀ | Q9: ｶｽﾞｷ | R9: 男 | T9: 2 | V9: 130508 | W9: 5 | X9: 8 | Y9: 508 | Z9: 武蔵野東高専 | AA9: 武蔵野東高等専修 | AB9: 学校 | AC9: 武蔵野東高等専修学校 | AD9: 東京都武蔵野市西久保3-25-3 | AE9: 0422-54-8611 | AF9: 0422-51-0267
A10: 50133 | B10: 5 | C10: 1 | D10: 定久 | E10: 浩介 | F10: ｻﾀﾞﾋｻ | G10: ｺｳｽｹ | H10: 2 | I10: 都武蔵 | K10: 男 | M10: 50133 | N10: 定久 | O10: 浩介 | P10: ｻﾀﾞﾋｻ | Q10: ｺｳｽｹ | R10: 男 | T10: 2 | V10: 130509 | W10: 5 | X10: 9 | Y10: 509 | Z10: 都三鷹中等 | AA10: 東京都立三鷹 | AB10: 中等教育学校 | AC10: 東京都立三鷹中等教育学校 | AD10: 東京都三鷹市新川6-21-21 | AE10: 0422-46-4181 | AF10: 0422-49-8429
A11: 50134 | B11: 5 | C11: 1 | D11: 土田 | E11: 陸斗 | F11: ﾂﾁﾀﾞ | G11: ﾘｸﾄ | H11: 2 | I11: 都武蔵 | K11: 男 | M11: 50134 | N11: 土田 | O11: 陸斗 | P11: ﾂﾁﾀﾞ | Q11: ﾘｸﾄ | R11: 男 | T11: 2 | V11: 130510 | W11: 5 | X11: 10 | Y11: 510 | Z11: 大成 | AA11: 大成 | AB11: 高等学校 | AC11: 大成高等学校 | AD11: 東京都三鷹市上連雀6-7-5 | AE11: 0422-43-3196 | AF11: 0422-47-6302
A12: 50135 | B12: 5 | C12: 1 | D12: 畑 | E12: 秀明 | F12: ﾊﾀ | G12: ﾋﾃﾞｱｷ | H12: 2 | I12: 都武蔵 | K12: 男 | M12: 50135 | N12: 畑 | O12: 秀明 | P12: ﾊﾀ | Q12: ﾋﾃﾞｱｷ | R12: 男 | T12: 2 | V12: 130511 | W12: 5 | X12: 11 | Y12: 511 | Z12: 明星学園 | AA12: 明星学園 | AB12: 高等学校 | AC12: 明星学園高等学校 | AD12: 東京都三鷹市牟礼4-15-22 | AE12: 0422-48-6221 | AF12: 0422-41-6091
A13: 50136 | B13: 5 | C13: 1 | D13: 土師 | E13: 良介 | F13: ﾊｼ | G13: ﾘｮｳｽｹ | H13: 2 | I13: 都武蔵 | K13: 男 | M13: 50136 | N13: 土師 | O13: 良介 | P13: ﾊｼ | Q13: ﾘｮｳｽｹ | R13: 男 | T13: 2 | V13: 130512 | W13: 5 | X13: 12 | Y13: 512 | Z13: 都多摩科技 | AA13: 東京都立多摩科学技術 | AB13: 高等学校 | AC13: 東京都立多摩科学技術高等学校 | AD13: 東京都小金井市本町6-8-9 | AE13: 042-381-4164 | AF13: 042-381-4169
A14: 50138 | B14: 5 | C14: 1 | D14: 菊地 | E14: 智晴 | F14: ｷｸﾁ | G14: ﾄﾓﾊﾙ | H14: 1 | I14: 都武蔵 | K14: 男 | M14: 50138 | N14: 菊地 | O14: 智晴 | P14: ｷｸﾁ | Q14: ﾄﾓﾊﾙ | R14: 男 | T14: 1 | V14: 130513 | W14: 5 | X14: 13 | Y14: 513 | Z14: 都小金井北 | AA14: 東京都立小金井北 | AB14: 高等学校 | AC14: 東京都立小金井北高等学校 | AD14: 東京都小金井市緑町4-1-1 | AE14: 042-385-2611 | AF14: 042-382-9522
A15: 50139 | B15: 5 | C15: 1 | D15: 清武 | E15: 宏希 | F15: ｷﾖﾀｹ | G15: ﾋﾛｷ | H15: 1 | I15: 都武蔵 | K15: 男 | M15: 50139 | N15: 清武 | O15: 宏希 | P15: ｷﾖﾀｹ | Q15: ﾋﾛｷ | R15: 男 | T15: 1 | V15: 130514 | W15: 5 | X15: 14 | Y15: 514 | Z15: ICU | AA15: 国際基督教大学 | AB15: 高等学校 | AC15: 国際基督教大学高等学校 | AD15: 東京都小金井市東町1-1-1 | AE15: 0422-33-3407 | AF15: 0422-33-3376
A16: 50140 | B16: 5 | C16: 1 | D16: 田村 | E16: 鴻乃介 | F16: ﾀﾑﾗ | G16: ｺｳﾉｽｹ | H16: 1 | I16: 都武蔵 | K16: 男 | M16: 50140 | N16: 田村 | O16: 鴻乃介 | P16: ﾀﾑﾗ | Q16: ｺｳﾉｽｹ | R16: 男 | T16: 1 | V16: 130515 | W16: 5 | X16: 15 | Y16: 515 | Z16: 中大附 | AA16: 中央大学附属 | AB16: 高等学校 | AC16: 中央大学附属高等学校 | AD16: 東京都小金井市貫井北町3-22-1 | AE16: 042-381-5413 | AF16: 042-381-5413
A17: 50141 | B17: 5 | C17: 1 | D17: 中村 | E17: 駿太 | F17: ﾅｶﾑﾗ | G17: ｼｭﾝﾀ | H17: 1 | I17: 都武蔵 | K17: 男 | M17: 50141 | N17: 中村 | O17: 駿太 | P17: ﾅｶﾑﾗ | Q17: ｼｭﾝﾀ | R17: 男 | T17: 1 | V17: 130516 | W17: 5 | X17: 16 | Y17: 516 | Z17: 東京電機大学 | AA17: 東京電機大学 | AB17: 高等学校 | AC17: 東京電機大学高等学校 | AD17: 東京都小金井市 梶野町4-8-1 | AE17: 0422-37-6441 | AF17: 0422-37-6599
A18: 50142 | B18: 5 | C18: 1 | D18: 深井 | E18: 颯一郎 | F18: ﾌｶｲ | G18: ｿｳｲﾁﾛｳ | H18: 1 | I18: 都武蔵 | K18: 男 | M18: 50142 | N18: 深井 | O18: 颯一郎 | P18: ﾌｶｲ | Q18: ｿｳｲﾁﾛｳ | R18: 男 | T18: 1 | V18: 130517 | W18: 5 | X18: 17 | Y18: 517 | Z18: 都小川 | AA18: 東京都立小川 | AB18: 高等学校 | AC18: 東京都立小川高等学校 | AD18: 東京都町田市小川2-1002-1 | AE18: 042-796-9301 | AF18: 042-799-2765
A19: 50143 | B19: 5 | C19: 1 | D19: 小宮 | E19: 優多 | F19: ｺﾐﾔ | G19: ﾕｳﾀ | H19: 1 | I19: 都武蔵 | K19: 男 | M19: 50143 | N19: 小宮 | O19: 優多 | P19: ｺﾐﾔ | Q19: ﾕｳﾀ | R19: 男 | T19: 1 | V19: 130519 | W19: 5 | X19: 19 | Y19: 519 | Z19: 都成瀬 | AA19: 東京都立成瀬 | AB19: 高等学校 | AC19: 東京都立成瀬高等学校 | AD19: 東京都町田市成瀬7-4-1 | AE19: 042-725-1533 | AF19: 042-724-1336
A20: 50144 | B20: 5 | C20: 1 | D20: 本山 | E20: 康介 | F20: ﾓﾄﾔﾏ | G20: ｺｳｽｹ | H20: 1 | I20: 都武蔵 | K20: 男 | M20: 50144 | N20: 本山 | O20: 康介 | P20: ﾓﾄﾔﾏ | Q20: ｺｳｽｹ | R20: 男 | T20: 1 | V20: 130520 | W20: 5 | X20: 20 | Y20: 520 | Z20: 都町田 | AA20: 東京都立町田 | AB20: 高等学校 | AC20: 東京都立町田高等学校 | AD20: 東京都町田市中町4-25-3 | AE20: 042-722-2201 | AF20: 042-724-1330
A21: 50169 | B21: 5 | C21: 1 | D21: 山﨑 | E21: =O21 -> 彩桜 | F21: ﾔﾏｻｷ | G21: ｻｸﾗ | H21: 3 | I21: 都武蔵 | K21: 女 | M21: 50169 | N21: 山﨑 | O21: 彩桜 | P21: ﾔﾏｻｷ | Q21: ｻｸﾗ | R21: 女 | T21: 3 | V21: 130521 | W21: 5 | X21: 21 | Y21: 521 | Z21: 都野津田 | AA21: 東京都立野津田 | AB21: 高等学校 | AC21: 東京都立野津田高等学校 | AD21: 東京都町田市野津田町2001 | AE21: 042-734-2311 | AF21: 042-734-9388
A22: 50170 | B22: 5 | C22: 1 | D22: 落井 | E22: 真央 | F22: ｵﾁｲ | G22: ﾏｵ | H22: 2 | I22: 都武蔵 | K22: 女 | M22: 50170 | N22: 落井 | O22: 真央 | P22: ｵﾁｲ | Q22: ﾏｵ | R22: 女 | T22: 2 | V22: 130522 | W22: 5 | X22: 22 | Y22: 522 | Z22: 都山崎 | AA22: 東京都立山崎 | AB22: 高等学校 | AC22: 東京都立山崎高等学校 | AD22: 東京都町田市山崎町1453-1 | AE22: 042-792-2891 | AF22: 042-794-0440
A23: 50171 | B23: 5 | C23: 1 | D23: 鈴木 | E23: 沙菜 | F23: ｽｽﾞｷ | G23: ｻﾅ | H23: 2 | I23: 都武蔵 | K23: 女 | M23: 50171 | N23: 鈴木 | O23: 沙菜 | P23: ｽｽﾞｷ | Q23: ｻﾅ | R23: 女 | T23: 2 | V23: 130523 | W23: 5 | X23: 23 | Y23: 523 | Z23: 都町田工 | AA23: 東京都立町田工業 | AB23: 高等学校 | AC23: 東京都立町田工業高等学校 | AD23: 東京都町田市忠生1-20-2 | AE23: 042-791-1035 | AF23: 042-794-0443
A24: 50172 | B24: 5 | C24: 1 | D24: 佐藤 | E24: 典夏 | F24: ｻﾄｳ | G24: ﾉﾘｶ | H24: 2 | I24: 都武蔵 | K24: 女 | M24: 50172 | N24: 佐藤 | O24: 典夏 | P24: ｻﾄｳ | Q24: ﾉﾘｶ | R24: 女 | T24: 2 | V24: 130524 | W24: 5 | X24: 24 | Y24: 524 | Z24: 桜美林 | AA24: 桜美林 | AB24: 高等学校 | AC24: 桜美林高等学校 | AD24: 東京都町田市常磐町3758 | AE24: 042-797-2667 | AF24: 042-797-3432
A25: 50174 | B25: 5 | C25: 1 | D25: 早川 | E25: 瑞希 | F25: ﾊﾔｶﾜ | G25: ﾐｽﾞｷ | H25: 2 | I25: 都武蔵 | K25: 女 | M25: 50174 | N25: 早川 | O25: 瑞希 | P25: ﾊﾔｶﾜ | Q25: ﾐｽﾞｷ | R25: 女 | T25: 2 | V25: 130525 | W25: 5 | X25: 25 | Y25: 525 | Z25: 玉川学園 | AA25: 玉川学園 | AB25: 高等部 | AC25: 玉川学園高等部 | AD25: 東京都町田市玉川学園6-1-1 | AE25: 042-739-8533 | AF25: 042-739-8544
A26: 50175 | B26: 5 | C26: 1 | D26: 増田 | E26: 奈々美 | F26: ﾏｽﾀﾞ | G26: ﾅﾅﾐ | H26: 2 | I26: 都武蔵 | K26: 女 | M26: 50175 | N26: 増田 | O26: 奈々美 | P26: ﾏｽﾀﾞ | Q26: ﾅﾅﾐ | R26: 女 | T26: 2 | V26: 130526 | W26: 5 | X26: 26 | Y26: 526 | Z26: 日大三 | AA26: 日本大学第三 | AB26: 高等学校 | AC26: 日本大学第三高等学校 | AD26: 東京都町田市図師町11-2375 | AE26: 042-789-5535 | AF26: 042-793-2134
A27: 50176 | B27: 5 | C27: 1 | D27: 石原 | E27: 実紅 | F27: ｲｼﾊﾗ | G27: ﾐｸ | H27: 1 | I27: 都武蔵 | K27: 女 | M27: 50176 | N27: 石原 | O27: 実紅 | P27: ｲｼﾊﾗ | Q27: ﾐｸ | R27: 女 | T27: 1 | V27: =130000+W27*100+X27 -> 130528 | W27: 5 | X27: 28 | Y27: =W27*100+X27 -> 528 | Z27: 和光 | AA27: 和光 | AB27: 高等学校 | AC27: =AA27&AB27 -> 和光高等学校 | AD27: 東京都町田市真光寺町1291 | AE27: 042-734-3403 | AF27: 042-734-3410
A28: 50177 | B28: 5 | C28: 1 | D28: 工藤 | E28: 叶美 | F28: ｸﾄﾞｳ | G28: ｶﾅﾐ | H28: 1 | I28: 都武蔵 | K28: 女 | M28: 50177 | N28: 工藤 | O28: 叶美 | P28: ｸﾄﾞｳ | Q28: ｶﾅﾐ | R28: 女 | T28: 1 | V28: 130529 | W28: 5 | X28: 29 | Y28: 529 | Z28: 都永山 | AA28: 東京都立永山 | AB28: 高等学校 | AC28: 東京都立永山高等学校 | AD28: 東京都多摩市永山5-22 | AE28: 042-372-9891 | AF28: 042-372-5615
A29: 50178 | B29: 5 | C29: 1 | D29: 関 | E29: 日菜多 | F29: ｾｷ | G29: ﾋﾅﾀ | H29: 1 | I29: 都武蔵 | K29: 女 | M29: 50178 | N29: 関 | O29: 日菜多 | P29: ｾｷ | Q29: ﾋﾅﾀ | R29: 女 | T29: 1 | V29: 130530 | W29: 5 | X29: 30 | Y29: 530 | Z29: サレジオ高専 | AA29: サレジオ工業高等専門 | AB29: 学校 | AC29: サレジオ工業高等専門学校 | AD29: 東京都町田市小山ヶ丘4-6-8 | AE29: 042-775-3020 | AF29: 042-775-3021
A30: 50179 | B30: 5 | C30: 1 | D30: 田中 | E30: 友公 | F30: ﾀﾅｶ | G30: ﾕｷﾐ | H30: 1 | I30: 都武蔵 | K30: 女 | M30: 50179 | N30: 田中 | O30: 友公 | P30: ﾀﾅｶ | Q30: ﾕｷﾐ | R30: 女 | T30: 1 | V30: 130531 | W30: 5 | X30: 31 | Y30: 531 | Z30: 大妻多摩 | AA30: 大妻多摩 | AB30: 高等学校 | AC30: 大妻多摩高等学校 | AD30: 東京都多摩市唐木田2-7-1 | AE30: 042-372-9113 | AF30: 042-372-9986
A31: 50201 | B31: 5 | C31: 2 | D31: 西井 | E31: 慶伍 | F31: ﾆｼｲ | G31: ｹｲｺﾞ | H31: 3 | I31: 都武蔵野北 | K31: 男 | M31: 50201 | N31: 西井 | O31: 慶伍 | P31: ﾆｼｲ | Q31: ｹｲｺﾞ | R31: 男 | T31: 3 | V31: 130532 | W31: 5 | X31: 32 | Y31: 532 | Z31: 聖ヶ丘 | AA31: 多摩大学附属聖ヶ丘 | AB31: 高等学校 | AC31: 多摩大学附属聖ヶ丘高等学校 | AD31: 東京都多摩市聖ヶ丘4-1-1 | AE31: 042-372-9393 | AF31: 042-337-1761
A32: 50202 | B32: 5 | C32: 2 | D32: 平 | E32: 裕太郎 | F32: ﾀｲﾗ | G32: ﾕｳﾀﾛｳ | H32: 2 | I32: 都武蔵野北 | K32: 男 | M32: 50202 | N32: 平 | O32: 裕太郎 | P32: ﾀｲﾗ | Q32: ﾕｳﾀﾛｳ | R32: 男 | T32: 2 | V32: 130534 | W32: 5 | X32: 34 | Y32: 534 | Z32: 都神代 | AA32: 東京都立神代 | AB32: 高等学校 | AC32: 東京都立神代高等学校 | AD32: 東京都調布市若葉町1-46-1 | AE32: 03-3300-8261 | AF32: 03-3300-5170
A33: 50203 | B33: 5 | C33: 2 | D33: 江川 | E33: 雅哉 | F33: ｴｶﾞﾜ | G33: ﾏｻﾔ | H33: 3 | I33: 都武蔵野北 | K33: 男 | M33: 50203 | N33: 江川 | O33: 雅哉 | P33: ｴｶﾞﾜ | Q33: ﾏｻﾔ | R33: 男 | T33: 3 | V33: 130535 | W33: 5 | X33: 35 | Y33: 535 | Z33: 都調布北 | AA33: 東京都立調布北 | AB33: 高等学校 | AC33: 東京都立調布北高等学校 | AD33: 東京都調布市深大寺北町5-39-1 | AE33: 042-487-1860 | AF33: 042-483-7081
A34: 50204 | B34: 5 | C34: 2 | D34: 阿久津 | E34: 智広 | F34: ｱｸﾂ | G34: ﾄﾓﾋﾛ | H34: 2 | I34: 都武蔵野北 | K34: 男 | M34: 50204 | N34: 阿久津 | O34: 智広 | P34: ｱｸﾂ | Q34: ﾄﾓﾋﾛ | R34: 男 | T34: 2 | V34: 130536 | W34: 5 | X34: 36 | Y34: 536 | Z34: 都調布南 | AA34: 東京都立調布南 | AB34: 高等学校 | AC34: 東京都立調布南高等学校 | AD34: 東京都調布市多摩川6-1-1 | AE34: 042-483-6765 | AF34: 042-483-7091
A35: 50205 | B35: 5 | C35: 2 | D35: 荒尾 | E35: 福之介 | F35: ｱﾗｵ | G35: ﾌｸﾉｽｹ | H35: 2 | I35: 都武蔵野北 | K35: 男 | M35: 50205 | N35: 荒尾 | O35: 福之介 | P35: ｱﾗｵ | Q35: ﾌｸﾉｽｹ | R35: 男 | T35: 2 | V35: 130537 | W35: 5 | X35: 37 | Y35: 537 | Z35: 桐朋女 | AA35: 桐朋女子 | AB35: 高等学校 | AC35: =AA35&AB35 -> 桐朋女子高等学校 | AD35: 東京都調布市若葉町1-41-1 | AE35: 03-3300-2111 | AF35: 03-3300-2112
A36: 50206 | B36: 5 | C36: 2 | D36: 大内 | E36: 光 | F36: ｵｵｳﾁ | G36: ﾋｶﾙ | H36: 2 | I36: 都武蔵野北 | K36: 男 | M36: 50206 | N36: 大内 | O36: 光 | P36: ｵｵｳﾁ | Q36: ﾋｶﾙ | R36: 男 | T36: 2 | V36: =130000+W36*100+X36 -> 130538 | W36: 5 | X36: 38 | Y36: =W36*100+X36 -> 538 | Z36: 晃華学園 | AA36: 晃華学園 | AB36: 高等学校 | AC36: =AA36&AB36 -> 晃華学園高等学校 | AD36: 東京都調布市佐須町5-28-1 | AE36: 042-487-0697 | AF36: 042-483-1731
A37: 50207 | B37: 5 | C37: 2 | D37: 坂元 | E37: 優 | F37: ｻｶﾓﾄ | G37: ﾕｳ | H37: 2 | I37: 都武蔵野北 | K37: 男 | M37: 50207 | N37: 坂元 | O37: 優 | P37: ｻｶﾓﾄ | Q37: ﾕｳ | R37: 男 | T37: 2 | V37: 130539 | W37: 5 | X37: 39 | Y37: 539 | Z37: 都狛江 | AA37: 東京都立狛江 | AB37: 高等学校 | AC37: 東京都立狛江高等学校 | AD37: 東京都狛江市元和泉3-9-8 | AE37: 03-3489-2241 | AF37: 03-3489-9312
A38: 50208 | B38: 5 | C38: 2 | D38: 杉谷 | E38: 智成 | F38: ｽｷﾞﾀﾆ | G38: ﾄﾓﾅﾘ | H38: 2 | I38: 都武蔵野北 | K38: 男 | M38: 50208 | N38: 杉谷 | O38: 智成 | P38: ｽｷﾞﾀﾆ | Q38: ﾄﾓﾅﾘ | R38: 男 | T38: 2 | V38: 130540 | W38: 5 | X38: 40 | Y38: 540 | Z38: 都若葉総合 | AA38: 東京都立若葉総合 | AB38: 高等学校 | AC38: 東京都立若葉総合高等学校 | AD38: 東京都稲城市坂浜1434-3 | AE38: 042-350-0300 | AF38: 042-350-0303
A39: 50209 | B39: 5 | C39: 2 | D39: 武中 | E39: 隆之介 | F39: ﾀｹﾅｶ | G39: ﾘｭｳﾉｽｹ | H39: 2 | I39: 都武蔵野北 | K39: 男 | M39: 50209 | N39: 武中 | O39: 隆之介 | P39: ﾀｹﾅｶ | Q39: ﾘｭｳﾉｽｹ | R39: 男 | T39: 2 | V39: 130541 | W39: 5 | X39: 41 | Y39: 541 | Z39: 駒沢女 | AA39: 駒沢学園女子 | AB39: 高等学校 | AC39: 駒沢学園女子高等学校 | AD39: 東京都稲城市坂浜238 | AE39: 042-350-7123 | AF39: 042-350-7188
A40: 50210 | B40: 5 | C40: 2 | D40: 中山 | E40: 友太 | F40: ﾅｶﾔﾏ | G40: ﾕｳﾀ | H40: 2 | I40: 都武蔵野北 | K40: 男 | M40: 50210 | N40: 中山 | O40: 友太 | P40: ﾅｶﾔﾏ | Q40: ﾕｳﾀ | R40: 男 | T40: 2 | V40: 130542 | W40: 5 | X40: 42 | Y40: 542 | Z40: 都田無 | AA40: 東京都立田無 | AB40: 高等学校 | AC40: 東京都立田無高等学校 | AD40: 東京都西東京市向台町5-4-34 | AE40: 042-463-8511 | AF40: 042-467-5534
A41: 50211 | B41: 5 | C41: 2 | D41: 西山 | E41: 拓海 | F41: ﾆｼﾔﾏ | G41: ﾀｸﾐ | H41: 2 | I41: 都武蔵野北 | K41: 男 | M41: 50211 | N41: 西山 | O41: 拓海 | P41: ﾆｼﾔﾏ | Q41: ﾀｸﾐ | R41: 男 | T41: 2 | V41: 130543 | W41: 5 | X41: 43 | Y41: 543 | Z41: 都田無工 | AA41: 東京都立田無工業 | AB41: 高等学校 | AC41: 東京都立田無工業高等学校 | AD41: 東京都西東京市向台町1-9-1 | AE41: 042-464-2225 | AF41: 042-467-5532
A42: 50212 | B42: 5 | C42: 2 | D42: 向井 | E42: 飛雅 | F42: ﾑｶｲ | G42: ﾋｭｳｶﾞ | H42: 2 | I42: 都武蔵野北 | K42: 男 | M42: 50212 | N42: 向井 | O42: 飛雅 | P42: ﾑｶｲ | Q42: ﾋｭｳｶﾞ | R42: 男 | T42: 2 | V42: 130545 | W42: 5 | X42: 45 | Y42: 545 | Z42: 都府中 | AA42: 東京都立府中 | AB42: 高等学校 | AC42: 東京都立府中高等学校 | AD42: 東京都府中市栄町3-3-1 | AE42: 042-364-8411 | AF42: 042-360-0064
A43: 50213 | B43: 5 | C43: 2 | D43: 谷口 | E43: 舜 | F43: ﾔｸﾞﾁ | G43: ｼｭﾝ | H43: 2 | I43: 都武蔵野北 | K43: 男 | M43: 50213 | N43: 谷口 | O43: 舜 | P43: ﾔｸﾞﾁ | Q43: ｼｭﾝ | R43: 男 | T43: 2 | V43: 130546 | W43: 5 | X43: 46 | Y43: 546 | Z43: 都府中東 | AA43: 東京都立府中東 | AB43: 高等学校 | AC43: 東京都立府中東高等学校 | AD43: 東京都府中市押立町4-21 | AE43: 042-365-7611 | AF43: 042-369-8506
A44: 50214 | B44: 5 | C44: 2 | D44: 根本 | E44: 舜平 | F44: ﾈﾓﾄ | G44: ｼｭﾝﾍﾟｲ | H44: 2 | I44: 都武蔵野北 | K44: 男 | M44: 50214 | N44: 根本 | O44: 舜平 | P44: ﾈﾓﾄ | Q44: ｼｭﾝﾍﾟｲ | R44: 男 | T44: 2 | V44: 130547 | W44: 5 | X44: 47 | Y44: 547 | Z44: 都府中西 | AA44: 東京都立府中西 | AB44: 高等学校 | AC44: 東京都立府中西高等学校 | AD44: 東京都府中市4-6-7 | AE44: 042-365-5933 | AF44: 042-360-4603
A45: 50215 | B45: 5 | C45: 2 | D45: 浦尾 | E45: 颯太 | F45: ｳﾗｵ | G45: ｿｳﾀ | H45: 1 | I45: 都武蔵野北 | K45: 男 | M45: 50215 | N45: 浦尾 | O45: 颯太 | P45: ｳﾗｵ | Q45: ｿｳﾀ | R45: 男 | T45: 1 | V45: 130548 | W45: 5 | X45: 48 | Y45: 548 | Z45: 都府中工 | AA45: 東京都立府中工業 | AB45: 高等学校 | AC45: 東京都立府中工業高等学校 | AD45: 東京都府中市若松町2-19 | AE45: 042-362-7237 | AF45: 042-369-8445
A46: 50216 | B46: 5 | C46: 2 | D46: 大久保 | E46: 兄 | F46: ｵｵｸﾎﾞ | G46: ｹｲ | H46: 1 | I46: 都武蔵野北 | K46: 男 | M46: 50216 | N46: 大久保 | O46: 兄 | P46: ｵｵｸﾎﾞ | Q46: ｹｲ | R46: 男 | T46: 1 | V46: 130550 | W46: 5 | X46: 50 | Y46: 550 | Z46: 明星 | AA46: 明星 | AB46: 高等学校 | AC46: 明星高等学校 | AD46: 東京都府中市栄町1-1 | AE46: 042-368-5115 | AF46: 042-364-6761
A47: 50217 | B47: 5 | C47: 2 | D47: 小此木 | E47: 隼翔 | F47: ｵｺﾉｷﾞ | G47: ﾊﾔﾄ | H47: 1 | I47: 都武蔵野北 | K47: 男 | M47: 50217 | N47: 小此木 | O47: 隼翔 | P47: ｵｺﾉｷﾞ | Q47: ﾊﾔﾄ | R47: 男 | T47: 1 | V47: 130552 | W47: 5 | X47: 52 | Y47: 552 | Z47: 都保谷 | AA47: 東京都立保谷 | AB47: 高等学校 | AC47: 東京都立保谷高等学校 | AD47: 東京都西東京市住吉町５－８－２３ | AE47: 042-422-3223 | AF47: 042-423-9631
A48: 50218 | B48: 5 | C48: 2 | D48: 小田 | E48: 和輝 | F48: ｵﾀﾞ | G48: ｶｽﾞｷ | H48: 1 | I48: 都武蔵野北 | K48: 男 | M48: 50218 | N48: 小田 | O48: 和輝 | P48: ｵﾀﾞ | Q48: ｶｽﾞｷ | R48: 男 | T48: 1 | V48: =130000+W48*100+X48 -> 130553 | W48: 5 | X48: 53 | Y48: =W48*100+X48 -> 553 | Z48: 武蔵野女 | AA48: 武蔵野女子学院 | AB48: 高等学校 | AC48: =AA48&AB48 -> 武蔵野女子学院高等学校 | AD48: 東京都西東京市新町1-1-20 | AE48: 042-468-3265 | AF48: 042-468-6633
A49: 50219 | B49: 5 | C49: 2 | D49: 小西 | E49: 克和 | F49: ｺﾆｼ | G49: ﾖｼｶｽﾞ | H49: 1 | I49: 都武蔵野北 | K49: 男 | M49: 50219 | N49: 小西 | O49: 克和 | P49: ｺﾆｼ | Q49: ﾖｼｶｽﾞ | R49: 男 | T49: 1 | V49: 130554 | W49: 5 | X49: 54 | Y49: 554 | Z49: 都清瀬 | AA49: 東京都立清瀬 | AB49: 高等学校 | AC49: 東京都立清瀬高等学校 | AD49: 東京都清瀬市松山3-1-56 | AE49: 042-492-3500 | AF49: 042-491-9491
A50: 50220 | B50: 5 | C50: 2 | D50: 坂牧 | E50: 翔太 | F50: ｻｶﾏｷ | G50: ｼｮｳﾀ | H50: 1 | I50: 都武蔵野北 | K50: 男 | M50: 50220 | N50: 坂牧 | O50: 翔太 | P50: ｻｶﾏｷ | Q50: ｼｮｳﾀ | R50: 男 | T50: 1 | V50: 130557 | W50: 5 | X50: 57 | Y50: 557 | Z50: 都東久留米総 | AA50: 東京都立東久留米総合 | AB50: 高等学校 | AC50: 東京都立東久留米総合高等学校 | AD50: 東京都東久留米市幸町５－８－４６ | AE50: 042-451-2510 | AF50: 042-475-8400
A51: 50221 | B51: 5 | C51: 2 | D51: 関 | E51: 優斗 | F51: ｾｷ | G51: ﾕｳﾄ | H51: 1 | I51: 都武蔵野北 | K51: 男 | M51: 50221 | N51: 関 | O51: 優斗 | P51: ｾｷ | Q51: ﾕｳﾄ | R51: 男 | T51: 1 | V51: 130558 | W51: 5 | X51: 58 | Y51: 558 | Z51: 都久留米西 | AA51: 東京都立久留米西 | AB51: 高等学校 | AC51: 東京都立久留米西高等学校 | AD51: 東京都東久留米市野火止2-1-44 | AE51: 042-474-2661 | AF51: 042-475-9002
A52: 50222 | B52: 5 | C52: 2 | D52: 夏目 | E52: 空 | F52: ﾅﾂﾒ | G52: ｿﾗ | H52: 1 | I52: 都武蔵野北 | K52: 男 | M52: 50222 | N52: 夏目 | O52: 空 | P52: ﾅﾂﾒ | Q52: ｿﾗ | R52: 男 | T52: 1 | V52: 130560 | W52: 5 | X52: 60 | Y52: 560 | Z52: 都国立 | AA52: 東京都立国立 | AB52: 高等学校 | AC52: 東京都立国立高等学校 | AD52: 東京都国立市東4-25-1 | AE52: 042-575-0126 | AF52: 042-573-9609
A53: 50223 | B53: 5 | C53: 2 | D53: 橋本 | E53: 彬 | F53: ﾊｼﾓﾄ | G53: ｱｷﾗ | H53: 1 | I53: 都武蔵野北 | K53: 男 | M53: 50223 | N53: 橋本 | O53: 彬 | P53: ﾊｼﾓﾄ | Q53: ｱｷﾗ | R53: 男 | T53: 1 | V53: 130561 | W53: 5 | X53: 61 | Y53: 561 | Z53: 都五商 | AA53: 東京都立第五商業 | AB53: 高等学校 | AC53: 東京都立第五商業高等学校 | AD53: 東京都国立市中3-4 | AE53: 042-572-0132 | AF53: 042-573-8794
A54: 50224 | B54: 5 | C54: 2 | D54: 両角 | E54: 和磨 | F54: ﾓﾛｽﾞﾐ | G54: ｶｽﾞﾏ | H54: 1 | I54: 都武蔵野北 | K54: 男 | M54: 50224 | N54: 両角 | O54: 和磨 | P54: ﾓﾛｽﾞﾐ | Q54: ｶｽﾞﾏ | R54: 男 | T54: 1 | V54: 130562 | W54: 5 | X54: 62 | Y54: 562 | Z54: 桐朋 | AA54: 桐朋 | AB54: 高等学校 | AC54: 桐朋高等学校 | AD54: 東京都国立市中3-1-10 | AE54: 042-577-2171 | AF54: 042-573-8144
A55: 50225 | B55: 5 | C55: 2 | D55: 横山 | E55: 憲伸 | F55: ﾖｺﾔﾏ | G55: ｹﾝｼﾝ | H55: 1 | I55: 都武蔵野北 | K55: 男 | M55: 50225 | N55: 横山 | O55: 憲伸 | P55: ﾖｺﾔﾏ | Q55: ｹﾝｼﾝ | R55: 男 | T55: 1 | V55: 130563 | W55: 5 | X55: 63 | Y55: 563 | Z55: 都日野 | AA55: 東京都立日野 | AB55: 高等学校 | AC55: 東京都立日野高等学校 | AD55: 東京都日野市石田1-190-1 | AE55: 042-581-7123 | AF55: 042-581-5835
A56: 50244 | B56: 5 | C56: 2 | D56: 荒谷 | E56: 翼 | F56: ｱﾗﾀﾆ | G56: ﾂﾊﾞｻ | H56: 3 | I56: 都武蔵野北 | K56: 男 | M56: 50244 | N56: 荒谷 | O56: 翼 | P56: ｱﾗﾀﾆ | Q56: ﾂﾊﾞｻ | R56: 男 | T56: 3 | V56: 130564 | W56: 5 | X56: 64 | Y56: 564 | Z56: 都日野台 | AA56: 東京都立日野台 | AB56: 高等学校 | AC56: 東京都立日野台高等学校 | AD56: 東京都日野市大坂上4-16-1 | AE56: 042-582-2511 | AF56: 042-581-5035
A57: 50245 | B57: 5 | C57: 2 | D57: 大谷 | E57: 将 | F57: ｵｵﾀﾆ | G57: ｼｮｳ | H57: 3 | I57: 都武蔵野北 | K57: 男 | M57: 50245 | N57: 大谷 | O57: 将 | P57: ｵｵﾀﾆ | Q57: ｼｮｳ | R57: 男 | T57: 3 | V57: 130565 | W57: 5 | X57: 65 | Y57: 565 | Z57: 都南平 | AA57: 東京都立南平 | AB57: 高等学校 | AC57: 東京都立南平高等学校 | AD57: 東京都日野市南平8-2-3 | AE57: 042-593-5121 | AF57: 042-593-1442
A58: 50246 | B58: 5 | C58: 2 | D58: 小林 | E58: 輪太朗 | F58: ｺﾊﾞﾔｼ | G58: ﾘﾝﾀﾛｳ | H58: 3 | I58: 都武蔵野北 | K58: 男 | M58: 50246 | N58: 小林 | O58: 輪太朗 | P58: ｺﾊﾞﾔｼ | Q58: ﾘﾝﾀﾛｳ | R58: 男 | T58: 3 | V58: 130567 | W58: 5 | X58: 67 | Y58: 567 | Z58: 都国分寺 | AA58: 東京都立国分寺 | AB58: 高等学校 | AC58: 東京都立国分寺高等学校 | AD58: 東京都国分寺市新町3-2-5 | AE58: 042-323-3371 | AF58: 042-325-9833
A59: 50247 | B59: 5 | C59: 2 | D59: 滝本 | E59: 航平 | F59: ﾀｷﾓﾄ | G59: ｺｳﾍｲ | H59: 3 | I59: 都武蔵野北 | K59: 男 | M59: 50247 | N59: 滝本 | O59: 航平 | P59: ﾀｷﾓﾄ | Q59: ｺｳﾍｲ | R59: 男 | T59: 3 | V59: 130568 | W59: 5 | X59: 68 | Y59: 568 | Z59: 早稲田実 | AA59: 早稲田実業学校 | AB59: 高等部 | AC59: 早稲田実業学校高等部 | AD59: 東京都国分寺市本町1-2-1 | AE59: 042-300-2121 | AF59: 042-300-1123
A60: 50248 | B60: 5 | C60: 2 | D60: 藤澤 | E60: 司 | F60: ﾌｼﾞｻﾜ | G60: ﾂｶｻ | H60: 3 | I60: 都武蔵野北 | K60: 男 | M60: 50248 | N60: 藤澤 | O60: 司 | P60: ﾌｼﾞｻﾜ | Q60: ﾂｶｻ | R60: 男 | T60: 3 | V60: 130569 | W60: 5 | X60: 69 | Y60: 569 | Z60: 明大明治 | AA60: 明治大学付属明治 | AB60: 高等学校 | AC60: 明治大学付属明治高等学校 | AD60: 東京都調布市富士見町4-23-25 | AE60: 042-444-9100 | AF60: 042-498-7801
A61: 50249 | B61: 5 | C61: 2 | D61: 宮宇地 | E61: 拓海 | F61: ﾐﾔｳﾁ | G61: ﾀｸﾐ | H61: 3 | I61: 都武蔵野北 | K61: 男 | M61: 50249 | N61: 宮宇地 | O61: 拓海 | P61: ﾐﾔｳﾁ | Q61: ﾀｸﾐ | R61: 男 | T61: 3 | V61: 130570 | W61: 5 | X61: 70 | Y61: 570 | Z61: 都町田総合 | AA61: 東京都立町田総合 | AB61: 高等学校 | AC61: 東京都立町田総合高等学校 | AD61: 東京都町田市木曽西3-5-1 | AE61: 042-791-7980 | AF61: 042-791-8063
A62: 50250 | B62: 5 | C62: 2 | D62: 宮原 | E62: 歩夢 | F62: ﾐﾔﾊﾗ | G62: ｱﾕﾑ | H62: 3 | I62: 都武蔵野北 | K62: 男 | M62: 50250 | N62: 宮原 | O62: 歩夢 | P62: ﾐﾔﾊﾗ | Q62: ｱﾕﾑ | R62: 男 | T62: 3 | V62: =130000+W62*100+X62 -> 130601 | W62: 6 | X62: 1 | Y62: =W62*100+X62 -> 601 | Z62: 都立川国際 | AA62: 東京都立立川国際 | AB62: 中等教育学校 | AC62: =AA62&AB62 -> 東京都立立川国際中等教育学校 | AD62: 東京都立川市曙町 3-29-37 | AE62: 042-529-5335 | AF62: 042-527-1829
A63: 50251 | B63: 5 | C63: 2 | D63: 山田 | E63: 佳奈 | F63: ﾔﾏﾀﾞ | G63: ｶﾅ | H63: 1 | I63: 都武蔵野北 | K63: 女 | M63: 50251 | N63: 山田 | O63: 佳奈 | P63: ﾔﾏﾀﾞ | Q63: ｶﾅ | R63: 女 | T63: 1 | V63: 130602 | W63: 6 | X63: 2 | Y63: 602 | Z63: 都砂川 | AA63: 東京都立砂川 | AB63: 高等学校 | AC63: 東京都立砂川高等学校
A64: 50281 | B64: 5 | C64: 2 | D64: 佐々木 | E64: 愛 | F64: ｻｻｷ | G64: ﾏﾅ | H64: 3 | I64: 都武蔵野北 | K64: 女 | M64: 50281 | N64: 佐々木 | O64: 愛 | P64: ｻｻｷ | Q64: ﾏﾅ | R64: 女 | T64: 3 | V64: 130603 | W64: 6 | X64: 3 | Y64: 603 | Z64: 都立川 | AA64: 東京都立立川 | AB64: 高等学校 | AC64: 東京都立立川高等学校 | AD64: 東京都立川市錦町2-13-5 | AE64: 042-524-8195 | AF64: 042-527-9906
A65: 50283 | B65: 5 | C65: 2 | D65: 照沼 | E65: 美波 | F65: ﾃﾙﾇﾏ | G65: ﾐﾅﾐ | H65: 3 | I65: 都武蔵野北 | K65: 女 | M65: 50283 | N65: 照沼 | O65: 美波 | P65: ﾃﾙﾇﾏ | Q65: ﾐﾅﾐ | R65: 女 | T65: 3 | V65: 130604 | W65: 6 | X65: 4 | Y65: 604 | Z65: 都立川ろう | AA65: 東京都立立川ろう | AB65: 学校 | AC65: 東京都立立川ろう学校 | AD65: 東京都立川市栄町1-15-7 | AE65: 042-523-1356 | AF65: 042-523-6421
A66: 50284 | B66: 5 | C66: 2 | D66: 瀬良 | E66: 晴香 | F66: ｾﾗ | G66: ﾊﾙｶ | H66: 3 | I66: =VLOOKUP(B66*100+C66,テスト,2,0) -> 都武蔵野北 | K66: 女 | M66: 50284 | N66: 瀬良 | O66: 晴香 | P66: ｾﾗ | Q66: ﾊﾙｶ | R66: 女 | T66: 3 | V66: 130605 | W66: 6 | X66: 5 | Y66: 605 | Z66: 昭和一学園 | AA66: 昭和第一学園 | AB66: 高等学校 | AC66: 昭和第一学園高等学校 | AD66: 東京都立川市栄町2-45-8 | AE66: 042-536-1611 | AF66: 042-537-6880
A67: =M67 -> 50285 | B67: =ROUNDDOWN(A67/10000,0) -> 5 | C67: =ROUNDDOWN((A67-B67*10000)/100,0) -> 2 | D67: =N67 -> 野原 | E67: =O67 -> 菜々穂 | F67: =P67 -> ﾉﾊﾗ | G67: =Q67 -> ﾅﾅﾎ | H67: =T67 -> 3 | I67: 都武蔵野北 | K67: =R67 -> 女 | M67: 50285 | N67: 野原 | O67: 菜々穂 | P67: ﾉﾊﾗ | Q67: ﾅﾅﾎ | R67: 女 | T67: 3 | V67: =130000+W67*100+X67 -> 130606 | W67: 6 | X67: 6 | Y67: =W67*100+X67 -> 606 | Z67: 立川女 | AA67: 立川女子 | AB67: 高等学校 | AC67: =AA67&AB67 -> 立川女子高等学校
A68: 50286 | B68: 5 | C68: 2 | D68: 堀口 | E68: 紗瑛 | F68: ﾎﾘｸﾞﾁ | G68: ｻｴ | H68: 3 | I68: 都武蔵野北 | K68: 女 | M68: 50286 | N68: 堀口 | O68: 紗瑛 | P68: ﾎﾘｸﾞﾁ | Q68: ｻｴ | R68: 女 | T68: 3 | V68: 130607 | W68: 6 | X68: 7 | Y68: 607 | Z68: 都片倉 | AA68: 東京都立片倉 | AB68: 高等学校 | AC68: 東京都立片倉高等学校 | AD68: 東京都八王子市片倉町1643 | AE68: 042-635-3621 | AF68: 042-635-0682
A69: 50287 | B69: 5 | C69: 2 | D69: 山本 | E69: 彩乃 | F69: ﾔﾏﾓﾄ | G69: ｱﾔﾉ | H69: 3 | I69: 都武蔵野北 | K69: 女 | M69: 50287 | N69: 山本 | O69: 彩乃 | P69: ﾔﾏﾓﾄ | Q69: ｱﾔﾉ | R69: 女 | T69: 3 | V69: 130608 | W69: 6 | X69: 8 | Y69: 608 | Z69: 都翔陽 | AA69: 東京都立翔陽 | AB69: 高等学校 | AC69: 東京都立翔陽高等学校 | AD69: 東京都八王子市館町1097-136 | AE69: 042-663-3318 | AF69: 042-663-3362
A70: 50288 | B70: 5 | C70: 2 | D70: 岩本 | E70: 麻友子 | F70: ｲﾜﾓﾄ | G70: ﾏﾕｺ | H70: 2 | I70: 都武蔵野北 | K70: 女 | M70: 50288 | N70: 岩本 | O70: 麻友子 | P70: ｲﾜﾓﾄ | Q70: ﾏﾕｺ | R70: 女 | T70: 2 | V70: 130610 | W70: 6 | X70: 10 | Y70: 610 | Z70: 都八王子北 | AA70: 東京都立八王子北 | AB70: 高等学校 | AC70: =AA70&AB70 -> 東京都立八王子北高等学校 | AD70: 東京都八王子市楢原町601 | AE70: 042-626-3787 | AF70: 042-627-0174
A71: 50289 | B71: 5 | C71: 2 | D71: 忠内 | E71: 朝子 | F71: ﾀﾀﾞｳﾁ | G71: ｱｻｺ | H71: 2 | I71: 都武蔵野北 | K71: 女 | M71: 50289 | N71: 忠内 | O71: 朝子 | P71: ﾀﾀﾞｳﾁ | Q71: ｱｻｺ | R71: 女 | T71: 2 | V71: =130000+W71*100+X71 -> 130611 | W71: 6 | X71: 11 | Y71: 611 | Z71: 都八王子桑志 | AA71: 東京都立八王子桑志 | AB71: 高等学校 | AC71: 東京都立八王子桑志高等学校 | AD71: 東京都八王子市千人町4-8-1 | AE71: 042-663-5970 | AF71: 042-663-5973
A72: 50290 | B72: 5 | C72: 2 | D72: 青野 | E72: 幸実 | F72: ｱｵﾉ | G72: ﾕｷﾐ | H72: 2 | I72: 都武蔵野北 | K72: 女 | M72: 50290 | N72: 青野 | O72: 幸実 | P72: ｱｵﾉ | Q72: ﾕｷﾐ | R72: 女 | T72: 2 | V72: 130613 | W72: 6 | X72: 13 | Y72: 613 | Z72: 都八王子東 | AA72: 東京都立八王子東 | AB72: 高等学校 | AC72: 東京都立八王子東高等学校 | AD72: 東京都八王子市高倉町68-1 | AE72: 042-644-6996 | AF72: 042-642-2641
A73: 50291 | B73: 5 | C73: 2 | D73: 池田 | E73: 柚奈 | F73: ｲｹﾀﾞ | G73: ﾕｽﾞﾅ | H73: 2 | I73: 都武蔵野北 | K73: 女 | M73: 50291 | N73: 池田 | O73: 柚奈 | P73: ｲｹﾀﾞ | Q73: ﾕｽﾞﾅ | R73: 女 | T73: 2 | V73: 130614 | W73: 6 | X73: 14 | Y73: 614 | Z73: 都富士森 | AA73: 東京都立富士森 | AB73: 高等学校 | AC73: 東京都立富士森高等学校 | AD73: 東京都八王子市長房町420-1 | AE73: 042-661-0444 | AF73: 042-662-9830
A74: 50292 | B74: 5 | C74: 2 | D74: 根岸 | E74: 涼香 | F74: ﾈｷﾞｼ | G74: ｽｽﾞｶ | H74: 2 | I74: 都武蔵野北 | K74: 女 | M74: 50292 | N74: 根岸 | O74: 涼香 | P74: ﾈｷﾞｼ | Q74: ｽｽﾞｶ | R74: 女 | T74: 2 | V74: 130615 | W74: 6 | X74: 15 | Y74: 615 | Z74: 都松が谷 | AA74: 東京都立松が谷 | AB74: 高等学校 | AC74: 東京都立松が谷高等学校 | AD74: 東京都八王子市松が谷1772 | AE74: 042-676-1231 | AF74: 042-675-1237
A75: 50293 | B75: 5 | C75: 2 | D75: 野崎 | E75: ちひろ | F75: ﾉｻﾞｷ | G75: ﾁﾋﾛ | H75: 2 | I75: 都武蔵野北 | K75: 女 | M75: 50293 | N75: 野崎 | O75: ちひろ | P75: ﾉｻﾞｷ | Q75: ﾁﾋﾛ | R75: 女 | T75: 2 | V75: 130616 | W75: 6 | X75: 16 | Y75: 616 | Z75: 都南多摩中等 | AA75: 東京都立南多摩 | AB75: 中等教育学校 | AC75: 東京都立南多摩中等教育学校 | AD75: 東京都八王子市明神町4-20-1 | AE75: 042-642-2431 | AF75: 042-642-2195
A76: 50294 | B76: 5 | C76: 2 | D76: 松下 | E76: 茉由 | F76: ﾏﾂｼﾀ | G76: ﾏﾕ | H76: 2 | I76: 都武蔵野北 | K76: 女 | M76: 50294 | N76: 松下 | O76: 茉由 | P76: ﾏﾂｼﾀ | Q76: ﾏﾕ | R76: 女 | T76: 2 | V76: 130617 | W76: 6 | X76: 17 | Y76: 617 | Z76: 穎明館 | AA76: 穎明館 | AB76: 高等学校 | AC76: 穎明館高等学校 | AD76: 東京都八王子市館町2600 | AE76: 042-664-6000 | AF76: 042-666-1101
A77: 50295 | B77: 5 | C77: 2 | D77: 川越 | E77: 美温 | F77: ｶﾜｺﾞｴ | G77: ﾐﾊﾙ | H77: 1 | I77: 都武蔵野北 | K77: 女 | M77: 50295 | N77: 川越 | O77: 美温 | P77: ｶﾜｺﾞｴ | Q77: ﾐﾊﾙ | R77: 女 | T77: 1 | V77: 130618 | W77: 6 | X77: 18 | Y77: 618 | Z77: 共立女二 | AA77: 共立女子第二 | AB77: 高等学校 | AC77: 共立女子第二高等学校 | AD77: 東京都八王子市元八王寺町1-710 | AE77: 042-661-9952 | AF77: 042-661-9953
A78: 50296 | B78: 5 | C78: 2 | D78: 佐々木 | E78: 菓 | F78: ｻｻｷ | G78: ｺﾉﾐ | H78: 1 | I78: 都武蔵野北 | K78: 女 | M78: 50296 | N78: 佐々木 | O78: 菓 | P78: ｻｻｷ | Q78: ｺﾉﾐ | R78: 女 | T78: 1 | V78: 130619 | W78: 6 | X78: 19 | Y78: 619 | Z78: 工学院 | AA78: 工学院大学附属 | AB78: 高等学校 | AC78: 工学院大学附属高等学校 | AD78: 東京都八王子市中野町2647-2 | AE78: 042-622-9291 | AF78: 042-623-1376
A79: 50297 | B79: 5 | C79: 2 | D79: 武田 | E79: 綺音 | F79: ﾀｹﾀﾞ | G79: ｱﾔﾈ | H79: 1 | I79: 都武蔵野北 | K79: 女 | M79: 50297 | N79: 武田 | O79: 綺音 | P79: ﾀｹﾀﾞ | Q79: ｱﾔﾈ | R79: 女 | T79: 1 | V79: 130621 | W79: 6 | X79: 21 | Y79: 621 | Z79: 帝京八王子 | AA79: 帝京八王子 | AB79: 高等学校 | AC79: 帝京八王子高等学校 | AD79: 東京都八王子市上川町3766 | AE79: 042-654-6141 | AF79: 042-654-6044
A80: 50298 | B80: 5 | C80: 2 | D80: 坪谷 | E80: 夢路 | F80: ﾂﾎﾞﾔ | G80: ﾕﾒｼﾞ | H80: 1 | I80: 都武蔵野北 | K80: 女 | M80: 50298 | N80: 坪谷 | O80: 夢路 | P80: ﾂﾎﾞﾔ | Q80: ﾕﾒｼﾞ | R80: 女 | T80: 1 | V80: 130622 | W80: 6 | X80: 22 | Y80: 622 | Z80: 八王子 | AA80: 八王子学園八王子 | AB80: 高等学校 | AC80: 八王子学園八王子高等学校 | AD80: 東京都八王子市台町4-35-1 | AE80: 042-623-3461 | AF80: 042-626-5646
A81: 50299 | B81: 5 | C81: 2 | D81: 道下 | E81: 佳名 | F81: ﾐﾁｼﾀ | G81: ｶﾅ | H81: 1 | I81: 都武蔵野北 | K81: 女 | M81: 50299 | N81: 道下 | O81: 佳名 | P81: ﾐﾁｼﾀ | Q81: ｶﾅ | R81: 女 | T81: 1 | V81: 130623 | W81: 6 | X81: 23 | Y81: 623 | Z81: 八王子実践 | AA81: 八王子実践 | AB81: 高等学校 | AC81: 八王子実践高等学校 | AD81: 東京都八王子市台町1-6-15 | AE81: 042-622-0654 | AF81: 042-627-1101
A82: 50334 | B82: 5 | C82: 3 | D82: 本間 | E82: 慧斗 | F82: ﾎﾝﾏ | G82: ｹｲﾄ | H82: 3 | I82: 聖徳学園 | K82: 男 | M82: 50334 | N82: 本間 | O82: 慧斗 | P82: ﾎﾝﾏ | Q82: ｹｲﾄ | R82: 男 | T82: 3 | V82: 130624 | W82: 6 | X82: 24 | Y82: 624 | Z82: 明中八王子 | AA82: 明治大学付属中野八王子 | AB82: 高等学校 | AC82: 明治大学付属中野八王子高等学校 | AD82: 東京都八王子市戸吹町1100 | AE82: 042-691-0321 | AF82: 042-691-0988
A83: 50335 | B83: 5 | C83: 3 | D83: 水本 | E83: 侑希 | F83: ﾐｽﾞﾓﾄ | G83: ﾕｳｷ | H83: 3 | I83: 聖徳学園 | K83: 男 | M83: 50335 | N83: 水本 | O83: 侑希 | P83: ﾐｽﾞﾓﾄ | Q83: ﾕｳｷ | R83: 男 | T83: 3 | V83: 130626 | W83: 6 | X83: 26 | Y83: 626 | Z83: 東京工業高専 | AA83: 東京工業高等専門 | AB83: 学校 | AC83: 東京工業高等専門学校 | AD83: 東京都八王子市椚田町1220-2 | AE83: 042-668-5111
A84: 50336 | B84: 5 | C84: 3 | D84: 田尾 | E84: 一心 | F84: ﾀｵ | G84: ｲｯｼﾝ | H84: 3 | I84: 聖徳学園 | K84: 男 | M84: 50336 | N84: 田尾 | O84: 一心 | P84: ﾀｵ | Q84: ｲｯｼﾝ | R84: 男 | T84: 3 | V84: 130627 | W84: 6 | X84: 27 | Y84: 627 | Z84: 都小平 | AA84: 東京都立小平 | AB84: 高等学校 | AC84: 東京都立小平高等学校 | AD84: 東京都小平市仲町112 | AE84: 042-341-5410 | AF84: 042-342-7482
A85: 50337 | B85: 5 | C85: 3 | D85: 加藤 | E85: 大我 | F85: ｶﾄｳ | G85: ﾀｲｶﾞ | H85: 2 | I85: 聖徳学園 | K85: 男 | M85: 50337 | N85: 加藤 | O85: 大我 | P85: ｶﾄｳ | Q85: ﾀｲｶﾞ | R85: 男 | T85: 2 | V85: 130628 | W85: 6 | X85: 28 | Y85: 628 | Z85: 都小平西 | AA85: 東京都立小平西 | AB85: 高等学校 | AC85: 東京都立小平西高等学校 | AD85: 小平市小川町1-502-95 | AE85: 042-345-1411 | AF85: 042-342-7483
A86: 50340 | B86: 5 | C86: 3 | D86: 雨谷 | E86: 伯久 | F86: ｱﾏｶﾞｲ | G86: ﾊｸ | H86: 2 | I86: 聖徳学園 | K86: 男 | M86: 50340 | N86: 雨谷 | O86: 伯久 | P86: ｱﾏｶﾞｲ | Q86: ﾊｸ | R86: 男 | T86: 2 | V86: 130629 | W86: 6 | X86: 29 | Y86: 629 | Z86: 都小平南 | AA86: 東京都立小平南 | AB86: 高等学校 | AC86: 東京都立小平南高等学校 | AD86: 東京都小平市上水本町6丁目21番地1号 | AE86: 042-325-9331 | AF86: 042-325-9383
A87: 50341 | B87: 5 | C87: 3 | D87: 江口 | E87: 倫太郎 | F87: ｴｸﾞﾁ | G87: ﾘﾝﾀﾛｳ | H87: 2 | I87: 聖徳学園 | K87: 男 | M87: 50341 | N87: 江口 | O87: 倫太郎 | P87: ｴｸﾞﾁ | Q87: ﾘﾝﾀﾛｳ | R87: 男 | T87: 2 | V87: 130630 | W87: 6 | X87: 30 | Y87: 630 | Z87: 錦城 | AA87: 錦城 | AB87: 高等学校 | AC87: 錦城高等学校 | AD87: 東京都小平市大沼町5-3-7 | AE87: 042-341-0741 | AF87: 042-345-4255
A88: 50342 | B88: 5 | C88: 3 | D88: 斎藤 | E88: 慶介 | F88: ｻｲﾄｳ | G88: ｹｲｽｹ | H88: 1 | I88: 聖徳学園 | K88: 男 | M88: 50342 | N88: 斎藤 | O88: 慶介 | P88: ｻｲﾄｳ | Q88: ｹｲｽｹ | R88: 男 | T88: 1 | V88: 130631 | W88: 6 | X88: 31 | Y88: 631 | Z88: 白梅学園 | AA88: 白梅学園 | AB88: 高等学校 | AC88: 白梅学園高等学校 | AD88: 東京都小平市小川町1-830 | AE88: 042-346-5691 | AF88: 042-346-5672
A89: 50343 | B89: 5 | C89: 3 | D89: 矢澤 | E89: 瑛弘 | F89: ﾔｻﾞﾜ | G89: ｱｷﾋﾛ | H89: 1 | I89: 聖徳学園 | K89: 男 | M89: 50343 | N89: 矢澤 | O89: 瑛弘 | P89: ﾔｻﾞﾜ | Q89: ｱｷﾋﾛ | R89: 男 | T89: 1 | V89: 130632 | W89: 6 | X89: 32 | Y89: 632 | Z89: 創価 | AA89: 創価 | AB89: 高等学校 | AC89: 創価高等学校 | AD89: 東京都小平市たかの台2番1号 | AE89: 042-342-2611 | AF89: 042-344-5988
A90: 50360 | B90: 5 | C90: 3 | D90: 荘司 | E90: 真菜 | F90: ｼｮｳｼﾞ | G90: ﾏﾅ | H90: 2 | I90: 聖徳学園 | K90: 女 | M90: 50360 | N90: 荘司 | O90: 真菜 | P90: ｼｮｳｼﾞ | Q90: ﾏﾅ | R90: 女 | T90: 2 | V90: 130633 | W90: 6 | X90: 33 | Y90: 633 | Z90: 拓大一 | AA90: 拓殖大学第一 | AB90: 高等学校 | AC90: 拓殖大学第一高等学校 | AD90: 東京都武蔵村山市大南4-64-5 | AE90: 042.-590-.3311 | AF90: 042.-590-.3371
A91: 50361 | B91: 5 | C91: 3 | D91: 小澤 | E91: 侑未 | F91: ｺｻﾞﾜ | G91: ﾕｳﾐ | H91: 2 | I91: 聖徳学園 | K91: 女 | M91: 50361 | N91: 小澤 | O91: 侑未 | P91: ｺｻﾞﾜ | Q91: ﾕｳﾐ | R91: 女 | T91: 2 | V91: 130635 | W91: 6 | X91: 35 | Y91: 635 | Z91: 都東大和 | AA91: 東京都立東大和 | AB91: 高等学校 | AC91: 東京都立東大和高等学校 | AD91: 東京都東大和市中央3-945 | AE91: 042-563-1741 | AF91: 042-565-0781
A92: 50362 | B92: 5 | C92: 3 | D92: 工藤 | E92: 遥音 | F92: ｸﾄﾞｳ | G92: ﾊﾙﾈ | H92: 2 | I92: 聖徳学園 | K92: 女 | M92: 50362 | N92: 工藤 | O92: 遥音 | P92: ｸﾄﾞｳ | Q92: ﾊﾙﾈ | R92: 女 | T92: 2 | V92: 130636 | W92: 6 | X92: 36 | Y92: 636 | Z92: 都東大和南 | AA92: 東京都立東大和南 | AB92: 高等学校 | AC92: 東京都立東大和南高等学校 | AD92: 東京都東大和市桜が丘3-44-8 | AE92: 042-565-7117 | AF92: 042-565-2895
A93: 50363 | B93: 5 | C93: 3 | D93: 佐々木 | E93: 奈緒 | F93: ｻｻｷ | G93: ﾅｵ | H93: 2 | I93: 聖徳学園 | K93: 女 | M93: 50363 | N93: 佐々木 | O93: 奈緒 | P93: ｻｻｷ | Q93: ﾅｵ | R93: 女 | T93: 2 | V93: 130637 | W93: 6 | X93: 37 | Y93: 637 | Z93: 都多摩工 | AA93: 東京都立多摩工業 | AB93: 高等学校 | AC93: 東京都立多摩工業高等学校 | AD93: 東京都福生市熊川215 | AE93: 042-551-3435 | AF93: 042-551-7592
A94: 50365 | B94: 5 | C94: 3 | D94: 武井 | E94: 海音 | F94: ﾀｹｲ | G94: ｶｲﾈ | H94: 2 | I94: 聖徳学園 | K94: 女 | M94: 50365 | N94: 武井 | O94: 海音 | P94: ﾀｹｲ | Q94: ｶｲﾈ | R94: 女 | T94: 2 | V94: 130638 | W94: 6 | X94: 38 | Y94: 638 | Z94: 都福生 | AA94: 東京都立福生 | AB94: 高等学校 | AC94: 東京都立福生高等学校 | AD94: 東京都福生市北田園2-11-3 | AE94: 042-552-5601 | AF94: 042-551-7470
A95: 50366 | B95: 5 | C95: 3 | D95: 黒澤 | E95: りん | F95: ｸﾛｻﾜ | G95: ﾘﾝ | H95: 1 | I95: 聖徳学園 | K95: 女 | M95: 50366 | N95: 黒澤 | O95: りん | P95: ｸﾛｻﾜ | Q95: ﾘﾝ | R95: 女 | T95: 1 | V95: 130640 | W95: 6 | X95: 40 | Y95: 640 | Z95: 都多摩 | AA95: 東京都立多摩 | AB95: 高等学校 | AC95: 東京都立多摩高等学校 | AD95: 東京都青梅市裏宿町580 | AE95: 0428-23-2151 | AF95: 0428-23-5581
A96: 50401 | B96: 5 | C96: 4 | D96: 三宅 | E96: 貴之 | F96: ﾐﾔｹ | G96: ﾀｶﾕｷ | H96: 1 | I96: 成蹊 | K96: 男 | M96: 50401 | N96: 三宅 | O96: 貴之 | P96: ﾐﾔｹ | Q96: ﾀｶﾕｷ | R96: 男 | T96: 1 | V96: 130642 | W96: 6 | X96: 42 | Y96: 642 | Z96: 都昭和 | AA96: 東京都立昭和 | AB96: 高等学校 | AC96: 東京都立昭和高等学校 | AD96: 東京都昭島市東町2-3-21 | AE96: 042-541-0222 | AF96: 042-546-0150
A97: 50402 | B97: 5 | C97: 4 | D97: 上原 | E97: 佑介 | F97: ｳｴﾊﾗ | G97: ﾕｳｽｹ | H97: 1 | I97: 成蹊 | K97: 男 | M97: 50402 | N97: 上原 | O97: 佑介 | P97: ｳｴﾊﾗ | Q97: ﾕｳｽｹ | R97: 男 | T97: 1 | V97: 130643 | W97: 6 | X97: 43 | Y97: 643 | Z97: 都拝島 | AA97: 東京都立拝島 | AB97: 高等学校 | AC97: 東京都立拝島高等学校 | AD97: 東京都昭島市拝島町4丁目13番1号 | AE97: 042-543-1772 | AF97: 042-546-0730
A98: 50403 | B98: 5 | C98: 4 | D98: 三枝 | E98: 昭太 | F98: ｻｴｸﾞｻ | G98: ｼｮｳﾀ | H98: 1 | I98: 成蹊 | K98: 男 | M98: 50403 | N98: 三枝 | O98: 昭太 | P98: ｻｴｸﾞｻ | Q98: ｼｮｳﾀ | R98: 男 | T98: 1 | V98: 130644 | W98: 6 | X98: 44 | Y98: 644 | Z98: 啓明学園 | AA98: 啓明学園 | AB98: 高等学校 | AC98: 啓明学園高等学校 | AD98: 東京都昭島市拝島町5-11-15 | AE98: 042-541-1003 | AF98: 042-541-9616
A99: 50404 | B99: 5 | C99: 4 | D99: 佐藤 | E99: 大 | F99: ｻﾄｳ | G99: ﾀﾞｲ | H99: 1 | I99: 成蹊 | K99: 男 | M99: 50404 | N99: 佐藤 | O99: 大 | P99: ｻﾄｳ | Q99: ﾀﾞｲ | R99: 男 | T99: 1 | V99: =130000+W99*100+X99 -> 130646 | W99: 6 | X99: 46 | Y99: =W99*100+X99 -> 646 | Z99: 都秋留台 | AA99: 東京都立秋留台 | AB99: 高等学校 | AC99: =AA99&AB99 -> 東京都立秋留台高等学校 | AD99: 東京都あきる野市平沢153-4 | AE99: 042-559-6821 | AF99: 042-558-3164
A100: 50405 | B100: 5 | C100: 4 | D100: 筧 | E100: 尊彰 | F100: ｶｹﾋ | G100: ﾀｶｱｷ | H100: 1 | I100: 成蹊 | K100: 男 | M100: 50405 | N100: 筧 | O100: 尊彰 | P100: ｶｹﾋ | Q100: ﾀｶｱｷ | R100: 男 | T100: 1 | V100: 130647 | W100: 6 | X100: 47 | Y100: 647 | Z100: 東海大菅生 | AA100: 東海大学菅生 | AB100: 高等学校 | AC100: 東海大学菅生高等学校 | AD100: 東京都あきる野市菅生1817 | AE100: 042-559-2200 | AF100: 042-532-7072
A101: 50406 | B101: 5 | C101: 4 | D101: 關田 | E101: 梨央 | F101: ｾｷﾀ | G101: ﾘｵ | H101: 1 | I101: 成蹊 | K101: 男 | M101: 50406 | N101: 關田 | O101: 梨央 | P101: ｾｷﾀ | Q101: ﾘｵ | R101: 男 | T101: 1 | V101: 130648 | W101: 6 | X101: 48 | Y101: 648 | Z101: 都武蔵村山 | AA101: 東京都立武蔵村山 | AB101: 高等学校 | AC101: 東京都立武蔵村山高等学校 | AD101: 東京都武蔵村山市中原1-7-1 | AE101: 042-560-1271 | AF101: 042-560-8691
A102: 50407 | B102: 5 | C102: 4 | D102: 望月 | E102: 將希 | F102: ﾓﾁﾂﾞｷ | G102: ﾏｻｷ | H102: 1 | I102: 成蹊 | K102: 男 | M102: 50407 | N102: 望月 | O102: 將希 | P102: ﾓﾁﾂﾞｷ | Q102: ﾏｻｷ | R102: 男 | T102: 1 | V102: 130649 | W102: 6 | X102: 49 | Y102: 649 | Z102: 都上水 | AA102: 東京都立上水 | AB102: 高等学校 | AC102: 東京都立上水高等学校 | AD102: 東京都武蔵村山市大南4-62-1 | AE102: 042-590-4580 | AF102: 042-590-4581
A103: 50409 | B103: 5 | C103: 4 | D103: 河村 | E103: 太輔 | F103: ｶﾜﾑﾗ | G103: ﾀﾞｲｽｹ | H103: 1 | I103: 成蹊 | K103: 男 | M103: 50409 | N103: 河村 | O103: 太輔 | P103: ｶﾜﾑﾗ | Q103: ﾀﾞｲｽｹ | R103: 男 | T103: 1 | V103: 130650 | W103: 6 | X103: 50 | Y103: 650 | Z103: 都東村山 | AA103: 東京都立東村山 | AB103: 高等学校 | AC103: 東京都立東村山高等学校 | AD103: 東京都東村山市恩多町4-26-1 | AE103: 042-392-1235 | AF103: 042-392-7275
A104: 50410 | B104: 5 | C104: 4 | D104: 市川 | E104: 凜太朗 | F104: ｲﾁｶﾜ | G104: ﾘﾝﾀﾛｳ | H104: 1 | I104: 成蹊 | K104: 男 | M104: 50410 | N104: 市川 | O104: 凜太朗 | P104: ｲﾁｶﾜ | Q104: ﾘﾝﾀﾛｳ | R104: 男 | T104: 1 | V104: 130651 | W104: 6 | X104: 51 | Y104: 651 | Z104: 都東村山西 | AA104: 東京都立東村山西 | AB104: 高等学校 | AC104: 東京都立東村山西高等学校 | AD104: 東京都東村山市富士見町5-4-41 | AE104: 042-395-9121 | AF104: 042-392-7276
A105: 50411 | B105: 5 | C105: 4 | D105: 柳 | E105: 雄太 | F105: ﾔﾅｷﾞ | G105: ﾕｳﾀ | H105: 1 | I105: 成蹊 | K105: 男 | M105: 50411 | N105: 柳 | O105: 雄太 | P105: ﾔﾅｷﾞ | Q105: ﾕｳﾀ | R105: 男 | T105: 1 | V105: 130652 | W105: 6 | X105: 52 | Y105: 652 | Z105: 日体大桜華 | AA105: 日本体育大学桜華 | AB105: 高等学校 | AC105: 日本体育大学桜華高等学校 | AD105: 東京都東村山市富士見町2-5-1 | AE105: 042-391-4133 | AF105: 042-392-6424
A106: 50412 | B106: 5 | C106: 4 | D106: 田中 | E106: 優太郎 | F106: ﾀﾅｶ | G106: ﾕｳﾀﾛｳ | H106: 1 | I106: 成蹊 | K106: 男 | M106: 50412 | N106: 田中 | O106: 優太郎 | P106: ﾀﾅｶ | Q106: ﾕｳﾀﾛｳ | R106: 男 | T106: 1 | V106: 130653 | W106: 6 | X106: 53 | Y106: 653 | Z106: 明学東村山 | AA106: 明治学院東村山 | AB106: 高等学校 | AC106: 明治学院東村山高等学校 | AD106: 東京都東村山市富士見町1-12-3 | AE106: 042-391-2142 | AF106: 042-391-5926
A107: 50431 | B107: 5 | C107: 4 | D107: 中柴 | E107: 智貴 | F107: ﾅｶｼﾊﾞ | G107: ﾄﾓｷ | H107: 3 | I107: 成蹊 | K107: 男 | M107: 50431 | N107: 中柴 | O107: 智貴 | P107: ﾅｶｼﾊﾞ | Q107: ﾄﾓｷ | R107: 男 | T107: 3 | V107: 130654 | W107: 6 | X107: 54 | Y107: 654 | Z107: 明法 | AA107: 明法 | AB107: 高等学校 | AC107: 明法高等学校 | AD107: 東京都東村山市富士見町2-4-12 | AE107: 042-393-5611 | AF107: 042-391-7129
A108: 50432 | B108: 5 | C108: 4 | D108: 佐原 | E108: 慈大 | F108: ｻﾊﾗ | G108: ｼｹﾞﾋﾛ | H108: 3 | I108: 成蹊 | K108: 男 | M108: 50432 | N108: 佐原 | O108: 慈大 | P108: ｻﾊﾗ | Q108: ｼｹﾞﾋﾛ | R108: 男 | T108: 3 | V108: 130655 | W108: 6 | X108: 55 | Y108: 655 | Z108: 都羽村 | AA108: 東京都立羽村 | AB108: 高等学校 | AC108: 東京都立羽村高等学校 | AD108: 東京都羽村市羽4152-1 | AE108: 042-555-6633 | AF108: 042-555-0430
A109: 50433 | B109: 5 | C109: 4 | D109: 國久 | E109: 頌竜 | F109: ｸﾆﾋｻ | G109: ｼｮｳﾘｭｳ | H109: 3 | I109: 成蹊 | K109: 男 | M109: 50433 | N109: 國久 | O109: 頌竜 | P109: ｸﾆﾋｻ | Q109: ｼｮｳﾘｭｳ | R109: 男 | T109: 3 | V109: =130000+W109*100+X109 -> 130657 | W109: 6 | X109: 57 | Y109: 657 | Z109: 都瑞穂農芸 | AA109: 東京都立瑞穂農芸 | AB109: 高等学校 | AC109: 東京都立瑞穂農芸高等学校 | AD109: 東京都西多摩郡瑞穂町石畑2027 | AE109: 042-557-0142 | AF109: 042-556-2439
A110: 50434 | B110: 5 | C110: 4 | D110: 前坂 | E110: 忠宏 | F110: ﾏｴｻｶ | G110: ｱﾂﾋﾛ | H110: 3 | I110: 成蹊 | K110: 男 | M110: 50434 | N110: 前坂 | O110: 忠宏 | P110: ﾏｴｻｶ | Q110: ｱﾂﾋﾛ | R110: 男 | T110: 3 | V110: =130000+W110*100+X110 -> 130658 | W110: 6 | X110: 58 | Y110: =W110*100+X110 -> 658 | Z110: 都青梅総合 | AA110: 東京都立青梅総合 | AB110: 高等学校 | AC110: 東京都立青梅総合高等学校 | AD110: 東京都青梅市勝沼1-60-1 | AE110: 0428-22-7604 | AF110: 0428-22-7624
A111: 50438 | B111: 5 | C111: 4 | D111: 島村 | E111: 海斗 | F111: ｼﾏﾑﾗ | G111: ｶｲﾄ | H111: 3 | I111: 成蹊 | K111: 男 | M111: 50438 | N111: 島村 | O111: 海斗 | P111: ｼﾏﾑﾗ | Q111: ｶｲﾄ | R111: 男 | T111: 3 | V111: =130000+W111*100+X111 -> 130659 | W111: 6 | X111: 59 | Y111: =W111*100+X111 -> 659 | Z111: 帝京大高 | AA111: 帝京大学 | AB111: 高等学校 | AC111: 帝京大学高等学校 | AD111: 東京都八王子市越野322 | AE111: 042-676-9511 | AF111: 042-676-0241
A112: 50440 | B112: 5 | C112: 4 | D112: 坪田 | E112: 憲伸 | F112: ﾂﾎﾞﾀ | G112: ｹﾝｼﾝ | H112: 3 | I112: 成蹊 | K112: 男 | M112: 50440 | N112: 坪田 | O112: 憲伸 | P112: ﾂﾎﾞﾀ | Q112: ｹﾝｼﾝ | R112: 男 | T112: 3 | V112: =130000+W112*100+X112 -> 130660 | W112: 6 | X112: 60 | Y112: 660 | Z112: 都羽村特支 | AA112: 東京都立羽村特別支援 | AB112: 学校 | AC112: 東京都立羽村特別支援学校 | AD112: 東京都羽村市五ノ神319-1 | AE112: 042-554-0829 | AF112: 042-555-3853
A113: 50442 | B113: 5 | C113: 4 | D113: 二村 | E113: 啓太 | F113: ﾆﾑﾗ | G113: ｹｲﾀ | H113: 2 | I113: 成蹊 | K113: 男 | M113: 50442 | N113: 二村 | O113: 啓太 | P113: ﾆﾑﾗ | Q113: ｹｲﾀ | R113: 男 | T113: 2
A114: 50446 | B114: 5 | C114: 4 | D114: 渡辺 | E114: 恵文 | F114: ﾜﾀﾅﾍﾞ | G114: ﾄｼﾌﾐ | H114: 2 | I114: 成蹊 | K114: 男 | M114: 50446 | N114: 渡辺 | O114: 恵文 | P114: ﾜﾀﾅﾍﾞ | Q114: ﾄｼﾌﾐ | R114: 男 | T114: 2
A115: 50447 | B115: 5 | C115: 4 | D115: 東 | E115: 遼志 | F115: ﾋｶﾞｼ | G115: ﾊﾙｼ | H115: 2 | I115: 成蹊 | K115: 男 | M115: 50447 | N115: 東 | O115: 遼志 | P115: ﾋｶﾞｼ | Q115: ﾊﾙｼ | R115: 男 | T115: 2
A116: 50452 | B116: 5 | C116: 4 | D116: 大野 | E116: 遙 | F116: ｵｵﾉ | G116: ﾊﾙｶ | H116: 3 | I116: 成蹊 | K116: 女 | M116: 50452 | N116: 大野 | O116: 遙 | P116: ｵｵﾉ | Q116: ﾊﾙｶ | R116: 女 | T116: 3
A117: 50453 | B117: 5 | C117: 4 | D117: 米山 | E117: 万琴 | F117: ﾖﾈﾔﾏ | G117: ﾏｺﾄ | H117: 3 | I117: 成蹊 | K117: 女 | M117: 50453 | N117: 米山 | O117: 万琴 | P117: ﾖﾈﾔﾏ | Q117: ﾏｺﾄ | R117: 女 | T117: 3
A118: 50454 | B118: 5 | C118: 4 | D118: 細川 | E118: 真子 | F118: ﾎｿｶﾜ | G118: ﾏｺ | H118: 3 | I118: 成蹊 | K118: 女 | M118: 50454 | N118: 細川 | O118: 真子 | P118: ﾎｿｶﾜ | Q118: ﾏｺ | R118: 女 | T118: 3
A119: 50455 | B119: 5 | C119: 4 | D119: 平賀 | E119: 小絢 | F119: ﾋﾗｶﾞ | G119: ｻｱﾔ | H119: 3 | I119: 成蹊 | K119: 女 | M119: 50455 | N119: 平賀 | O119: 小絢 | P119: ﾋﾗｶﾞ | Q119: ｻｱﾔ | R119: 女 | T119: 3
A120: 50456 | B120: 5 | C120: 4 | D120: 髙須 | E120: 星来 | F120: ﾀｶｽ | G120: ｾｲﾗ | H120: 3 | I120: 成蹊 | K120: 女 | M120: 50456 | N120: 髙須 | O120: 星来 | P120: ﾀｶｽ | Q120: ｾｲﾗ | R120: 女 | T120: 3
A121: 50457 | B121: 5 | C121: 4 | D121: 上向 | E121: 詩子 | F121: ｳｴﾑｶｲ | G121: ｳﾀｺ | H121: 3 | I121: 成蹊 | K121: 女 | M121: 50457 | N121: 上向 | O121: 詩子 | P121: ｳｴﾑｶｲ | Q121: ｳﾀｺ | R121: 女 | T121: 3
A122: 50458 | B122: 5 | C122: 4 | D122: 髙尾 | E122: 愛花 | F122: ﾀｶｵ | G122: ｱｲｶ | H122: 2 | I122: 成蹊 | K122: 女 | M122: 50458 | N122: 髙尾 | O122: 愛花 | P122: ﾀｶｵ | Q122: ｱｲｶ | R122: 女 | T122: 2
A123: 50459 | B123: 5 | C123: 4 | D123: 直海 | E123: 涼香 | F123: ﾅｵﾐ | G123: ｽｽﾞｶ | H123: 2 | I123: 成蹊 | K123: 女 | M123: 50459 | N123: 直海 | O123: 涼香 | P123: ﾅｵﾐ | Q123: ｽｽﾞｶ | R123: 女 | T123: 2
A124: 50460 | B124: 5 | C124: 4 | D124: 窪田 | E124: 歩実 | F124: ｸﾎﾞﾀ | G124: ｱﾕﾐ | H124: 1 | I124: 成蹊 | K124: 女 | M124: 50460 | N124: 窪田 | O124: 歩実 | P124: ｸﾎﾞﾀ | Q124: ｱﾕﾐ | R124: 女 | T124: 1
A125: 50461 | B125: 5 | C125: 4 | D125: 村上 | E125: 聖 | F125: ﾑﾗｶﾐ | G125: ｷﾖ | H125: 1 | I125: 成蹊 | K125: 女 | M125: 50461 | N125: 村上 | O125: 聖 | P125: ﾑﾗｶﾐ | Q125: ｷﾖ | R125: 女 | T125: 1
A126: 50462 | B126: 5 | C126: 4 | D126: 井上 | E126: 涼捺 | F126: ｲﾉｳｴ | G126: ｽｽﾞﾅ | H126: 1 | I126: 成蹊 | K126: 女 | M126: 50462 | N126: 井上 | O126: 涼捺 | P126: ｲﾉｳｴ | Q126: ｽｽﾞﾅ | R126: 女 | T126: 1
A127: 50463 | B127: 5 | C127: 4 | D127: 石塚 | E127: 理子 | F127: ｲｼﾂﾞｶ | G127: ﾘｺ | H127: 1 | I127: 成蹊 | K127: 女 | M127: 50463 | N127: 石塚 | O127: 理子 | P127: ｲｼﾂﾞｶ | Q127: ﾘｺ | R127: 女 | T127: 1
A128: 50464 | B128: 5 | C128: 4 | D128: 鈴木 | E128: まどか | F128: ｽｽﾞｷ | G128: ﾏﾄﾞｶ | H128: 1 | I128: 成蹊 | K128: 女 | M128: 50464 | N128: 鈴木 | O128: まどか | P128: ｽｽﾞｷ | Q128: ﾏﾄﾞｶ | R128: 女 | T128: 1
A129: 50465 | B129: 5 | C129: 4 | D129: 黒須 | E129: 萌花 | F129: ｸﾛｽ | G129: ﾓｴｶ | H129: 1 | I129: 成蹊 | K129: 女 | M129: 50465 | N129: 黒須 | O129: 萌花 | P129: ｸﾛｽ | Q129: ﾓｴｶ | R129: 女 | T129: 1
A130: 50466 | B130: 5 | C130: 4 | D130: 大嶋 | E130: 明日香 | F130: ｵｵｼﾏ | G130: ｱｽｶ | H130: 1 | I130: =VLOOKUP(B130*100+C130,テスト,2,0) -> 成蹊 | K130: 女 | M130: 50466 | N130: 大嶋 | O130: 明日香 | P130: ｵｵｼﾏ | Q130: ｱｽｶ | R130: 女 | T130: 1
A131: =M131 -> 50498 | B131: =ROUNDDOWN(A131/10000,0) -> 5 | C131: =ROUNDDOWN((A131-B131*10000)/100,0) -> 4 | D131: =N131 -> 武村 | E131: =O131 -> あみ | F131: =P131 -> ﾀｹﾑﾗ | G131: =Q131 -> ｱﾐ | H131: =T131 -> 3 | I131: 成蹊 | K131: =R131 -> 女 | M131: 50498 | N131: 武村 | O131: あみ | P131: ﾀｹﾑﾗ | Q131: ｱﾐ | R131: 女 | T131: 3
A132: 50522 | B132: 5 | C132: 5 | D132: 山口 | E132: 智也 | F132: ﾔﾏｸﾞﾁ | G132: ﾄﾓﾔ | H132: 3 | I132: 法政 | K132: 男 | M132: 50522 | N132: 山口 | O132: 智也 | P132: ﾔﾏｸﾞﾁ | Q132: ﾄﾓﾔ | R132: 男 | T132: 3
A133: 50523 | B133: 5 | C133: 5 | D133: 田所 | E133: 大登 | F133: ﾀﾄﾞｺﾛ | G133: ﾊﾙﾄ | H133: 3 | I133: 法政 | K133: 男 | M133: 50523 | N133: 田所 | O133: 大登 | P133: ﾀﾄﾞｺﾛ | Q133: ﾊﾙﾄ | R133: 男 | T133: 3
A134: 50524 | B134: 5 | C134: 5 | D134: 大山 | E134: 賢人 | F134: ｵｵﾔﾏ | G134: ｹﾝﾄ | H134: 3 | I134: 法政 | K134: 男 | M134: 50524 | N134: 大山 | O134: 賢人 | P134: ｵｵﾔﾏ | Q134: ｹﾝﾄ | R134: 男 | T134: 3
A135: 50527 | B135: 5 | C135: 5 | D135: 瀬崎 | E135: 亮 | F135: ｾｻﾞｷ | G135: ﾘｮｳ | H135: 2 | I135: 法政 | K135: 男 | M135: 50527 | N135: 瀬崎 | O135: 亮 | P135: ｾｻﾞｷ | Q135: ﾘｮｳ | R135: 男 | T135: 2
A136: 50528 | B136: 5 | C136: 5 | D136: 福澤 | E136: 拓也 | F136: ﾌｸｻﾞﾜ | G136: ﾀｸﾔ | H136: 2 | I136: 法政 | K136: 男 | M136: 50528 | N136: 福澤 | O136: 拓也 | P136: ﾌｸｻﾞﾜ | Q136: ﾀｸﾔ | R136: 男 | T136: 2
A137: 50529 | B137: 5 | C137: 5 | D137: 箕浦 | E137: 隼太 | F137: ﾐﾉｳﾗ | G137: ｼｭﾝﾀ | H137: 2 | I137: 法政 | K137: 男 | M137: 50529 | N137: 箕浦 | O137: 隼太 | P137: ﾐﾉｳﾗ | Q137: ｼｭﾝﾀ | R137: 男 | T137: 2
A138: 50530 | B138: 5 | C138: 5 | D138: 川田 | E138: 勇護 | F138: ｶﾜﾀﾞ | G138: ﾕｳｺﾞ | H138: 2 | I138: 法政 | K138: 男 | M138: 50530 | N138: 川田 | O138: 勇護 | P138: ｶﾜﾀﾞ | Q138: ﾕｳｺﾞ | R138: 男 | T138: 2
A139: 50531 | B139: 5 | C139: 5 | D139: 矢田 | E139: 亮太 | F139: ﾔﾀﾞ | G139: ﾘｮｳﾀ | H139: 2 | I139: 法政 | K139: 男 | M139: 50531 | N139: 矢田 | O139: 亮太 | P139: ﾔﾀﾞ | Q139: ﾘｮｳﾀ | R139: 男 | T139: 2
A140: 50532 | B140: 5 | C140: 5 | D140: 福島 | E140: 良 | F140: ﾌｸｼﾏ | G140: ﾘｮｳ | H140: 2 | I140: 法政 | K140: 男 | M140: 50532 | N140: 福島 | O140: 良 | P140: ﾌｸｼﾏ | Q140: ﾘｮｳ | R140: 男 | T140: 2
A141: 50533 | B141: 5 | C141: 5 | D141: 草野 | E141: 健太 | F141: ｸｻﾉ | G141: ｹﾝﾀ | H141: 2 | I141: 法政 | K141: 男 | M141: 50533 | N141: 草野 | O141: 健太 | P141: ｸｻﾉ | Q141: ｹﾝﾀ | R141: 男 | T141: 2
A142: 50534 | B142: 5 | C142: 5 | D142: 原口 | E142: 泰治 | F142: ﾊﾗｸﾞﾁ | G142: ﾀｲｼﾞ | H142: 1 | I142: 法政 | K142: 男 | M142: 50534 | N142: 原口 | O142: 泰治 | P142: ﾊﾗｸﾞﾁ | Q142: ﾀｲｼﾞ | R142: 男 | T142: 1
A143: 50535 | B143: 5 | C143: 5 | D143: 清水 | E143: 嶺太郎 | F143: ｼﾐｽﾞ | G143: ﾘｮｳﾀﾛｳ | H143: 1 | I143: 法政 | K143: 男 | M143: 50535 | N143: 清水 | O143: 嶺太郎 | P143: ｼﾐｽﾞ | Q143: ﾘｮｳﾀﾛｳ | R143: 男 | T143: 1
A144: 50536 | B144: 5 | C144: 5 | D144: 佐藤 | E144: 大二 | F144: ｻﾄｳ | G144: ﾀﾞｲｼﾞ | H144: 1 | I144: 法政 | K144: 男 | M144: 50536 | N144: 佐藤 | O144: 大二 | P144: ｻﾄｳ | Q144: ﾀﾞｲｼﾞ | R144: 男 | T144: 1
A145: 50537 | B145: 5 | C145: 5 | D145: 木村 | E145: 泰智 | F145: ｷﾑﾗ | G145: ﾀｲﾁ | H145: 1 | I145: 法政 | K145: 男 | M145: 50537 | N145: 木村 | O145: 泰智 | P145: ｷﾑﾗ | Q145: ﾀｲﾁ | R145: 男 | T145: 1
A146: 50538 | B146: 5 | C146: 5 | D146: 西川 | E146: 朝登 | F146: ﾆｼｶﾜ | G146: ｱｻﾄ | H146: 1 | I146: 法政 | K146: 男 | M146: 50538 | N146: 西川 | O146: 朝登 | P146: ﾆｼｶﾜ | Q146: ｱｻﾄ | R146: 男 | T146: 1
A147: 50539 | B147: 5 | C147: 5 | D147: 佐久間 | E147: 悠理 | F147: ｻｸﾏ | G147: ﾕｳﾘ | H147: 1 | I147: 法政 | K147: 男 | M147: 50539 | N147: 佐久間 | O147: 悠理 | P147: ｻｸﾏ | Q147: ﾕｳﾘ | R147: 男 | T147: 1
A148: 50540 | B148: 5 | C148: 5 | D148: 大塚 | E148: 翼 | F148: ｵｵﾂｶ | G148: ﾂﾊﾞｻ | H148: 1 | I148: 法政 | K148: 男 | M148: 50540 | N148: 大塚 | O148: 翼 | P148: ｵｵﾂｶ | Q148: ﾂﾊﾞｻ | R148: 男 | T148: 1
A149: 50541 | B149: 5 | C149: 5 | D149: 関根 | E149: 陸 | F149: ｾｷﾈ | G149: ﾘｸ | H149: 1 | I149: 法政 | K149: 男 | M149: 50541 | N149: 関根 | O149: 陸 | P149: ｾｷﾈ | Q149: ﾘｸ | R149: 男 | T149: 1
A150: 50542 | B150: 5 | C150: 5 | D150: 瓜生 | E150: 智哉 | F150: ｳﾘｳ | G150: ﾄﾓﾔ | H150: 1 | I150: 法政 | K150: 男 | M150: 50542 | N150: 瓜生 | O150: 智哉 | P150: ｳﾘｳ | Q150: ﾄﾓﾔ | R150: 男 | T150: 1
A151: 50543 | B151: 5 | C151: 5 | D151: 本橋 | E151: 一輝 | F151: ﾓﾄﾊｼ | G151: ｶｽﾞｷ | H151: 1 | I151: 法政 | K151: 男 | M151: 50543 | N151: 本橋 | O151: 一輝 | P151: ﾓﾄﾊｼ | Q151: ｶｽﾞｷ | R151: 男 | T151: 1
A152: 50551 | B152: 5 | C152: 5 | D152: 鈴木 | E152: 舞 | F152: ｽｽﾞｷ | G152: ﾏｲ | H152: 1 | I152: 法政 | K152: 女 | M152: 50551 | N152: 鈴木 | O152: 舞 | P152: ｽｽﾞｷ | Q152: ﾏｲ | R152: 女 | T152: 1
A153: 50552 | B153: 5 | C153: 5 | D153: 畑 | E153: 聖裕 | F153: ﾊﾀ | G153: ｾｲﾕ | H153: 1 | I153: 法政 | K153: 女 | M153: 50552 | N153: 畑 | O153: 聖裕 | P153: ﾊﾀ | Q153: ｾｲﾕ | R153: 女 | T153: 1
A154: 50553 | B154: 5 | C154: 5 | D154: 北島 | E154: 萌乃香 | F154: ｷﾀｼﾞﾏ | G154: ﾎﾉｶ | H154: 1 | I154: 法政 | K154: 女 | M154: 50553 | N154: 北島 | O154: 萌乃香 | P154: ｷﾀｼﾞﾏ | Q154: ﾎﾉｶ | R154: 女 | T154: 1
A155: 50554 | B155: 5 | C155: 5 | D155: 野口 | E155: 夏綺 | F155: ﾉｸﾞﾁ | G155: ﾅﾂｷ | H155: 1 | I155: 法政 | K155: 女 | M155: 50554 | N155: 野口 | O155: 夏綺 | P155: ﾉｸﾞﾁ | Q155: ﾅﾂｷ | R155: 女 | T155: 1
A156: 50555 | B156: 5 | C156: 5 | D156: 大島 | E156: 沙莉 | F156: ｵｵｼﾏ | G156: ｻﾘ | H156: 1 | I156: 法政 | K156: 女 | M156: 50555 | N156: 大島 | O156: 沙莉 | P156: ｵｵｼﾏ | Q156: ｻﾘ | R156: 女 | T156: 1
A157: 50556 | B157: 5 | C157: 5 | D157: 岩城 | E157: 結子 | F157: ｲﾜｷ | G157: ﾕｲｺ | H157: 1 | I157: 法政 | K157: 女 | M157: 50556 | N157: 岩城 | O157: 結子 | P157: ｲﾜｷ | Q157: ﾕｲｺ | R157: 女 | T157: 1
A158: 50557 | B158: 5 | C158: 5 | D158: 杉山 | E158: 陽香 | F158: ｽｷﾞﾔﾏ | G158: ﾊﾙｶ | H158: 1 | I158: 法政 | K158: 女 | M158: 50557 | N158: 杉山 | O158: 陽香 | P158: ｽｷﾞﾔﾏ | Q158: ﾊﾙｶ | R158: 女 | T158: 1
A159: 50558 | B159: 5 | C159: 5 | D159: 続池 | E159: 愛梨 | F159: ﾂﾂﾞｲｹ | G159: ｱｲﾘ | H159: 1 | I159: 法政 | K159: 女 | M159: 50558 | N159: 続池 | O159: 愛梨 | P159: ﾂﾂﾞｲｹ | Q159: ｱｲﾘ | R159: 女 | T159: 1
A160: 50559 | B160: 5 | C160: 5 | D160: 狩集 | E160: 未来 | F160: ｶﾘｱﾂﾏﾘ | G160: ﾐｺ | H160: 1 | I160: 法政 | K160: 女 | M160: 50559 | N160: 狩集 | O160: 未来 | P160: ｶﾘｱﾂﾏﾘ | Q160: ﾐｺ | R160: 女 | T160: 1
A161: 50587 | B161: 5 | C161: 5 | D161: 山本 | E161: 恭子 | F161: ﾔﾏﾓﾄ | G161: ｷｮｳｺ | H161: 3 | I161: 法政 | K161: 女 | M161: 50587 | N161: 山本 | O161: 恭子 | P161: ﾔﾏﾓﾄ | Q161: ｷｮｳｺ | R161: 女 | T161: 3
A162: 50588 | B162: 5 | C162: 5 | D162: 松井 | E162: 仁奈 | F162: ﾏﾂｲ | G162: ﾆﾅ | H162: 3 | I162: 法政 | K162: 女 | M162: 50588 | N162: 松井 | O162: 仁奈 | P162: ﾏﾂｲ | Q162: ﾆﾅ | R162: 女 | T162: 3
A163: 50589 | B163: 5 | C163: 5 | D163: 三浦 | E163: みなみ | F163: ﾐｳﾗ | G163: ﾐﾅﾐ | H163: 3 | I163: 法政 | K163: 女 | M163: 50589 | N163: 三浦 | O163: みなみ | P163: ﾐｳﾗ | Q163: ﾐﾅﾐ | R163: 女 | T163: 3
A164: 50592 | B164: 5 | C164: 5 | D164: 河野 | E164: ななみ | F164: ｶﾜﾉ | G164: ﾅﾅﾐ | H164: 3 | I164: 法政 | K164: 女 | M164: 50592 | N164: 河野 | O164: ななみ | P164: ｶﾜﾉ | Q164: ﾅﾅﾐ | R164: 女 | T164: 3
A165: 50594 | B165: 5 | C165: 5 | D165: 浅見 | E165: 那南 | F165: ｱｻﾐ | G165: ﾅﾅ | H165: 3 | I165: 法政 | K165: 女 | M165: 50594 | N165: 浅見 | O165: 那南 | P165: ｱｻﾐ | Q165: ﾅﾅ | R165: 女 | T165: 3
A166: 50595 | B166: 5 | C166: 5 | D166: 藤森 | E166: 乙月 | F166: ﾌｼﾞﾓﾘ | G166: ｲﾂｷ | H166: 3 | I166: 法政 | K166: 女 | M166: 50595 | N166: 藤森 | O166: 乙月 | P166: ﾌｼﾞﾓﾘ | Q166: ｲﾂｷ | R166: 女 | T166: 3
A167: 50596 | B167: 5 | C167: 5 | D167: 松浦 | E167: 帆乃加 | F167: ﾏﾂｳﾗ | G167: ﾎﾉｶ | H167: 3 | I167: 法政 | K167: 女 | M167: 50596 | N167: 松浦 | O167: 帆乃加 | P167: ﾏﾂｳﾗ | Q167: ﾎﾉｶ | R167: 女 | T167: 3
A168: 50597 | B168: 5 | C168: 5 | D168: 山本 | E168: 小雪 | F168: ﾔﾏﾓﾄ | G168: ｺﾕｷ | H168: 2 | I168: 法政 | K168: 女 | M168: 50597 | N168: 山本 | O168: 小雪 | P168: ﾔﾏﾓﾄ | Q168: ｺﾕｷ | R168: 女 | T168: 2
A169: 50598 | B169: 5 | C169: 5 | D169: 澤部 | E169: 領花 | F169: ｻﾜﾍﾞ | G169: ｴﾘｶ | H169: 2 | I169: 法政 | K169: 女 | M169: 50598 | N169: 澤部 | O169: 領花 | P169: ｻﾜﾍﾞ | Q169: ｴﾘｶ | R169: 女 | T169: 2
A170: 50599 | B170: 5 | C170: 5 | D170: 山本 | E170: 彩奈 | F170: ﾔﾏﾓﾄ | G170: ｱﾔﾅ | H170: 2 | I170: 法政 | K170: 女 | M170: 50599 | N170: 山本 | O170: 彩奈 | P170: ﾔﾏﾓﾄ | Q170: ｱﾔﾅ | R170: 女 | T170: 2
A171: 50652 | B171: 5 | C171: 6 | D171: 下笹 | E171: 瑞季 | F171: ｼﾓｻｻ | G171: ﾐｽﾞｷ | H171: 2 | I171: 藤村女 | K171: 女 | M171: 50652 | N171: 下笹 | O171: 瑞季 | P171: ｼﾓｻｻ | Q171: ﾐｽﾞｷ | R171: 女 | T171: 2
A172: 50653 | B172: 5 | C172: 6 | D172: 鍛治 | E172: 日奈美 | F172: ｶｼﾞ | G172: ﾋﾅﾐ | H172: 2 | I172: 藤村女 | K172: 女 | M172: 50653 | N172: 鍛治 | O172: 日奈美 | P172: ｶｼﾞ | Q172: ﾋﾅﾐ | R172: 女 | T172: 2
A173: 50654 | B173: 5 | C173: 6 | D173: 佐々木 | E173: 彩花 | F173: ｻｻｷ | G173: ｱﾔｶ | H173: 2 | I173: 藤村女 | K173: 女 | M173: 50654 | N173: 佐々木 | O173: 彩花 | P173: ｻｻｷ | Q173: ｱﾔｶ | R173: 女 | T173: 2
A174: 50655 | B174: 5 | C174: 6 | D174: 髙西 | E174: 梨那 | F174: ﾀｶﾆｼ | G174: ﾘﾅ | H174: 2 | I174: 藤村女 | K174: 女 | M174: 50655 | N174: 髙西 | O174: 梨那 | P174: ﾀｶﾆｼ | Q174: ﾘﾅ | R174: 女 | T174: 2
A175: 50656 | B175: 5 | C175: 6 | D175: 佐藤 | E175: 香織 | F175: ｻﾄｳ | G175: ｶｵﾘ | H175: 2 | I175: 藤村女 | K175: 女 | M175: 50656 | N175: 佐藤 | O175: 香織 | P175: ｻﾄｳ | Q175: ｶｵﾘ | R175: 女 | T175: 2
A176: 50657 | B176: 5 | C176: 6 | D176: 船山 | E176: ひなた | F176: ﾌﾅﾔﾏ | G176: ﾋﾅﾀ | H176: 2 | I176: 藤村女 | K176: 女 | M176: 50657 | N176: 船山 | O176: ひなた | P176: ﾌﾅﾔﾏ | Q176: ﾋﾅﾀ | R176: 女 | T176: 2
A177: 50658 | B177: 5 | C177: 6 | D177: 望月 | E177: 優里 | F177: ﾓﾁﾂﾞｷ | G177: ﾕｳﾘ | H177: 2 | I177: 藤村女 | K177: 女 | M177: 50658 | N177: 望月 | O177: 優里 | P177: ﾓﾁﾂﾞｷ | Q177: ﾕｳﾘ | R177: 女 | T177: 2
A178: 50659 | B178: 5 | C178: 6 | D178: 安田 | E178: 華穂 | F178: ﾔｽﾀﾞ | G178: ｶﾎ | H178: 2 | I178: 藤村女 | K178: 女 | M178: 50659 | N178: 安田 | O178: 華穂 | P178: ﾔｽﾀﾞ | Q178: ｶﾎ | R178: 女 | T178: 2
A179: 50660 | B179: 5 | C179: 6 | D179: 綾部 | E179: 瑞穂 | F179: ｱﾔﾍﾞ | G179: ﾐｽﾞﾎ | H179: 2 | I179: 藤村女 | K179: 女 | M179: 50660 | N179: 綾部 | O179: 瑞穂 | P179: ｱﾔﾍﾞ | Q179: ﾐｽﾞﾎ | R179: 女 | T179: 2
A180: 50672 | B180: 5 | C180: 6 | D180: 中島 | E180: 実桃 | F180: ﾅｶｼﾏ | G180: ﾐﾄ | H180: 1 | I180: 藤村女 | K180: 女 | M180: 50672 | N180: 中島 | O180: 実桃 | P180: ﾅｶｼﾏ | Q180: ﾐﾄ | R180: 女 | T180: 1
A181: 50673 | B181: 5 | C181: 6 | D181: 保坂 | E181: 菜央 | F181: ﾎｻｶ | G181: ﾅｵ | H181: 1 | I181: 藤村女 | K181: 女 | M181: 50673 | N181: 保坂 | O181: 菜央 | P181: ﾎｻｶ | Q181: ﾅｵ | R181: 女 | T181: 1
A182: 50676 | B182: 5 | C182: 6 | D182: 谷 | E182: 茜里 | F182: ﾀﾆ | G182: ｱｶﾘ | H182: 1 | I182: 藤村女 | K182: 女 | M182: 50676 | N182: 谷 | O182: 茜里 | P182: ﾀﾆ | Q182: ｱｶﾘ | R182: 女 | T182: 1
A183: 50677 | B183: 5 | C183: 6 | D183: 勇 | E183: ことこ | F183: ｲｻﾐ | G183: ｺﾄｺ | H183: 1 | I183: 藤村女 | K183: 女 | M183: 50677 | N183: 勇 | O183: ことこ | P183: ｲｻﾐ | Q183: ｺﾄｺ | R183: 女 | T183: 1
A184: 50683 | B184: 5 | C184: 6 | D184: 鈴木 | E184: 香瑠良 | F184: ｽｽﾞｷ | G184: ｶﾙﾗ | H184: 3 | I184: 藤村女 | K184: 女 | M184: 50683 | N184: 鈴木 | O184: 香瑠良 | P184: ｽｽﾞｷ | Q184: ｶﾙﾗ | R184: 女 | T184: 3
A185: 50684 | B185: 5 | C185: 6 | D185: 萩原 | E185: 千佳 | F185: ﾊｷﾞﾜﾗ | G185: ﾁｶ | H185: 3 | I185: 藤村女 | K185: 女 | M185: 50684 | N185: 萩原 | O185: 千佳 | P185: ﾊｷﾞﾜﾗ | Q185: ﾁｶ | R185: 女 | T185: 3
A186: 50685 | B186: 5 | C186: 6 | D186: 佐久間 | E186: 珠里 | F186: ｻｸﾏ | G186: ｼｭﾘ | H186: 3 | I186: 藤村女 | K186: 女 | M186: 50685 | N186: 佐久間 | O186: 珠里 | P186: ｻｸﾏ | Q186: ｼｭﾘ | R186: 女 | T186: 3
A187: 50687 | B187: 5 | C187: 6 | D187: 志賀 | E187: 巴香 | F187: ｼｶﾞ | G187: ﾄﾓｶ | H187: 3 | I187: 藤村女 | K187: 女 | M187: 50687 | N187: 志賀 | O187: 巴香 | P187: ｼｶﾞ | Q187: ﾄﾓｶ | R187: 女 | T187: 3
A188: 50689 | B188: 5 | C188: 6 | D188: 福田 | E188: 幸来 | F188: ﾌｸﾀﾞ | G188: ｻﾗ | H188: 3 | I188: 藤村女 | K188: 女 | M188: 50689 | N188: 福田 | O188: 幸来 | P188: ﾌｸﾀﾞ | Q188: ｻﾗ | R188: 女 | T188: 3
A189: 50777 | B189: 5 | C189: 7 | D189: 外園 | E189: 清香 | F189: ﾎｶｿﾞﾉ | G189: ｻﾔｶ | H189: 2 | I189: 吉祥女 | K189: 女 | M189: 50777 | N189: 外園 | O189: 清香 | P189: ﾎｶｿﾞﾉ | Q189: ｻﾔｶ | R189: 女 | T189: 2
A190: 50778 | B190: 5 | C190: 7 | D190: 本田 | E190: 梨乃 | F190: ﾎﾝﾀﾞ | G190: ﾘﾉ | H190: 2 | I190: 吉祥女 | K190: 女 | M190: 50778 | N190: 本田 | O190: 梨乃 | P190: ﾎﾝﾀﾞ | Q190: ﾘﾉ | R190: 女 | T190: 2
A191: 50779 | B191: 5 | C191: 7 | D191: 樋口 | E191: りさ | F191: ﾋｸﾞﾁ | G191: ﾘｻ | H191: 2 | I191: 吉祥女 | K191: 女 | M191: 50779 | N191: 樋口 | O191: りさ | P191: ﾋｸﾞﾁ | Q191: ﾘｻ | R191: 女 | T191: 2
A192: 50780 | B192: 5 | C192: 7 | D192: 太田 | E192: 暖乃 | F192: ｵｵﾀ | G192: ﾊﾙﾉ | H192: 1 | I192: 吉祥女 | K192: 女 | M192: 50780 | N192: 太田 | O192: 暖乃 | P192: ｵｵﾀ | Q192: ﾊﾙﾉ | R192: 女 | T192: 1
A193: 50781 | B193: 5 | C193: 7 | D193: 栗原 | E193: 言奈 | F193: ｸﾘﾊﾗ | G193: ｺﾄﾅ | H193: 1 | I193: 吉祥女 | K193: 女 | M193: 50781 | N193: 栗原 | O193: 言奈 | P193: ｸﾘﾊﾗ | Q193: ｺﾄﾅ | R193: 女 | T193: 1
A194: 50782 | B194: 5 | C194: 7 | D194: 西藤 | E194: 薫織 | F194: ｻｲﾄｳ | G194: ｶｵﾘ | H194: 1 | I194: =VLOOKUP(B194*100+C194,テスト,2,0) -> 吉祥女 | K194: 女 | M194: 50782 | N194: 西藤 | O194: 薫織 | P194: ｻｲﾄｳ | Q194: ｶｵﾘ | R194: 女 | T194: 1
A195: =M195 -> 50783 | B195: =ROUNDDOWN(A195/10000,0) -> 5 | C195: =ROUNDDOWN((A195-B195*10000)/100,0) -> 7 | D195: =N195 -> 堀江 | E195: =O195 -> 美喜 | F195: =P195 -> ﾎﾘｴ | G195: =Q195 -> ﾐｷ | H195: =T195 -> 1 | I195: 吉祥女 | K195: =R195 -> 女 | M195: 50783 | N195: 堀江 | O195: 美喜 | P195: ﾎﾘｴ | Q195: ﾐｷ | R195: 女 | T195: 1
A196: 50784 | B196: 5 | C196: 7 | D196: 増島 | E196: 七海 | F196: ﾏｽｼﾞﾏ | G196: ﾅﾅﾐ | H196: 1 | I196: 吉祥女 | K196: 女 | M196: 50784 | N196: 増島 | O196: 七海 | P196: ﾏｽｼﾞﾏ | Q196: ﾅﾅﾐ | R196: 女 | T196: 1
A197: 50822 | B197: 5 | C197: 8 | D197: 楢﨑 | E197: 涼悟 | F197: ﾅﾗｻｷ | G197: ﾘｮｳｺﾞ | H197: 3 | I197: 武蔵野東高専 | K197: 男 | M197: 50822 | N197: 楢﨑 | O197: 涼悟 | P197: ﾅﾗｻｷ | Q197: ﾘｮｳｺﾞ | R197: 男 | T197: 3
A198: 50825 | B198: 5 | C198: 8 | D198: 田中 | E198: 穣太郎 | F198: ﾀﾅｶ | G198: ｼﾞｮｳﾀﾛｳ | H198: 3 | I198: 武蔵野東高専 | K198: 男 | M198: 50825 | N198: 田中 | O198: 穣太郎 | P198: ﾀﾅｶ | Q198: ｼﾞｮｳﾀﾛｳ | R198: 男 | T198: 3
A199: 50826 | B199: 5 | C199: 8 | D199: 岩崎 | E199: 蒼 | F199: ｲﾜｻｷ | G199: ｿｳ | H199: 2 | I199: 武蔵野東高専 | K199: 男 | M199: 50826 | N199: 岩崎 | O199: 蒼 | P199: ｲﾜｻｷ | Q199: ｿｳ | R199: 男 | T199: 2
A200: 50827 | B200: 5 | C200: 8 | D200: 芝本 | E200: 貴一 | F200: ｼﾊﾞﾓﾄ | G200: ｷｲﾁ | H200: 3 | I200: 武蔵野東高専 | K200: 男 | M200: 50827 | N200: 芝本 | O200: 貴一 | P200: ｼﾊﾞﾓﾄ | Q200: ｷｲﾁ | R200: 男 | T200: 3
... 2800 more rows

Sheet 出場選手エントリー票 男 (hidden)
B1: No. | C1: 姓 | D1: 名 | E1: 生年（年） | F1: 月 | G1: 日 | H1: 学年 | I1: 性別 | J1: 所属 | K1: 種目1 | L1: 種目2 | M1: 種目3 | N1: ４R | O1: １６R
A2: 1 | B2: =IF(ISERROR(VLOOKUP($A2,男子,5,0)),"",VLOOKUP($A2,男子,6,0)) ->  | C2: =IF($B2="","",VLOOKUP($A2,男子,7+1,0)) ->  | D2: =IF($B2="","",VLOOKUP($A2,男子,8+1,0)) ->  | E2: =IF($B2="","",VLOOKUP($A2,男子,11+1,0)) ->  | F2: =IF($B2="","",VLOOKUP($A2,男子,12+1,0)) ->  | G2: =IF($B2="","",VLOOKUP($A2,男子,13+1,0)) ->  | H2: =IF($B2="","",VLOOKUP($A2,男子,14+1,0)) ->  | I2: =IF($B2="","",VLOOKUP($A2,男子,15+1,0)) ->  | J2: =IF($B2="","",VLOOKUP($A2,男子,16+1,0)) ->  | K2: =IF($B2="","",IF(VLOOKUP($A2,男子,17+1,0)="","",VLOOKUP($A2,男子,17+1,0))) ->  | L2: =IF($B2="","",IF(VLOOKUP($A2,男子,21+1,0)="","",VLOOKUP($A2,男子,21+1,0))) ->  | M2: =IF($B2="","",IF(VLOOKUP($A2,男子,25+1,0)="","",VLOOKUP($A2,男子,25+1,0))) ->  | N2: =IF($B2="","",IF(VLOOKUP($A2,男子,29+1,0)="","",VLOOKUP($A2,男子,29+1,0))) ->  | O2: =IF($B2="","",IF(VLOOKUP($A2,男子,33+1,0)="","",VLOOKUP($A2,男子,33+1,0))) -> 
A3: 2
A4: 3
A5: 4
A6: 5
A7: 6
A8: 7
A9: 8
A10: 9
A11: 10
A12: 11
A13: 12
A14: 13
A15: 14
A16: 15
A17: 16
A18: 17
A19: 18
A20: 19
A21: 20
A22: 21
A23: 22
A24: 23
A25: 24
A26: 25
A27: 26
A28: 27
A29: 28
A30: 29
A31: 30
A32: 31
A33: 32
A34: 33 | B34: =IF(ISERROR(VLOOKUP($A34,男子,5,0)),"",VLOOKUP($A34,男子,6,0)) ->  | C34: =IF($B34="","",VLOOKUP($A34,男子,7+1,0)) ->  | D34: =IF($B34="","",VLOOKUP($A34,男子,8+1,0)) ->  | E34: =IF($B34="","",VLOOKUP($A34,男子,11+1,0)) ->  | F34: =IF($B34="","",VLOOKUP($A34,男子,12+1,0)) ->  | G34: =IF($B34="","",VLOOKUP($A34,男子,13+1,0)) ->  | H34: =IF($B34="","",VLOOKUP($A34,男子,14+1,0)) ->  | I34: =IF($B34="","",VLOOKUP($A34,男子,15+1,0)) ->  | J34: =IF($B34="","",VLOOKUP($A34,男子,16+1,0)) ->  | K34: =IF($B34="","",IF(VLOOKUP($A34,男子,17+1,0)="","",VLOOKUP($A34,男子,17+1,0))) ->  | L34: =IF($B34="","",IF(VLOOKUP($A34,男子,21+1,0)="","",VLOOKUP($A34,男子,21+1,0))) ->  | M34: =IF($B34="","",IF(VLOOKUP($A34,男子,25+1,0)="","",VLOOKUP($A34,男子,25+1,0))) ->  | N34: =IF($B34="","",IF(VLOOKUP($A34,男子,29+1,0)="","",VLOOKUP($A34,男子,29+1,0))) ->  | O34: =IF($B34="","",IF(VLOOKUP($A34,男子,33+1,0)="","",VLOOKUP($A34,男子,33+1,0))) -> 
A35: 34
A36: 35
A37: 36
A38: 37
A39: 38
A40: 39
A41: 40
A42: 41
A43: 42
A44: 43
A45: 44
A46: 45
A47: 46
A48: 47
A49: 48
A50: 49
A51: 50
A52: 51
A53: 52
A54: 53
A55: 54
A56: 55
A57: 56
A58: 57
A59: 58
A60: 59
A61: 60
A62: 61
A63: 62
A64: 63
A65: 64
A66: 65 | B66: =IF(ISERROR(VLOOKUP($A66,男子,5,0)),"",VLOOKUP($A66,男子,6,0)) ->  | C66: =IF($B66="","",VLOOKUP($A66,男子,7+1,0)) ->  | D66: =IF($B66="","",VLOOKUP($A66,男子,8+1,0)) ->  | E66: =IF($B66="","",VLOOKUP($A66,男子,11+1,0)) ->  | F66: =IF($B66="","",VLOOKUP($A66,男子,12+1,0)) ->  | G66: =IF($B66="","",VLOOKUP($A66,男子,13+1,0)) ->  | H66: =IF($B66="","",VLOOKUP($A66,男子,14+1,0)) ->  | I66: =IF($B66="","",VLOOKUP($A66,男子,15+1,0)) ->  | J66: =IF($B66="","",VLOOKUP($A66,男子,16+1,0)) ->  | K66: =IF($B66="","",IF(VLOOKUP($A66,男子,17+1,0)="","",VLOOKUP($A66,男子,17+1,0))) ->  | L66: =IF($B66="","",IF(VLOOKUP($A66,男子,21+1,0)="","",VLOOKUP($A66,男子,21+1,0))) ->  | M66: =IF($B66="","",IF(VLOOKUP($A66,男子,25+1,0)="","",VLOOKUP($A66,男子,25+1,0))) ->  | N66: =IF($B66="","",IF(VLOOKUP($A66,男子,29+1,0)="","",VLOOKUP($A66,男子,29+1,0))) ->  | O66: =IF($B66="","",IF(VLOOKUP($A66,男子,33+1,0)="","",VLOOKUP($A66,男子,33+1,0))) -> 
A67: 66
A68: 67
A69: 68
A70: 69
A71: 70
A72: 71
A73: 72
A74: 73
A75: 74
A76: 75
A77: 76
A78: 77
A79: 78
A80: 79
A81: 80

Sheet 出場選手エントリー票 女 (hidden)
B1: No. | C1: 姓 | D1: 名 | E1: 生年（年） | F1: 月 | G1: 日 | H1: 学年 | I1: 性別 | J1: 所属 | K1: 種目1 | L1: 種目2 | M1: 種目3 | N1: ４R | O1: １６R | Q1: 5 | R1: 23年走幅跳 | S1: 5 | V1: 中2 | W1: 23 | Z1: 03 | AA1: 5
A2: 1 | B2: =IF(ISERROR(VLOOKUP($A2,女子,4,0)),"",VLOOKUP($A2,女子,4,0)) ->  | C2: =IF($B2="","",VLOOKUP($A2,女子,5+1,0)) ->  | D2: =IF($B2="","",VLOOKUP($A2,女子,6+1,0)) ->  | E2: =IF($B2="","",VLOOKUP($A2,女子,9+1,0)) ->  | F2: =IF($B2="","",VLOOKUP($A2,女子,10+1,0)) ->  | G2: =IF($B2="","",VLOOKUP($A2,女子,11+1,0)) ->  | H2: =IF($B2="","",VLOOKUP($A2,女子,12+1,0)) ->  | I2: =IF($B2="","",VLOOKUP($A2,女子,13+1,0)) ->  | J2: =IF($B2="","",VLOOKUP($A2,女子,14+1,0)) ->  | K2: =IF($B2="","",IF(VLOOKUP($A2,女子,15+1,0)="","",VLOOKUP($A2,女子,15+1,0))) ->  | L2: =IF($B2="","",IF(VLOOKUP($A2,女子,19+1,0)="","",VLOOKUP($A2,女子,19+1,0))) ->  | M2: =IF($B2="","",IF(VLOOKUP($A2,女子,23+1,0)="","",VLOOKUP($A2,女子,23+1,0))) ->  | N2: =IF($B2="","",IF(VLOOKUP($A2,女子,27+1,0)="","",VLOOKUP($A2,女子,27+1,0))) ->  | O2: =IF($B2="","",IF(VLOOKUP($A2,女子,31+1,0)="","",VLOOKUP($A2,女子,31+1,0))) ->  | Q2: 6 | R2: 23年砲丸投 | S2: 6 | V2: 中3 | W2: 24 | Z2: 04 | AA2: 6
A3: 2 | Q3: 7 | R3: 共通400m | W3: 25 | Z3: 05
A4: 3 | Q4: 8 | R4: 共通3000m | W4: 26 | Z4: 06
A5: 4 | Q5: 9 | R5: 共通400mH | W5: 27 | Z5: 07
A6: 5 | Q6: 10 | R6: 共通走高跳 | W6: 28 | Z6: 08
A7: 6 | Q7: 11 | R7: 共通棒高跳 | W7: 29 | Z7: 09
A8: 7 | Q8: 12 | R8: 共通三段跳 | W8: 30 | Z8: 10
A9: 8 | Q9: 13 | R9: 共通円盤投 | W9: 31 | Z9: 11
A10: 9 | Q10: 14 | R10: 共通やり投 | W10: 32 | Z10: 12
A11: 10 | Q11: 15 | W11: 33 | Z11: 13
A12: 11 | Q12: 16 | W12: 34 | Z12: 14
A13: 12 | Q13: 17 | W13: 35 | Z13: 15
A14: 13 | Q14: 18 | W14: 36 | Z14: 16
A15: 14 | Q15: 19 | W15: 37 | Z15: 17
A16: 15 | Q16: 20 | Z16: 18
A17: 16 | Q17: 21 | Z17: 19
A18: 17 | Q18: 22 | Z18: 20
A19: 18 | Q19: 23 | Z19: 21
A20: 19 | Q20: 24 | Z20: 22
A21: 20 | Q21: 25 | Z21: 23
A22: 21 | Z22: 24
A23: 22 | Z23: 25
A24: 23 | Z24: 26
A25: 24 | Z25: 27
A26: 25 | Z26: 28
A27: 26 | Z27: 29
A28: 27 | Z28: 30
A29: 28 | Z29: 31
A30: 29 | Z30: 32
A31: 30 | Z31: 33
A32: 31 | Z32: 34
A33: 32 | Z33: 35
A34: 33 | B34: =IF(ISERROR(VLOOKUP($A34,女子,4,0)),"",VLOOKUP($A34,女子,4,0)) ->  | C34: =IF($B34="","",VLOOKUP($A34,女子,5+1,0)) ->  | D34: =IF($B34="","",VLOOKUP($A34,女子,6+1,0)) ->  | E34: =IF($B34="","",VLOOKUP($A34,女子,9+1,0)) ->  | F34: =IF($B34="","",VLOOKUP($A34,女子,10+1,0)) ->  | G34: =IF($B34="","",VLOOKUP($A34,女子,11+1,0)) ->  | H34: =IF($B34="","",VLOOKUP($A34,女子,12+1,0)) ->  | I34: =IF($B34="","",VLOOKUP($A34,女子,13+1,0)) ->  | J34: =IF($B34="","",VLOOKUP($A34,女子,14+1,0)) ->  | K34: =IF($B34="","",IF(VLOOKUP($A34,女子,15+1,0)="","",VLOOKUP($A34,女子,15+1,0))) ->  | L34: =IF($B34="","",IF(VLOOKUP($A34,女子,19+1,0)="","",VLOOKUP($A34,女子,19+1,0))) ->  | M34: =IF($B34="","",IF(VLOOKUP($A34,女子,23+1,0)="","",VLOOKUP($A34,女子,23+1,0))) ->  | N34: =IF($B34="","",IF(VLOOKUP($A34,女子,27+1,0)="","",VLOOKUP($A34,女子,27+1,0))) ->  | O34: =IF($B34="","",IF(VLOOKUP($A34,女子,31+1,0)="","",VLOOKUP($A34,女子,31+1,0))) ->  | Z34: 36
A35: 34 | Z35: 37
A36: 35 | Z36: 38
A37: 36 | Z37: 39
A38: 37 | Z38: 40
A39: 38 | Z39: 41
A40: 39 | Z40: 42
A41: 40 | Z41: 43
A42: 41 | Z42: 44
A43: 42 | Z43: 45
A44: 43 | Z44: 46
A45: 44 | Z45: 47
A46: 45 | Z46: 48
A47: 46 | Z47: 49
A48: 47 | Z48: 50
A49: 48 | Z49: 51
A50: 49 | Z50: 52
A51: 50 | Z51: 53
A52: 51 | Z52: 54
A53: 52 | Z53: 55
A54: 53 | Z54: 56
A55: 54 | Z55: 57
A56: 55 | Z56: 58
A57: 56 | Z57: 59
A58: 57 | Z58: 60
A59: 58 | Z59: 61
A60: 59 | Z60: 62
A61: 60 | Z61: 63
A62: 61 | Z62: 64
A63: 62 | Z63: 65
A64: 63 | Z64: 66
A65: 64 | Z65: 67
A66: 65 | B66: =IF(ISERROR(VLOOKUP($A66,女子,4,0)),"",VLOOKUP($A66,女子,4,0)) ->  | C66: =IF($B66="","",VLOOKUP($A66,女子,5+1,0)) ->  | D66: =IF($B66="","",VLOOKUP($A66,女子,6+1,0)) ->  | E66: =IF($B66="","",VLOOKUP($A66,女子,9+1,0)) ->  | F66: =IF($B66="","",VLOOKUP($A66,女子,10+1,0)) ->  | G66: =IF($B66="","",VLOOKUP($A66,女子,11+1,0)) ->  | H66: =IF($B66="","",VLOOKUP($A66,女子,12+1,0)) ->  | I66: =IF($B66="","",VLOOKUP($A66,女子,13+1,0)) ->  | J66: =IF($B66="","",VLOOKUP($A66,女子,14+1,0)) ->  | K66: =IF($B66="","",IF(VLOOKUP($A66,女子,15+1,0)="","",VLOOKUP($A66,女子,15+1,0))) ->  | L66: =IF($B66="","",IF(VLOOKUP($A66,女子,19+1,0)="","",VLOOKUP($A66,女子,19+1,0))) ->  | M66: =IF($B66="","",IF(VLOOKUP($A66,女子,23+1,0)="","",VLOOKUP($A66,女子,23+1,0))) ->  | N66: =IF($B66="","",IF(VLOOKUP($A66,女子,27+1,0)="","",VLOOKUP($A66,女子,27+1,0))) ->  | O66: =IF($B66="","",IF(VLOOKUP($A66,女子,31+1,0)="","",VLOOKUP($A66,女子,31+1,0))) ->  | Z66: 68
A67: 66 | Z67: 69
A68: 67 | Z68: 70
A69: 68 | Z69: 71
A70: 69 | Z70: 72
A71: 70 | Z71: 73
A72: 71 | Z72: 74
A73: 72 | Z73: 75
A74: 73 | Z74: 76
A75: 74 | Z75: 77
A76: 75 | Z76: 78
A77: 76 | Z77: 79
A78: 77 | Z78: 80
A79: 78 | Z79: 81
A80: 79 | Z80: 82
A81: 80 | Z81: 83
Z82: 84
Z83: 85
Z84: 86
Z85: 87
Z86: 88
Z87: 89
Z88: 90
Z89: 91
Z90: 92
Z91: 93
Z92: 94
Z93: 95
Z94: 96
Z95: 97
Z96: 98
Z97: 99
